Workbook

Sheet INTRO
C1: Cette version sera utilisée par les pays endémiques à la Loase
B2: Formulaire de Rapport Commun v.3 (L)
B4: Le but de ce formulaire de rapport commun - disponible sous forme de fichier Excel - est de mettre à disposition des autorités sanitaires nationales et des gestionnaires de données un outil standardisé qui réponde aux défis, facilite l'intégration et par conséquent contribue à améliorer la gestion de programme. Ce formulaire tend à standardiser le rapport de résultats des programmes nationaux, améliore la disponibilité et la coordination des données de chimioprévention à travers les Bureaux des Régions de l'Organisation mondiale de la Santé. Les autorités nationales sont priées de compléter ce formulaire et de le soumettre à l'Organisation mondiale de la Santé avant le 15 août de l'année en cours pour rapporter les données des activités de chimioprévention mises en oeuvre l'année précédente.
B6: Structure de l'application (feuilles de travail) :
B8: INTRO | C8: Cette feuille contient des instructions pour compléter le formulaire de rapport commun et des informations sur le statut de la chimioprévention pour les maladies d'endémie du pays.
B9: COUNTRY_INFO | C9: Cette feuille contient des informations sur la structure administrative du pays, la population par groupe d'âge, le statut d'endémicité pour chaque maladie, la population devant être traitée par chimioprévention, les interventions prévues et les interventions mises en oeuvre.
B10: MDA1, MDA2, MDA3, T1, T2 et T3 | C10: Ces feuilles contiennent des informations sur l'endémicité des districts ciblés pour le traitement aux médicaments spécifiques pour la chimioprévention, les plans de traitement, et le nombre de personnes traitées par groupe d'âge.
B11: DISTRICT | C11: Cette feuille contient un résumé sur les personnes traitées, par maladie, au niveau de mise en oeuvre. Si les données par genre (sexe) sont disponibles, merci de les saisir.
B12: SUMMARY | C12: Cette feuille contient un résumé sur les personnes traitées, par maladie et par type d'intervention de chimioprévention. Avant de générer le rapport (exécuter macro), veuillez sélectionner la maladie pour laquelle vous souhaitez un rapport. Veuillez suivre le même processus pour générer les divers rapports. Cette feuille doit être imprimée et soumise comme formulaire de rapport commun (voir les instructions pour la soumission du formulaire sous la feuille SUMMARY).
B14: Instructions pour la saisie des données
B16: La plupart des cellules des feuilles de travail mentionnées ci-dessus contiennent des formules calculées automatiquement en fonction du protocole de traitement recommandé par l'OMS pour chaque maladie. Voir : http://www.who.int/neglected_diseases/preventive_chemotherapy/pct_manual/en/index.html
B18: Veuillez entrer vos données dans les cellules en fonction de leur code de couleur :
C20: Blanc - la cellule n'est pas protégée. Veuillez entrer la valeur de l'indicateur demandé.
C22: Jaune - la cellule est protégée et inclut le nom de l'indicateur. Aucune entrée de données requise.
C24: Orange - la cellule n'est pas protégée et contient un menu déroulant. Veuillez sélectionner la valeur dans le menu déroulant.
C27: Vert - la cellule n'est pas protégée et contient des formules. Veuillez changer la valeur indiquée uniquement si vos données sont différentes de celles calculées automatiquement.
C30: Bleu - la cellule est protégée et contient des formules. Aucune entrée de données requise.
B32: Données pays
B34: PAYS | E34: Congo
B36: Année de rapport des données | E36: 2019
B38: Le pays est-il endémique à la filariose lymphatique (FL) ? | E38: Endémique
B40: Le pays est-il endémique à l'onchocercose (ONCHO) ? | E40: Endémique
B42: Le pays est-il endémique aux géohelminthiases (STH) ? | E42: Endémique
B44: Le pays est-il endémique à la schistosomiase (SCH) ? | E44: Endémique
B46: Combien d'unités administratives compte le pays ? | E46: 52
B47: Si les données démographiques par groupe d'âge ne sont pas disponibles au second niveau administratif, veuillez entrer la proportion (%) de population, par groupe d'âge, du pays. Si les données sont disponibles, veuillez laisser les cellules vierges.
B48: 1-4 ans | C48: Enfants d'âge pré-scolaire (EAPréS) | E48: 0.16
B49: 5-14 ans | C49: Enfants d'âge scolaire (EAS) | E49: 0.24
B50: 15 ans et plus | C50: Adultes | E50: 0.553

Sheet COUNTRY_INFO
A1: INFORMATIONS PAYS
A2: Structure administrative, population par groupe d'âge, statut d'endémicité, interventions planifiées et interventions mises en oeuvre
A4: TOTAL | D4: =SUM(D$9:D$1000) -> 5321638 | E4: =SUM(E$9:E$1000) -> 851462 | F4: =SUM(F$9:F$1000) -> 1277191 | G4: =SUM(G$9:G$1000) -> 2942865 | M4: =SUM(M$9:M$1000) -> 1031260 | N4: =SUM(N$9:N$1000) -> 713514 | O4: =SUM(O$9:O$1000) -> 809022 | P4: =SUM(P$9:P$1000) -> 408975.29
A6: Structure administrative du pays | D6: Population | H6: Endémicité | M6: Population nécessitant la CP | Q6: Nombre de tournées de traitement prévues pour l'année | U6: Mise en oeuvre de la chimioprévention | AA6: mda1 | AB6: mda4 | AC6: mda3 | AE6: mda4_r1 | AF6: mda4_r2 | AL6: roadmap pop 2019
A7: Pays | B7: Région/Département | C7: District | D7: Total | E7: EAPréS | F7: EAS | G7: Adultes | H7: FL | I7: Oncho | J7: STH | K7: SCH | L7: Loa | M7: FL | N7: Oncho | O7: STH | P7: SCH | Q7: FL | R7: Oncho | S7: STH | T7: SCH | U7: TOURNEE 1 | V7: TOURNEE 2 | W7: IU_ID | X7: IU_NAME | Y7: x | Z7: x | AA7: x | AB7: x | AC7: x | AD7: x | AE7: x | AF7: x | AG7: x | AH7: x | AI7: x | AJ7: x | AK7: x | AL7: x | AM7: x | AN7: x | AO7: x | AP7: x | AQ7: x | AR7: x | AS7: x | AT7: x | AU7: x | AV7: x | AW7: x | AX7: x
A9: =IF(INTRO!$E$34<>0,INTRO!$E$34,"") -> Congo | B9: Bouenza | C9: Loudima | D9: 50384 | E9: =IF(INTRO!$E$48="","",ROUND($D9*INTRO!$E$48,0)) -> 8061 | F9: =IF(INTRO!$E$49="","",ROUND($D9*INTRO!$E$49,0)) -> 12092 | G9: =IF(INTRO!$E$50="","",ROUND($D9*INTRO!$E$50,0)) -> 27862 | H9: 0 | I9: 1 | J9: 1 | K9: 3 | L9: 1 | M9: =IF(INTRO!$E$38="Endémique", IF($H9>0, IF($H9=4,"Inconnu", IF($H9=99,"Interrompu", $D9)), 0),"Non requis") -> 0 | N9: 16204 | O9: =IF(INTRO!$E$42="Endémique", IF(AND($J9>1,$J9<5), IF($J9=4, "Inconnu", E9+F9), 0),"Non requis") -> 0 | P9: =IF(INTRO!$E$44="Endémique", IF(AND($K9>0,$K9<5), IF($K9=4,"Inconnu", IF($K9=1, $F9*0.33, IF($K9=2, $F9*0.5+$G9*0.2, SUM(F9:G9)))), 0),"Non requis") -> 39954 | Q9: 0 | R9: 1 | S9: 0 | T9: 0 | U9: MDA3 (IVM) | W9: 12831 | X9: Loudima | AA9: ='MDA1'!M9 -> 0 | AB9: ='MDA4'!U9 -> 0 | AC9: ='MDA3'!Q9 -> 13390 | AE9: ='MDA4'!M9 -> 0 | AF9: ='MDA4'!Q9 -> 0 | AK9: Loudima | AL9: 126714 | AM9: =(AL9-D9)/D9*100 -> 151.4965068
A10: =IF(INTRO!$E$34<>0,INTRO!$E$34,"") -> Congo | B10: Bouenza | C10: Loutété | D10: 55614 | E10: =IF(INTRO!$E$48="","",ROUND($D10*INTRO!$E$48,0)) -> 8898 | F10: =IF(INTRO!$E$49="","",ROUND($D10*INTRO!$E$49,0)) -> 13347 | G10: =IF(INTRO!$E$50="","",ROUND($D10*INTRO!$E$50,0)) -> 30755 | H10: 1 | I10: 1 | J10: 2 | K10: 2 | L10: 1 | M10: =IF(INTRO!$E$38="Endémique", IF($H10>0, IF($H10=4,"Inconnu", IF($H10=99,"Interrompu", $D10)), 0),"Non requis") -> 55614 | N10: 31821 | O10: =IF(INTRO!$E$42="Endémique", IF(AND($J10>1,$J10<5), IF($J10=4, "Inconnu", E10+F10), 0),"Non requis") -> 22245 | P10: =IF(INTRO!$E$44="Endémique", IF(AND($K10>0,$K10<5), IF($K10=4,"Inconnu", IF($K10=1, $F10*0.33, IF($K10=2, $F10*0.5+$G10*0.2, SUM(F10:G10)))), 0),"Non requis") -> 12824.5 | Q10: 1 | R10: 1 | S10: 1 | T10: 0 | U10: MDA1 (IVM+ALB) | W10: 12823 | X10: Loutété | AA10: ='MDA1'!M10 -> 25928 | AB10: ='MDA4'!U10 -> 2792 | AC10: ='MDA3'!Q10 -> 0 | AE10: ='MDA4'!M10 -> 2792 | AF10: ='MDA4'!Q10 -> 2634 | AK10: Loutété | AL10: 159001 | AM10: =(AL10-D10)/D10*100 -> 185.9010321
A11: =IF(INTRO!$E$34<>0,INTRO!$E$34,"") -> Congo | B11: Bouenza | C11: Madingou | D11: 105844 | E11: =IF(INTRO!$E$48="","",ROUND($D11*INTRO!$E$48,0)) -> 16935 | F11: =IF(INTRO!$E$49="","",ROUND($D11*INTRO!$E$49,0)) -> 25403 | G11: =IF(INTRO!$E$50="","",ROUND($D11*INTRO!$E$50,0)) -> 58532 | H11: 1 | I11: 1 | J11: 1 | K11: 0 | L11: 1 | M11: =IF(INTRO!$E$38="Endémique", IF($H11>0, IF($H11=4,"Inconnu", IF($H11=99,"Interrompu", $D11)), 0),"Non requis") -> 105844 | N11: 48422 | O11: =IF(INTRO!$E$42="Endémique", IF(AND($J11>1,$J11<5), IF($J11=4, "Inconnu", E11+F11), 0),"Non requis") -> 0 | P11: =IF(INTRO!$E$44="Endémique", IF(AND($K11>0,$K11<5), IF($K11=4,"Inconnu", IF($K11=1, $F11*0.33, IF($K11=2, $F11*0.5+$G11*0.2, SUM(F11:G11)))), 0),"Non requis") -> 0 | Q11: 1 | R11: 1 | S11: 0 | T11: 0 | U11: MDA1 (IVM+ALB) | W11: 12763 | X11: Madingou | AA11: ='MDA1'!M11 -> 40439 | AB11: ='MDA4'!U11 -> 15621 | AC11: ='MDA3'!Q11 -> 0 | AE11: ='MDA4'!M11 -> 13362 | AF11: ='MDA4'!Q11 -> 15621 | AK11: Madingou | AL11: 181621 | AM11: 71.59309928
A12: =IF(INTRO!$E$34<>0,INTRO!$E$34,"") -> Congo | B12: Bouenza | C12: Mouyondzi | D12: 84145 | E12: =IF(INTRO!$E$48="","",ROUND($D12*INTRO!$E$48,0)) -> 13463 | F12: =IF(INTRO!$E$49="","",ROUND($D12*INTRO!$E$49,0)) -> 20195 | G12: =IF(INTRO!$E$50="","",ROUND($D12*INTRO!$E$50,0)) -> 46532 | H12: 1 | I12: 1 | J12: 3 | K12: 3 | L12: 1 | M12: =IF(INTRO!$E$38="Endémique", IF($H12>0, IF($H12=4,"Inconnu", IF($H12=99,"Interrompu", $D12)), 0),"Non requis") -> 84145 | N12: 40579 | O12: =IF(INTRO!$E$42="Endémique", IF(AND($J12>1,$J12<5), IF($J12=4, "Inconnu", E12+F12), 0),"Non requis") -> 33658 | P12: =IF(INTRO!$E$44="Endémique", IF(AND($K12>0,$K12<5), IF($K12=4,"Inconnu", IF($K12=1, $F12*0.33, IF($K12=2, $F12*0.5+$G12*0.2, SUM(F12:G12)))), 0),"Non requis") -> 66727 | Q12: 1 | R12: 1 | S12: 2 | T12: 0 | U12: MDA1 (IVM+ALB) | W12: 12765 | X12: Mouyondzi | AA12: ='MDA1'!M12 -> 33683 | AB12: ='MDA4'!U12 -> 6645 | AC12: ='MDA3'!Q12 -> 0 | AE12: ='MDA4'!M12 -> 1276 | AF12: ='MDA4'!Q12 -> 6645 | AK12: Mouyondzi | AL12: 15505 | AM12: -81.57347436
A13: =IF(INTRO!$E$34<>0,INTRO!$E$34,"") -> Congo | B13: Bouenza | C13: Nkayi | D13: 126714 | E13: =IF(INTRO!$E$48="","",ROUND($D13*INTRO!$E$48,0)) -> 20274 | F13: =IF(INTRO!$E$49="","",ROUND($D13*INTRO!$E$49,0)) -> 30411 | G13: =IF(INTRO!$E$50="","",ROUND($D13*INTRO!$E$50,0)) -> 70073 | H13: 0 | I13: 1 | J13: 2 | K13: 0 | L13: 1 | M13: =IF(INTRO!$E$38="Endémique", IF($H13>0, IF($H13=4,"Inconnu", IF($H13=99,"Interrompu", $D13)), 0),"Non requis") -> 0 | N13: 38249 | O13: =IF(INTRO!$E$42="Endémique", IF(AND($J13>1,$J13<5), IF($J13=4, "Inconnu", E13+F13), 0),"Non requis") -> 50685 | P13: =IF(INTRO!$E$44="Endémique", IF(AND($K13>0,$K13<5), IF($K13=4,"Inconnu", IF($K13=1, $F13*0.33, IF($K13=2, $F13*0.5+$G13*0.2, SUM(F13:G13)))), 0),"Non requis") -> 0 | Q13: 0 | R13: 1 | S13: 1 | T13: 0 | U13: MDA3 (IVM) | W13: 12832 | X13: Nkayi | AA13: ='MDA1'!M13 -> 0 | AB13: ='MDA4'!U13 -> 0 | AC13: ='MDA3'!Q13 -> 30278 | AE13: ='MDA4'!M13 -> 0 | AF13: ='MDA4'!Q13 -> 0 | AK13: Nkayi | AL13: 178861 | AM13: 41.15330587
A14: =IF(INTRO!$E$34<>0,INTRO!$E$34,"") -> Congo | B14: Brazzaville | C14: Bacongo | D14: 159001 | E14: =IF(INTRO!$E$48="","",ROUND($D14*INTRO!$E$48,0)) -> 25440 | F14: =IF(INTRO!$E$49="","",ROUND($D14*INTRO!$E$49,0)) -> 38160 | G14: =IF(INTRO!$E$50="","",ROUND($D14*INTRO!$E$50,0)) -> 87928 | H14: 0 | I14: 1 | J14: 1 | K14: 4 | L14: 1 | M14: =IF(INTRO!$E$38="Endémique", IF($H14>0, IF($H14=4,"Inconnu", IF($H14=99,"Interrompu", $D14)), 0),"Non requis") -> 0 | N14: 122326 | O14: =IF(INTRO!$E$42="Endémique", IF(AND($J14>1,$J14<5), IF($J14=4, "Inconnu", E14+F14), 0),"Non requis") -> 0 | P14: =IF(INTRO!$E$44="Endémique", IF(AND($K14>0,$K14<5), IF($K14=4,"Inconnu", IF($K14=1, $F14*0.33, IF($K14=2, $F14*0.5+$G14*0.2, SUM(F14:G14)))), 0),"Non requis") -> Inconnu | Q14: 0 | R14: 1 | S14: 0 | T14: 0 | U14: MDA3 (IVM) | W14: 12800 | X14: Bacongo | AA14: ='MDA1'!M14 -> 0 | AB14: ='MDA4'!U14 -> 0 | AC14: ='MDA3'!Q14 -> 99677 | AE14: ='MDA4'!M14 -> 0 | AF14: ='MDA4'!Q14 -> 0 | AK14: Bacongo | AL14: 232218 | AM14: 46.04813806
A15: =IF(INTRO!$E$34<>0,INTRO!$E$34,"") -> Congo | B15: Brazzaville | C15: Djiri | D15: 181621 | E15: =IF(INTRO!$E$48="","",ROUND($D15*INTRO!$E$48,0)) -> 29059 | F15: =IF(INTRO!$E$49="","",ROUND($D15*INTRO!$E$49,0)) -> 43589 | G15: =IF(INTRO!$E$50="","",ROUND($D15*INTRO!$E$50,0)) -> 100436 | H15: 0 | I15: 4 | J15: 1 | K15: 0 | L15: 1 | M15: =IF(INTRO!$E$38="Endémique", IF($H15>0, IF($H15=4,"Inconnu", IF($H15=99,"Interrompu", $D15)), 0),"Non requis") -> 0 | O15: =IF(INTRO!$E$42="Endémique", IF(AND($J15>1,$J15<5), IF($J15=4, "Inconnu", E15+F15), 0),"Non requis") -> 0 | P15: =IF(INTRO!$E$44="Endémique", IF(AND($K15>0,$K15<5), IF($K15=4,"Inconnu", IF($K15=1, $F15*0.33, IF($K15=2, $F15*0.5+$G15*0.2, SUM(F15:G15)))), 0),"Non requis") -> 0 | Q15: 0 | R15: 0 | S15: 0 | T15: 0 | W15: 12847 | X15: Djiri | AA15: ='MDA1'!M15 -> 0 | AB15: ='MDA4'!U15 -> 0 | AC15: ='MDA3'!Q15 -> 0 | AE15: ='MDA4'!M15 -> 0 | AF15: ='MDA4'!Q15 -> 0 | AK15: Djiri | AL15: 218748 | AM15: 20.44201937
A16: =IF(INTRO!$E$34<>0,INTRO!$E$34,"") -> Congo | B16: Brazzaville | C16: Île Mbamou | D16: 15505 | E16: =IF(INTRO!$E$48="","",ROUND($D16*INTRO!$E$48,0)) -> 2481 | F16: =IF(INTRO!$E$49="","",ROUND($D16*INTRO!$E$49,0)) -> 3721 | G16: =IF(INTRO!$E$50="","",ROUND($D16*INTRO!$E$50,0)) -> 8574 | H16: 0 | I16: 4 | J16: 1 | K16: 4 | L16: 1 | M16: =IF(INTRO!$E$38="Endémique", IF($H16>0, IF($H16=4,"Inconnu", IF($H16=99,"Interrompu", $D16)), 0),"Non requis") -> 0 | O16: =IF(INTRO!$E$42="Endémique", IF(AND($J16>1,$J16<5), IF($J16=4, "Inconnu", E16+F16), 0),"Non requis") -> 0 | P16: =IF(INTRO!$E$44="Endémique", IF(AND($K16>0,$K16<5), IF($K16=4,"Inconnu", IF($K16=1, $F16*0.33, IF($K16=2, $F16*0.5+$G16*0.2, SUM(F16:G16)))), 0),"Non requis") -> Inconnu | Q16: 0 | R16: 0 | S16: 0 | T16: 0 | W16: 12834 | X16: Ile M'Bamou | AA16: ='MDA1'!M16 -> 0 | AB16: ='MDA4'!U16 -> 0 | AC16: ='MDA3'!Q16 -> 0 | AE16: ='MDA4'!M16 -> 0 | AF16: ='MDA4'!Q16 -> 0 | AK16: Île Mbamou | AL16: 231188 | AM16: 1391.054499
A17: =IF(INTRO!$E$34<>0,INTRO!$E$34,"") -> Congo | B17: Brazzaville | C17: Madibou | D17: 178861 | E17: =IF(INTRO!$E$48="","",ROUND($D17*INTRO!$E$48,0)) -> 28618 | F17: =IF(INTRO!$E$49="","",ROUND($D17*INTRO!$E$49,0)) -> 42927 | G17: =IF(INTRO!$E$50="","",ROUND($D17*INTRO!$E$50,0)) -> 98910 | H17: 0 | I17: 1 | J17: 1 | K17: 0 | L17: 1 | M17: =IF(INTRO!$E$38="Endémique", IF($H17>0, IF($H17=4,"Inconnu", IF($H17=99,"Interrompu", $D17)), 0),"Non requis") -> 0 | N17: 96961 | O17: =IF(INTRO!$E$42="Endémique", IF(AND($J17>1,$J17<5), IF($J17=4, "Inconnu", E17+F17), 0),"Non requis") -> 0 | P17: =IF(INTRO!$E$44="Endémique", IF(AND($K17>0,$K17<5), IF($K17=4,"Inconnu", IF($K17=1, $F17*0.33, IF($K17=2, $F17*0.5+$G17*0.2, SUM(F17:G17)))), 0),"Non requis") -> 0 | Q17: 0 | R17: 1 | S17: 0 | T17: 0 | U17: MDA3 (IVM) | W17: 12824 | X17: Madibou | AA17: ='MDA1'!M17 -> 0 | AB17: ='MDA4'!U17 -> 0 | AC17: ='MDA3'!Q17 -> 77314 | AE17: ='MDA4'!M17 -> 0 | AF17: ='MDA4'!Q17 -> 0 | AK17: Madibou | AL17: 247175 | AM17: 38.19390476
A18: =IF(INTRO!$E$34<>0,INTRO!$E$34,"") -> Congo | B18: Brazzaville | C18: Makélékélé | D18: 232218 | E18: =IF(INTRO!$E$48="","",ROUND($D18*INTRO!$E$48,0)) -> 37155 | F18: =IF(INTRO!$E$49="","",ROUND($D18*INTRO!$E$49,0)) -> 55732 | G18: =IF(INTRO!$E$50="","",ROUND($D18*INTRO!$E$50,0)) -> 128417 | H18: 0 | I18: 1 | J18: 1 | K18: 1 | L18: 1 | M18: =IF(INTRO!$E$38="Endémique", IF($H18>0, IF($H18=4,"Inconnu", IF($H18=99,"Interrompu", $D18)), 0),"Non requis") -> 0 | N18: 94128 | O18: =IF(INTRO!$E$42="Endémique", IF(AND($J18>1,$J18<5), IF($J18=4, "Inconnu", E18+F18), 0),"Non requis") -> 0 | P18: =IF(INTRO!$E$44="Endémique", IF(AND($K18>0,$K18<5), IF($K18=4,"Inconnu", IF($K18=1, $F18*0.33, IF($K18=2, $F18*0.5+$G18*0.2, SUM(F18:G18)))), 0),"Non requis") -> 18391.56 | Q18: 0 | R18: 1 | S18: 0 | T18: 0 | U18: MDA3 (IVM) | W18: 12805 | X18: Makélékélé | AA18: ='MDA1'!M18 -> 0 | AB18: ='MDA4'!U18 -> 0 | AC18: ='MDA3'!Q18 -> 78428 | AE18: ='MDA4'!M18 -> 0 | AF18: ='MDA4'!Q18 -> 0 | AK18: Makélékélé | AL18: 102875 | AM18: -55.69895529
A19: =IF(INTRO!$E$34<>0,INTRO!$E$34,"") -> Congo | B19: Brazzaville | C19: Mfilou | D19: 218748 | E19: =IF(INTRO!$E$48="","",ROUND($D19*INTRO!$E$48,0)) -> 35000 | F19: =IF(INTRO!$E$49="","",ROUND($D19*INTRO!$E$49,0)) -> 52500 | G19: =IF(INTRO!$E$50="","",ROUND($D19*INTRO!$E$50,0)) -> 120968 | H19: 0 | I19: 1 | J19: 1 | K19: 0 | L19: 1 | M19: =IF(INTRO!$E$38="Endémique", IF($H19>0, IF($H19=4,"Inconnu", IF($H19=99,"Interrompu", $D19)), 0),"Non requis") -> 0 | N19: 87100 | O19: =IF(INTRO!$E$42="Endémique", IF(AND($J19>1,$J19<5), IF($J19=4, "Inconnu", E19+F19), 0),"Non requis") -> 0 | P19: =IF(INTRO!$E$44="Endémique", IF(AND($K19>0,$K19<5), IF($K19=4,"Inconnu", IF($K19=1, $F19*0.33, IF($K19=2, $F19*0.5+$G19*0.2, SUM(F19:G19)))), 0),"Non requis") -> 0 | Q19: 0 | R19: 1 | S19: 0 | T19: 0 | U19: MDA3 (IVM) | W19: 12806 | X19: Mfilou | AA19: ='MDA1'!M19 -> 0 | AB19: ='MDA4'!U19 -> 0 | AC19: ='MDA3'!Q19 -> 71739 | AE19: ='MDA4'!M19 -> 0 | AF19: ='MDA4'!Q19 -> 0 | AK19: Mfilou | AL19: 317814 | AM19: 45.28772834
A20: =IF(INTRO!$E$34<>0,INTRO!$E$34,"") -> Congo | B20: Brazzaville | C20: Moungali | D20: 231188 | E20: =IF(INTRO!$E$48="","",ROUND($D20*INTRO!$E$48,0)) -> 36990 | F20: =IF(INTRO!$E$49="","",ROUND($D20*INTRO!$E$49,0)) -> 55485 | G20: =IF(INTRO!$E$50="","",ROUND($D20*INTRO!$E$50,0)) -> 127847 | H20: 0 | I20: 4 | J20: 1 | K20: 1 | L20: 1 | M20: =IF(INTRO!$E$38="Endémique", IF($H20>0, IF($H20=4,"Inconnu", IF($H20=99,"Interrompu", $D20)), 0),"Non requis") -> 0 | O20: =IF(INTRO!$E$42="Endémique", IF(AND($J20>1,$J20<5), IF($J20=4, "Inconnu", E20+F20), 0),"Non requis") -> 0 | P20: =IF(INTRO!$E$44="Endémique", IF(AND($K20>0,$K20<5), IF($K20=4,"Inconnu", IF($K20=1, $F20*0.33, IF($K20=2, $F20*0.5+$G20*0.2, SUM(F20:G20)))), 0),"Non requis") -> 18310.05 | Q20: 0 | R20: 0 | S20: 0 | T20: 0 | W20: 12808 | X20: Moungali | AA20: ='MDA1'!M20 -> 0 | AB20: ='MDA4'!U20 -> 0 | AC20: ='MDA3'!Q20 -> 0 | AE20: ='MDA4'!M20 -> 0 | AF20: ='MDA4'!Q20 -> 0 | AK20: Moungali | AL20: 64829 | AM20: -71.95831964
A21: =IF(INTRO!$E$34<>0,INTRO!$E$34,"") -> Congo | B21: Brazzaville | C21: Ouenzé | D21: 247175 | E21: =IF(INTRO!$E$48="","",ROUND($D21*INTRO!$E$48,0)) -> 39548 | F21: =IF(INTRO!$E$49="","",ROUND($D21*INTRO!$E$49,0)) -> 59322 | G21: =IF(INTRO!$E$50="","",ROUND($D21*INTRO!$E$50,0)) -> 136688 | H21: 0 | I21: 4 | J21: 1 | K21: 0 | L21: 1 | M21: =IF(INTRO!$E$38="Endémique", IF($H21>0, IF($H21=4,"Inconnu", IF($H21=99,"Interrompu", $D21)), 0),"Non requis") -> 0 | O21: =IF(INTRO!$E$42="Endémique", IF(AND($J21>1,$J21<5), IF($J21=4, "Inconnu", E21+F21), 0),"Non requis") -> 0 | P21: =IF(INTRO!$E$44="Endémique", IF(AND($K21>0,$K21<5), IF($K21=4,"Inconnu", IF($K21=1, $F21*0.33, IF($K21=2, $F21*0.5+$G21*0.2, SUM(F21:G21)))), 0),"Non requis") -> 0 | Q21: 0 | R21: 0 | S21: 0 | T21: 0 | W21: 12810 | X21: Ouenzé | AA21: ='MDA1'!M21 -> 0 | AB21: ='MDA4'!U21 -> 0 | AC21: ='MDA3'!Q21 -> 0 | AE21: ='MDA4'!M21 -> 0 | AF21: ='MDA4'!Q21 -> 0 | AK21: Ouenzé | AL21: 94456 | AM21: -61.78577931
A22: =IF(INTRO!$E$34<>0,INTRO!$E$34,"") -> Congo | B22: Brazzaville | C22: Poto-Poto | D22: 102875 | E22: =IF(INTRO!$E$48="","",ROUND($D22*INTRO!$E$48,0)) -> 16460 | F22: =IF(INTRO!$E$49="","",ROUND($D22*INTRO!$E$49,0)) -> 24690 | G22: =IF(INTRO!$E$50="","",ROUND($D22*INTRO!$E$50,0)) -> 56890 | H22: 0 | I22: 4 | J22: 1 | K22: 0 | L22: 1 | M22: =IF(INTRO!$E$38="Endémique", IF($H22>0, IF($H22=4,"Inconnu", IF($H22=99,"Interrompu", $D22)), 0),"Non requis") -> 0 | O22: =IF(INTRO!$E$42="Endémique", IF(AND($J22>1,$J22<5), IF($J22=4, "Inconnu", E22+F22), 0),"Non requis") -> 0 | P22: =IF(INTRO!$E$44="Endémique", IF(AND($K22>0,$K22<5), IF($K22=4,"Inconnu", IF($K22=1, $F22*0.33, IF($K22=2, $F22*0.5+$G22*0.2, SUM(F22:G22)))), 0),"Non requis") -> 0 | Q22: 0 | R22: 0 | S22: 0 | T22: 0 | W22: 12811 | X22: Poto-Poto | AA22: ='MDA1'!M22 -> 0 | AB22: ='MDA4'!U22 -> 0 | AC22: ='MDA3'!Q22 -> 0 | AE22: ='MDA4'!M22 -> 0 | AF22: ='MDA4'!Q22 -> 0 | AK22: Poto-Poto | AL22: 56721 | AM22: -44.86415553
A23: =IF(INTRO!$E$34<>0,INTRO!$E$34,"") -> Congo | B23: Brazzaville | C23: Talangaî | D23: 317814 | E23: =IF(INTRO!$E$48="","",ROUND($D23*INTRO!$E$48,0)) -> 50850 | F23: =IF(INTRO!$E$49="","",ROUND($D23*INTRO!$E$49,0)) -> 76275 | G23: =IF(INTRO!$E$50="","",ROUND($D23*INTRO!$E$50,0)) -> 175751 | H23: 0 | I23: 4 | J23: 0 | K23: 0 | L23: 1 | M23: =IF(INTRO!$E$38="Endémique", IF($H23>0, IF($H23=4,"Inconnu", IF($H23=99,"Interrompu", $D23)), 0),"Non requis") -> 0 | O23: =IF(INTRO!$E$42="Endémique", IF(AND($J23>1,$J23<5), IF($J23=4, "Inconnu", E23+F23), 0),"Non requis") -> 0 | P23: =IF(INTRO!$E$44="Endémique", IF(AND($K23>0,$K23<5), IF($K23=4,"Inconnu", IF($K23=1, $F23*0.33, IF($K23=2, $F23*0.5+$G23*0.2, SUM(F23:G23)))), 0),"Non requis") -> 0 | Q23: 0 | R23: 0 | S23: 0 | T23: 0 | W23: 12833 | X23: Talangaï | AA23: ='MDA1'!M23 -> 0 | AB23: ='MDA4'!U23 -> 0 | AC23: ='MDA3'!Q23 -> 0 | AE23: ='MDA4'!M23 -> 0 | AF23: ='MDA4'!Q23 -> 0 | AK23: Talangaî | AL23: 42541 | AM23: -86.61449779
A24: =IF(INTRO!$E$34<>0,INTRO!$E$34,"") -> Congo | B24: Cuvette | C24: Mossaka | D24: 64829 | E24: =IF(INTRO!$E$48="","",ROUND($D24*INTRO!$E$48,0)) -> 10373 | F24: =IF(INTRO!$E$49="","",ROUND($D24*INTRO!$E$49,0)) -> 15559 | G24: =IF(INTRO!$E$50="","",ROUND($D24*INTRO!$E$50,0)) -> 35850 | H24: 0 | I24: 4 | J24: 2 | K24: 1 | L24: 1 | M24: =IF(INTRO!$E$38="Endémique", IF($H24>0, IF($H24=4,"Inconnu", IF($H24=99,"Interrompu", $D24)), 0),"Non requis") -> 0 | O24: =IF(INTRO!$E$42="Endémique", IF(AND($J24>1,$J24<5), IF($J24=4, "Inconnu", E24+F24), 0),"Non requis") -> 25932 | P24: =IF(INTRO!$E$44="Endémique", IF(AND($K24>0,$K24<5), IF($K24=4,"Inconnu", IF($K24=1, $F24*0.33, IF($K24=2, $F24*0.5+$G24*0.2, SUM(F24:G24)))), 0),"Non requis") -> 5134.47 | Q24: 0 | R24: 0 | S24: 1 | T24: 0 | W24: 12773 | X24: Mossaka | AA24: ='MDA1'!M24 -> 0 | AB24: ='MDA4'!U24 -> 0 | AC24: ='MDA3'!Q24 -> 0 | AE24: ='MDA4'!M24 -> 0 | AF24: ='MDA4'!Q24 -> 0 | AK24: Mossaka | AL24: 73793 | AM24: 13.82714526
A25: =IF(INTRO!$E$34<>0,INTRO!$E$34,"") -> Congo | B25: Cuvette | C25: Owando | D25: 94456 | E25: =IF(INTRO!$E$48="","",ROUND($D25*INTRO!$E$48,0)) -> 15113 | F25: =IF(INTRO!$E$49="","",ROUND($D25*INTRO!$E$49,0)) -> 22669 | G25: =IF(INTRO!$E$50="","",ROUND($D25*INTRO!$E$50,0)) -> 52234 | H25: 1 | I25: 4 | J25: 1 | K25: 1 | L25: 1 | M25: =IF(INTRO!$E$38="Endémique", IF($H25>0, IF($H25=4,"Inconnu", IF($H25=99,"Interrompu", $D25)), 0),"Non requis") -> 94456 | O25: =IF(INTRO!$E$42="Endémique", IF(AND($J25>1,$J25<5), IF($J25=4, "Inconnu", E25+F25), 0),"Non requis") -> 0 | P25: =IF(INTRO!$E$44="Endémique", IF(AND($K25>0,$K25<5), IF($K25=4,"Inconnu", IF($K25=1, $F25*0.33, IF($K25=2, $F25*0.5+$G25*0.2, SUM(F25:G25)))), 0),"Non requis") -> 7480.77 | Q25: 1 | R25: 0 | S25: 0 | T25: 0 | U25: MDA4 (ALB/2*ALB) | W25: 12775 | X25: Owando | AA25: ='MDA1'!M25 -> 0 | AB25: ='MDA4'!U25 -> 42520 | AC25: ='MDA3'!Q25 -> 0 | AE25: ='MDA4'!M25 -> 42520 | AF25: ='MDA4'!Q25 -> 0 | AK25: Owando | AL25: 47331 | AM25: -49.89095452
A26: =IF(INTRO!$E$34<>0,INTRO!$E$34,"") -> Congo | B26: Cuvette | C26: Oyo-Alima | D26: 56721 | E26: =IF(INTRO!$E$48="","",ROUND($D26*INTRO!$E$48,0)) -> 9075 | F26: =IF(INTRO!$E$49="","",ROUND($D26*INTRO!$E$49,0)) -> 13613 | G26: =IF(INTRO!$E$50="","",ROUND($D26*INTRO!$E$50,0)) -> 31367 | H26: 0 | I26: 4 | J26: 1 | K26: 0 | L26: 1 | M26: =IF(INTRO!$E$38="Endémique", IF($H26>0, IF($H26=4,"Inconnu", IF($H26=99,"Interrompu", $D26)), 0),"Non requis") -> 0 | O26: =IF(INTRO!$E$42="Endémique", IF(AND($J26>1,$J26<5), IF($J26=4, "Inconnu", E26+F26), 0),"Non requis") -> 0 | P26: =IF(INTRO!$E$44="Endémique", IF(AND($K26>0,$K26<5), IF($K26=4,"Inconnu", IF($K26=1, $F26*0.33, IF($K26=2, $F26*0.5+$G26*0.2, SUM(F26:G26)))), 0),"Non requis") -> 0 | Q26: 0 | R26: 0 | S26: 0 | T26: 0 | W26: 12829 | X26: Oyo-Alima | AA26: ='MDA1'!M26 -> 0 | AB26: ='MDA4'!U26 -> 0 | AC26: ='MDA3'!Q26 -> 0 | AE26: ='MDA4'!M26 -> 0 | AF26: ='MDA4'!Q26 -> 0 | AK26: Oyo-Alima | AL26: 23282 | AM26: -58.95347402
A27: =IF(INTRO!$E$34<>0,INTRO!$E$34,"") -> Congo | B27: Cuvette-Ouest | C27: Etoumbi | D27: 42541 | E27: =IF(INTRO!$E$48="","",ROUND($D27*INTRO!$E$48,0)) -> 6807 | F27: =IF(INTRO!$E$49="","",ROUND($D27*INTRO!$E$49,0)) -> 10210 | G27: =IF(INTRO!$E$50="","",ROUND($D27*INTRO!$E$50,0)) -> 23525 | H27: 1 | I27: 4 | J27: 2 | K27: 0 | L27: 1 | M27: =IF(INTRO!$E$38="Endémique", IF($H27>0, IF($H27=4,"Inconnu", IF($H27=99,"Interrompu", $D27)), 0),"Non requis") -> 42541 | O27: =IF(INTRO!$E$42="Endémique", IF(AND($J27>1,$J27<5), IF($J27=4, "Inconnu", E27+F27), 0),"Non requis") -> 17017 | P27: =IF(INTRO!$E$44="Endémique", IF(AND($K27>0,$K27<5), IF($K27=4,"Inconnu", IF($K27=1, $F27*0.33, IF($K27=2, $F27*0.5+$G27*0.2, SUM(F27:G27)))), 0),"Non requis") -> 0 | Q27: 1 | R27: 0 | S27: 1 | T27: 0 | U27: MDA4 (ALB/2*ALB) | W27: 12822 | X27: Etoumbi | AA27: ='MDA1'!M27 -> 0 | AB27: ='MDA4'!U27 -> 21886 | AC27: ='MDA3'!Q27 -> 0 | AE27: ='MDA4'!M27 -> 21886 | AF27: ='MDA4'!Q27 -> 0 | AK27: Etoumbi | AL27: 37028 | AM27: -12.95926283
A28: =IF(INTRO!$E$34<>0,INTRO!$E$34,"") -> Congo | B28: Cuvette-Ouest | C28: Ewo | D28: 73793 | E28: =IF(INTRO!$E$48="","",ROUND($D28*INTRO!$E$48,0)) -> 11807 | F28: =IF(INTRO!$E$49="","",ROUND($D28*INTRO!$E$49,0)) -> 17710 | G28: =IF(INTRO!$E$50="","",ROUND($D28*INTRO!$E$50,0)) -> 40808 | H28: 1 | I28: 4 | J28: 2 | K28: 1 | L28: 1 | M28: =IF(INTRO!$E$38="Endémique", IF($H28>0, IF($H28=4,"Inconnu", IF($H28=99,"Interrompu", $D28)), 0),"Non requis") -> 73793 | O28: =IF(INTRO!$E$42="Endémique", IF(AND($J28>1,$J28<5), IF($J28=4, "Inconnu", E28+F28), 0),"Non requis") -> 29517 | P28: =IF(INTRO!$E$44="Endémique", IF(AND($K28>0,$K28<5), IF($K28=4,"Inconnu", IF($K28=1, $F28*0.33, IF($K28=2, $F28*0.5+$G28*0.2, SUM(F28:G28)))), 0),"Non requis") -> 5844.3 | Q28: 1 | R28: 0 | S28: 1 | T28: 0 | U28: MDA4 (ALB/2*ALB) | W28: 12768 | X28: Ewo | AA28: ='MDA1'!M28 -> 0 | AB28: ='MDA4'!U28 -> 25373 | AC28: ='MDA3'!Q28 -> 0 | AE28: ='MDA4'!M28 -> 25373 | AF28: ='MDA4'!Q28 -> 0 | AK28: Ewo | AL28: 88864 | AM28: 20.42334639
A29: =IF(INTRO!$E$34<>0,INTRO!$E$34,"") -> Congo | B29: Kouilou | C29: Hinda-Loango | D29: 47331 | E29: =IF(INTRO!$E$48="","",ROUND($D29*INTRO!$E$48,0)) -> 7573 | F29: =IF(INTRO!$E$49="","",ROUND($D29*INTRO!$E$49,0)) -> 11359 | G29: =IF(INTRO!$E$50="","",ROUND($D29*INTRO!$E$50,0)) -> 26174 | H29: 0 | I29: 4 | J29: 3 | K29: 2 | L29: 1 | M29: =IF(INTRO!$E$38="Endémique", IF($H29>0, IF($H29=4,"Inconnu", IF($H29=99,"Interrompu", $D29)), 0),"Non requis") -> 0 | O29: =IF(INTRO!$E$42="Endémique", IF(AND($J29>1,$J29<5), IF($J29=4, "Inconnu", E29+F29), 0),"Non requis") -> 18932 | P29: =IF(INTRO!$E$44="Endémique", IF(AND($K29>0,$K29<5), IF($K29=4,"Inconnu", IF($K29=1, $F29*0.33, IF($K29=2, $F29*0.5+$G29*0.2, SUM(F29:G29)))), 0),"Non requis") -> 10914.3 | Q29: 0 | R29: 0 | S29: 2 | T29: 0 | W29: 12850 | X29: Hinda-Loango | AA29: ='MDA1'!M29 -> 0 | AB29: ='MDA4'!U29 -> 0 | AC29: ='MDA3'!Q29 -> 0 | AE29: ='MDA4'!M29 -> 0 | AF29: ='MDA4'!Q29 -> 0 | AK29: Hinda-Loango | AL29: 32563 | AM29: -31.2015381
A30: =IF(INTRO!$E$34<>0,INTRO!$E$34,"") -> Congo | B30: Kouilou | C30: Madingo Kayes-Nzambi | D30: 23282 | E30: =IF(INTRO!$E$48="","",ROUND($D30*INTRO!$E$48,0)) -> 3725 | F30: =IF(INTRO!$E$49="","",ROUND($D30*INTRO!$E$49,0)) -> 5588 | G30: =IF(INTRO!$E$50="","",ROUND($D30*INTRO!$E$50,0)) -> 12875 | H30: 0 | I30: 4 | J30: 3 | K30: 3 | L30: 1 | M30: =IF(INTRO!$E$38="Endémique", IF($H30>0, IF($H30=4,"Inconnu", IF($H30=99,"Interrompu", $D30)), 0),"Non requis") -> 0 | O30: =IF(INTRO!$E$42="Endémique", IF(AND($J30>1,$J30<5), IF($J30=4, "Inconnu", E30+F30), 0),"Non requis") -> 9313 | P30: =IF(INTRO!$E$44="Endémique", IF(AND($K30>0,$K30<5), IF($K30=4,"Inconnu", IF($K30=1, $F30*0.33, IF($K30=2, $F30*0.5+$G30*0.2, SUM(F30:G30)))), 0),"Non requis") -> 18463 | Q30: 0 | R30: 0 | S30: 2 | T30: 0 | W30: 12849 | X30: Madingo-Kayes Nzambi | AA30: ='MDA1'!M30 -> 0 | AB30: ='MDA4'!U30 -> 0 | AC30: ='MDA3'!Q30 -> 0 | AE30: ='MDA4'!M30 -> 0 | AF30: ='MDA4'!Q30 -> 0 | AK30: Madingo Kayes-Nzambi | AL30: 143861 | AM30: 517.9065372
A31: =IF(INTRO!$E$34<>0,INTRO!$E$34,"") -> Congo | B31: Kouilou | C31: Mvouti-Kakamouéka | D31: 37028 | E31: =IF(INTRO!$E$48="","",ROUND($D31*INTRO!$E$48,0)) -> 5924 | F31: =IF(INTRO!$E$49="","",ROUND($D31*INTRO!$E$49,0)) -> 8887 | G31: =IF(INTRO!$E$50="","",ROUND($D31*INTRO!$E$50,0)) -> 20476 | H31: 0 | I31: 1 | J31: 2 | K31: 3 | L31: 1 | M31: =IF(INTRO!$E$38="Endémique", IF($H31>0, IF($H31=4,"Inconnu", IF($H31=99,"Interrompu", $D31)), 0),"Non requis") -> 0 | N31: 913 | O31: =IF(INTRO!$E$42="Endémique", IF(AND($J31>1,$J31<5), IF($J31=4, "Inconnu", E31+F31), 0),"Non requis") -> 14811 | P31: =IF(INTRO!$E$44="Endémique", IF(AND($K31>0,$K31<5), IF($K31=4,"Inconnu", IF($K31=1, $F31*0.33, IF($K31=2, $F31*0.5+$G31*0.2, SUM(F31:G31)))), 0),"Non requis") -> 29363 | Q31: 0 | R31: 1 | S31: 1 | T31: 0 | U31: MDA3 (IVM) | W31: 12848 | X31: Mvouti-Kakamoueka | AA31: ='MDA1'!M31 -> 0 | AB31: ='MDA4'!U31 -> 0 | AC31: ='MDA3'!Q31 -> 801 | AE31: ='MDA4'!M31 -> 0 | AF31: ='MDA4'!Q31 -> 0 | AK31: Mvouti-Kakamouéka | AL31: 119962 | AM31: 223.9764503
A32: =IF(INTRO!$E$34<>0,INTRO!$E$34,"") -> Congo | B32: Lékoumou | C32: Sibiti | D32: 88864 | E32: =IF(INTRO!$E$48="","",ROUND($D32*INTRO!$E$48,0)) -> 14218 | F32: =IF(INTRO!$E$49="","",ROUND($D32*INTRO!$E$49,0)) -> 21327 | G32: =IF(INTRO!$E$50="","",ROUND($D32*INTRO!$E$50,0)) -> 49142 | H32: 0 | I32: 1 | J32: 2 | K32: 3 | L32: 1 | M32: =IF(INTRO!$E$38="Endémique", IF($H32>0, IF($H32=4,"Inconnu", IF($H32=99,"Interrompu", $D32)), 0),"Non requis") -> 0 | N32: 720 | O32: =IF(INTRO!$E$42="Endémique", IF(AND($J32>1,$J32<5), IF($J32=4, "Inconnu", E32+F32), 0),"Non requis") -> 35545 | P32: =IF(INTRO!$E$44="Endémique", IF(AND($K32>0,$K32<5), IF($K32=4,"Inconnu", IF($K32=1, $F32*0.33, IF($K32=2, $F32*0.5+$G32*0.2, SUM(F32:G32)))), 0),"Non requis") -> 70469 | Q32: 0 | R32: 1 | S32: 1 | T32: 0 | U32: MDA3 (IVM) | W32: 12784 | X32: Sibiti | AA32: ='MDA1'!M32 -> 0 | AB32: ='MDA4'!U32 -> 0 | AC32: ='MDA3'!Q32 -> 610 | AE32: ='MDA4'!M32 -> 0 | AF32: ='MDA4'!Q32 -> 0 | AK32: Sibiti | AL32: 160182 | AM32: 80.25522146
A33: =IF(INTRO!$E$34<>0,INTRO!$E$34,"") -> Congo | B33: Lékoumou | C33: Zanaga | D33: 32563 | E33: =IF(INTRO!$E$48="","",ROUND($D33*INTRO!$E$48,0)) -> 5210 | F33: =IF(INTRO!$E$49="","",ROUND($D33*INTRO!$E$49,0)) -> 7815 | G33: =IF(INTRO!$E$50="","",ROUND($D33*INTRO!$E$50,0)) -> 18007 | H33: 0 | I33: 4 | J33: 2 | K33: 0 | L33: 1 | M33: =IF(INTRO!$E$38="Endémique", IF($H33>0, IF($H33=4,"Inconnu", IF($H33=99,"Interrompu", $D33)), 0),"Non requis") -> 0 | O33: =IF(INTRO!$E$42="Endémique", IF(AND($J33>1,$J33<5), IF($J33=4, "Inconnu", E33+F33), 0),"Non requis") -> 13025 | P33: =IF(INTRO!$E$44="Endémique", IF(AND($K33>0,$K33<5), IF($K33=4,"Inconnu", IF($K33=1, $F33*0.33, IF($K33=2, $F33*0.5+$G33*0.2, SUM(F33:G33)))), 0),"Non requis") -> 0 | Q33: 0 | R33: 0 | S33: 1 | T33: 0 | W33: 12785 | X33: Zanaga | AA33: ='MDA1'!M33 -> 0 | AB33: ='MDA4'!U33 -> 0 | AC33: ='MDA3'!Q33 -> 0 | AE33: ='MDA4'!M33 -> 0 | AF33: ='MDA4'!Q33 -> 0 | AK33: Zanaga | AL33: 65597 | AM33: 101.4464269
A34: =IF(INTRO!$E$34<>0,INTRO!$E$34,"") -> Congo | B34: Likouala | C34: Bétou | D34: 143861 | E34: =IF(INTRO!$E$48="","",ROUND($D34*INTRO!$E$48,0)) -> 23018 | F34: =IF(INTRO!$E$49="","",ROUND($D34*INTRO!$E$49,0)) -> 34527 | G34: =IF(INTRO!$E$50="","",ROUND($D34*INTRO!$E$50,0)) -> 79555 | H34: 0 | I34: 4 | J34: 2 | K34: 0 | L34: 1 | M34: =IF(INTRO!$E$38="Endémique", IF($H34>0, IF($H34=4,"Inconnu", IF($H34=99,"Interrompu", $D34)), 0),"Non requis") -> 0 | O34: =IF(INTRO!$E$42="Endémique", IF(AND($J34>1,$J34<5), IF($J34=4, "Inconnu", E34+F34), 0),"Non requis") -> 57545 | P34: =IF(INTRO!$E$44="Endémique", IF(AND($K34>0,$K34<5), IF($K34=4,"Inconnu", IF($K34=1, $F34*0.33, IF($K34=2, $F34*0.5+$G34*0.2, SUM(F34:G34)))), 0),"Non requis") -> 0 | Q34: 0 | R34: 0 | S34: 1 | T34: 0 | W34: 12786 | X34: Bétou | AA34: ='MDA1'!M34 -> 0 | AB34: ='MDA4'!U34 -> 0 | AC34: ='MDA3'!Q34 -> 0 | AE34: ='MDA4'!M34 -> 0 | AF34: ='MDA4'!Q34 -> 0 | AK34: Bétou | AL34: 39084 | AM34: -72.83210877
A35: =IF(INTRO!$E$34<>0,INTRO!$E$34,"") -> Congo | B35: Likouala | C35: Impfondo | D35: 119962 | E35: =IF(INTRO!$E$48="","",ROUND($D35*INTRO!$E$48,0)) -> 19194 | F35: =IF(INTRO!$E$49="","",ROUND($D35*INTRO!$E$49,0)) -> 28791 | G35: =IF(INTRO!$E$50="","",ROUND($D35*INTRO!$E$50,0)) -> 66339 | H35: 1 | I35: 4 | J35: 2 | K35: 0 | L35: 1 | M35: =IF(INTRO!$E$38="Endémique", IF($H35>0, IF($H35=4,"Inconnu", IF($H35=99,"Interrompu", $D35)), 0),"Non requis") -> 119962 | O35: =IF(INTRO!$E$42="Endémique", IF(AND($J35>1,$J35<5), IF($J35=4, "Inconnu", E35+F35), 0),"Non requis") -> 47985 | P35: =IF(INTRO!$E$44="Endémique", IF(AND($K35>0,$K35<5), IF($K35=4,"Inconnu", IF($K35=1, $F35*0.33, IF($K35=2, $F35*0.5+$G35*0.2, SUM(F35:G35)))), 0),"Non requis") -> 0 | Q35: 1 | R35: 0 | S35: 1 | T35: 0 | U35: MDA4 (ALB/2*ALB) | W35: 12789 | X35: Impfondo | AA35: ='MDA1'!M35 -> 0 | AB35: ='MDA4'!U35 -> 57947 | AC35: ='MDA3'!Q35 -> 0 | AE35: ='MDA4'!M35 -> 57947 | AF35: ='MDA4'!Q35 -> 0 | AK35: Impfondo | AL35: 16134 | AM35: -86.55074107
A36: =IF(INTRO!$E$34<>0,INTRO!$E$34,"") -> Congo | B36: Niari | C36: Dolisie | D36: 160182 | E36: =IF(INTRO!$E$48="","",ROUND($D36*INTRO!$E$48,0)) -> 25629 | F36: =IF(INTRO!$E$49="","",ROUND($D36*INTRO!$E$49,0)) -> 38444 | G36: =IF(INTRO!$E$50="","",ROUND($D36*INTRO!$E$50,0)) -> 88581 | H36: 1 | I36: 1 | J36: 2 | K36: 2 | L36: 1 | M36: =IF(INTRO!$E$38="Endémique", IF($H36>0, IF($H36=4,"Inconnu", IF($H36=99,"Interrompu", $D36)), 0),"Non requis") -> 160182 | N36: 10925 | O36: =IF(INTRO!$E$42="Endémique", IF(AND($J36>1,$J36<5), IF($J36=4, "Inconnu", E36+F36), 0),"Non requis") -> 64073 | P36: =IF(INTRO!$E$44="Endémique", IF(AND($K36>0,$K36<5), IF($K36=4,"Inconnu", IF($K36=1, $F36*0.33, IF($K36=2, $F36*0.5+$G36*0.2, SUM(F36:G36)))), 0),"Non requis") -> 36938.2 | Q36: 1 | R36: 1 | S36: 1 | T36: 0 | U36: MDA1 (IVM+ALB) | W36: 12835 | X36: Dolisie | AA36: ='MDA1'!M36 -> 9613 | AB36: ='MDA4'!U36 -> 79969 | AC36: ='MDA3'!Q36 -> 0 | AE36: ='MDA4'!M36 -> 67021 | AF36: ='MDA4'!Q36 -> 79969 | AK36: Dolisie | AL36: 46443 | AM36: -71.00610555
A37: =IF(INTRO!$E$34<>0,INTRO!$E$34,"") -> Congo | B37: Niari | C37: Kibangou | D37: 65597 | E37: =IF(INTRO!$E$48="","",ROUND($D37*INTRO!$E$48,0)) -> 10496 | F37: =IF(INTRO!$E$49="","",ROUND($D37*INTRO!$E$49,0)) -> 15743 | G37: =IF(INTRO!$E$50="","",ROUND($D37*INTRO!$E$50,0)) -> 36275 | H37: 1 | I37: 1 | J37: 3 | K37: 1 | L37: 1 | M37: =IF(INTRO!$E$38="Endémique", IF($H37>0, IF($H37=4,"Inconnu", IF($H37=99,"Interrompu", $D37)), 0),"Non requis") -> 65597 | N37: 9899 | O37: =IF(INTRO!$E$42="Endémique", IF(AND($J37>1,$J37<5), IF($J37=4, "Inconnu", E37+F37), 0),"Non requis") -> 26239 | P37: =IF(INTRO!$E$44="Endémique", IF(AND($K37>0,$K37<5), IF($K37=4,"Inconnu", IF($K37=1, $F37*0.33, IF($K37=2, $F37*0.5+$G37*0.2, SUM(F37:G37)))), 0),"Non requis") -> 5195.19 | Q37: 1 | R37: 1 | S37: 2 | T37: 0 | U37: MDA1 (IVM+ALB) | W37: 12791 | X37: Kibangou | AA37: ='MDA1'!M37 -> 8079 | AB37: ='MDA4'!U37 -> 19485.32 | AC37: ='MDA3'!Q37 -> 0 | AE37: ='MDA4'!M37 -> 18608 | AF37: ='MDA4'!Q37 -> 18783 | AK37: Kibangou | AL37: 44628 | AM37: -31.9664009
A38: =IF(INTRO!$E$34<>0,INTRO!$E$34,"") -> Congo | B38: Niari | C38: Kimongo-Londela Nkayes | D38: 39084 | E38: =IF(INTRO!$E$48="","",ROUND($D38*INTRO!$E$48,0)) -> 6253 | F38: =IF(INTRO!$E$49="","",ROUND($D38*INTRO!$E$49,0)) -> 9380 | G38: =IF(INTRO!$E$50="","",ROUND($D38*INTRO!$E$50,0)) -> 21613 | H38: 1 | I38: 4 | J38: 3 | K38: 2 | L38: 1 | M38: =IF(INTRO!$E$38="Endémique", IF($H38>0, IF($H38=4,"Inconnu", IF($H38=99,"Interrompu", $D38)), 0),"Non requis") -> 39084 | O38: =IF(INTRO!$E$42="Endémique", IF(AND($J38>1,$J38<5), IF($J38=4, "Inconnu", E38+F38), 0),"Non requis") -> 15633 | P38: =IF(INTRO!$E$44="Endémique", IF(AND($K38>0,$K38<5), IF($K38=4,"Inconnu", IF($K38=1, $F38*0.33, IF($K38=2, $F38*0.5+$G38*0.2, SUM(F38:G38)))), 0),"Non requis") -> 9012.6 | Q38: 1 | R38: 0 | S38: 2 | T38: 0 | U38: MDA4 (ALB/2*ALB) | W38: 12836 | X38: Kimongo-Londela Nkayes | AA38: ='MDA1'!M38 -> 0 | AB38: ='MDA4'!U38 -> 22352 | AC38: ='MDA3'!Q38 -> 0 | AE38: ='MDA4'!M38 -> 17045 | AF38: ='MDA4'!Q38 -> 22352 | AK38: Kimongo-Londela Nkayes | AL38: 48376 | AM38: 23.77443455
A39: =IF(INTRO!$E$34<>0,INTRO!$E$34,"") -> Congo | B39: Niari | C39: Mayoko | D39: 16134 | E39: =IF(INTRO!$E$48="","",ROUND($D39*INTRO!$E$48,0)) -> 2581 | F39: =IF(INTRO!$E$49="","",ROUND($D39*INTRO!$E$49,0)) -> 3872 | G39: =IF(INTRO!$E$50="","",ROUND($D39*INTRO!$E$50,0)) -> 8922 | H39: 0 | I39: 4 | J39: 2 | K39: 0 | L39: 1 | M39: =IF(INTRO!$E$38="Endémique", IF($H39>0, IF($H39=4,"Inconnu", IF($H39=99,"Interrompu", $D39)), 0),"Non requis") -> 0 | O39: =IF(INTRO!$E$42="Endémique", IF(AND($J39>1,$J39<5), IF($J39=4, "Inconnu", E39+F39), 0),"Non requis") -> 6453 | P39: =IF(INTRO!$E$44="Endémique", IF(AND($K39>0,$K39<5), IF($K39=4,"Inconnu", IF($K39=1, $F39*0.33, IF($K39=2, $F39*0.5+$G39*0.2, SUM(F39:G39)))), 0),"Non requis") -> 0 | Q39: 0 | R39: 0 | S39: 1 | T39: 0 | W39: 12838 | X39: Mayoko | AA39: ='MDA1'!M39 -> 0 | AB39: ='MDA4'!U39 -> 0 | AC39: ='MDA3'!Q39 -> 0 | AE39: ='MDA4'!M39 -> 0 | AF39: ='MDA4'!Q39 -> 0 | AK39: Mayoko | AL39: 99870 | AM39: 519.003347
A40: =IF(INTRO!$E$34<>0,INTRO!$E$34,"") -> Congo | B40: Niari | C40: Mossendjo | D40: 46443 | E40: =IF(INTRO!$E$48="","",ROUND($D40*INTRO!$E$48,0)) -> 7431 | F40: =IF(INTRO!$E$49="","",ROUND($D40*INTRO!$E$49,0)) -> 11146 | G40: =IF(INTRO!$E$50="","",ROUND($D40*INTRO!$E$50,0)) -> 25683 | H40: 0 | I40: 4 | J40: 2 | K40: 0 | L40: 1 | M40: =IF(INTRO!$E$38="Endémique", IF($H40>0, IF($H40=4,"Inconnu", IF($H40=99,"Interrompu", $D40)), 0),"Non requis") -> 0 | O40: =IF(INTRO!$E$42="Endémique", IF(AND($J40>1,$J40<5), IF($J40=4, "Inconnu", E40+F40), 0),"Non requis") -> 18577 | P40: =IF(INTRO!$E$44="Endémique", IF(AND($K40>0,$K40<5), IF($K40=4,"Inconnu", IF($K40=1, $F40*0.33, IF($K40=2, $F40*0.5+$G40*0.2, SUM(F40:G40)))), 0),"Non requis") -> 0 | Q40: 0 | R40: 0 | S40: 1 | T40: 0 | W40: 12837 | X40: Mossendjo | AA40: ='MDA1'!M40 -> 0 | AB40: ='MDA4'!U40 -> 0 | AC40: ='MDA3'!Q40 -> 0 | AE40: ='MDA4'!M40 -> 0 | AF40: ='MDA4'!Q40 -> 0 | AK40: Mossendjo | AL40: 36788 | AM40: -20.78892406
A41: =IF(INTRO!$E$34<>0,INTRO!$E$34,"") -> Congo | B41: Plateaux | C41: Abala | D41: 44628 | E41: =IF(INTRO!$E$48="","",ROUND($D41*INTRO!$E$48,0)) -> 7140 | F41: =IF(INTRO!$E$49="","",ROUND($D41*INTRO!$E$49,0)) -> 10711 | G41: =IF(INTRO!$E$50="","",ROUND($D41*INTRO!$E$50,0)) -> 24679 | H41: 0 | I41: 4 | J41: 1 | K41: 0 | L41: 1 | M41: =IF(INTRO!$E$38="Endémique", IF($H41>0, IF($H41=4,"Inconnu", IF($H41=99,"Interrompu", $D41)), 0),"Non requis") -> 0 | O41: =IF(INTRO!$E$42="Endémique", IF(AND($J41>1,$J41<5), IF($J41=4, "Inconnu", E41+F41), 0),"Non requis") -> 0 | P41: =IF(INTRO!$E$44="Endémique", IF(AND($K41>0,$K41<5), IF($K41=4,"Inconnu", IF($K41=1, $F41*0.33, IF($K41=2, $F41*0.5+$G41*0.2, SUM(F41:G41)))), 0),"Non requis") -> 0 | Q41: 0 | R41: 0 | S41: 0 | T41: 0 | W41: 12830 | X41: Abala | AA41: ='MDA1'!M41 -> 0 | AB41: ='MDA4'!U41 -> 0 | AC41: ='MDA3'!Q41 -> 0 | AE41: ='MDA4'!M41 -> 0 | AF41: ='MDA4'!Q41 -> 0 | AK41: Abala | AL41: 277201 | AM41: 521.1369544
A42: =IF(INTRO!$E$34<>0,INTRO!$E$34,"") -> Congo | B42: Plateaux | C42: Djambala-Lékana | D42: 48376 | E42: =IF(INTRO!$E$48="","",ROUND($D42*INTRO!$E$48,0)) -> 7740 | F42: =IF(INTRO!$E$49="","",ROUND($D42*INTRO!$E$49,0)) -> 11610 | G42: =IF(INTRO!$E$50="","",ROUND($D42*INTRO!$E$50,0)) -> 26752 | H42: 0 | I42: 4 | J42: 3 | K42: 0 | L42: 1 | M42: =IF(INTRO!$E$38="Endémique", IF($H42>0, IF($H42=4,"Inconnu", IF($H42=99,"Interrompu", $D42)), 0),"Non requis") -> 0 | O42: =IF(INTRO!$E$42="Endémique", IF(AND($J42>1,$J42<5), IF($J42=4, "Inconnu", E42+F42), 0),"Non requis") -> 19350 | P42: =IF(INTRO!$E$44="Endémique", IF(AND($K42>0,$K42<5), IF($K42=4,"Inconnu", IF($K42=1, $F42*0.33, IF($K42=2, $F42*0.5+$G42*0.2, SUM(F42:G42)))), 0),"Non requis") -> 0 | Q42: 0 | R42: 0 | S42: 2 | T42: 0 | W42: 12839 | X42: Djambala-Lékana | AA42: ='MDA1'!M42 -> 0 | AB42: ='MDA4'!U42 -> 0 | AC42: ='MDA3'!Q42 -> 0 | AE42: ='MDA4'!M42 -> 0 | AF42: ='MDA4'!Q42 -> 0 | AK42: Djambala-Lékana | AL42: 174472 | AM42: 260.6581776
A43: =IF(INTRO!$E$34<>0,INTRO!$E$34,"") -> Congo | B43: Plateaux | C43: Gamboma | D43: 99870 | E43: =IF(INTRO!$E$48="","",ROUND($D43*INTRO!$E$48,0)) -> 15979 | F43: =IF(INTRO!$E$49="","",ROUND($D43*INTRO!$E$49,0)) -> 23969 | G43: =IF(INTRO!$E$50="","",ROUND($D43*INTRO!$E$50,0)) -> 55228 | H43: 0 | I43: 4 | J43: 2 | K43: 0 | L43: 1 | M43: =IF(INTRO!$E$38="Endémique", IF($H43>0, IF($H43=4,"Inconnu", IF($H43=99,"Interrompu", $D43)), 0),"Non requis") -> 0 | O43: =IF(INTRO!$E$42="Endémique", IF(AND($J43>1,$J43<5), IF($J43=4, "Inconnu", E43+F43), 0),"Non requis") -> 39948 | P43: =IF(INTRO!$E$44="Endémique", IF(AND($K43>0,$K43<5), IF($K43=4,"Inconnu", IF($K43=1, $F43*0.33, IF($K43=2, $F43*0.5+$G43*0.2, SUM(F43:G43)))), 0),"Non requis") -> 0 | Q43: 0 | R43: 0 | S43: 1 | T43: 0 | W43: 12798 | X43: Gamboma | AA43: ='MDA1'!M43 -> 0 | AB43: ='MDA4'!U43 -> 0 | AC43: ='MDA3'!Q43 -> 0 | AE43: ='MDA4'!M43 -> 0 | AF43: ='MDA4'!Q43 -> 0 | AK43: Gamboma | AL43: 183072 | AM43: 83.31030339
A44: =IF(INTRO!$E$34<>0,INTRO!$E$34,"") -> Congo | B44: Plateaux | C44: Ngo Mpouya | D44: 36788 | E44: =IF(INTRO!$E$48="","",ROUND($D44*INTRO!$E$48,0)) -> 5886 | F44: =IF(INTRO!$E$49="","",ROUND($D44*INTRO!$E$49,0)) -> 8829 | G44: =IF(INTRO!$E$50="","",ROUND($D44*INTRO!$E$50,0)) -> 20344 | H44: 0 | I44: 4 | J44: 3 | K44: 0 | L44: 1 | M44: =IF(INTRO!$E$38="Endémique", IF($H44>0, IF($H44=4,"Inconnu", IF($H44=99,"Interrompu", $D44)), 0),"Non requis") -> 0 | O44: =IF(INTRO!$E$42="Endémique", IF(AND($J44>1,$J44<5), IF($J44=4, "Inconnu", E44+F44), 0),"Non requis") -> 14715 | P44: =IF(INTRO!$E$44="Endémique", IF(AND($K44>0,$K44<5), IF($K44=4,"Inconnu", IF($K44=1, $F44*0.33, IF($K44=2, $F44*0.5+$G44*0.2, SUM(F44:G44)))), 0),"Non requis") -> 0 | Q44: 0 | R44: 0 | S44: 2 | T44: 0 | W44: 12840 | X44: Ngo-Mpouya | AA44: ='MDA1'!M44 -> 0 | AB44: ='MDA4'!U44 -> 0 | AC44: ='MDA3'!Q44 -> 0 | AE44: ='MDA4'!M44 -> 0 | AF44: ='MDA4'!Q44 -> 0 | AK44: Ngo Mpouya | AL44: 117866 | AM44: 220.3925193
A45: =IF(INTRO!$E$34<>0,INTRO!$E$34,"") -> Congo | B45: Pointe-Noire | C45: Loandjili | D45: 277201 | E45: =IF(INTRO!$E$48="","",ROUND($D45*INTRO!$E$48,0)) -> 44352 | F45: =IF(INTRO!$E$49="","",ROUND($D45*INTRO!$E$49,0)) -> 66528 | G45: =IF(INTRO!$E$50="","",ROUND($D45*INTRO!$E$50,0)) -> 153292 | H45: 0 | I45: 4 | J45: 1 | K45: 1 | L45: 1 | M45: =IF(INTRO!$E$38="Endémique", IF($H45>0, IF($H45=4,"Inconnu", IF($H45=99,"Interrompu", $D45)), 0),"Non requis") -> 0 | O45: =IF(INTRO!$E$42="Endémique", IF(AND($J45>1,$J45<5), IF($J45=4, "Inconnu", E45+F45), 0),"Non requis") -> 0 | P45: =IF(INTRO!$E$44="Endémique", IF(AND($K45>0,$K45<5), IF($K45=4,"Inconnu", IF($K45=1, $F45*0.33, IF($K45=2, $F45*0.5+$G45*0.2, SUM(F45:G45)))), 0),"Non requis") -> 21954.24 | Q45: 0 | R45: 0 | S45: 0 | T45: 0 | W45: 12777 | X45: Loandjili | AA45: ='MDA1'!M45 -> 0 | AB45: ='MDA4'!U45 -> 0 | AC45: ='MDA3'!Q45 -> 0 | AE45: ='MDA4'!M45 -> 0 | AF45: ='MDA4'!Q45 -> 0 | AK45: Loandjili | AL45: 200893 | AM45: -27.52803922
A46: =IF(INTRO!$E$34<>0,INTRO!$E$34,"") -> Congo | B46: Pointe-Noire | C46: Lumumba | D46: 174472 | E46: =IF(INTRO!$E$48="","",ROUND($D46*INTRO!$E$48,0)) -> 27916 | F46: =IF(INTRO!$E$49="","",ROUND($D46*INTRO!$E$49,0)) -> 41873 | G46: =IF(INTRO!$E$50="","",ROUND($D46*INTRO!$E$50,0)) -> 96483 | H46: 0 | I46: 4 | J46: 1 | K46: 1 | L46: 1 | M46: =IF(INTRO!$E$38="Endémique", IF($H46>0, IF($H46=4,"Inconnu", IF($H46=99,"Interrompu", $D46)), 0),"Non requis") -> 0 | O46: =IF(INTRO!$E$42="Endémique", IF(AND($J46>1,$J46<5), IF($J46=4, "Inconnu", E46+F46), 0),"Non requis") -> 0 | P46: =IF(INTRO!$E$44="Endémique", IF(AND($K46>0,$K46<5), IF($K46=4,"Inconnu", IF($K46=1, $F46*0.33, IF($K46=2, $F46*0.5+$G46*0.2, SUM(F46:G46)))), 0),"Non requis") -> 13818.09 | Q46: 0 | R46: 0 | S46: 0 | T46: 0 | W46: 12778 | X46: Lumumba | AA46: ='MDA1'!M46 -> 0 | AB46: ='MDA4'!U46 -> 0 | AC46: ='MDA3'!Q46 -> 0 | AE46: ='MDA4'!M46 -> 0 | AF46: ='MDA4'!Q46 -> 0 | AK46: Lumumba | AL46: 26669 | AM46: -84.71445275
A47: =IF(INTRO!$E$34<>0,INTRO!$E$34,"") -> Congo | B47: Pointe-Noire | C47: Mongo-Poukou | D47: 183072 | E47: =IF(INTRO!$E$48="","",ROUND($D47*INTRO!$E$48,0)) -> 29292 | F47: =IF(INTRO!$E$49="","",ROUND($D47*INTRO!$E$49,0)) -> 43937 | G47: =IF(INTRO!$E$50="","",ROUND($D47*INTRO!$E$50,0)) -> 101239 | H47: 0 | I47: 4 | J47: 1 | K47: 4 | L47: 1 | M47: =IF(INTRO!$E$38="Endémique", IF($H47>0, IF($H47=4,"Inconnu", IF($H47=99,"Interrompu", $D47)), 0),"Non requis") -> 0 | O47: =IF(INTRO!$E$42="Endémique", IF(AND($J47>1,$J47<5), IF($J47=4, "Inconnu", E47+F47), 0),"Non requis") -> 0 | P47: =IF(INTRO!$E$44="Endémique", IF(AND($K47>0,$K47<5), IF($K47=4,"Inconnu", IF($K47=1, $F47*0.33, IF($K47=2, $F47*0.5+$G47*0.2, SUM(F47:G47)))), 0),"Non requis") -> Inconnu | Q47: 0 | R47: 0 | S47: 0 | T47: 0 | W47: 12825 | X47: Mongo-Mpoukou | AA47: ='MDA1'!M47 -> 0 | AB47: ='MDA4'!U47 -> 0 | AC47: ='MDA3'!Q47 -> 0 | AE47: ='MDA4'!M47 -> 0 | AF47: ='MDA4'!Q47 -> 0 | AK47: Mongo-Poukou | AL47: 246085 | AM47: 34.41979112
A48: =IF(INTRO!$E$34<>0,INTRO!$E$34,"") -> Congo | B48: Pointe-Noire | C48: Mvoumvou | D48: 117866 | E48: =IF(INTRO!$E$48="","",ROUND($D48*INTRO!$E$48,0)) -> 18859 | F48: =IF(INTRO!$E$49="","",ROUND($D48*INTRO!$E$49,0)) -> 28288 | G48: =IF(INTRO!$E$50="","",ROUND($D48*INTRO!$E$50,0)) -> 65180 | H48: 0 | I48: 4 | J48: 1 | K48: 4 | L48: 1 | M48: =IF(INTRO!$E$38="Endémique", IF($H48>0, IF($H48=4,"Inconnu", IF($H48=99,"Interrompu", $D48)), 0),"Non requis") -> 0 | O48: =IF(INTRO!$E$42="Endémique", IF(AND($J48>1,$J48<5), IF($J48=4, "Inconnu", E48+F48), 0),"Non requis") -> 0 | P48: =IF(INTRO!$E$44="Endémique", IF(AND($K48>0,$K48<5), IF($K48=4,"Inconnu", IF($K48=1, $F48*0.33, IF($K48=2, $F48*0.5+$G48*0.2, SUM(F48:G48)))), 0),"Non requis") -> Inconnu | Q48: 0 | R48: 0 | S48: 0 | T48: 0 | W48: 12780 | X48: Mvoumvou | AA48: ='MDA1'!M48 -> 0 | AB48: ='MDA4'!U48 -> 0 | AC48: ='MDA3'!Q48 -> 0 | AE48: ='MDA4'!M48 -> 0 | AF48: ='MDA4'!Q48 -> 0 | AK48: Mvoumvou | AL48: 28732 | AM48: -75.62316529
A49: =IF(INTRO!$E$34<>0,INTRO!$E$34,"") -> Congo | B49: Pointe-Noire | C49: Ngoyo | D49: 200893 | E49: =IF(INTRO!$E$48="","",ROUND($D49*INTRO!$E$48,0)) -> 32143 | F49: =IF(INTRO!$E$49="","",ROUND($D49*INTRO!$E$49,0)) -> 48214 | G49: =IF(INTRO!$E$50="","",ROUND($D49*INTRO!$E$50,0)) -> 111094 | H49: 0 | I49: 4 | J49: 2 | K49: 0 | L49: 1 | M49: =IF(INTRO!$E$38="Endémique", IF($H49>0, IF($H49=4,"Inconnu", IF($H49=99,"Interrompu", $D49)), 0),"Non requis") -> 0 | O49: =IF(INTRO!$E$42="Endémique", IF(AND($J49>1,$J49<5), IF($J49=4, "Inconnu", E49+F49), 0),"Non requis") -> 80357 | P49: =IF(INTRO!$E$44="Endémique", IF(AND($K49>0,$K49<5), IF($K49=4,"Inconnu", IF($K49=1, $F49*0.33, IF($K49=2, $F49*0.5+$G49*0.2, SUM(F49:G49)))), 0),"Non requis") -> 0 | Q49: 0 | R49: 0 | S49: 1 | T49: 0 | W49: 12826 | X49: Ngoyo | AA49: ='MDA1'!M49 -> 0 | AB49: ='MDA4'!U49 -> 0 | AC49: ='MDA3'!Q49 -> 0 | AE49: ='MDA4'!M49 -> 0 | AF49: ='MDA4'!Q49 -> 0 | AK49: Ngoyo | AL49: 36246 | AM49: -81.9575595
A50: =IF(INTRO!$E$34<>0,INTRO!$E$34,"") -> Congo | B50: Pointe-Noire | C50: Tchiamba Nzassi | D50: 26669 | E50: =IF(INTRO!$E$48="","",ROUND($D50*INTRO!$E$48,0)) -> 4267 | F50: =IF(INTRO!$E$49="","",ROUND($D50*INTRO!$E$49,0)) -> 6401 | G50: =IF(INTRO!$E$50="","",ROUND($D50*INTRO!$E$50,0)) -> 14748 | H50: 0 | I50: 4 | J50: 2 | K50: 1 | L50: 1 | M50: =IF(INTRO!$E$38="Endémique", IF($H50>0, IF($H50=4,"Inconnu", IF($H50=99,"Interrompu", $D50)), 0),"Non requis") -> 0 | O50: =IF(INTRO!$E$42="Endémique", IF(AND($J50>1,$J50<5), IF($J50=4, "Inconnu", E50+F50), 0),"Non requis") -> 10668 | P50: =IF(INTRO!$E$44="Endémique", IF(AND($K50>0,$K50<5), IF($K50=4,"Inconnu", IF($K50=1, $F50*0.33, IF($K50=2, $F50*0.5+$G50*0.2, SUM(F50:G50)))), 0),"Non requis") -> 2112.33 | Q50: 0 | R50: 0 | S50: 1 | T50: 0 | W50: 12842 | X50: Tchiamba Nzassi | AA50: ='MDA1'!M50 -> 0 | AB50: ='MDA4'!U50 -> 0 | AC50: ='MDA3'!Q50 -> 0 | AE50: ='MDA4'!M50 -> 0 | AF50: ='MDA4'!Q50 -> 0 | AK50: Tchiamba Nzassi | AL50: 77529 | AM50: 190.708313
A51: =IF(INTRO!$E$34<>0,INTRO!$E$34,"") -> Congo | B51: Pointe-Noire | C51: Tie-Tie | D51: 246085 | E51: =IF(INTRO!$E$48="","",ROUND($D51*INTRO!$E$48,0)) -> 39374 | F51: =IF(INTRO!$E$49="","",ROUND($D51*INTRO!$E$49,0)) -> 59060 | G51: =IF(INTRO!$E$50="","",ROUND($D51*INTRO!$E$50,0)) -> 136085 | H51: 0 | I51: 4 | J51: 1 | K51: 0 | L51: 1 | M51: =IF(INTRO!$E$38="Endémique", IF($H51>0, IF($H51=4,"Inconnu", IF($H51=99,"Interrompu", $D51)), 0),"Non requis") -> 0 | O51: =IF(INTRO!$E$42="Endémique", IF(AND($J51>1,$J51<5), IF($J51=4, "Inconnu", E51+F51), 0),"Non requis") -> 0 | P51: =IF(INTRO!$E$44="Endémique", IF(AND($K51>0,$K51<5), IF($K51=4,"Inconnu", IF($K51=1, $F51*0.33, IF($K51=2, $F51*0.5+$G51*0.2, SUM(F51:G51)))), 0),"Non requis") -> 0 | Q51: 0 | R51: 0 | S51: 0 | T51: 0 | W51: 12841 | X51: Tié-Tié | AA51: ='MDA1'!M51 -> 0 | AB51: ='MDA4'!U51 -> 0 | AC51: ='MDA3'!Q51 -> 0 | AE51: ='MDA4'!M51 -> 0 | AF51: ='MDA4'!Q51 -> 0 | AK51: Tie-Tie | AL51: 31516 | AM51: -87.19304305
A52: =IF(INTRO!$E$34<>0,INTRO!$E$34,"") -> Congo | B52: Pool | C52: Boko | D52: 28732 | E52: =IF(INTRO!$E$48="","",ROUND($D52*INTRO!$E$48,0)) -> 4597 | F52: =IF(INTRO!$E$49="","",ROUND($D52*INTRO!$E$49,0)) -> 6896 | G52: =IF(INTRO!$E$50="","",ROUND($D52*INTRO!$E$50,0)) -> 15889 | H52: 0 | I52: 1 | J52: 2 | K52: 0 | L52: 1 | M52: =IF(INTRO!$E$38="Endémique", IF($H52>0, IF($H52=4,"Inconnu", IF($H52=99,"Interrompu", $D52)), 0),"Non requis") -> 0 | N52: 17828 | O52: =IF(INTRO!$E$42="Endémique", IF(AND($J52>1,$J52<5), IF($J52=4, "Inconnu", E52+F52), 0),"Non requis") -> 11493 | P52: =IF(INTRO!$E$44="Endémique", IF(AND($K52>0,$K52<5), IF($K52=4,"Inconnu", IF($K52=1, $F52*0.33, IF($K52=2, $F52*0.5+$G52*0.2, SUM(F52:G52)))), 0),"Non requis") -> 0 | Q52: 0 | R52: 1 | S52: 1 | T52: 0 | U52: MDA3 (IVM) | W52: 12844 | X52: Boko | AA52: ='MDA1'!M52 -> 0 | AB52: ='MDA4'!U52 -> 0 | AC52: ='MDA3'!Q52 -> 15330 | AE52: ='MDA4'!M52 -> 0 | AF52: ='MDA4'!Q52 -> 0 | AK52: BOKO | AL52: 43704 | AM52: 52.1091466
A53: =IF(INTRO!$E$34<>0,INTRO!$E$34,"") -> Congo | B53: Pool | C53: Goma tsétsé | D53: 36246 | E53: =IF(INTRO!$E$48="","",ROUND($D53*INTRO!$E$48,0)) -> 5799 | F53: =IF(INTRO!$E$49="","",ROUND($D53*INTRO!$E$49,0)) -> 8699 | G53: =IF(INTRO!$E$50="","",ROUND($D53*INTRO!$E$50,0)) -> 20044 | H53: 0 | I53: 1 | J53: 1 | K53: 0 | L53: 1 | M53: =IF(INTRO!$E$38="Endémique", IF($H53>0, IF($H53=4,"Inconnu", IF($H53=99,"Interrompu", $D53)), 0),"Non requis") -> 0 | N53: 28276 | O53: =IF(INTRO!$E$42="Endémique", IF(AND($J53>1,$J53<5), IF($J53=4, "Inconnu", E53+F53), 0),"Non requis") -> 0 | P53: =IF(INTRO!$E$44="Endémique", IF(AND($K53>0,$K53<5), IF($K53=4,"Inconnu", IF($K53=1, $F53*0.33, IF($K53=2, $F53*0.5+$G53*0.2, SUM(F53:G53)))), 0),"Non requis") -> 0 | Q53: 0 | R53: 1 | S53: 0 | T53: 0 | U53: MDA3 (IVM) | W53: 12802 | X53: Goma Tsétsé | AA53: ='MDA1'!M53 -> 0 | AB53: ='MDA4'!U53 -> 0 | AC53: ='MDA3'!Q53 -> 20840 | AE53: ='MDA4'!M53 -> 0 | AF53: ='MDA4'!Q53 -> 0 | AK53: Goma tsétsé | AL53: 27100 | AM53: -25.23312917
A54: =IF(INTRO!$E$34<>0,INTRO!$E$34,"") -> Congo | B54: Pool | C54: Ignié | D54: 77529 | E54: =IF(INTRO!$E$48="","",ROUND($D54*INTRO!$E$48,0)) -> 12405 | F54: =IF(INTRO!$E$49="","",ROUND($D54*INTRO!$E$49,0)) -> 18607 | G54: =IF(INTRO!$E$50="","",ROUND($D54*INTRO!$E$50,0)) -> 42874 | H54: 1 | I54: 1 | J54: 2 | K54: 1 | L54: 1 | M54: =IF(INTRO!$E$38="Endémique", IF($H54>0, IF($H54=4,"Inconnu", IF($H54=99,"Interrompu", $D54)), 0),"Non requis") -> 77529 | N54: 3135 | O54: =IF(INTRO!$E$42="Endémique", IF(AND($J54>1,$J54<5), IF($J54=4, "Inconnu", E54+F54), 0),"Non requis") -> 31012 | P54: =IF(INTRO!$E$44="Endémique", IF(AND($K54>0,$K54<5), IF($K54=4,"Inconnu", IF($K54=1, $F54*0.33, IF($K54=2, $F54*0.5+$G54*0.2, SUM(F54:G54)))), 0),"Non requis") -> 6140.31 | Q54: 1 | R54: 1 | S54: 1 | T54: 0 | U54: MDA1 (IVM+ALB) | W54: 12828 | X54: Ignié | AA54: ='MDA1'!M54 -> 2696 | AB54: ='MDA4'!U54 -> 46557.6 | AC54: ='MDA3'!Q54 -> 0 | AE54: ='MDA4'!M54 -> 42864 | AF54: ='MDA4'!Q54 -> 45468 | AK54: Ignié | AL54: 48000 | AM54: -38.08768332
A55: =IF(INTRO!$E$34<>0,INTRO!$E$34,"") -> Congo | B55: Pool | C55: Kindamba | D55: 31516 | E55: =IF(INTRO!$E$48="","",ROUND($D55*INTRO!$E$48,0)) -> 5043 | F55: =IF(INTRO!$E$49="","",ROUND($D55*INTRO!$E$49,0)) -> 7564 | G55: =IF(INTRO!$E$50="","",ROUND($D55*INTRO!$E$50,0)) -> 17428 | H55: 0 | I55: 1 | J55: 2 | K55: 0 | L55: 1 | M55: =IF(INTRO!$E$38="Endémique", IF($H55>0, IF($H55=4,"Inconnu", IF($H55=99,"Interrompu", $D55)), 0),"Non requis") -> 0 | N55: 5566 | O55: =IF(INTRO!$E$42="Endémique", IF(AND($J55>1,$J55<5), IF($J55=4, "Inconnu", E55+F55), 0),"Non requis") -> 12607 | P55: =IF(INTRO!$E$44="Endémique", IF(AND($K55>0,$K55<5), IF($K55=4,"Inconnu", IF($K55=1, $F55*0.33, IF($K55=2, $F55*0.5+$G55*0.2, SUM(F55:G55)))), 0),"Non requis") -> 0 | Q55: 0 | R55: 1 | S55: 1 | T55: 0 | U55: MDA3 (IVM) | W55: 12803 | X55: Kindamba | AA55: ='MDA1'!M55 -> 0 | AB55: ='MDA4'!U55 -> 0 | AC55: ='MDA3'!Q55 -> 4910 | AE55: ='MDA4'!M55 -> 0 | AF55: ='MDA4'!Q55 -> 0 | AK55: Kindamba | AL55: 77357 | AM55: 145.4531032
A56: =IF(INTRO!$E$34<>0,INTRO!$E$34,"") -> Congo | B56: Pool | C56: Kinkala | D56: 43704 | E56: =IF(INTRO!$E$48="","",ROUND($D56*INTRO!$E$48,0)) -> 6993 | F56: =IF(INTRO!$E$49="","",ROUND($D56*INTRO!$E$49,0)) -> 10489 | G56: =IF(INTRO!$E$50="","",ROUND($D56*INTRO!$E$50,0)) -> 24168 | H56: 0 | I56: 1 | J56: 2 | K56: 0 | L56: 1 | M56: =IF(INTRO!$E$38="Endémique", IF($H56>0, IF($H56=4,"Inconnu", IF($H56=99,"Interrompu", $D56)), 0),"Non requis") -> 0 | N56: 18023 | O56: =IF(INTRO!$E$42="Endémique", IF(AND($J56>1,$J56<5), IF($J56=4, "Inconnu", E56+F56), 0),"Non requis") -> 17482 | P56: =IF(INTRO!$E$44="Endémique", IF(AND($K56>0,$K56<5), IF($K56=4,"Inconnu", IF($K56=1, $F56*0.33, IF($K56=2, $F56*0.5+$G56*0.2, SUM(F56:G56)))), 0),"Non requis") -> 0 | Q56: 0 | R56: 1 | S56: 1 | T56: 0 | U56: MDA3 (IVM) | W56: 12843 | X56: Kinkala | AA56: ='MDA1'!M56 -> 0 | AB56: ='MDA4'!U56 -> 0 | AC56: ='MDA3'!Q56 -> 13843 | AE56: ='MDA4'!M56 -> 0 | AF56: ='MDA4'!Q56 -> 0 | AK56: Kinkala | AL56: 35156 | AM56: -19.55885045
A57: =IF(INTRO!$E$34<>0,INTRO!$E$34,"") -> Congo | B57: Pool | C57: Kintélé | D57: 27100 | E57: =IF(INTRO!$E$48="","",ROUND($D57*INTRO!$E$48,0)) -> 4336 | F57: =IF(INTRO!$E$49="","",ROUND($D57*INTRO!$E$49,0)) -> 6504 | G57: =IF(INTRO!$E$50="","",ROUND($D57*INTRO!$E$50,0)) -> 14986 | H57: 0 | I57: 4 | J57: 1 | K57: 4 | L57: 1 | M57: =IF(INTRO!$E$38="Endémique", IF($H57>0, IF($H57=4,"Inconnu", IF($H57=99,"Interrompu", $D57)), 0),"Non requis") -> 0 | O57: =IF(INTRO!$E$42="Endémique", IF(AND($J57>1,$J57<5), IF($J57=4, "Inconnu", E57+F57), 0),"Non requis") -> 0 | P57: =IF(INTRO!$E$44="Endémique", IF(AND($K57>0,$K57<5), IF($K57=4,"Inconnu", IF($K57=1, $F57*0.33, IF($K57=2, $F57*0.5+$G57*0.2, SUM(F57:G57)))), 0),"Non requis") -> Inconnu | Q57: 0 | R57: 0 | S57: 0 | T57: 0 | W57: 12846 | X57: Kintélé | AA57: ='MDA1'!M57 -> 0 | AB57: ='MDA4'!U57 -> 0 | AC57: ='MDA3'!Q57 -> 0 | AE57: ='MDA4'!M57 -> 0 | AF57: ='MDA4'!Q57 -> 0 | AK57: Kintélé | AL57: 27100 | AM57: 0
A58: =IF(INTRO!$E$34<>0,INTRO!$E$34,"") -> Congo | B58: Pool | C58: Mindouli | D58: 48000 | E58: =IF(INTRO!$E$48="","",ROUND($D58*INTRO!$E$48,0)) -> 7680 | F58: =IF(INTRO!$E$49="","",ROUND($D58*INTRO!$E$49,0)) -> 11520 | G58: =IF(INTRO!$E$50="","",ROUND($D58*INTRO!$E$50,0)) -> 26544 | H58: 0 | I58: 1 | J58: 2 | K58: 1 | L58: 1 | M58: =IF(INTRO!$E$38="Endémique", IF($H58>0, IF($H58=4,"Inconnu", IF($H58=99,"Interrompu", $D58)), 0),"Non requis") -> 0 | N58: 42439 | O58: =IF(INTRO!$E$42="Endémique", IF(AND($J58>1,$J58<5), IF($J58=4, "Inconnu", E58+F58), 0),"Non requis") -> 19200 | P58: =IF(INTRO!$E$44="Endémique", IF(AND($K58>0,$K58<5), IF($K58=4,"Inconnu", IF($K58=1, $F58*0.33, IF($K58=2, $F58*0.5+$G58*0.2, SUM(F58:G58)))), 0),"Non requis") -> 3801.6 | Q58: 0 | R58: 1 | S58: 1 | T58: 0 | U58: MDA3 (IVM) | W58: 12807 | X58: Mindouli | AA58: ='MDA1'!M58 -> 0 | AB58: ='MDA4'!U58 -> 0 | AC58: ='MDA3'!Q58 -> 34306 | AE58: ='MDA4'!M58 -> 0 | AF58: ='MDA4'!Q58 -> 0 | AK58: Mindouli | AL58: 48000 | AM58: 0
A59: =IF(INTRO!$E$34<>0,INTRO!$E$34,"") -> Congo | B59: Sangha | C59: Ouesso | D59: 77357 | E59: =IF(INTRO!$E$48="","",ROUND($D59*INTRO!$E$48,0)) -> 12377 | F59: =IF(INTRO!$E$49="","",ROUND($D59*INTRO!$E$49,0)) -> 18566 | G59: =IF(INTRO!$E$50="","",ROUND($D59*INTRO!$E$50,0)) -> 42778 | H59: 1 | I59: 4 | J59: 2 | K59: 1 | L59: 1 | M59: =IF(INTRO!$E$38="Endémique", IF($H59>0, IF($H59=4,"Inconnu", IF($H59=99,"Interrompu", $D59)), 0),"Non requis") -> 77357 | O59: =IF(INTRO!$E$42="Endémique", IF(AND($J59>1,$J59<5), IF($J59=4, "Inconnu", E59+F59), 0),"Non requis") -> 30943 | P59: =IF(INTRO!$E$44="Endémique", IF(AND($K59>0,$K59<5), IF($K59=4,"Inconnu", IF($K59=1, $F59*0.33, IF($K59=2, $F59*0.5+$G59*0.2, SUM(F59:G59)))), 0),"Non requis") -> 6126.78 | Q59: 1 | R59: 0 | S59: 1 | T59: 0 | U59: MDA4 (ALB/2*ALB) | W59: 12813 | X59: Ouesso | AA59: ='MDA1'!M59 -> 0 | AB59: ='MDA4'!U59 -> 48813 | AC59: ='MDA3'!Q59 -> 0 | AE59: ='MDA4'!M59 -> 48813 | AF59: ='MDA4'!Q59 -> 0 | AK59: Ouesso | AL59: 77357 | AM59: 0
A60: =IF(INTRO!$E$34<>0,INTRO!$E$34,"") -> Congo | B60: Sangha | C60: Sembé-Souanké | D60: 35156 | E60: =IF(INTRO!$E$48="","",ROUND($D60*INTRO!$E$48,0)) -> 5625 | F60: =IF(INTRO!$E$49="","",ROUND($D60*INTRO!$E$49,0)) -> 8437 | G60: =IF(INTRO!$E$50="","",ROUND($D60*INTRO!$E$50,0)) -> 19441 | H60: 1 | I60: 4 | J60: 3 | K60: 0 | L60: 1 | M60: =IF(INTRO!$E$38="Endémique", IF($H60>0, IF($H60=4,"Inconnu", IF($H60=99,"Interrompu", $D60)), 0),"Non requis") -> 35156 | O60: =IF(INTRO!$E$42="Endémique", IF(AND($J60>1,$J60<5), IF($J60=4, "Inconnu", E60+F60), 0),"Non requis") -> 14062 | P60: =IF(INTRO!$E$44="Endémique", IF(AND($K60>0,$K60<5), IF($K60=4,"Inconnu", IF($K60=1, $F60*0.33, IF($K60=2, $F60*0.5+$G60*0.2, SUM(F60:G60)))), 0),"Non requis") -> 0 | Q60: 1 | R60: 0 | S60: 2 | T60: 0 | U60: MDA4 (ALB/2*ALB) | W60: 12814 | X60: Sembé-Souanké | AA60: ='MDA1'!M60 -> 0 | AB60: ='MDA4'!U60 -> 21783 | AC60: ='MDA3'!Q60 -> 0 | AE60: ='MDA4'!M60 -> 21783 | AF60: ='MDA4'!Q60 -> 0 | AK60: Sembé-Souanké | AL60: 35156 | AM60: 0

Sheet MDA1
A1: MDA 1 - Ivermectine (IVM) et Albendazole (ALB)
A2: Structure administrative, population nécessitant une chimioprévention par groupe d'âge, population traitée par groupe d'âge et couverture
A4: TOTAL | G4: =SUM(G$9:G$1000) -> 34747.44 | H4: =SUM(H$9:H$1000) -> 86868.6 | I4: =SUM(I$9:I$1000) -> 121616.04 | K4: =SUM(K$9:K$1000) -> 28905.12 | L4: =SUM(L$9:L$1000) -> 91532.88 | M4: =SUM(M$9:M$1000) -> 120438 | O4: =IF(G4<>0, IF(K4/G4*100=0, "-", K4/G4*100), " ") -> 83.1863297 | P4: =IF(H4<>0, IF(L4/H4*100=0, "-", L4/H4*100), " ") -> 105.369351 | Q4: =IF(I4<>0, IF(M4/I4*100=0, "-", M4/I4*100), " ") -> 99.03134488
A6: Structure administrative du pays | D6: Mise en oeuvre de la CP | E6: Date | F6: Population ciblée pour MDA 1 | J6: Population traitée | N6: Couverture du Programme (%)
A7: Pays | B7: Région/Département | C7: District | F7: EAPréS | G7: EAS | H7: Adultes | I7: Total | J7: EAPréS | K7: EAS | L7: Adultes | M7: Total | N7: EAPréS | O7: EAS | P7: Adultes | Q7: Total
A9: =IF(COUNTRY_INFO!A9=0," ",COUNTRY_INFO!A9) -> Congo | B9: =IF(COUNTRY_INFO!B9=0," ",COUNTRY_INFO!B9) -> Bouenza | C9: =IF(COUNTRY_INFO!C9=0," ",COUNTRY_INFO!C9) -> Loudima | D9: =IF(COUNTRY_INFO!$U$9:$U$1000="MDA1 (IVM+ALB)", COUNTRY_INFO!$U$9:$U$1000, " ") ->  | I9: =SUM(F9:H9) -> 0 | M9: =SUM(J9:L9) -> 0 | O9: =IF(G9<>0, IF(K9/G9*100=0, "-", K9/G9*100), " ") ->  | P9: =IF(H9<>0, IF(L9/H9*100=0, "-", L9/H9*100), " ") -> 
A10: =IF(COUNTRY_INFO!A10=0," ",COUNTRY_INFO!A10) -> Congo | B10: =IF(COUNTRY_INFO!B10=0," ",COUNTRY_INFO!B10) -> Bouenza | C10: =IF(COUNTRY_INFO!C10=0," ",COUNTRY_INFO!C10) -> Loutété | D10: =IF(COUNTRY_INFO!$U$9:$U$1000="MDA1 (IVM+ALB)", COUNTRY_INFO!$U$9:$U$1000, " ") -> MDA1 (IVM+ALB) | E10: Août-Nov | G10: 7637.04 | H10: 19092.6 | I10: =SUM(F10:H10) -> 26729.64 | K10: 6222.72 | L10: 19705.28 | M10: =SUM(J10:L10) -> 25928 | O10: =IF(G10<>0, IF(K10/G10*100=0, "-", K10/G10*100), " ") -> 81.48078313 | P10: =IF(H10<>0, IF(L10/H10*100=0, "-", L10/H10*100), " ") -> 103.208992 | Q10: =IF(I10<>0, IF(M10/I10*100=0, "-", M10/I10*100), " ") -> 97.0009323
A11: =IF(COUNTRY_INFO!A11=0," ",COUNTRY_INFO!A11) -> Congo | B11: =IF(COUNTRY_INFO!B11=0," ",COUNTRY_INFO!B11) -> Bouenza | C11: =IF(COUNTRY_INFO!C11=0," ",COUNTRY_INFO!C11) -> Madingou | D11: =IF(COUNTRY_INFO!$U$9:$U$1000="MDA1 (IVM+ALB)", COUNTRY_INFO!$U$9:$U$1000, " ") -> MDA1 (IVM+ALB) | E11: Août-Nov | G11: 11621.28 | H11: 29053.2 | I11: 40674.48 | K11: 9705.36 | L11: 30733.64 | M11: 40439 | O11: 83.51369212 | P11: 105.78401 | Q11: 99.42106205
A12: =IF(COUNTRY_INFO!A12=0," ",COUNTRY_INFO!A12) -> Congo | B12: =IF(COUNTRY_INFO!B12=0," ",COUNTRY_INFO!B12) -> Bouenza | C12: =IF(COUNTRY_INFO!C12=0," ",COUNTRY_INFO!C12) -> Mouyondzi | D12: =IF(COUNTRY_INFO!$U$9:$U$1000="MDA1 (IVM+ALB)", COUNTRY_INFO!$U$9:$U$1000, " ") -> MDA1 (IVM+ALB) | E12: Août-Nov | G12: 9738.96 | H12: 24347.4 | I12: 34086.36 | K12: 8083.92 | L12: 25599.08 | M12: 33683 | O12: 83.00598832 | P12: 105.1409185 | Q12: 98.81665276
A13: =IF(COUNTRY_INFO!A13=0," ",COUNTRY_INFO!A13) -> Congo | B13: =IF(COUNTRY_INFO!B13=0," ",COUNTRY_INFO!B13) -> Bouenza | C13: =IF(COUNTRY_INFO!C13=0," ",COUNTRY_INFO!C13) -> Nkayi | D13: =IF(COUNTRY_INFO!$U$9:$U$1000="MDA1 (IVM+ALB)", COUNTRY_INFO!$U$9:$U$1000, " ") ->  | G13: 0 | H13: 0 | I13: 0 | K13: 0 | L13: 0 | M13: 0
A14: =IF(COUNTRY_INFO!A14=0," ",COUNTRY_INFO!A14) -> Congo | B14: =IF(COUNTRY_INFO!B14=0," ",COUNTRY_INFO!B14) -> Brazzaville | C14: =IF(COUNTRY_INFO!C14=0," ",COUNTRY_INFO!C14) -> Bacongo | D14: =IF(COUNTRY_INFO!$U$9:$U$1000="MDA1 (IVM+ALB)", COUNTRY_INFO!$U$9:$U$1000, " ") ->  | G14: 0 | H14: 0 | I14: 0 | K14: 0 | L14: 0 | M14: 0
A15: =IF(COUNTRY_INFO!A15=0," ",COUNTRY_INFO!A15) -> Congo | B15: =IF(COUNTRY_INFO!B15=0," ",COUNTRY_INFO!B15) -> Brazzaville | C15: =IF(COUNTRY_INFO!C15=0," ",COUNTRY_INFO!C15) -> Djiri | D15: =IF(COUNTRY_INFO!$U$9:$U$1000="MDA1 (IVM+ALB)", COUNTRY_INFO!$U$9:$U$1000, " ") ->  | G15: 0 | H15: 0 | I15: 0 | K15: 0 | L15: 0 | M15: 0
A16: =IF(COUNTRY_INFO!A16=0," ",COUNTRY_INFO!A16) -> Congo | B16: =IF(COUNTRY_INFO!B16=0," ",COUNTRY_INFO!B16) -> Brazzaville | C16: =IF(COUNTRY_INFO!C16=0," ",COUNTRY_INFO!C16) -> Île Mbamou | D16: =IF(COUNTRY_INFO!$U$9:$U$1000="MDA1 (IVM+ALB)", COUNTRY_INFO!$U$9:$U$1000, " ") ->  | G16: 0 | H16: 0 | I16: 0 | K16: 0 | L16: 0 | M16: 0
A17: =IF(COUNTRY_INFO!A17=0," ",COUNTRY_INFO!A17) -> Congo | B17: =IF(COUNTRY_INFO!B17=0," ",COUNTRY_INFO!B17) -> Brazzaville | C17: =IF(COUNTRY_INFO!C17=0," ",COUNTRY_INFO!C17) -> Madibou | D17: =IF(COUNTRY_INFO!$U$9:$U$1000="MDA1 (IVM+ALB)", COUNTRY_INFO!$U$9:$U$1000, " ") ->  | G17: 0 | H17: 0 | I17: 0 | K17: 0 | L17: 0 | M17: 0
A18: =IF(COUNTRY_INFO!A18=0," ",COUNTRY_INFO!A18) -> Congo | B18: =IF(COUNTRY_INFO!B18=0," ",COUNTRY_INFO!B18) -> Brazzaville | C18: =IF(COUNTRY_INFO!C18=0," ",COUNTRY_INFO!C18) -> Makélékélé | D18: =IF(COUNTRY_INFO!$U$9:$U$1000="MDA1 (IVM+ALB)", COUNTRY_INFO!$U$9:$U$1000, " ") ->  | G18: 0 | H18: 0 | I18: 0 | K18: 0 | L18: 0 | M18: 0
A19: =IF(COUNTRY_INFO!A19=0," ",COUNTRY_INFO!A19) -> Congo | B19: =IF(COUNTRY_INFO!B19=0," ",COUNTRY_INFO!B19) -> Brazzaville | C19: =IF(COUNTRY_INFO!C19=0," ",COUNTRY_INFO!C19) -> Mfilou | D19: =IF(COUNTRY_INFO!$U$9:$U$1000="MDA1 (IVM+ALB)", COUNTRY_INFO!$U$9:$U$1000, " ") ->  | G19: 0 | H19: 0 | I19: 0 | K19: 0 | L19: 0 | M19: 0
A20: =IF(COUNTRY_INFO!A20=0," ",COUNTRY_INFO!A20) -> Congo | B20: =IF(COUNTRY_INFO!B20=0," ",COUNTRY_INFO!B20) -> Brazzaville | C20: =IF(COUNTRY_INFO!C20=0," ",COUNTRY_INFO!C20) -> Moungali | D20: =IF(COUNTRY_INFO!$U$9:$U$1000="MDA1 (IVM+ALB)", COUNTRY_INFO!$U$9:$U$1000, " ") ->  | G20: 0 | H20: 0 | I20: 0 | K20: 0 | L20: 0 | M20: 0
A21: =IF(COUNTRY_INFO!A21=0," ",COUNTRY_INFO!A21) -> Congo | B21: =IF(COUNTRY_INFO!B21=0," ",COUNTRY_INFO!B21) -> Brazzaville | C21: =IF(COUNTRY_INFO!C21=0," ",COUNTRY_INFO!C21) -> Ouenzé | D21: =IF(COUNTRY_INFO!$U$9:$U$1000="MDA1 (IVM+ALB)", COUNTRY_INFO!$U$9:$U$1000, " ") ->  | G21: 0 | H21: 0 | I21: 0 | K21: 0 | L21: 0 | M21: 0
A22: =IF(COUNTRY_INFO!A22=0," ",COUNTRY_INFO!A22) -> Congo | B22: =IF(COUNTRY_INFO!B22=0," ",COUNTRY_INFO!B22) -> Brazzaville | C22: =IF(COUNTRY_INFO!C22=0," ",COUNTRY_INFO!C22) -> Poto-Poto | D22: =IF(COUNTRY_INFO!$U$9:$U$1000="MDA1 (IVM+ALB)", COUNTRY_INFO!$U$9:$U$1000, " ") ->  | G22: 0 | H22: 0 | I22: 0 | K22: 0 | L22: 0 | M22: 0
A23: =IF(COUNTRY_INFO!A23=0," ",COUNTRY_INFO!A23) -> Congo | B23: =IF(COUNTRY_INFO!B23=0," ",COUNTRY_INFO!B23) -> Brazzaville | C23: =IF(COUNTRY_INFO!C23=0," ",COUNTRY_INFO!C23) -> Talangaî | D23: =IF(COUNTRY_INFO!$U$9:$U$1000="MDA1 (IVM+ALB)", COUNTRY_INFO!$U$9:$U$1000, " ") ->  | G23: 0 | H23: 0 | I23: 0 | K23: 0 | L23: 0 | M23: 0
A24: =IF(COUNTRY_INFO!A24=0," ",COUNTRY_INFO!A24) -> Congo | B24: =IF(COUNTRY_INFO!B24=0," ",COUNTRY_INFO!B24) -> Cuvette | C24: =IF(COUNTRY_INFO!C24=0," ",COUNTRY_INFO!C24) -> Mossaka | D24: =IF(COUNTRY_INFO!$U$9:$U$1000="MDA1 (IVM+ALB)", COUNTRY_INFO!$U$9:$U$1000, " ") ->  | G24: 0 | H24: 0 | I24: 0 | K24: 0 | L24: 0 | M24: 0
A25: =IF(COUNTRY_INFO!A25=0," ",COUNTRY_INFO!A25) -> Congo | B25: =IF(COUNTRY_INFO!B25=0," ",COUNTRY_INFO!B25) -> Cuvette | C25: =IF(COUNTRY_INFO!C25=0," ",COUNTRY_INFO!C25) -> Owando | D25: =IF(COUNTRY_INFO!$U$9:$U$1000="MDA1 (IVM+ALB)", COUNTRY_INFO!$U$9:$U$1000, " ") ->  | G25: 0 | H25: 0 | I25: 0 | K25: 0 | L25: 0 | M25: 0
A26: =IF(COUNTRY_INFO!A26=0," ",COUNTRY_INFO!A26) -> Congo | B26: =IF(COUNTRY_INFO!B26=0," ",COUNTRY_INFO!B26) -> Cuvette | C26: =IF(COUNTRY_INFO!C26=0," ",COUNTRY_INFO!C26) -> Oyo-Alima | D26: =IF(COUNTRY_INFO!$U$9:$U$1000="MDA1 (IVM+ALB)", COUNTRY_INFO!$U$9:$U$1000, " ") ->  | G26: 0 | H26: 0 | I26: 0 | K26: 0 | L26: 0 | M26: 0
A27: =IF(COUNTRY_INFO!A27=0," ",COUNTRY_INFO!A27) -> Congo | B27: =IF(COUNTRY_INFO!B27=0," ",COUNTRY_INFO!B27) -> Cuvette-Ouest | C27: =IF(COUNTRY_INFO!C27=0," ",COUNTRY_INFO!C27) -> Etoumbi | D27: =IF(COUNTRY_INFO!$U$9:$U$1000="MDA1 (IVM+ALB)", COUNTRY_INFO!$U$9:$U$1000, " ") ->  | G27: 0 | H27: 0 | I27: 0 | K27: 0 | L27: 0 | M27: 0
A28: =IF(COUNTRY_INFO!A28=0," ",COUNTRY_INFO!A28) -> Congo | B28: =IF(COUNTRY_INFO!B28=0," ",COUNTRY_INFO!B28) -> Cuvette-Ouest | C28: =IF(COUNTRY_INFO!C28=0," ",COUNTRY_INFO!C28) -> Ewo | D28: =IF(COUNTRY_INFO!$U$9:$U$1000="MDA1 (IVM+ALB)", COUNTRY_INFO!$U$9:$U$1000, " ") ->  | G28: 0 | H28: 0 | I28: 0 | K28: 0 | L28: 0 | M28: 0
A29: =IF(COUNTRY_INFO!A29=0," ",COUNTRY_INFO!A29) -> Congo | B29: =IF(COUNTRY_INFO!B29=0," ",COUNTRY_INFO!B29) -> Kouilou | C29: =IF(COUNTRY_INFO!C29=0," ",COUNTRY_INFO!C29) -> Hinda-Loango | D29: =IF(COUNTRY_INFO!$U$9:$U$1000="MDA1 (IVM+ALB)", COUNTRY_INFO!$U$9:$U$1000, " ") ->  | G29: 0 | H29: 0 | I29: 0 | K29: 0 | L29: 0 | M29: 0
A30: =IF(COUNTRY_INFO!A30=0," ",COUNTRY_INFO!A30) -> Congo | B30: =IF(COUNTRY_INFO!B30=0," ",COUNTRY_INFO!B30) -> Kouilou | C30: =IF(COUNTRY_INFO!C30=0," ",COUNTRY_INFO!C30) -> Madingo Kayes-Nzambi | D30: =IF(COUNTRY_INFO!$U$9:$U$1000="MDA1 (IVM+ALB)", COUNTRY_INFO!$U$9:$U$1000, " ") ->  | G30: 0 | H30: 0 | I30: 0 | K30: 0 | L30: 0 | M30: 0
A31: =IF(COUNTRY_INFO!A31=0," ",COUNTRY_INFO!A31) -> Congo | B31: =IF(COUNTRY_INFO!B31=0," ",COUNTRY_INFO!B31) -> Kouilou | C31: =IF(COUNTRY_INFO!C31=0," ",COUNTRY_INFO!C31) -> Mvouti-Kakamouéka | D31: =IF(COUNTRY_INFO!$U$9:$U$1000="MDA1 (IVM+ALB)", COUNTRY_INFO!$U$9:$U$1000, " ") ->  | G31: 0 | H31: 0 | I31: 0 | K31: 0 | L31: 0 | M31: 0
A32: =IF(COUNTRY_INFO!A32=0," ",COUNTRY_INFO!A32) -> Congo | B32: =IF(COUNTRY_INFO!B32=0," ",COUNTRY_INFO!B32) -> Lékoumou | C32: =IF(COUNTRY_INFO!C32=0," ",COUNTRY_INFO!C32) -> Sibiti | D32: =IF(COUNTRY_INFO!$U$9:$U$1000="MDA1 (IVM+ALB)", COUNTRY_INFO!$U$9:$U$1000, " ") ->  | G32: 0 | H32: 0 | I32: 0 | K32: 0 | L32: 0 | M32: 0
A33: =IF(COUNTRY_INFO!A33=0," ",COUNTRY_INFO!A33) -> Congo | B33: =IF(COUNTRY_INFO!B33=0," ",COUNTRY_INFO!B33) -> Lékoumou | C33: =IF(COUNTRY_INFO!C33=0," ",COUNTRY_INFO!C33) -> Zanaga | D33: =IF(COUNTRY_INFO!$U$9:$U$1000="MDA1 (IVM+ALB)", COUNTRY_INFO!$U$9:$U$1000, " ") ->  | G33: 0 | H33: 0 | I33: 0 | K33: 0 | L33: 0 | M33: 0
A34: =IF(COUNTRY_INFO!A34=0," ",COUNTRY_INFO!A34) -> Congo | B34: =IF(COUNTRY_INFO!B34=0," ",COUNTRY_INFO!B34) -> Likouala | C34: =IF(COUNTRY_INFO!C34=0," ",COUNTRY_INFO!C34) -> Bétou | D34: =IF(COUNTRY_INFO!$U$9:$U$1000="MDA1 (IVM+ALB)", COUNTRY_INFO!$U$9:$U$1000, " ") ->  | G34: 0 | H34: 0 | I34: 0 | K34: 0 | L34: 0 | M34: 0
A35: =IF(COUNTRY_INFO!A35=0," ",COUNTRY_INFO!A35) -> Congo | B35: =IF(COUNTRY_INFO!B35=0," ",COUNTRY_INFO!B35) -> Likouala | C35: =IF(COUNTRY_INFO!C35=0," ",COUNTRY_INFO!C35) -> Impfondo | D35: =IF(COUNTRY_INFO!$U$9:$U$1000="MDA1 (IVM+ALB)", COUNTRY_INFO!$U$9:$U$1000, " ") ->  | G35: 0 | H35: 0 | I35: 0 | K35: 0 | L35: 0 | M35: 0
A36: =IF(COUNTRY_INFO!A36=0," ",COUNTRY_INFO!A36) -> Congo | B36: =IF(COUNTRY_INFO!B36=0," ",COUNTRY_INFO!B36) -> Niari | C36: =IF(COUNTRY_INFO!C36=0," ",COUNTRY_INFO!C36) -> Dolisie | D36: =IF(COUNTRY_INFO!$U$9:$U$1000="MDA1 (IVM+ALB)", COUNTRY_INFO!$U$9:$U$1000, " ") -> MDA1 (IVM+ALB) | E36: Août-Nov | G36: 2622 | H36: 6555 | I36: 9177 | K36: 2307.12 | L36: 7305.88 | M36: 9613 | O36: 87.99084668 | P36: 111.4550725 | Q36: 104.751008
A37: =IF(COUNTRY_INFO!A37=0," ",COUNTRY_INFO!A37) -> Congo | B37: =IF(COUNTRY_INFO!B37=0," ",COUNTRY_INFO!B37) -> Niari | C37: =IF(COUNTRY_INFO!C37=0," ",COUNTRY_INFO!C37) -> Kibangou | D37: =IF(COUNTRY_INFO!$U$9:$U$1000="MDA1 (IVM+ALB)", COUNTRY_INFO!$U$9:$U$1000, " ") -> MDA1 (IVM+ALB) | E37: Août-Nov | G37: 2375.76 | H37: 5939.4 | I37: 8315.16 | K37: 1938.96 | L37: 6140.04 | M37: 8079 | O37: 81.61430448 | P37: 103.378119 | Q37: 97.15988628
A38: =IF(COUNTRY_INFO!A38=0," ",COUNTRY_INFO!A38) -> Congo | B38: =IF(COUNTRY_INFO!B38=0," ",COUNTRY_INFO!B38) -> Niari | C38: =IF(COUNTRY_INFO!C38=0," ",COUNTRY_INFO!C38) -> Kimongo-Londela Nkayes | D38: =IF(COUNTRY_INFO!$U$9:$U$1000="MDA1 (IVM+ALB)", COUNTRY_INFO!$U$9:$U$1000, " ") ->  | G38: 0 | H38: 0 | I38: 0 | K38: 0 | L38: 0 | M38: 0
A39: =IF(COUNTRY_INFO!A39=0," ",COUNTRY_INFO!A39) -> Congo | B39: =IF(COUNTRY_INFO!B39=0," ",COUNTRY_INFO!B39) -> Niari | C39: =IF(COUNTRY_INFO!C39=0," ",COUNTRY_INFO!C39) -> Mayoko | D39: =IF(COUNTRY_INFO!$U$9:$U$1000="MDA1 (IVM+ALB)", COUNTRY_INFO!$U$9:$U$1000, " ") ->  | G39: 0 | H39: 0 | I39: 0 | K39: 0 | L39: 0 | M39: 0
A40: =IF(COUNTRY_INFO!A40=0," ",COUNTRY_INFO!A40) -> Congo | B40: =IF(COUNTRY_INFO!B40=0," ",COUNTRY_INFO!B40) -> Niari | C40: =IF(COUNTRY_INFO!C40=0," ",COUNTRY_INFO!C40) -> Mossendjo | D40: =IF(COUNTRY_INFO!$U$9:$U$1000="MDA1 (IVM+ALB)", COUNTRY_INFO!$U$9:$U$1000, " ") ->  | G40: 0 | H40: 0 | I40: 0 | K40: 0 | L40: 0 | M40: 0
A41: =IF(COUNTRY_INFO!A41=0," ",COUNTRY_INFO!A41) -> Congo | B41: =IF(COUNTRY_INFO!B41=0," ",COUNTRY_INFO!B41) -> Plateaux | C41: =IF(COUNTRY_INFO!C41=0," ",COUNTRY_INFO!C41) -> Abala | D41: =IF(COUNTRY_INFO!$U$9:$U$1000="MDA1 (IVM+ALB)", COUNTRY_INFO!$U$9:$U$1000, " ") ->  | G41: 0 | H41: 0 | I41: 0 | K41: 0 | L41: 0 | M41: 0
A42: =IF(COUNTRY_INFO!A42=0," ",COUNTRY_INFO!A42) -> Congo | B42: =IF(COUNTRY_INFO!B42=0," ",COUNTRY_INFO!B42) -> Plateaux | C42: =IF(COUNTRY_INFO!C42=0," ",COUNTRY_INFO!C42) -> Djambala-Lékana | D42: =IF(COUNTRY_INFO!$U$9:$U$1000="MDA1 (IVM+ALB)", COUNTRY_INFO!$U$9:$U$1000, " ") ->  | G42: 0 | H42: 0 | I42: 0 | K42: 0 | L42: 0 | M42: 0
A43: =IF(COUNTRY_INFO!A43=0," ",COUNTRY_INFO!A43) -> Congo | B43: =IF(COUNTRY_INFO!B43=0," ",COUNTRY_INFO!B43) -> Plateaux | C43: =IF(COUNTRY_INFO!C43=0," ",COUNTRY_INFO!C43) -> Gamboma | D43: =IF(COUNTRY_INFO!$U$9:$U$1000="MDA1 (IVM+ALB)", COUNTRY_INFO!$U$9:$U$1000, " ") ->  | G43: 0 | H43: 0 | I43: 0 | K43: 0 | L43: 0 | M43: 0
A44: =IF(COUNTRY_INFO!A44=0," ",COUNTRY_INFO!A44) -> Congo | B44: =IF(COUNTRY_INFO!B44=0," ",COUNTRY_INFO!B44) -> Plateaux | C44: =IF(COUNTRY_INFO!C44=0," ",COUNTRY_INFO!C44) -> Ngo Mpouya | D44: =IF(COUNTRY_INFO!$U$9:$U$1000="MDA1 (IVM+ALB)", COUNTRY_INFO!$U$9:$U$1000, " ") ->  | G44: 0 | H44: 0 | I44: 0 | K44: 0 | L44: 0 | M44: 0
A45: =IF(COUNTRY_INFO!A45=0," ",COUNTRY_INFO!A45) -> Congo | B45: =IF(COUNTRY_INFO!B45=0," ",COUNTRY_INFO!B45) -> Pointe-Noire | C45: =IF(COUNTRY_INFO!C45=0," ",COUNTRY_INFO!C45) -> Loandjili | D45: =IF(COUNTRY_INFO!$U$9:$U$1000="MDA1 (IVM+ALB)", COUNTRY_INFO!$U$9:$U$1000, " ") ->  | G45: 0 | H45: 0 | I45: 0 | K45: 0 | L45: 0 | M45: 0
A46: =IF(COUNTRY_INFO!A46=0," ",COUNTRY_INFO!A46) -> Congo | B46: =IF(COUNTRY_INFO!B46=0," ",COUNTRY_INFO!B46) -> Pointe-Noire | C46: =IF(COUNTRY_INFO!C46=0," ",COUNTRY_INFO!C46) -> Lumumba | D46: =IF(COUNTRY_INFO!$U$9:$U$1000="MDA1 (IVM+ALB)", COUNTRY_INFO!$U$9:$U$1000, " ") ->  | G46: 0 | H46: 0 | I46: 0 | K46: 0 | L46: 0 | M46: 0
A47: =IF(COUNTRY_INFO!A47=0," ",COUNTRY_INFO!A47) -> Congo | B47: =IF(COUNTRY_INFO!B47=0," ",COUNTRY_INFO!B47) -> Pointe-Noire | C47: =IF(COUNTRY_INFO!C47=0," ",COUNTRY_INFO!C47) -> Mongo-Poukou | D47: =IF(COUNTRY_INFO!$U$9:$U$1000="MDA1 (IVM+ALB)", COUNTRY_INFO!$U$9:$U$1000, " ") ->  | G47: 0 | H47: 0 | I47: 0 | K47: 0 | L47: 0 | M47: 0
A48: =IF(COUNTRY_INFO!A48=0," ",COUNTRY_INFO!A48) -> Congo | B48: =IF(COUNTRY_INFO!B48=0," ",COUNTRY_INFO!B48) -> Pointe-Noire | C48: =IF(COUNTRY_INFO!C48=0," ",COUNTRY_INFO!C48) -> Mvoumvou | D48: =IF(COUNTRY_INFO!$U$9:$U$1000="MDA1 (IVM+ALB)", COUNTRY_INFO!$U$9:$U$1000, " ") ->  | G48: 0 | H48: 0 | I48: 0 | K48: 0 | L48: 0 | M48: 0
A49: =IF(COUNTRY_INFO!A49=0," ",COUNTRY_INFO!A49) -> Congo | B49: =IF(COUNTRY_INFO!B49=0," ",COUNTRY_INFO!B49) -> Pointe-Noire | C49: =IF(COUNTRY_INFO!C49=0," ",COUNTRY_INFO!C49) -> Ngoyo | D49: =IF(COUNTRY_INFO!$U$9:$U$1000="MDA1 (IVM+ALB)", COUNTRY_INFO!$U$9:$U$1000, " ") ->  | G49: 0 | H49: 0 | I49: 0 | K49: 0 | L49: 0 | M49: 0
A50: =IF(COUNTRY_INFO!A50=0," ",COUNTRY_INFO!A50) -> Congo | B50: =IF(COUNTRY_INFO!B50=0," ",COUNTRY_INFO!B50) -> Pointe-Noire | C50: =IF(COUNTRY_INFO!C50=0," ",COUNTRY_INFO!C50) -> Tchiamba Nzassi | D50: =IF(COUNTRY_INFO!$U$9:$U$1000="MDA1 (IVM+ALB)", COUNTRY_INFO!$U$9:$U$1000, " ") ->  | G50: 0 | H50: 0 | I50: 0 | K50: 0 | L50: 0 | M50: 0
A51: =IF(COUNTRY_INFO!A51=0," ",COUNTRY_INFO!A51) -> Congo | B51: =IF(COUNTRY_INFO!B51=0," ",COUNTRY_INFO!B51) -> Pointe-Noire | C51: =IF(COUNTRY_INFO!C51=0," ",COUNTRY_INFO!C51) -> Tie-Tie | D51: =IF(COUNTRY_INFO!$U$9:$U$1000="MDA1 (IVM+ALB)", COUNTRY_INFO!$U$9:$U$1000, " ") ->  | G51: 0 | H51: 0 | I51: 0 | K51: 0 | L51: 0 | M51: 0
A52: =IF(COUNTRY_INFO!A52=0," ",COUNTRY_INFO!A52) -> Congo | B52: =IF(COUNTRY_INFO!B52=0," ",COUNTRY_INFO!B52) -> Pool | C52: =IF(COUNTRY_INFO!C52=0," ",COUNTRY_INFO!C52) -> Boko | D52: =IF(COUNTRY_INFO!$U$9:$U$1000="MDA1 (IVM+ALB)", COUNTRY_INFO!$U$9:$U$1000, " ") ->  | G52: 0 | H52: 0 | I52: 0 | K52: 0 | L52: 0 | M52: 0
A53: =IF(COUNTRY_INFO!A53=0," ",COUNTRY_INFO!A53) -> Congo | B53: =IF(COUNTRY_INFO!B53=0," ",COUNTRY_INFO!B53) -> Pool | C53: =IF(COUNTRY_INFO!C53=0," ",COUNTRY_INFO!C53) -> Goma tsétsé | D53: =IF(COUNTRY_INFO!$U$9:$U$1000="MDA1 (IVM+ALB)", COUNTRY_INFO!$U$9:$U$1000, " ") ->  | G53: 0 | H53: 0 | I53: 0 | K53: 0 | L53: 0 | M53: 0
A54: =IF(COUNTRY_INFO!A54=0," ",COUNTRY_INFO!A54) -> Congo | B54: =IF(COUNTRY_INFO!B54=0," ",COUNTRY_INFO!B54) -> Pool | C54: =IF(COUNTRY_INFO!C54=0," ",COUNTRY_INFO!C54) -> Ignié | D54: =IF(COUNTRY_INFO!$U$9:$U$1000="MDA1 (IVM+ALB)", COUNTRY_INFO!$U$9:$U$1000, " ") -> MDA1 (IVM+ALB) | E54: Août-Nov | G54: 752.4 | H54: 1881 | I54: 2633.4 | K54: 647.04 | L54: 2048.96 | M54: 2696 | O54: 85.99681021 | P54: 108.9292929 | Q54: 102.377155
A55: =IF(COUNTRY_INFO!A55=0," ",COUNTRY_INFO!A55) -> Congo | B55: =IF(COUNTRY_INFO!B55=0," ",COUNTRY_INFO!B55) -> Pool | C55: =IF(COUNTRY_INFO!C55=0," ",COUNTRY_INFO!C55) -> Kindamba | D55: =IF(COUNTRY_INFO!$U$9:$U$1000="MDA1 (IVM+ALB)", COUNTRY_INFO!$U$9:$U$1000, " ") ->  | G55: 0 | H55: 0 | I55: 0 | K55: 0 | L55: 0 | M55: 0
A56: =IF(COUNTRY_INFO!A56=0," ",COUNTRY_INFO!A56) -> Congo | B56: =IF(COUNTRY_INFO!B56=0," ",COUNTRY_INFO!B56) -> Pool | C56: =IF(COUNTRY_INFO!C56=0," ",COUNTRY_INFO!C56) -> Kinkala | D56: =IF(COUNTRY_INFO!$U$9:$U$1000="MDA1 (IVM+ALB)", COUNTRY_INFO!$U$9:$U$1000, " ") ->  | G56: 0 | H56: 0 | I56: 0 | K56: 0 | L56: 0 | M56: 0
A57: =IF(COUNTRY_INFO!A57=0," ",COUNTRY_INFO!A57) -> Congo | B57: =IF(COUNTRY_INFO!B57=0," ",COUNTRY_INFO!B57) -> Pool | C57: =IF(COUNTRY_INFO!C57=0," ",COUNTRY_INFO!C57) -> Kintélé | D57: =IF(COUNTRY_INFO!$U$9:$U$1000="MDA1 (IVM+ALB)", COUNTRY_INFO!$U$9:$U$1000, " ") ->  | G57: 0 | H57: 0 | I57: 0 | K57: 0 | L57: 0 | M57: 0
A58: =IF(COUNTRY_INFO!A58=0," ",COUNTRY_INFO!A58) -> Congo | B58: =IF(COUNTRY_INFO!B58=0," ",COUNTRY_INFO!B58) -> Pool | C58: =IF(COUNTRY_INFO!C58=0," ",COUNTRY_INFO!C58) -> Mindouli | D58: =IF(COUNTRY_INFO!$U$9:$U$1000="MDA1 (IVM+ALB)", COUNTRY_INFO!$U$9:$U$1000, " ") ->  | G58: 0 | H58: 0 | I58: 0 | K58: 0 | L58: 0 | M58: 0
A59: =IF(COUNTRY_INFO!A59=0," ",COUNTRY_INFO!A59) -> Congo | B59: =IF(COUNTRY_INFO!B59=0," ",COUNTRY_INFO!B59) -> Sangha | C59: =IF(COUNTRY_INFO!C59=0," ",COUNTRY_INFO!C59) -> Ouesso | D59: =IF(COUNTRY_INFO!$U$9:$U$1000="MDA1 (IVM+ALB)", COUNTRY_INFO!$U$9:$U$1000, " ") ->  | G59: 0 | H59: 0 | I59: 0 | K59: 0 | L59: 0 | M59: 0
A60: =IF(COUNTRY_INFO!A60=0," ",COUNTRY_INFO!A60) -> Congo | B60: =IF(COUNTRY_INFO!B60=0," ",COUNTRY_INFO!B60) -> Sangha | C60: =IF(COUNTRY_INFO!C60=0," ",COUNTRY_INFO!C60) -> Sembé-Souanké | D60: =IF(COUNTRY_INFO!$U$9:$U$1000="MDA1 (IVM+ALB)", COUNTRY_INFO!$U$9:$U$1000, " ") ->  | G60: 0 | H60: 0 | I60: 0 | K60: 0 | L60: 0 | M60: 0

Sheet MDA4
A1: MDA 4 - Albendazole (ALB) ou 2 x Albendazole (ALB)
A2: Structure administrative, population nécessitant une chimioprévention par groupe d'âge, population traitée par groupe d'âge et couverture
A4: TOTAL | F4: =SUM(F$9:F$1000) -> 0 | G4: =SUM(G$9:G$1000) -> 120464.16 | H4: 301160.4 | I4: 421624.56 | J4: 0 | K4: 98028.32 | L4: 283261.68 | M4: 381290 | N4: 0 | O4: 45953.28 | P4: 145518.72 | Q4: 191472 | R4: 0 | S4: 100292.08 | T4: 311451.84 | U4: 411743.92 | V4: =IF(F4<>0, IF(N4/F4*100=0, "-", N4/F4*100), " ") ->  | W4: =IF(G4<>0, IF(O4/G4*100=0, "-", O4/G4*100), " ") -> 38.14684799 | X4: =IF(H4<>0, IF(P4/H4*100=0, "-", P4/H4*100), " ") -> 48.31934079 | Y4: =IF(I4<>0, IF(Q4/I4*100=0, "-", Q4/I4*100), " ") -> 45.41291428
A6: Structure administrative du pays | D6: Mise en oeuvre de la CP | E6: Date | F6: Population ciblée pour MDA 4 | J6: Population traitée - tournée 1 | N6: Population traitée - tournée 2 | R6: Population traitée | V6: Couverture du Programme (%)
A7: Pays | B7: Région/Département | C7: District | F7: EAPréS | G7: EAS | H7: Adultes | I7: Total | J7: EAPréS | K7: EAS | L7: Adultes | M7: Total | N7: EAPréS | O7: EAS | P7: Adultes | Q7: Total | R7: EAPréS | S7: EAS | T7: Adultes | U7: Total | V7: EAPréS | W7: EAS | X7: Adultes | Y7: Total
A9: =IF(COUNTRY_INFO!A9=0," ",COUNTRY_INFO!A9) -> Congo | B9: =IF(COUNTRY_INFO!B9=0," ",COUNTRY_INFO!B9) -> Bouenza | C9: =IF(COUNTRY_INFO!C9=0," ",COUNTRY_INFO!C9) -> Loudima | D9: =IF(COUNTRY_INFO!$U$9:$U$1000="MDA4 (ALB/2*ALB)", COUNTRY_INFO!$U$9:$U$1000, " ") ->  | I9: =SUM(F9:H9) -> 0 | M9: =SUM(J9:L9) -> 0 | Q9: =SUM(N9:P9) -> 0 | R9: =MAX(J9,N9) -> 0 | S9: =MAX(K9,O9) -> 0 | T9: =MAX(L9,P9) -> 0 | U9: =SUM(R9:T9) -> 0 | V9: =IF(F9<>0, IF(R9/F9*100=0, "-",R9/F9*100), " ") ->  | W9: =IF(G9<>0, IF(S9/G9*100=0, "-", S9/G9*100), " ") ->  | X9: =IF(H9<>0, IF(T9/H9*100=0, "-", T9/H9*100), " ") ->  | Y9: =IF(I9<>0, IF(U9/I9*100=0, "-", U9/I9*100), " ") -> 
A10: =IF(COUNTRY_INFO!A10=0," ",COUNTRY_INFO!A10) -> Congo | B10: =IF(COUNTRY_INFO!B10=0," ",COUNTRY_INFO!B10) -> Bouenza | C10: =IF(COUNTRY_INFO!C10=0," ",COUNTRY_INFO!C10) -> Loutété | D10: MDA4 (ALB/2*ALB) | E10: 1 er passage Avr et 2ème passage Nov | G10: 774.24 | H10: 1935.6 | I10: =SUM(F10:H10) -> 2709.84 | K10: 781.76 | L10: 2010.24 | M10: =SUM(J10:L10) -> 2792 | O10: 632.16 | P10: 2001.84 | Q10: =SUM(N10:P10) -> 2634 | R10: =MAX(J10,N10) -> 0 | S10: =MAX(K10,O10) -> 781.76 | T10: =MAX(L10,P10) -> 2010.24 | U10: =SUM(R10:T10) -> 2792 | V10: =IF(F10<>0, IF(R10/F10*100=0, "-",R10/F10*100), " ") ->  | W10: =IF(G10<>0, IF(S10/G10*100=0, "-", S10/G10*100), " ") -> 100.9712751 | X10: =IF(H10<>0, IF(T10/H10*100=0, "-", T10/H10*100), " ") -> 103.8561686 | Y10: =IF(I10<>0, IF(U10/I10*100=0, "-", U10/I10*100), " ") -> 103.0319133
A11: =IF(COUNTRY_INFO!A11=0," ",COUNTRY_INFO!A11) -> Congo | B11: =IF(COUNTRY_INFO!B11=0," ",COUNTRY_INFO!B11) -> Bouenza | C11: =IF(COUNTRY_INFO!C11=0," ",COUNTRY_INFO!C11) -> Madingou | D11: MDA4 (ALB/2*ALB) | E11: 1 er passage Avr et 2ème passage Nov | G11: 4515.12 | H11: 11287.8 | I11: 15802.92 | K11: 3741.36 | L11: 9620.64 | M11: 13362 | O11: 3749.04 | P11: 11871.96 | Q11: 15621 | R11: 0 | S11: 3749.04 | T11: 11871.96 | U11: 15621 | W11: 83.03300909 | X11: 105.1751448 | Y11: 98.84882034
A12: =IF(COUNTRY_INFO!A12=0," ",COUNTRY_INFO!A12) -> Congo | B12: =IF(COUNTRY_INFO!B12=0," ",COUNTRY_INFO!B12) -> Bouenza | C12: =IF(COUNTRY_INFO!C12=0," ",COUNTRY_INFO!C12) -> Mouyondzi | D12: MDA4 (ALB/2*ALB) | E12: 1 er passage Avr et 2ème passage Nov | G12: 1939.68 | H12: 4849.2 | I12: 6788.88 | K12: 357.28 | L12: 918.72 | M12: 1276 | O12: 1594.8 | P12: 5050.2 | Q12: 6645 | R12: 0 | S12: 1594.8 | T12: 5050.2 | U12: 6645 | W12: 82.21974759 | X12: 104.1450136 | Y12: 97.88065189
A13: =IF(COUNTRY_INFO!A13=0," ",COUNTRY_INFO!A13) -> Congo | B13: =IF(COUNTRY_INFO!B13=0," ",COUNTRY_INFO!B13) -> Bouenza | C13: =IF(COUNTRY_INFO!C13=0," ",COUNTRY_INFO!C13) -> Nkayi | D13: =IF(COUNTRY_INFO!$U$9:$U$1000="MDA4 (ALB/2*ALB)", COUNTRY_INFO!$U$9:$U$1000, " ") ->  | F13: 0 | G13: 0 | H13: 0 | I13: 0 | M13: 0 | O13: 0 | P13: 0 | Q13: 0 | R13: 0 | S13: 0 | T13: 0 | U13: 0
A14: =IF(COUNTRY_INFO!A14=0," ",COUNTRY_INFO!A14) -> Congo | B14: =IF(COUNTRY_INFO!B14=0," ",COUNTRY_INFO!B14) -> Brazzaville | C14: =IF(COUNTRY_INFO!C14=0," ",COUNTRY_INFO!C14) -> Bacongo | D14: =IF(COUNTRY_INFO!$U$9:$U$1000="MDA4 (ALB/2*ALB)", COUNTRY_INFO!$U$9:$U$1000, " ") ->  | F14: 0 | G14: 0 | H14: 0 | I14: 0 | M14: 0 | O14: 0 | P14: 0 | Q14: 0 | R14: 0 | S14: 0 | T14: 0 | U14: 0
A15: =IF(COUNTRY_INFO!A15=0," ",COUNTRY_INFO!A15) -> Congo | B15: =IF(COUNTRY_INFO!B15=0," ",COUNTRY_INFO!B15) -> Brazzaville | C15: =IF(COUNTRY_INFO!C15=0," ",COUNTRY_INFO!C15) -> Djiri | D15: =IF(COUNTRY_INFO!$U$9:$U$1000="MDA4 (ALB/2*ALB)", COUNTRY_INFO!$U$9:$U$1000, " ") ->  | F15: 0 | G15: 0 | H15: 0 | I15: 0 | M15: 0 | O15: 0 | P15: 0 | Q15: 0 | R15: 0 | S15: 0 | T15: 0 | U15: 0
A16: =IF(COUNTRY_INFO!A16=0," ",COUNTRY_INFO!A16) -> Congo | B16: =IF(COUNTRY_INFO!B16=0," ",COUNTRY_INFO!B16) -> Brazzaville | C16: =IF(COUNTRY_INFO!C16=0," ",COUNTRY_INFO!C16) -> Île Mbamou | D16: =IF(COUNTRY_INFO!$U$9:$U$1000="MDA4 (ALB/2*ALB)", COUNTRY_INFO!$U$9:$U$1000, " ") ->  | F16: 0 | G16: 0 | H16: 0 | I16: 0 | M16: 0 | O16: 0 | P16: 0 | Q16: 0 | R16: 0 | S16: 0 | T16: 0 | U16: 0
A17: =IF(COUNTRY_INFO!A17=0," ",COUNTRY_INFO!A17) -> Congo | B17: =IF(COUNTRY_INFO!B17=0," ",COUNTRY_INFO!B17) -> Brazzaville | C17: =IF(COUNTRY_INFO!C17=0," ",COUNTRY_INFO!C17) -> Madibou | D17: =IF(COUNTRY_INFO!$U$9:$U$1000="MDA4 (ALB/2*ALB)", COUNTRY_INFO!$U$9:$U$1000, " ") ->  | F17: 0 | G17: 0 | H17: 0 | I17: 0 | M17: 0 | O17: 0 | P17: 0 | Q17: 0 | R17: 0 | S17: 0 | T17: 0 | U17: 0
A18: =IF(COUNTRY_INFO!A18=0," ",COUNTRY_INFO!A18) -> Congo | B18: =IF(COUNTRY_INFO!B18=0," ",COUNTRY_INFO!B18) -> Brazzaville | C18: =IF(COUNTRY_INFO!C18=0," ",COUNTRY_INFO!C18) -> Makélékélé | D18: =IF(COUNTRY_INFO!$U$9:$U$1000="MDA4 (ALB/2*ALB)", COUNTRY_INFO!$U$9:$U$1000, " ") ->  | F18: 0 | G18: 0 | H18: 0 | I18: 0 | M18: 0 | O18: 0 | P18: 0 | Q18: 0 | R18: 0 | S18: 0 | T18: 0 | U18: 0
A19: =IF(COUNTRY_INFO!A19=0," ",COUNTRY_INFO!A19) -> Congo | B19: =IF(COUNTRY_INFO!B19=0," ",COUNTRY_INFO!B19) -> Brazzaville | C19: =IF(COUNTRY_INFO!C19=0," ",COUNTRY_INFO!C19) -> Mfilou | D19: =IF(COUNTRY_INFO!$U$9:$U$1000="MDA4 (ALB/2*ALB)", COUNTRY_INFO!$U$9:$U$1000, " ") ->  | F19: 0 | G19: 0 | H19: 0 | I19: 0 | M19: 0 | O19: 0 | P19: 0 | Q19: 0 | R19: 0 | S19: 0 | T19: 0 | U19: 0
A20: =IF(COUNTRY_INFO!A20=0," ",COUNTRY_INFO!A20) -> Congo | B20: =IF(COUNTRY_INFO!B20=0," ",COUNTRY_INFO!B20) -> Brazzaville | C20: =IF(COUNTRY_INFO!C20=0," ",COUNTRY_INFO!C20) -> Moungali | D20: =IF(COUNTRY_INFO!$U$9:$U$1000="MDA4 (ALB/2*ALB)", COUNTRY_INFO!$U$9:$U$1000, " ") ->  | F20: 0 | G20: 0 | H20: 0 | I20: 0 | M20: 0 | O20: 0 | P20: 0 | Q20: 0 | R20: 0 | S20: 0 | T20: 0 | U20: 0
A21: =IF(COUNTRY_INFO!A21=0," ",COUNTRY_INFO!A21) -> Congo | B21: =IF(COUNTRY_INFO!B21=0," ",COUNTRY_INFO!B21) -> Brazzaville | C21: =IF(COUNTRY_INFO!C21=0," ",COUNTRY_INFO!C21) -> Ouenzé | D21: =IF(COUNTRY_INFO!$U$9:$U$1000="MDA4 (ALB/2*ALB)", COUNTRY_INFO!$U$9:$U$1000, " ") ->  | F21: 0 | G21: 0 | H21: 0 | I21: 0 | M21: 0 | O21: 0 | P21: 0 | Q21: 0 | R21: 0 | S21: 0 | T21: 0 | U21: 0
A22: =IF(COUNTRY_INFO!A22=0," ",COUNTRY_INFO!A22) -> Congo | B22: =IF(COUNTRY_INFO!B22=0," ",COUNTRY_INFO!B22) -> Brazzaville | C22: =IF(COUNTRY_INFO!C22=0," ",COUNTRY_INFO!C22) -> Poto-Poto | D22: =IF(COUNTRY_INFO!$U$9:$U$1000="MDA4 (ALB/2*ALB)", COUNTRY_INFO!$U$9:$U$1000, " ") ->  | F22: 0 | G22: 0 | H22: 0 | I22: 0 | M22: 0 | O22: 0 | P22: 0 | Q22: 0 | R22: 0 | S22: 0 | T22: 0 | U22: 0
A23: =IF(COUNTRY_INFO!A23=0," ",COUNTRY_INFO!A23) -> Congo | B23: =IF(COUNTRY_INFO!B23=0," ",COUNTRY_INFO!B23) -> Brazzaville | C23: =IF(COUNTRY_INFO!C23=0," ",COUNTRY_INFO!C23) -> Talangaî | D23: =IF(COUNTRY_INFO!$U$9:$U$1000="MDA4 (ALB/2*ALB)", COUNTRY_INFO!$U$9:$U$1000, " ") ->  | F23: 0 | G23: 0 | H23: 0 | I23: 0 | M23: 0 | O23: 0 | P23: 0 | Q23: 0 | R23: 0 | S23: 0 | T23: 0 | U23: 0
A24: =IF(COUNTRY_INFO!A24=0," ",COUNTRY_INFO!A24) -> Congo | B24: =IF(COUNTRY_INFO!B24=0," ",COUNTRY_INFO!B24) -> Cuvette | C24: =IF(COUNTRY_INFO!C24=0," ",COUNTRY_INFO!C24) -> Mossaka | D24: =IF(COUNTRY_INFO!$U$9:$U$1000="MDA4 (ALB/2*ALB)", COUNTRY_INFO!$U$9:$U$1000, " ") ->  | F24: 0 | G24: 0 | H24: 0 | I24: 0 | M24: 0 | O24: 0 | P24: 0 | Q24: 0 | R24: 0 | S24: 0 | T24: 0 | U24: 0
A25: =IF(COUNTRY_INFO!A25=0," ",COUNTRY_INFO!A25) -> Congo | B25: =IF(COUNTRY_INFO!B25=0," ",COUNTRY_INFO!B25) -> Cuvette | C25: =IF(COUNTRY_INFO!C25=0," ",COUNTRY_INFO!C25) -> Owando | D25: =IF(COUNTRY_INFO!$U$9:$U$1000="MDA4 (ALB/2*ALB)", COUNTRY_INFO!$U$9:$U$1000, " ") -> MDA4 (ALB/2*ALB) | E25: 1 seul passage septembre | G25: 12228.24 | H25: 30570.6 | I25: 42798.84 | K25: 10204.8 | L25: 32315.2 | M25: 42520 | Q25: 0 | R25: 0 | S25: 10204.8 | T25: 32315.2 | U25: 42520 | W25: 83.45272909 | X25: 105.7067902 | Y25: 99.34848702
A26: =IF(COUNTRY_INFO!A26=0," ",COUNTRY_INFO!A26) -> Congo | B26: =IF(COUNTRY_INFO!B26=0," ",COUNTRY_INFO!B26) -> Cuvette | C26: =IF(COUNTRY_INFO!C26=0," ",COUNTRY_INFO!C26) -> Oyo-Alima | D26: =IF(COUNTRY_INFO!$U$9:$U$1000="MDA4 (ALB/2*ALB)", COUNTRY_INFO!$U$9:$U$1000, " ") ->  | G26: 0 | H26: 0 | I26: 0 | K26: 0 | L26: 0 | M26: 0 | Q26: 0 | R26: 0 | S26: 0 | T26: 0 | U26: 0
A27: =IF(COUNTRY_INFO!A27=0," ",COUNTRY_INFO!A27) -> Congo | B27: =IF(COUNTRY_INFO!B27=0," ",COUNTRY_INFO!B27) -> Cuvette-Ouest | C27: =IF(COUNTRY_INFO!C27=0," ",COUNTRY_INFO!C27) -> Etoumbi | D27: =IF(COUNTRY_INFO!$U$9:$U$1000="MDA4 (ALB/2*ALB)", COUNTRY_INFO!$U$9:$U$1000, " ") -> MDA4 (ALB/2*ALB) | E27: 1 seul passage septembre | G27: 6906.72 | H27: 17266.8 | I27: 24173.52 | K27: 5252.64 | L27: 16633.36 | M27: 21886 | Q27: 0 | R27: 0 | S27: 5252.64 | T27: 16633.36 | U27: 21886 | W27: 76.05115018 | X27: 96.3314569 | Y27: 90.53708355
A28: =IF(COUNTRY_INFO!A28=0," ",COUNTRY_INFO!A28) -> Congo | B28: =IF(COUNTRY_INFO!B28=0," ",COUNTRY_INFO!B28) -> Cuvette-Ouest | C28: =IF(COUNTRY_INFO!C28=0," ",COUNTRY_INFO!C28) -> Ewo | D28: =IF(COUNTRY_INFO!$U$9:$U$1000="MDA4 (ALB/2*ALB)", COUNTRY_INFO!$U$9:$U$1000, " ") -> MDA4 (ALB/2*ALB) | E28: 1 seul passage septembre | G28: 6089.52 | H28: 15223.8 | I28: 21313.32 | K28: 6089.52 | L28: 19283.48 | M28: 25373 | Q28: 0 | R28: 0 | S28: 6089.52 | T28: 19283.48 | U28: 25373 | W28: 100 | X28: 126.6666667 | Y28: 119.047619
A29: =IF(COUNTRY_INFO!A29=0," ",COUNTRY_INFO!A29) -> Congo | B29: =IF(COUNTRY_INFO!B29=0," ",COUNTRY_INFO!B29) -> Kouilou | C29: =IF(COUNTRY_INFO!C29=0," ",COUNTRY_INFO!C29) -> Hinda-Loango | D29: =IF(COUNTRY_INFO!$U$9:$U$1000="MDA4 (ALB/2*ALB)", COUNTRY_INFO!$U$9:$U$1000, " ") ->  | F29: 0 | G29: 0 | H29: 0 | I29: 0 | M29: 0 | O29: 0 | P29: 0 | Q29: 0 | R29: 0 | S29: 0 | T29: 0 | U29: 0
A30: =IF(COUNTRY_INFO!A30=0," ",COUNTRY_INFO!A30) -> Congo | B30: =IF(COUNTRY_INFO!B30=0," ",COUNTRY_INFO!B30) -> Kouilou | C30: =IF(COUNTRY_INFO!C30=0," ",COUNTRY_INFO!C30) -> Madingo Kayes-Nzambi | D30: =IF(COUNTRY_INFO!$U$9:$U$1000="MDA4 (ALB/2*ALB)", COUNTRY_INFO!$U$9:$U$1000, " ") ->  | F30: 0 | G30: 0 | H30: 0 | I30: 0 | M30: 0 | O30: 0 | P30: 0 | Q30: 0 | R30: 0 | S30: 0 | T30: 0 | U30: 0
A31: =IF(COUNTRY_INFO!A31=0," ",COUNTRY_INFO!A31) -> Congo | B31: =IF(COUNTRY_INFO!B31=0," ",COUNTRY_INFO!B31) -> Kouilou | C31: =IF(COUNTRY_INFO!C31=0," ",COUNTRY_INFO!C31) -> Mvouti-Kakamouéka | D31: =IF(COUNTRY_INFO!$U$9:$U$1000="MDA4 (ALB/2*ALB)", COUNTRY_INFO!$U$9:$U$1000, " ") ->  | F31: 0 | G31: 0 | H31: 0 | I31: 0 | M31: 0 | O31: 0 | P31: 0 | Q31: 0 | R31: 0 | S31: 0 | T31: 0 | U31: 0
A32: =IF(COUNTRY_INFO!A32=0," ",COUNTRY_INFO!A32) -> Congo | B32: =IF(COUNTRY_INFO!B32=0," ",COUNTRY_INFO!B32) -> Lékoumou | C32: =IF(COUNTRY_INFO!C32=0," ",COUNTRY_INFO!C32) -> Sibiti | D32: =IF(COUNTRY_INFO!$U$9:$U$1000="MDA4 (ALB/2*ALB)", COUNTRY_INFO!$U$9:$U$1000, " ") ->  | F32: 0 | G32: 0 | H32: 0 | I32: 0 | M32: 0 | O32: 0 | P32: 0 | Q32: 0 | R32: 0 | S32: 0 | T32: 0 | U32: 0
A33: =IF(COUNTRY_INFO!A33=0," ",COUNTRY_INFO!A33) -> Congo | B33: =IF(COUNTRY_INFO!B33=0," ",COUNTRY_INFO!B33) -> Lékoumou | C33: =IF(COUNTRY_INFO!C33=0," ",COUNTRY_INFO!C33) -> Zanaga | D33: =IF(COUNTRY_INFO!$U$9:$U$1000="MDA4 (ALB/2*ALB)", COUNTRY_INFO!$U$9:$U$1000, " ") ->  | F33: 0 | G33: 0 | H33: 0 | I33: 0 | M33: 0 | O33: 0 | P33: 0 | Q33: 0 | R33: 0 | S33: 0 | T33: 0 | U33: 0
A34: =IF(COUNTRY_INFO!A34=0," ",COUNTRY_INFO!A34) -> Congo | B34: =IF(COUNTRY_INFO!B34=0," ",COUNTRY_INFO!B34) -> Likouala | C34: =IF(COUNTRY_INFO!C34=0," ",COUNTRY_INFO!C34) -> Bétou | D34: =IF(COUNTRY_INFO!$U$9:$U$1000="MDA4 (ALB/2*ALB)", COUNTRY_INFO!$U$9:$U$1000, " ") ->  | F34: 0 | G34: 0 | H34: 0 | I34: 0 | M34: 0 | O34: 0 | P34: 0 | Q34: 0 | R34: 0 | S34: 0 | T34: 0 | U34: 0
A35: =IF(COUNTRY_INFO!A35=0," ",COUNTRY_INFO!A35) -> Congo | B35: =IF(COUNTRY_INFO!B35=0," ",COUNTRY_INFO!B35) -> Likouala | C35: =IF(COUNTRY_INFO!C35=0," ",COUNTRY_INFO!C35) -> Impfondo | D35: =IF(COUNTRY_INFO!$U$9:$U$1000="MDA4 (ALB/2*ALB)", COUNTRY_INFO!$U$9:$U$1000, " ") -> MDA4 (ALB/2*ALB) | E35: 1 seul passage septembre | G35: 17062.08 | H35: 42655.2 | I35: 59717.28 | K35: 13907.28 | L35: 44039.72 | M35: 57947 | Q35: 0 | R35: 0 | S35: 13907.28 | T35: 44039.72 | U35: 57947 | W35: 81.50987453 | X35: 103.2458411 | Y35: 97.03556492
A36: =IF(COUNTRY_INFO!A36=0," ",COUNTRY_INFO!A36) -> Congo | B36: =IF(COUNTRY_INFO!B36=0," ",COUNTRY_INFO!B36) -> Niari | C36: =IF(COUNTRY_INFO!C36=0," ",COUNTRY_INFO!C36) -> Dolisie | D36: MDA4 (ALB/2*ALB) | E36: 1 er passage Avr et 2ème passage Nov | G36: 24154.08 | H36: 60385.2 | I36: 84539.28 | K36: 18765.88 | L36: 48255.12 | M36: 67021 | O36: 19192.56 | P36: 60776.44 | Q36: 79969 | R36: 0 | S36: 19192.56 | T36: 60776.44 | U36: 79969 | W36: 79.45887403 | X36: 100.6479071 | Y36: 94.59389765
A37: =IF(COUNTRY_INFO!A37=0," ",COUNTRY_INFO!A37) -> Congo | B37: =IF(COUNTRY_INFO!B37=0," ",COUNTRY_INFO!B37) -> Niari | C37: =IF(COUNTRY_INFO!C37=0," ",COUNTRY_INFO!C37) -> Kibangou | D37: MDA4 (ALB/2*ALB) | E37: 1 er passage Avr et 2ème passage Nov | G37: 5516.16 | H37: 13790.4 | I37: 19306.56 | K37: 5210.24 | L37: 13397.76 | M37: 18608 | O37: 4507.92 | P37: 14275.08 | Q37: 18783 | R37: 0 | S37: 5210.24 | T37: 14275.08 | U37: 19485.32 | W37: 94.45411301 | X37: 103.5146189 | Y37: 100.9259029
A38: =IF(COUNTRY_INFO!A38=0," ",COUNTRY_INFO!A38) -> Congo | B38: =IF(COUNTRY_INFO!B38=0," ",COUNTRY_INFO!B38) -> Niari | C38: =IF(COUNTRY_INFO!C38=0," ",COUNTRY_INFO!C38) -> Kimongo-Londela Nkayes | D38: =IF(COUNTRY_INFO!$U$9:$U$1000="MDA4 (ALB/2*ALB)", COUNTRY_INFO!$U$9:$U$1000, " ") -> MDA4 (ALB/2*ALB) | E38: 1 er passage Avr et 2ème passage Nov | G38: 6698.88 | H38: 16747.2 | I38: 23446.08 | K38: 4772.6 | L38: 12272.4 | M38: 17045 | O38: 5364.48 | P38: 16987.52 | Q38: 22352 | R38: 0 | S38: 5364.48 | T38: 16987.52 | U38: 22352 | W38: 80.08025222 | X38: 101.4349861 | Y38: 95.3336336
A39: =IF(COUNTRY_INFO!A39=0," ",COUNTRY_INFO!A39) -> Congo | B39: =IF(COUNTRY_INFO!B39=0," ",COUNTRY_INFO!B39) -> Niari | C39: =IF(COUNTRY_INFO!C39=0," ",COUNTRY_INFO!C39) -> Mayoko | D39: =IF(COUNTRY_INFO!$U$9:$U$1000="MDA4 (ALB/2*ALB)", COUNTRY_INFO!$U$9:$U$1000, " ") ->  | F39: 0 | G39: 0 | H39: 0 | I39: 0 | M39: 0 | O39: 0 | P39: 0 | Q39: 0 | R39: 0 | S39: 0 | T39: 0 | U39: 0
A40: =IF(COUNTRY_INFO!A40=0," ",COUNTRY_INFO!A40) -> Congo | B40: =IF(COUNTRY_INFO!B40=0," ",COUNTRY_INFO!B40) -> Niari | C40: =IF(COUNTRY_INFO!C40=0," ",COUNTRY_INFO!C40) -> Mossendjo | D40: =IF(COUNTRY_INFO!$U$9:$U$1000="MDA4 (ALB/2*ALB)", COUNTRY_INFO!$U$9:$U$1000, " ") ->  | F40: 0 | G40: 0 | H40: 0 | I40: 0 | M40: 0 | O40: 0 | P40: 0 | Q40: 0 | R40: 0 | S40: 0 | T40: 0 | U40: 0
A41: =IF(COUNTRY_INFO!A41=0," ",COUNTRY_INFO!A41) -> Congo | B41: =IF(COUNTRY_INFO!B41=0," ",COUNTRY_INFO!B41) -> Plateaux | C41: =IF(COUNTRY_INFO!C41=0," ",COUNTRY_INFO!C41) -> Abala | D41: =IF(COUNTRY_INFO!$U$9:$U$1000="MDA4 (ALB/2*ALB)", COUNTRY_INFO!$U$9:$U$1000, " ") ->  | F41: 0 | G41: 0 | H41: 0 | I41: 0 | M41: 0 | O41: 0 | P41: 0 | Q41: 0 | R41: 0 | S41: 0 | T41: 0 | U41: 0
A42: =IF(COUNTRY_INFO!A42=0," ",COUNTRY_INFO!A42) -> Congo | B42: =IF(COUNTRY_INFO!B42=0," ",COUNTRY_INFO!B42) -> Plateaux | C42: =IF(COUNTRY_INFO!C42=0," ",COUNTRY_INFO!C42) -> Djambala-Lékana | D42: =IF(COUNTRY_INFO!$U$9:$U$1000="MDA4 (ALB/2*ALB)", COUNTRY_INFO!$U$9:$U$1000, " ") ->  | F42: 0 | G42: 0 | H42: 0 | I42: 0 | M42: 0 | O42: 0 | P42: 0 | Q42: 0 | R42: 0 | S42: 0 | T42: 0 | U42: 0
A43: =IF(COUNTRY_INFO!A43=0," ",COUNTRY_INFO!A43) -> Congo | B43: =IF(COUNTRY_INFO!B43=0," ",COUNTRY_INFO!B43) -> Plateaux | C43: =IF(COUNTRY_INFO!C43=0," ",COUNTRY_INFO!C43) -> Gamboma | D43: =IF(COUNTRY_INFO!$U$9:$U$1000="MDA4 (ALB/2*ALB)", COUNTRY_INFO!$U$9:$U$1000, " ") ->  | F43: 0 | G43: 0 | H43: 0 | I43: 0 | M43: 0 | O43: 0 | P43: 0 | Q43: 0 | R43: 0 | S43: 0 | T43: 0 | U43: 0
A44: =IF(COUNTRY_INFO!A44=0," ",COUNTRY_INFO!A44) -> Congo | B44: =IF(COUNTRY_INFO!B44=0," ",COUNTRY_INFO!B44) -> Plateaux | C44: =IF(COUNTRY_INFO!C44=0," ",COUNTRY_INFO!C44) -> Ngo Mpouya | D44: =IF(COUNTRY_INFO!$U$9:$U$1000="MDA4 (ALB/2*ALB)", COUNTRY_INFO!$U$9:$U$1000, " ") ->  | F44: 0 | G44: 0 | H44: 0 | I44: 0 | M44: 0 | O44: 0 | P44: 0 | Q44: 0 | R44: 0 | S44: 0 | T44: 0 | U44: 0
A45: =IF(COUNTRY_INFO!A45=0," ",COUNTRY_INFO!A45) -> Congo | B45: =IF(COUNTRY_INFO!B45=0," ",COUNTRY_INFO!B45) -> Pointe-Noire | C45: =IF(COUNTRY_INFO!C45=0," ",COUNTRY_INFO!C45) -> Loandjili | D45: =IF(COUNTRY_INFO!$U$9:$U$1000="MDA4 (ALB/2*ALB)", COUNTRY_INFO!$U$9:$U$1000, " ") ->  | F45: 0 | G45: 0 | H45: 0 | I45: 0 | M45: 0 | O45: 0 | P45: 0 | Q45: 0 | R45: 0 | S45: 0 | T45: 0 | U45: 0
A46: =IF(COUNTRY_INFO!A46=0," ",COUNTRY_INFO!A46) -> Congo | B46: =IF(COUNTRY_INFO!B46=0," ",COUNTRY_INFO!B46) -> Pointe-Noire | C46: =IF(COUNTRY_INFO!C46=0," ",COUNTRY_INFO!C46) -> Lumumba | D46: =IF(COUNTRY_INFO!$U$9:$U$1000="MDA4 (ALB/2*ALB)", COUNTRY_INFO!$U$9:$U$1000, " ") ->  | F46: 0 | G46: 0 | H46: 0 | I46: 0 | M46: 0 | O46: 0 | P46: 0 | Q46: 0 | R46: 0 | S46: 0 | T46: 0 | U46: 0
A47: =IF(COUNTRY_INFO!A47=0," ",COUNTRY_INFO!A47) -> Congo | B47: =IF(COUNTRY_INFO!B47=0," ",COUNTRY_INFO!B47) -> Pointe-Noire | C47: =IF(COUNTRY_INFO!C47=0," ",COUNTRY_INFO!C47) -> Mongo-Poukou | D47: =IF(COUNTRY_INFO!$U$9:$U$1000="MDA4 (ALB/2*ALB)", COUNTRY_INFO!$U$9:$U$1000, " ") ->  | F47: 0 | G47: 0 | H47: 0 | I47: 0 | M47: 0 | O47: 0 | P47: 0 | Q47: 0 | R47: 0 | S47: 0 | T47: 0 | U47: 0
A48: =IF(COUNTRY_INFO!A48=0," ",COUNTRY_INFO!A48) -> Congo | B48: =IF(COUNTRY_INFO!B48=0," ",COUNTRY_INFO!B48) -> Pointe-Noire | C48: =IF(COUNTRY_INFO!C48=0," ",COUNTRY_INFO!C48) -> Mvoumvou | D48: =IF(COUNTRY_INFO!$U$9:$U$1000="MDA4 (ALB/2*ALB)", COUNTRY_INFO!$U$9:$U$1000, " ") ->  | F48: 0 | G48: 0 | H48: 0 | I48: 0 | M48: 0 | O48: 0 | P48: 0 | Q48: 0 | R48: 0 | S48: 0 | T48: 0 | U48: 0
A49: =IF(COUNTRY_INFO!A49=0," ",COUNTRY_INFO!A49) -> Congo | B49: =IF(COUNTRY_INFO!B49=0," ",COUNTRY_INFO!B49) -> Pointe-Noire | C49: =IF(COUNTRY_INFO!C49=0," ",COUNTRY_INFO!C49) -> Ngoyo | D49: =IF(COUNTRY_INFO!$U$9:$U$1000="MDA4 (ALB/2*ALB)", COUNTRY_INFO!$U$9:$U$1000, " ") ->  | F49: 0 | G49: 0 | H49: 0 | I49: 0 | M49: 0 | O49: 0 | P49: 0 | Q49: 0 | R49: 0 | S49: 0 | T49: 0 | U49: 0
A50: =IF(COUNTRY_INFO!A50=0," ",COUNTRY_INFO!A50) -> Congo | B50: =IF(COUNTRY_INFO!B50=0," ",COUNTRY_INFO!B50) -> Pointe-Noire | C50: =IF(COUNTRY_INFO!C50=0," ",COUNTRY_INFO!C50) -> Tchiamba Nzassi | D50: =IF(COUNTRY_INFO!$U$9:$U$1000="MDA4 (ALB/2*ALB)", COUNTRY_INFO!$U$9:$U$1000, " ") ->  | F50: 0 | G50: 0 | H50: 0 | I50: 0 | M50: 0 | O50: 0 | P50: 0 | Q50: 0 | R50: 0 | S50: 0 | T50: 0 | U50: 0
A51: =IF(COUNTRY_INFO!A51=0," ",COUNTRY_INFO!A51) -> Congo | B51: =IF(COUNTRY_INFO!B51=0," ",COUNTRY_INFO!B51) -> Pointe-Noire | C51: =IF(COUNTRY_INFO!C51=0," ",COUNTRY_INFO!C51) -> Tie-Tie | D51: =IF(COUNTRY_INFO!$U$9:$U$1000="MDA4 (ALB/2*ALB)", COUNTRY_INFO!$U$9:$U$1000, " ") ->  | F51: 0 | G51: 0 | H51: 0 | I51: 0 | M51: 0 | O51: 0 | P51: 0 | Q51: 0 | R51: 0 | S51: 0 | T51: 0 | U51: 0
A52: =IF(COUNTRY_INFO!A52=0," ",COUNTRY_INFO!A52) -> Congo | B52: =IF(COUNTRY_INFO!B52=0," ",COUNTRY_INFO!B52) -> Pool | C52: =IF(COUNTRY_INFO!C52=0," ",COUNTRY_INFO!C52) -> Boko | D52: =IF(COUNTRY_INFO!$U$9:$U$1000="MDA4 (ALB/2*ALB)", COUNTRY_INFO!$U$9:$U$1000, " ") ->  | F52: 0 | G52: 0 | H52: 0 | I52: 0 | M52: 0 | O52: 0 | P52: 0 | Q52: 0 | R52: 0 | S52: 0 | T52: 0 | U52: 0
A53: =IF(COUNTRY_INFO!A53=0," ",COUNTRY_INFO!A53) -> Congo | B53: =IF(COUNTRY_INFO!B53=0," ",COUNTRY_INFO!B53) -> Pool | C53: =IF(COUNTRY_INFO!C53=0," ",COUNTRY_INFO!C53) -> Goma tsétsé | D53: =IF(COUNTRY_INFO!$U$9:$U$1000="MDA4 (ALB/2*ALB)", COUNTRY_INFO!$U$9:$U$1000, " ") ->  | F53: 0 | G53: 0 | H53: 0 | I53: 0 | M53: 0 | O53: 0 | P53: 0 | Q53: 0 | R53: 0 | S53: 0 | T53: 0 | U53: 0
A54: =IF(COUNTRY_INFO!A54=0," ",COUNTRY_INFO!A54) -> Congo | B54: =IF(COUNTRY_INFO!B54=0," ",COUNTRY_INFO!B54) -> Pool | C54: =IF(COUNTRY_INFO!C54=0," ",COUNTRY_INFO!C54) -> Ignié | D54: MDA4 (ALB/2*ALB) | E54: 1 er passage Avr et 2ème passage Nov | G54: 13164.48 | H54: 32911.2 | I54: 46075.68 | K54: 12001.92 | L54: 30862.08 | M54: 42864 | O54: 10912.32 | P54: 34555.68 | Q54: 45468 | R54: 0 | S54: 12001.92 | T54: 34555.68 | U54: 46557.6 | W54: 91.16896376 | X54: 104.9967184 | Y54: 101.0459314
A55: =IF(COUNTRY_INFO!A55=0," ",COUNTRY_INFO!A55) -> Congo | B55: =IF(COUNTRY_INFO!B55=0," ",COUNTRY_INFO!B55) -> Pool | C55: =IF(COUNTRY_INFO!C55=0," ",COUNTRY_INFO!C55) -> Kindamba | D55: =IF(COUNTRY_INFO!$U$9:$U$1000="MDA4 (ALB/2*ALB)", COUNTRY_INFO!$U$9:$U$1000, " ") ->  | F55: 0 | G55: 0 | H55: 0 | I55: 0 | M55: 0 | O55: 0 | P55: 0 | Q55: 0 | R55: 0 | S55: 0 | T55: 0 | U55: 0
A56: =IF(COUNTRY_INFO!A56=0," ",COUNTRY_INFO!A56) -> Congo | B56: =IF(COUNTRY_INFO!B56=0," ",COUNTRY_INFO!B56) -> Pool | C56: =IF(COUNTRY_INFO!C56=0," ",COUNTRY_INFO!C56) -> Kinkala | D56: =IF(COUNTRY_INFO!$U$9:$U$1000="MDA4 (ALB/2*ALB)", COUNTRY_INFO!$U$9:$U$1000, " ") ->  | F56: 0 | G56: 0 | H56: 0 | I56: 0 | M56: 0 | O56: 0 | P56: 0 | Q56: 0 | R56: 0 | S56: 0 | T56: 0 | U56: 0
A57: =IF(COUNTRY_INFO!A57=0," ",COUNTRY_INFO!A57) -> Congo | B57: =IF(COUNTRY_INFO!B57=0," ",COUNTRY_INFO!B57) -> Pool | C57: =IF(COUNTRY_INFO!C57=0," ",COUNTRY_INFO!C57) -> Kintélé | D57: =IF(COUNTRY_INFO!$U$9:$U$1000="MDA4 (ALB/2*ALB)", COUNTRY_INFO!$U$9:$U$1000, " ") ->  | F57: 0 | G57: 0 | H57: 0 | I57: 0 | M57: 0 | O57: 0 | P57: 0 | Q57: 0 | R57: 0 | S57: 0 | T57: 0 | U57: 0
A58: =IF(COUNTRY_INFO!A58=0," ",COUNTRY_INFO!A58) -> Congo | B58: =IF(COUNTRY_INFO!B58=0," ",COUNTRY_INFO!B58) -> Pool | C58: =IF(COUNTRY_INFO!C58=0," ",COUNTRY_INFO!C58) -> Mindouli | D58: =IF(COUNTRY_INFO!$U$9:$U$1000="MDA4 (ALB/2*ALB)", COUNTRY_INFO!$U$9:$U$1000, " ") ->  | F58: 0 | G58: 0 | H58: 0 | I58: 0 | M58: 0 | O58: 0 | P58: 0 | Q58: 0 | R58: 0 | S58: 0 | T58: 0 | U58: 0
A59: =IF(COUNTRY_INFO!A59=0," ",COUNTRY_INFO!A59) -> Congo | B59: =IF(COUNTRY_INFO!B59=0," ",COUNTRY_INFO!B59) -> Sangha | C59: =IF(COUNTRY_INFO!C59=0," ",COUNTRY_INFO!C59) -> Ouesso | D59: =IF(COUNTRY_INFO!$U$9:$U$1000="MDA4 (ALB/2*ALB)", COUNTRY_INFO!$U$9:$U$1000, " ") -> MDA4 (ALB/2*ALB) | E59: 1 seul passage septembre | G59: 14673.36 | H59: 36683.4 | I59: 51356.76 | K59: 11715.12 | L59: 37097.88 | M59: 48813 | Q59: 0 | R59: 0 | S59: 11715.12 | T59: 37097.88 | U59: 48813 | W59: 79.83938239 | X59: 101.1298844 | Y59: 95.0468838
A60: =IF(COUNTRY_INFO!A60=0," ",COUNTRY_INFO!A60) -> Congo | B60: =IF(COUNTRY_INFO!B60=0," ",COUNTRY_INFO!B60) -> Sangha | C60: =IF(COUNTRY_INFO!C60=0," ",COUNTRY_INFO!C60) -> Sembé-Souanké | D60: =IF(COUNTRY_INFO!$U$9:$U$1000="MDA4 (ALB/2*ALB)", COUNTRY_INFO!$U$9:$U$1000, " ") -> MDA4 (ALB/2*ALB) | E60: 1 seul passage septembre | G60: 6741.6 | H60: 16854 | I60: 23595.6 | K60: 5227.92 | L60: 16555.08 | M60: 21783 | Q60: 0 | R60: 0 | S60: 5227.92 | T60: 16555.08 | U60: 21783 | W60: 77.54716981 | X60: 98.22641509 | Y60: 92.3180593

Sheet MDA3
A1: MDA 3 - Ivermectine (IVM)
A2: Structure administrative, population nécessitant une chimioprévention par groupe d'âge, population traitée par groupe d'âge et couverture
A4: TOTAL | F4: =SUM(F$9:F$1000) -> 136495.92 | G4: 341239.8 | H4: 477735.72 | I4: 110751.6 | J4: 350714.4 | K4: 461466 | L4: 0 | M4: 0 | N4: 0 | O4: 110751.6 | P4: 350714.4 | Q4: 461466 | R4: =IF(F4<>0, IF(O4/F4*100=0, "-", O4/F4*100), " ") -> 81.13912855 | S4: =IF(G4<>0, IF(P4/G4*100=0, "-", P4/G4*100), " ") -> 102.7765226 | T4: =IF(H4<>0, IF(Q4/H4*100=0, "-", Q4/H4*100), " ") -> 96.59440998
A6: Structure administrative du pays | D6: Mise en oeuvre de la CP | E6: Date | F6: Population ciblée pour MDA 3 | I6: Population traitée - tournée 1 | L6: Population traitée - tournée 2 | O6: Population traitée | R6: Couverture du Programme (%)
A7: Pays | B7: Région/Département | C7: District | F7: EAS | G7: Adultes | H7: Total | I7: EAS | J7: Adultes | K7: Total | L7: EAS | M7: Adultes | N7: Total | O7: EAS | P7: Adultes | Q7: Total | R7: EAS | S7: Adultes | T7: Total
A9: =IF(COUNTRY_INFO!A9=0," ",COUNTRY_INFO!A9) -> Congo | B9: =IF(COUNTRY_INFO!B9=0," ",COUNTRY_INFO!B9) -> Bouenza | C9: =IF(COUNTRY_INFO!C9=0," ",COUNTRY_INFO!C9) -> Loudima | D9: =IF(COUNTRY_INFO!$U$9:$U$1000="MDA3 (IVM)", COUNTRY_INFO!$U$9:$U$1000, " ") -> MDA3 (IVM) | E9: Aout à Nov | F9: 3888.96 | G9: 9722.4 | H9: =SUM(F9:G9) -> 13611.36 | I9: 3213.6 | J9: 10176.4 | K9: =SUM(I9:J9) -> 13390 | N9: =SUM(L9:M9) -> 0 | O9: =MAX(I9,L9) -> 3213.6 | P9: 10176.4 | Q9: =SUM(O9:P9) -> 13390 | R9: =IF(F9<>0, IF(MAX(I9,L9)/F9*100=0, "-", MAX(I9,L9)/F9*100), " ") -> 82.63391755 | S9: 104.6696289 | T9: =IF(H9<>0, IF((MAX(I9,L9)+MAX(J9,M9))/H9*100=0, "-",(MAX(I9,L9)+MAX(J9,M9))/H9*100), " ") -> 98.37371137
A10: =IF(COUNTRY_INFO!A10=0," ",COUNTRY_INFO!A10) -> Congo | B10: =IF(COUNTRY_INFO!B10=0," ",COUNTRY_INFO!B10) -> Bouenza | C10: =IF(COUNTRY_INFO!C10=0," ",COUNTRY_INFO!C10) -> Loutété | F10: 0 | G10: 0 | H10: =SUM(F10:G10) -> 0 | I10: 0 | J10: 0 | K10: =SUM(I10:J10) -> 0 | N10: =SUM(L10:M10) -> 0 | O10: =MAX(I10,L10) -> 0 | P10: =MAX(J10,M10) -> 0 | Q10: =SUM(O10:P10) -> 0 | R10: =IF(F10<>0, IF(MAX(I10,L10)/F10*100=0, "-", MAX(I10,L10)/F10*100), " ") ->  | S10: =IF(G10<>0, IF(MAX(J10,M10)/G10*100=0, "-", MAX(J10,M10)/G10*100), " ") ->  | T10: =IF(H10<>0, IF((MAX(I10,L10)+MAX(J10,M10))/H10*100=0, "-",(MAX(I10,L10)+MAX(J10,M10))/H10*100), " ") -> 
A11: =IF(COUNTRY_INFO!A11=0," ",COUNTRY_INFO!A11) -> Congo | B11: =IF(COUNTRY_INFO!B11=0," ",COUNTRY_INFO!B11) -> Bouenza | C11: =IF(COUNTRY_INFO!C11=0," ",COUNTRY_INFO!C11) -> Madingou | F11: 0 | G11: 0 | H11: 0 | I11: 0 | J11: 0 | K11: 0 | N11: 0 | O11: 0 | P11: 0 | Q11: 0
A12: =IF(COUNTRY_INFO!A12=0," ",COUNTRY_INFO!A12) -> Congo | B12: =IF(COUNTRY_INFO!B12=0," ",COUNTRY_INFO!B12) -> Bouenza | C12: =IF(COUNTRY_INFO!C12=0," ",COUNTRY_INFO!C12) -> Mouyondzi | F12: 0 | G12: 0 | H12: 0 | I12: 0 | J12: 0 | K12: 0 | N12: 0 | O12: 0 | P12: 0 | Q12: 0
A13: =IF(COUNTRY_INFO!A13=0," ",COUNTRY_INFO!A13) -> Congo | B13: =IF(COUNTRY_INFO!B13=0," ",COUNTRY_INFO!B13) -> Bouenza | C13: =IF(COUNTRY_INFO!C13=0," ",COUNTRY_INFO!C13) -> Nkayi | D13: =IF(COUNTRY_INFO!$U$9:$U$1000="MDA3 (IVM)", COUNTRY_INFO!$U$9:$U$1000, " ") -> MDA3 (IVM) | E13: Aout à Nov | F13: 9179.76 | G13: 22949.4 | H13: 32129.16 | I13: 7266.72 | J13: 23011.28 | K13: 30278 | N13: 0 | O13: 7266.72 | P13: 23011.28 | Q13: 30278 | R13: 79.16023948 | S13: 100.2696367 | T13: 94.23838034
A14: =IF(COUNTRY_INFO!A14=0," ",COUNTRY_INFO!A14) -> Congo | B14: =IF(COUNTRY_INFO!B14=0," ",COUNTRY_INFO!B14) -> Brazzaville | C14: =IF(COUNTRY_INFO!C14=0," ",COUNTRY_INFO!C14) -> Bacongo | D14: =IF(COUNTRY_INFO!$U$9:$U$1000="MDA3 (IVM)", COUNTRY_INFO!$U$9:$U$1000, " ") -> MDA3 (IVM) | E14: Aout à Nov | F14: 29358.24 | G14: 73395.6 | H14: 102753.84 | I14: 23922.48 | J14: 75754.52 | K14: 99677 | N14: 0 | O14: 23922.48 | P14: 75754.52 | Q14: 99677 | R14: 81.48472115 | S14: 103.2139801 | T14: 97.00562042
A15: =IF(COUNTRY_INFO!A15=0," ",COUNTRY_INFO!A15) -> Congo | B15: =IF(COUNTRY_INFO!B15=0," ",COUNTRY_INFO!B15) -> Brazzaville | C15: =IF(COUNTRY_INFO!C15=0," ",COUNTRY_INFO!C15) -> Djiri | D15: =IF(COUNTRY_INFO!$U$9:$U$1000="MDA3 (IVM)", COUNTRY_INFO!$U$9:$U$1000, " ") ->  | F15: 0 | G15: 0 | H15: 0 | I15: 0 | J15: 0 | K15: 0 | N15: 0 | O15: 0 | P15: 0 | Q15: 0
A16: =IF(COUNTRY_INFO!A16=0," ",COUNTRY_INFO!A16) -> Congo | B16: =IF(COUNTRY_INFO!B16=0," ",COUNTRY_INFO!B16) -> Brazzaville | C16: =IF(COUNTRY_INFO!C16=0," ",COUNTRY_INFO!C16) -> Île Mbamou | D16: =IF(COUNTRY_INFO!$U$9:$U$1000="MDA3 (IVM)", COUNTRY_INFO!$U$9:$U$1000, " ") ->  | F16: 0 | G16: 0 | H16: 0 | I16: 0 | J16: 0 | K16: 0 | N16: 0 | O16: 0 | P16: 0 | Q16: 0
A17: =IF(COUNTRY_INFO!A17=0," ",COUNTRY_INFO!A17) -> Congo | B17: =IF(COUNTRY_INFO!B17=0," ",COUNTRY_INFO!B17) -> Brazzaville | C17: =IF(COUNTRY_INFO!C17=0," ",COUNTRY_INFO!C17) -> Madibou | D17: =IF(COUNTRY_INFO!$U$9:$U$1000="MDA3 (IVM)", COUNTRY_INFO!$U$9:$U$1000, " ") -> MDA3 (IVM) | E17: Aout à Nov | F17: 23270.64 | G17: 58176.6 | H17: 81447.24 | I17: 18555.36 | J17: 58758.64 | K17: 77314 | N17: 0 | O17: 18555.36 | P17: 58758.64 | Q17: 77314 | R17: 79.73721393 | S17: 101.000471 | T17: 94.92525468
A18: =IF(COUNTRY_INFO!A18=0," ",COUNTRY_INFO!A18) -> Congo | B18: =IF(COUNTRY_INFO!B18=0," ",COUNTRY_INFO!B18) -> Brazzaville | C18: =IF(COUNTRY_INFO!C18=0," ",COUNTRY_INFO!C18) -> Makélékélé | D18: =IF(COUNTRY_INFO!$U$9:$U$1000="MDA3 (IVM)", COUNTRY_INFO!$U$9:$U$1000, " ") -> MDA3 (IVM) | E18: Aout à Nov | F18: 22590.72 | G18: 56476.8 | H18: 79067.52 | I18: 18822.72 | J18: 59605.28 | K18: 78428 | N18: 0 | O18: 18822.72 | P18: 59605.28 | Q18: 78428 | R18: 83.32058474 | S18: 105.5394073 | T18: 99.1911723
A19: =IF(COUNTRY_INFO!A19=0," ",COUNTRY_INFO!A19) -> Congo | B19: =IF(COUNTRY_INFO!B19=0," ",COUNTRY_INFO!B19) -> Brazzaville | C19: =IF(COUNTRY_INFO!C19=0," ",COUNTRY_INFO!C19) -> Mfilou | D19: =IF(COUNTRY_INFO!$U$9:$U$1000="MDA3 (IVM)", COUNTRY_INFO!$U$9:$U$1000, " ") -> MDA3 (IVM) | E19: Aout à Nov | F19: 20904 | G19: 52260 | H19: 73164 | I19: 17217.36 | J19: 54521.64 | K19: 71739 | N19: 0 | O19: 17217.36 | P19: 54521.64 | Q19: 71739 | R19: 82.36394948 | S19: 104.3276693 | T19: 98.05232081
A20: =IF(COUNTRY_INFO!A20=0," ",COUNTRY_INFO!A20) -> Congo | B20: =IF(COUNTRY_INFO!B20=0," ",COUNTRY_INFO!B20) -> Brazzaville | C20: =IF(COUNTRY_INFO!C20=0," ",COUNTRY_INFO!C20) -> Moungali | D20: =IF(COUNTRY_INFO!$U$9:$U$1000="MDA3 (IVM)", COUNTRY_INFO!$U$9:$U$1000, " ") ->  | F20: 0 | G20: 0 | H20: 0 | I20: 0 | J20: 0 | K20: 0 | N20: 0 | O20: 0 | P20: 0 | Q20: 0
A21: =IF(COUNTRY_INFO!A21=0," ",COUNTRY_INFO!A21) -> Congo | B21: =IF(COUNTRY_INFO!B21=0," ",COUNTRY_INFO!B21) -> Brazzaville | C21: =IF(COUNTRY_INFO!C21=0," ",COUNTRY_INFO!C21) -> Ouenzé | D21: =IF(COUNTRY_INFO!$U$9:$U$1000="MDA3 (IVM)", COUNTRY_INFO!$U$9:$U$1000, " ") ->  | F21: 0 | G21: 0 | H21: 0 | I21: 0 | J21: 0 | K21: 0 | N21: 0 | O21: 0 | P21: 0 | Q21: 0
A22: =IF(COUNTRY_INFO!A22=0," ",COUNTRY_INFO!A22) -> Congo | B22: =IF(COUNTRY_INFO!B22=0," ",COUNTRY_INFO!B22) -> Brazzaville | C22: =IF(COUNTRY_INFO!C22=0," ",COUNTRY_INFO!C22) -> Poto-Poto | D22: =IF(COUNTRY_INFO!$U$9:$U$1000="MDA3 (IVM)", COUNTRY_INFO!$U$9:$U$1000, " ") ->  | F22: 0 | G22: 0 | H22: 0 | I22: 0 | J22: 0 | K22: 0 | N22: 0 | O22: 0 | P22: 0 | Q22: 0
A23: =IF(COUNTRY_INFO!A23=0," ",COUNTRY_INFO!A23) -> Congo | B23: =IF(COUNTRY_INFO!B23=0," ",COUNTRY_INFO!B23) -> Brazzaville | C23: =IF(COUNTRY_INFO!C23=0," ",COUNTRY_INFO!C23) -> Talangaî | D23: =IF(COUNTRY_INFO!$U$9:$U$1000="MDA3 (IVM)", COUNTRY_INFO!$U$9:$U$1000, " ") ->  | F23: 0 | G23: 0 | H23: 0 | I23: 0 | J23: 0 | K23: 0 | N23: 0 | O23: 0 | P23: 0 | Q23: 0
A24: =IF(COUNTRY_INFO!A24=0," ",COUNTRY_INFO!A24) -> Congo | B24: =IF(COUNTRY_INFO!B24=0," ",COUNTRY_INFO!B24) -> Cuvette | C24: =IF(COUNTRY_INFO!C24=0," ",COUNTRY_INFO!C24) -> Mossaka | D24: =IF(COUNTRY_INFO!$U$9:$U$1000="MDA3 (IVM)", COUNTRY_INFO!$U$9:$U$1000, " ") ->  | F24: 0 | G24: 0 | H24: 0 | I24: 0 | J24: 0 | K24: 0 | N24: 0 | O24: 0 | P24: 0 | Q24: 0
A25: =IF(COUNTRY_INFO!A25=0," ",COUNTRY_INFO!A25) -> Congo | B25: =IF(COUNTRY_INFO!B25=0," ",COUNTRY_INFO!B25) -> Cuvette | C25: =IF(COUNTRY_INFO!C25=0," ",COUNTRY_INFO!C25) -> Owando | D25: =IF(COUNTRY_INFO!$U$9:$U$1000="MDA3 (IVM)", COUNTRY_INFO!$U$9:$U$1000, " ") ->  | F25: 0 | G25: 0 | H25: 0 | I25: 0 | J25: 0 | K25: 0 | N25: 0 | O25: 0 | P25: 0 | Q25: 0
A26: =IF(COUNTRY_INFO!A26=0," ",COUNTRY_INFO!A26) -> Congo | B26: =IF(COUNTRY_INFO!B26=0," ",COUNTRY_INFO!B26) -> Cuvette | C26: =IF(COUNTRY_INFO!C26=0," ",COUNTRY_INFO!C26) -> Oyo-Alima | D26: =IF(COUNTRY_INFO!$U$9:$U$1000="MDA3 (IVM)", COUNTRY_INFO!$U$9:$U$1000, " ") ->  | F26: 0 | G26: 0 | H26: 0 | I26: 0 | J26: 0 | K26: 0 | N26: 0 | O26: 0 | P26: 0 | Q26: 0
A27: =IF(COUNTRY_INFO!A27=0," ",COUNTRY_INFO!A27) -> Congo | B27: =IF(COUNTRY_INFO!B27=0," ",COUNTRY_INFO!B27) -> Cuvette-Ouest | C27: =IF(COUNTRY_INFO!C27=0," ",COUNTRY_INFO!C27) -> Etoumbi | D27: =IF(COUNTRY_INFO!$U$9:$U$1000="MDA3 (IVM)", COUNTRY_INFO!$U$9:$U$1000, " ") ->  | F27: 0 | G27: 0 | H27: 0 | I27: 0 | J27: 0 | K27: 0 | N27: 0 | O27: 0 | P27: 0 | Q27: 0
A28: =IF(COUNTRY_INFO!A28=0," ",COUNTRY_INFO!A28) -> Congo | B28: =IF(COUNTRY_INFO!B28=0," ",COUNTRY_INFO!B28) -> Cuvette-Ouest | C28: =IF(COUNTRY_INFO!C28=0," ",COUNTRY_INFO!C28) -> Ewo | D28: =IF(COUNTRY_INFO!$U$9:$U$1000="MDA3 (IVM)", COUNTRY_INFO!$U$9:$U$1000, " ") ->  | F28: 0 | G28: 0 | H28: 0 | I28: 0 | J28: 0 | K28: 0 | N28: 0 | O28: 0 | P28: 0 | Q28: 0
A29: =IF(COUNTRY_INFO!A29=0," ",COUNTRY_INFO!A29) -> Congo | B29: =IF(COUNTRY_INFO!B29=0," ",COUNTRY_INFO!B29) -> Kouilou | C29: =IF(COUNTRY_INFO!C29=0," ",COUNTRY_INFO!C29) -> Hinda-Loango | D29: =IF(COUNTRY_INFO!$U$9:$U$1000="MDA3 (IVM)", COUNTRY_INFO!$U$9:$U$1000, " ") ->  | F29: 0 | G29: 0 | H29: 0 | I29: 0 | J29: 0 | K29: 0 | N29: 0 | O29: 0 | P29: 0 | Q29: 0
A30: =IF(COUNTRY_INFO!A30=0," ",COUNTRY_INFO!A30) -> Congo | B30: =IF(COUNTRY_INFO!B30=0," ",COUNTRY_INFO!B30) -> Kouilou | C30: =IF(COUNTRY_INFO!C30=0," ",COUNTRY_INFO!C30) -> Madingo Kayes-Nzambi | D30: =IF(COUNTRY_INFO!$U$9:$U$1000="MDA3 (IVM)", COUNTRY_INFO!$U$9:$U$1000, " ") ->  | H30: 0 | K30: 0 | N30: 0 | O30: 0 | P30: 0 | Q30: 0
A31: =IF(COUNTRY_INFO!A31=0," ",COUNTRY_INFO!A31) -> Congo | B31: =IF(COUNTRY_INFO!B31=0," ",COUNTRY_INFO!B31) -> Kouilou | C31: =IF(COUNTRY_INFO!C31=0," ",COUNTRY_INFO!C31) -> Mvouti-Kakamouéka | D31: =IF(COUNTRY_INFO!$U$9:$U$1000="MDA3 (IVM)", COUNTRY_INFO!$U$9:$U$1000, " ") -> MDA3 (IVM) | E31: Aout à Nov | F31: 219.12 | G31: 547.8 | H31: 766.92 | I31: 192 | J31: 609 | K31: 801 | N31: 0 | O31: 192 | P31: 609 | Q31: 801 | R31: 87.62322015 | S31: 111.1719606 | T31: 104.443749
A32: =IF(COUNTRY_INFO!A32=0," ",COUNTRY_INFO!A32) -> Congo | B32: =IF(COUNTRY_INFO!B32=0," ",COUNTRY_INFO!B32) -> Lékoumou | C32: =IF(COUNTRY_INFO!C32=0," ",COUNTRY_INFO!C32) -> Sibiti | D32: =IF(COUNTRY_INFO!$U$9:$U$1000="MDA3 (IVM)", COUNTRY_INFO!$U$9:$U$1000, " ") -> MDA3 (IVM) | E32: Aout à Nov | F32: 172.8 | G32: 432 | H32: 604.8 | I32: 146.4 | J32: 463.6 | K32: 610 | N32: 0 | O32: 146.4 | P32: 463.6 | Q32: 610 | R32: 84.72222222 | S32: 107.3148148 | T32: 100.8597884
A33: =IF(COUNTRY_INFO!A33=0," ",COUNTRY_INFO!A33) -> Congo | B33: =IF(COUNTRY_INFO!B33=0," ",COUNTRY_INFO!B33) -> Lékoumou | C33: =IF(COUNTRY_INFO!C33=0," ",COUNTRY_INFO!C33) -> Zanaga | D33: =IF(COUNTRY_INFO!$U$9:$U$1000="MDA3 (IVM)", COUNTRY_INFO!$U$9:$U$1000, " ") ->  | F33: 0 | G33: 0 | H33: 0 | I33: 0 | J33: 0 | K33: 0 | N33: 0 | O33: 0 | P33: 0 | Q33: 0
A34: =IF(COUNTRY_INFO!A34=0," ",COUNTRY_INFO!A34) -> Congo | B34: =IF(COUNTRY_INFO!B34=0," ",COUNTRY_INFO!B34) -> Likouala | C34: =IF(COUNTRY_INFO!C34=0," ",COUNTRY_INFO!C34) -> Bétou | D34: =IF(COUNTRY_INFO!$U$9:$U$1000="MDA3 (IVM)", COUNTRY_INFO!$U$9:$U$1000, " ") ->  | F34: 0 | G34: 0 | H34: 0 | I34: 0 | J34: 0 | K34: 0 | N34: 0 | O34: 0 | P34: 0 | Q34: 0
A35: =IF(COUNTRY_INFO!A35=0," ",COUNTRY_INFO!A35) -> Congo | B35: =IF(COUNTRY_INFO!B35=0," ",COUNTRY_INFO!B35) -> Likouala | C35: =IF(COUNTRY_INFO!C35=0," ",COUNTRY_INFO!C35) -> Impfondo | D35: =IF(COUNTRY_INFO!$U$9:$U$1000="MDA3 (IVM)", COUNTRY_INFO!$U$9:$U$1000, " ") ->  | F35: 0 | G35: 0 | H35: 0 | I35: 0 | J35: 0 | K35: 0 | N35: 0 | O35: 0 | P35: 0 | Q35: 0
A36: =IF(COUNTRY_INFO!A36=0," ",COUNTRY_INFO!A36) -> Congo | B36: =IF(COUNTRY_INFO!B36=0," ",COUNTRY_INFO!B36) -> Niari | C36: =IF(COUNTRY_INFO!C36=0," ",COUNTRY_INFO!C36) -> Dolisie | D36: =IF(COUNTRY_INFO!$U$9:$U$1000="MDA3 (IVM)", COUNTRY_INFO!$U$9:$U$1000, " ") ->  | F36: 0 | G36: 0 | H36: 0 | I36: 0 | J36: 0 | K36: 0 | N36: 0 | O36: 0 | P36: 0 | Q36: 0
A37: =IF(COUNTRY_INFO!A37=0," ",COUNTRY_INFO!A37) -> Congo | B37: =IF(COUNTRY_INFO!B37=0," ",COUNTRY_INFO!B37) -> Niari | C37: =IF(COUNTRY_INFO!C37=0," ",COUNTRY_INFO!C37) -> Kibangou | D37: =IF(COUNTRY_INFO!$U$9:$U$1000="MDA3 (IVM)", COUNTRY_INFO!$U$9:$U$1000, " ") ->  | F37: 0 | G37: 0 | H37: 0 | I37: 0 | J37: 0 | K37: 0 | N37: 0 | O37: 0 | P37: 0 | Q37: 0
A38: =IF(COUNTRY_INFO!A38=0," ",COUNTRY_INFO!A38) -> Congo | B38: =IF(COUNTRY_INFO!B38=0," ",COUNTRY_INFO!B38) -> Niari | C38: =IF(COUNTRY_INFO!C38=0," ",COUNTRY_INFO!C38) -> Kimongo-Londela Nkayes | D38: =IF(COUNTRY_INFO!$U$9:$U$1000="MDA3 (IVM)", COUNTRY_INFO!$U$9:$U$1000, " ") ->  | F38: 0 | G38: 0 | H38: 0 | I38: 0 | J38: 0 | K38: 0 | N38: 0 | O38: 0 | P38: 0 | Q38: 0
A39: =IF(COUNTRY_INFO!A39=0," ",COUNTRY_INFO!A39) -> Congo | B39: =IF(COUNTRY_INFO!B39=0," ",COUNTRY_INFO!B39) -> Niari | C39: =IF(COUNTRY_INFO!C39=0," ",COUNTRY_INFO!C39) -> Mayoko | D39: =IF(COUNTRY_INFO!$U$9:$U$1000="MDA3 (IVM)", COUNTRY_INFO!$U$9:$U$1000, " ") ->  | F39: 0 | G39: 0 | H39: 0 | I39: 0 | J39: 0 | K39: 0 | N39: 0 | O39: 0 | P39: 0 | Q39: 0
A40: =IF(COUNTRY_INFO!A40=0," ",COUNTRY_INFO!A40) -> Congo | B40: =IF(COUNTRY_INFO!B40=0," ",COUNTRY_INFO!B40) -> Niari | C40: =IF(COUNTRY_INFO!C40=0," ",COUNTRY_INFO!C40) -> Mossendjo | D40: =IF(COUNTRY_INFO!$U$9:$U$1000="MDA3 (IVM)", COUNTRY_INFO!$U$9:$U$1000, " ") ->  | F40: 0 | G40: 0 | H40: 0 | I40: 0 | J40: 0 | K40: 0 | N40: 0 | O40: 0 | P40: 0 | Q40: 0
A41: =IF(COUNTRY_INFO!A41=0," ",COUNTRY_INFO!A41) -> Congo | B41: =IF(COUNTRY_INFO!B41=0," ",COUNTRY_INFO!B41) -> Plateaux | C41: =IF(COUNTRY_INFO!C41=0," ",COUNTRY_INFO!C41) -> Abala | D41: =IF(COUNTRY_INFO!$U$9:$U$1000="MDA3 (IVM)", COUNTRY_INFO!$U$9:$U$1000, " ") ->  | F41: 0 | G41: 0 | H41: 0 | I41: 0 | J41: 0 | K41: 0 | N41: 0 | O41: 0 | P41: 0 | Q41: 0
A42: =IF(COUNTRY_INFO!A42=0," ",COUNTRY_INFO!A42) -> Congo | B42: =IF(COUNTRY_INFO!B42=0," ",COUNTRY_INFO!B42) -> Plateaux | C42: =IF(COUNTRY_INFO!C42=0," ",COUNTRY_INFO!C42) -> Djambala-Lékana | D42: =IF(COUNTRY_INFO!$U$9:$U$1000="MDA3 (IVM)", COUNTRY_INFO!$U$9:$U$1000, " ") ->  | F42: 0 | G42: 0 | H42: 0 | I42: 0 | J42: 0 | K42: 0 | N42: 0 | O42: 0 | P42: 0 | Q42: 0
A43: =IF(COUNTRY_INFO!A43=0," ",COUNTRY_INFO!A43) -> Congo | B43: =IF(COUNTRY_INFO!B43=0," ",COUNTRY_INFO!B43) -> Plateaux | C43: =IF(COUNTRY_INFO!C43=0," ",COUNTRY_INFO!C43) -> Gamboma | D43: =IF(COUNTRY_INFO!$U$9:$U$1000="MDA3 (IVM)", COUNTRY_INFO!$U$9:$U$1000, " ") ->  | F43: 0 | G43: 0 | H43: 0 | I43: 0 | J43: 0 | K43: 0 | N43: 0 | O43: 0 | P43: 0 | Q43: 0
A44: =IF(COUNTRY_INFO!A44=0," ",COUNTRY_INFO!A44) -> Congo | B44: =IF(COUNTRY_INFO!B44=0," ",COUNTRY_INFO!B44) -> Plateaux | C44: =IF(COUNTRY_INFO!C44=0," ",COUNTRY_INFO!C44) -> Ngo Mpouya | D44: =IF(COUNTRY_INFO!$U$9:$U$1000="MDA3 (IVM)", COUNTRY_INFO!$U$9:$U$1000, " ") ->  | F44: 0 | G44: 0 | H44: 0 | I44: 0 | J44: 0 | K44: 0 | N44: 0 | O44: 0 | P44: 0 | Q44: 0
A45: =IF(COUNTRY_INFO!A45=0," ",COUNTRY_INFO!A45) -> Congo | B45: =IF(COUNTRY_INFO!B45=0," ",COUNTRY_INFO!B45) -> Pointe-Noire | C45: =IF(COUNTRY_INFO!C45=0," ",COUNTRY_INFO!C45) -> Loandjili | D45: =IF(COUNTRY_INFO!$U$9:$U$1000="MDA3 (IVM)", COUNTRY_INFO!$U$9:$U$1000, " ") ->  | F45: 0 | G45: 0 | H45: 0 | I45: 0 | J45: 0 | K45: 0 | N45: 0 | O45: 0 | P45: 0 | Q45: 0
A46: =IF(COUNTRY_INFO!A46=0," ",COUNTRY_INFO!A46) -> Congo | B46: =IF(COUNTRY_INFO!B46=0," ",COUNTRY_INFO!B46) -> Pointe-Noire | C46: =IF(COUNTRY_INFO!C46=0," ",COUNTRY_INFO!C46) -> Lumumba | D46: =IF(COUNTRY_INFO!$U$9:$U$1000="MDA3 (IVM)", COUNTRY_INFO!$U$9:$U$1000, " ") ->  | F46: 0 | G46: 0 | H46: 0 | I46: 0 | J46: 0 | K46: 0 | N46: 0 | O46: 0 | P46: 0 | Q46: 0
A47: =IF(COUNTRY_INFO!A47=0," ",COUNTRY_INFO!A47) -> Congo | B47: =IF(COUNTRY_INFO!B47=0," ",COUNTRY_INFO!B47) -> Pointe-Noire | C47: =IF(COUNTRY_INFO!C47=0," ",COUNTRY_INFO!C47) -> Mongo-Poukou | D47: =IF(COUNTRY_INFO!$U$9:$U$1000="MDA3 (IVM)", COUNTRY_INFO!$U$9:$U$1000, " ") ->  | F47: 0 | G47: 0 | H47: 0 | I47: 0 | J47: 0 | K47: 0 | N47: 0 | O47: 0 | P47: 0 | Q47: 0
A48: =IF(COUNTRY_INFO!A48=0," ",COUNTRY_INFO!A48) -> Congo | B48: =IF(COUNTRY_INFO!B48=0," ",COUNTRY_INFO!B48) -> Pointe-Noire | C48: =IF(COUNTRY_INFO!C48=0," ",COUNTRY_INFO!C48) -> Mvoumvou | D48: =IF(COUNTRY_INFO!$U$9:$U$1000="MDA3 (IVM)", COUNTRY_INFO!$U$9:$U$1000, " ") ->  | F48: 0 | G48: 0 | H48: 0 | I48: 0 | J48: 0 | K48: 0 | N48: 0 | O48: 0 | P48: 0 | Q48: 0
A49: =IF(COUNTRY_INFO!A49=0," ",COUNTRY_INFO!A49) -> Congo | B49: =IF(COUNTRY_INFO!B49=0," ",COUNTRY_INFO!B49) -> Pointe-Noire | C49: =IF(COUNTRY_INFO!C49=0," ",COUNTRY_INFO!C49) -> Ngoyo | D49: =IF(COUNTRY_INFO!$U$9:$U$1000="MDA3 (IVM)", COUNTRY_INFO!$U$9:$U$1000, " ") ->  | F49: 0 | G49: 0 | H49: 0 | I49: 0 | J49: 0 | K49: 0 | N49: 0 | O49: 0 | P49: 0 | Q49: 0
A50: =IF(COUNTRY_INFO!A50=0," ",COUNTRY_INFO!A50) -> Congo | B50: =IF(COUNTRY_INFO!B50=0," ",COUNTRY_INFO!B50) -> Pointe-Noire | C50: =IF(COUNTRY_INFO!C50=0," ",COUNTRY_INFO!C50) -> Tchiamba Nzassi | D50: =IF(COUNTRY_INFO!$U$9:$U$1000="MDA3 (IVM)", COUNTRY_INFO!$U$9:$U$1000, " ") ->  | F50: 0 | G50: 0 | H50: 0 | I50: 0 | J50: 0 | K50: 0 | N50: 0 | O50: 0 | P50: 0 | Q50: 0
A51: =IF(COUNTRY_INFO!A51=0," ",COUNTRY_INFO!A51) -> Congo | B51: =IF(COUNTRY_INFO!B51=0," ",COUNTRY_INFO!B51) -> Pointe-Noire | C51: =IF(COUNTRY_INFO!C51=0," ",COUNTRY_INFO!C51) -> Tie-Tie | D51: =IF(COUNTRY_INFO!$U$9:$U$1000="MDA3 (IVM)", COUNTRY_INFO!$U$9:$U$1000, " ") ->  | F51: 0 | G51: 0 | H51: 0 | I51: 0 | J51: 0 | K51: 0 | N51: 0 | O51: 0 | P51: 0 | Q51: 0
A52: =IF(COUNTRY_INFO!A52=0," ",COUNTRY_INFO!A52) -> Congo | B52: =IF(COUNTRY_INFO!B52=0," ",COUNTRY_INFO!B52) -> Pool | C52: =IF(COUNTRY_INFO!C52=0," ",COUNTRY_INFO!C52) -> Boko | D52: =IF(COUNTRY_INFO!$U$9:$U$1000="MDA3 (IVM)", COUNTRY_INFO!$U$9:$U$1000, " ") -> MDA3 (IVM) | E52: Aout à Nov | F52: 4278.72 | G52: 10696.8 | H52: 14975.52 | I52: 3679.2 | J52: 11650.8 | K52: 15330 | N52: 0 | O52: 3679.2 | P52: 11650.8 | Q52: 15330 | R52: 85.98833296 | S52: 108.9185551 | T52: 102.367063
A53: =IF(COUNTRY_INFO!A53=0," ",COUNTRY_INFO!A53) -> Congo | B53: =IF(COUNTRY_INFO!B53=0," ",COUNTRY_INFO!B53) -> Pool | C53: =IF(COUNTRY_INFO!C53=0," ",COUNTRY_INFO!C53) -> Goma tsétsé | D53: =IF(COUNTRY_INFO!$U$9:$U$1000="MDA3 (IVM)", COUNTRY_INFO!$U$9:$U$1000, " ") -> MDA3 (IVM) | E53: Aout à Nov | F53: 6786.24 | G53: 16965.6 | H53: 23751.84 | I53: 5001.6 | J53: 15838.4 | K53: 20840 | N53: 0 | O53: 5001.6 | P53: 15838.4 | Q53: 20840 | R53: 73.7020795 | S53: 93.35596737 | T53: 87.74057084
A54: =IF(COUNTRY_INFO!A54=0," ",COUNTRY_INFO!A54) -> Congo | B54: =IF(COUNTRY_INFO!B54=0," ",COUNTRY_INFO!B54) -> Pool | C54: =IF(COUNTRY_INFO!C54=0," ",COUNTRY_INFO!C54) -> Ignié | D54: =IF(COUNTRY_INFO!$U$9:$U$1000="MDA3 (IVM)", COUNTRY_INFO!$U$9:$U$1000, " ") ->  | F54: 0 | G54: 0 | H54: 0 | I54: 0 | J54: 0 | K54: 0 | N54: 0 | O54: 0 | P54: 0 | Q54: 0
A55: =IF(COUNTRY_INFO!A55=0," ",COUNTRY_INFO!A55) -> Congo | B55: =IF(COUNTRY_INFO!B55=0," ",COUNTRY_INFO!B55) -> Pool | C55: =IF(COUNTRY_INFO!C55=0," ",COUNTRY_INFO!C55) -> Kindamba | D55: =IF(COUNTRY_INFO!$U$9:$U$1000="MDA3 (IVM)", COUNTRY_INFO!$U$9:$U$1000, " ") -> MDA3 (IVM) | E55: Aout à Nov | F55: 1335.84 | G55: 3339.6 | H55: 4675.44 | I55: 1178.4 | J55: 3731.6 | K55: 4910 | N55: 0 | O55: 1178.4 | P55: 3731.6 | Q55: 4910 | R55: 88.21415738 | S55: 111.7379327 | T55: 105.016854
A56: =IF(COUNTRY_INFO!A56=0," ",COUNTRY_INFO!A56) -> Congo | B56: =IF(COUNTRY_INFO!B56=0," ",COUNTRY_INFO!B56) -> Pool | C56: =IF(COUNTRY_INFO!C56=0," ",COUNTRY_INFO!C56) -> Kinkala | D56: =IF(COUNTRY_INFO!$U$9:$U$1000="MDA3 (IVM)", COUNTRY_INFO!$U$9:$U$1000, " ") -> MDA3 (IVM) | E56: Aout à Nov | F56: 4325.52 | G56: 10813.8 | H56: 15139.32 | I56: 3322.32 | J56: 10520.68 | K56: 13843 | N56: 0 | O56: 3322.32 | P56: 10520.68 | Q56: 13843 | R56: 76.80741275 | S56: 97.28938948 | T56: 91.43739613
A57: =IF(COUNTRY_INFO!A57=0," ",COUNTRY_INFO!A57) -> Congo | B57: =IF(COUNTRY_INFO!B57=0," ",COUNTRY_INFO!B57) -> Pool | C57: =IF(COUNTRY_INFO!C57=0," ",COUNTRY_INFO!C57) -> Kintélé | D57: =IF(COUNTRY_INFO!$U$9:$U$1000="MDA3 (IVM)", COUNTRY_INFO!$U$9:$U$1000, " ") ->  | F57: 0 | G57: 0 | H57: 0 | I57: 0 | J57: 0 | K57: 0 | N57: 0 | O57: 0 | P57: 0 | Q57: 0
A58: =IF(COUNTRY_INFO!A58=0," ",COUNTRY_INFO!A58) -> Congo | B58: =IF(COUNTRY_INFO!B58=0," ",COUNTRY_INFO!B58) -> Pool | C58: =IF(COUNTRY_INFO!C58=0," ",COUNTRY_INFO!C58) -> Mindouli | D58: =IF(COUNTRY_INFO!$U$9:$U$1000="MDA3 (IVM)", COUNTRY_INFO!$U$9:$U$1000, " ") -> MDA3 (IVM) | E58: Aout à Nov | F58: 10185.36 | G58: 25463.4 | H58: 35648.76 | I58: 8233.44 | J58: 26072.56 | K58: 34306 | N58: 0 | O58: 8233.44 | P58: 26072.56 | Q58: 34306 | R58: 80.83602347 | S58: 102.3922964 | T58: 96.23336127
A59: =IF(COUNTRY_INFO!A59=0," ",COUNTRY_INFO!A59) -> Congo | B59: =IF(COUNTRY_INFO!B59=0," ",COUNTRY_INFO!B59) -> Sangha | C59: =IF(COUNTRY_INFO!C59=0," ",COUNTRY_INFO!C59) -> Ouesso | D59: =IF(COUNTRY_INFO!$U$9:$U$1000="MDA3 (IVM)", COUNTRY_INFO!$U$9:$U$1000, " ") ->  | F59: 0 | G59: 0 | H59: 0 | I59: 0 | J59: 0 | K59: 0 | N59: 0 | O59: 0 | P59: 0 | Q59: 0
A60: =IF(COUNTRY_INFO!A60=0," ",COUNTRY_INFO!A60) -> Congo | B60: =IF(COUNTRY_INFO!B60=0," ",COUNTRY_INFO!B60) -> Sangha | C60: =IF(COUNTRY_INFO!C60=0," ",COUNTRY_INFO!C60) -> Sembé-Souanké | D60: =IF(COUNTRY_INFO!$U$9:$U$1000="MDA3 (IVM)", COUNTRY_INFO!$U$9:$U$1000, " ") ->  | F60: 0 | G60: 0 | H60: 0 | I60: 0 | J60: 0 | K60: 0 | N60: 0 | O60: 0 | P60: 0 | Q60: 0

Sheet T1
A1: T 1 - Praziquantel (PZQ) et Albendazole (ALB) ou Mebendazole (MBD)
A2: Structure administrative, population nécessitant une chimioprévention par groupe d'âge, population traitée par groupe d'âge et couverture
A4: TOTAL | G4: =SUM(G$9:G$1000) -> 0 | H4: 0 | I4: 0 | J4: 0 | K4: =SUM(K$9:K$1000) -> 0 | L4: 0 | M4: 0 | N4: 0 | O4: 0 | P4: =IF(G4<>0, IF(L4/G4*100=0, "-", L4/G4*100), " ") ->  | Q4: =IF(OR(I4<>0,H4<>0), IF(M4/MAX(H4,I4)*100=0, "-", M4/MAX(H4,I4)*100), " ") ->  | R4: =IF(J4<>0, IF(N4/J4*100=0, "-", N4/J4*100), " ") ->  | S4: =IF(K4<>0, IF(O4/K4*100=0, "-", O4/K4*100), " ") -> 
A6: Structure administrative du pays | D6: Mise en oeuvre de la CP | E6: Médica-ment | F6: Date | G6: Population ciblée pour T1 | L6: Population traitée | P6: Couverture du Programme (%)
A7: Pays | B7: Région/Département | C7: District | G7: EAPréS (ALB) | H7: EAS (ALB) | I7: EAS (PZQ) | J7: Adultes (PZQ) | K7: Total | L7: EAPréS | M7: EAS | N7: Adultes | O7: Total | P7: EAPréS | Q7: EAS | R7: Adultes | S7: Total
A9: =IF(COUNTRY_INFO!A9=0," ",COUNTRY_INFO!A9) -> Congo | B9: =IF(COUNTRY_INFO!B9=0," ",COUNTRY_INFO!B9) -> Bouenza | C9: =IF(COUNTRY_INFO!C9=0," ",COUNTRY_INFO!C9) -> Loudima | D9: =IF(OR(COUNTRY_INFO!$U$9:$U$1000="T1 (PZQ+ALB/MBD)",COUNTRY_INFO!$V$9:$V$1000="T1 (PZQ+ALB/MBD)"), "T1 (PZQ+ALB/MBD)", " ") ->  | K9: =MAX(H9:I9)+G9+J9 -> 0 | O9: =SUM(L9:N9) -> 0 | P9: =IF(G9<>0, IF(L9/G9*100=0, "-", L9/G9*100), " ") ->  | Q9: =IF(OR(I9<>0,H9<>0), IF(M9/MAX(H9,I9)*100=0, "-", M9/MAX(H9,I9)*100), " ") ->  | R9: =IF(J9<>0, IF(N9/J9*100=0, "-", N9/J9*100), " ") -> 
A10: =IF(COUNTRY_INFO!A10=0," ",COUNTRY_INFO!A10) -> Congo | B10: =IF(COUNTRY_INFO!B10=0," ",COUNTRY_INFO!B10) -> Bouenza | C10: =IF(COUNTRY_INFO!C10=0," ",COUNTRY_INFO!C10) -> Loutété | D10: =IF(OR(COUNTRY_INFO!$U$9:$U$1000="T1 (PZQ+ALB/MBD)",COUNTRY_INFO!$V$9:$V$1000="T1 (PZQ+ALB/MBD)"), "T1 (PZQ+ALB/MBD)", " ") ->  | K10: 0 | O10: =SUM(L10:N10) -> 0 | P10: =IF(G10<>0, IF(L10/G10*100=0, "-", L10/G10*100), " ") ->  | R10: =IF(J10<>0, IF(N10/J10*100=0, "-", N10/J10*100), " ") ->  | S10: =IF(K10<>0, IF(O10/K10*100=0, "-", O10/K10*100), " ") -> 
A11: =IF(COUNTRY_INFO!A11=0," ",COUNTRY_INFO!A11) -> Congo | B11: =IF(COUNTRY_INFO!B11=0," ",COUNTRY_INFO!B11) -> Bouenza | C11: =IF(COUNTRY_INFO!C11=0," ",COUNTRY_INFO!C11) -> Madingou | D11: =IF(OR(COUNTRY_INFO!$U$9:$U$1000="T1 (PZQ+ALB/MBD)",COUNTRY_INFO!$V$9:$V$1000="T1 (PZQ+ALB/MBD)"), "T1 (PZQ+ALB/MBD)", " ") ->  | K11: 0 | O11: 0
A12: =IF(COUNTRY_INFO!A12=0," ",COUNTRY_INFO!A12) -> Congo | B12: =IF(COUNTRY_INFO!B12=0," ",COUNTRY_INFO!B12) -> Bouenza | C12: =IF(COUNTRY_INFO!C12=0," ",COUNTRY_INFO!C12) -> Mouyondzi | D12: =IF(OR(COUNTRY_INFO!$U$9:$U$1000="T1 (PZQ+ALB/MBD)",COUNTRY_INFO!$V$9:$V$1000="T1 (PZQ+ALB/MBD)"), "T1 (PZQ+ALB/MBD)", " ") ->  | K12: 0 | O12: 0
A13: =IF(COUNTRY_INFO!A13=0," ",COUNTRY_INFO!A13) -> Congo | B13: =IF(COUNTRY_INFO!B13=0," ",COUNTRY_INFO!B13) -> Bouenza | C13: =IF(COUNTRY_INFO!C13=0," ",COUNTRY_INFO!C13) -> Nkayi | D13: =IF(OR(COUNTRY_INFO!$U$9:$U$1000="T1 (PZQ+ALB/MBD)",COUNTRY_INFO!$V$9:$V$1000="T1 (PZQ+ALB/MBD)"), "T1 (PZQ+ALB/MBD)", " ") ->  | K13: 0 | O13: 0
A14: =IF(COUNTRY_INFO!A14=0," ",COUNTRY_INFO!A14) -> Congo | B14: =IF(COUNTRY_INFO!B14=0," ",COUNTRY_INFO!B14) -> Brazzaville | C14: =IF(COUNTRY_INFO!C14=0," ",COUNTRY_INFO!C14) -> Bacongo | D14: =IF(OR(COUNTRY_INFO!$U$9:$U$1000="T1 (PZQ+ALB/MBD)",COUNTRY_INFO!$V$9:$V$1000="T1 (PZQ+ALB/MBD)"), "T1 (PZQ+ALB/MBD)", " ") ->  | K14: 0 | O14: 0
A15: =IF(COUNTRY_INFO!A15=0," ",COUNTRY_INFO!A15) -> Congo | B15: =IF(COUNTRY_INFO!B15=0," ",COUNTRY_INFO!B15) -> Brazzaville | C15: =IF(COUNTRY_INFO!C15=0," ",COUNTRY_INFO!C15) -> Djiri | D15: =IF(OR(COUNTRY_INFO!$U$9:$U$1000="T1 (PZQ+ALB/MBD)",COUNTRY_INFO!$V$9:$V$1000="T1 (PZQ+ALB/MBD)"), "T1 (PZQ+ALB/MBD)", " ") ->  | K15: 0 | O15: 0
A16: =IF(COUNTRY_INFO!A16=0," ",COUNTRY_INFO!A16) -> Congo | B16: =IF(COUNTRY_INFO!B16=0," ",COUNTRY_INFO!B16) -> Brazzaville | C16: =IF(COUNTRY_INFO!C16=0," ",COUNTRY_INFO!C16) -> Île Mbamou | D16: =IF(OR(COUNTRY_INFO!$U$9:$U$1000="T1 (PZQ+ALB/MBD)",COUNTRY_INFO!$V$9:$V$1000="T1 (PZQ+ALB/MBD)"), "T1 (PZQ+ALB/MBD)", " ") ->  | K16: 0 | O16: 0
A17: =IF(COUNTRY_INFO!A17=0," ",COUNTRY_INFO!A17) -> Congo | B17: =IF(COUNTRY_INFO!B17=0," ",COUNTRY_INFO!B17) -> Brazzaville | C17: =IF(COUNTRY_INFO!C17=0," ",COUNTRY_INFO!C17) -> Madibou | D17: =IF(OR(COUNTRY_INFO!$U$9:$U$1000="T1 (PZQ+ALB/MBD)",COUNTRY_INFO!$V$9:$V$1000="T1 (PZQ+ALB/MBD)"), "T1 (PZQ+ALB/MBD)", " ") ->  | K17: 0 | O17: 0
A18: =IF(COUNTRY_INFO!A18=0," ",COUNTRY_INFO!A18) -> Congo | B18: =IF(COUNTRY_INFO!B18=0," ",COUNTRY_INFO!B18) -> Brazzaville | C18: =IF(COUNTRY_INFO!C18=0," ",COUNTRY_INFO!C18) -> Makélékélé | D18: =IF(OR(COUNTRY_INFO!$U$9:$U$1000="T1 (PZQ+ALB/MBD)",COUNTRY_INFO!$V$9:$V$1000="T1 (PZQ+ALB/MBD)"), "T1 (PZQ+ALB/MBD)", " ") ->  | K18: 0 | O18: 0
A19: =IF(COUNTRY_INFO!A19=0," ",COUNTRY_INFO!A19) -> Congo | B19: =IF(COUNTRY_INFO!B19=0," ",COUNTRY_INFO!B19) -> Brazzaville | C19: =IF(COUNTRY_INFO!C19=0," ",COUNTRY_INFO!C19) -> Mfilou | D19: =IF(OR(COUNTRY_INFO!$U$9:$U$1000="T1 (PZQ+ALB/MBD)",COUNTRY_INFO!$V$9:$V$1000="T1 (PZQ+ALB/MBD)"), "T1 (PZQ+ALB/MBD)", " ") ->  | K19: 0 | O19: 0
A20: =IF(COUNTRY_INFO!A20=0," ",COUNTRY_INFO!A20) -> Congo | B20: =IF(COUNTRY_INFO!B20=0," ",COUNTRY_INFO!B20) -> Brazzaville | C20: =IF(COUNTRY_INFO!C20=0," ",COUNTRY_INFO!C20) -> Moungali | D20: =IF(OR(COUNTRY_INFO!$U$9:$U$1000="T1 (PZQ+ALB/MBD)",COUNTRY_INFO!$V$9:$V$1000="T1 (PZQ+ALB/MBD)"), "T1 (PZQ+ALB/MBD)", " ") ->  | K20: 0 | O20: 0
A21: =IF(COUNTRY_INFO!A21=0," ",COUNTRY_INFO!A21) -> Congo | B21: =IF(COUNTRY_INFO!B21=0," ",COUNTRY_INFO!B21) -> Brazzaville | C21: =IF(COUNTRY_INFO!C21=0," ",COUNTRY_INFO!C21) -> Ouenzé | D21: =IF(OR(COUNTRY_INFO!$U$9:$U$1000="T1 (PZQ+ALB/MBD)",COUNTRY_INFO!$V$9:$V$1000="T1 (PZQ+ALB/MBD)"), "T1 (PZQ+ALB/MBD)", " ") ->  | K21: 0 | O21: 0
A22: =IF(COUNTRY_INFO!A22=0," ",COUNTRY_INFO!A22) -> Congo | B22: =IF(COUNTRY_INFO!B22=0," ",COUNTRY_INFO!B22) -> Brazzaville | C22: =IF(COUNTRY_INFO!C22=0," ",COUNTRY_INFO!C22) -> Poto-Poto | D22: =IF(OR(COUNTRY_INFO!$U$9:$U$1000="T1 (PZQ+ALB/MBD)",COUNTRY_INFO!$V$9:$V$1000="T1 (PZQ+ALB/MBD)"), "T1 (PZQ+ALB/MBD)", " ") ->  | K22: 0 | O22: 0
A23: =IF(COUNTRY_INFO!A23=0," ",COUNTRY_INFO!A23) -> Congo | B23: =IF(COUNTRY_INFO!B23=0," ",COUNTRY_INFO!B23) -> Brazzaville | C23: =IF(COUNTRY_INFO!C23=0," ",COUNTRY_INFO!C23) -> Talangaî | D23: =IF(OR(COUNTRY_INFO!$U$9:$U$1000="T1 (PZQ+ALB/MBD)",COUNTRY_INFO!$V$9:$V$1000="T1 (PZQ+ALB/MBD)"), "T1 (PZQ+ALB/MBD)", " ") ->  | K23: 0 | O23: 0
A24: =IF(COUNTRY_INFO!A24=0," ",COUNTRY_INFO!A24) -> Congo | B24: =IF(COUNTRY_INFO!B24=0," ",COUNTRY_INFO!B24) -> Cuvette | C24: =IF(COUNTRY_INFO!C24=0," ",COUNTRY_INFO!C24) -> Mossaka | D24: =IF(OR(COUNTRY_INFO!$U$9:$U$1000="T1 (PZQ+ALB/MBD)",COUNTRY_INFO!$V$9:$V$1000="T1 (PZQ+ALB/MBD)"), "T1 (PZQ+ALB/MBD)", " ") ->  | K24: 0 | O24: 0
A25: =IF(COUNTRY_INFO!A25=0," ",COUNTRY_INFO!A25) -> Congo | B25: =IF(COUNTRY_INFO!B25=0," ",COUNTRY_INFO!B25) -> Cuvette | C25: =IF(COUNTRY_INFO!C25=0," ",COUNTRY_INFO!C25) -> Owando | D25: =IF(OR(COUNTRY_INFO!$U$9:$U$1000="T1 (PZQ+ALB/MBD)",COUNTRY_INFO!$V$9:$V$1000="T1 (PZQ+ALB/MBD)"), "T1 (PZQ+ALB/MBD)", " ") ->  | K25: 0 | O25: 0
A26: =IF(COUNTRY_INFO!A26=0," ",COUNTRY_INFO!A26) -> Congo | B26: =IF(COUNTRY_INFO!B26=0," ",COUNTRY_INFO!B26) -> Cuvette | C26: =IF(COUNTRY_INFO!C26=0," ",COUNTRY_INFO!C26) -> Oyo-Alima | D26: =IF(OR(COUNTRY_INFO!$U$9:$U$1000="T1 (PZQ+ALB/MBD)",COUNTRY_INFO!$V$9:$V$1000="T1 (PZQ+ALB/MBD)"), "T1 (PZQ+ALB/MBD)", " ") ->  | K26: 0 | O26: 0
A27: =IF(COUNTRY_INFO!A27=0," ",COUNTRY_INFO!A27) -> Congo | B27: =IF(COUNTRY_INFO!B27=0," ",COUNTRY_INFO!B27) -> Cuvette-Ouest | C27: =IF(COUNTRY_INFO!C27=0," ",COUNTRY_INFO!C27) -> Etoumbi | D27: =IF(OR(COUNTRY_INFO!$U$9:$U$1000="T1 (PZQ+ALB/MBD)",COUNTRY_INFO!$V$9:$V$1000="T1 (PZQ+ALB/MBD)"), "T1 (PZQ+ALB/MBD)", " ") ->  | K27: 0 | O27: 0
A28: =IF(COUNTRY_INFO!A28=0," ",COUNTRY_INFO!A28) -> Congo | B28: =IF(COUNTRY_INFO!B28=0," ",COUNTRY_INFO!B28) -> Cuvette-Ouest | C28: =IF(COUNTRY_INFO!C28=0," ",COUNTRY_INFO!C28) -> Ewo | D28: =IF(OR(COUNTRY_INFO!$U$9:$U$1000="T1 (PZQ+ALB/MBD)",COUNTRY_INFO!$V$9:$V$1000="T1 (PZQ+ALB/MBD)"), "T1 (PZQ+ALB/MBD)", " ") ->  | K28: 0 | O28: 0
A29: =IF(COUNTRY_INFO!A29=0," ",COUNTRY_INFO!A29) -> Congo | B29: =IF(COUNTRY_INFO!B29=0," ",COUNTRY_INFO!B29) -> Kouilou | C29: =IF(COUNTRY_INFO!C29=0," ",COUNTRY_INFO!C29) -> Hinda-Loango | D29: =IF(OR(COUNTRY_INFO!$U$9:$U$1000="T1 (PZQ+ALB/MBD)",COUNTRY_INFO!$V$9:$V$1000="T1 (PZQ+ALB/MBD)"), "T1 (PZQ+ALB/MBD)", " ") ->  | K29: 0 | O29: 0
A30: =IF(COUNTRY_INFO!A30=0," ",COUNTRY_INFO!A30) -> Congo | B30: =IF(COUNTRY_INFO!B30=0," ",COUNTRY_INFO!B30) -> Kouilou | C30: =IF(COUNTRY_INFO!C30=0," ",COUNTRY_INFO!C30) -> Madingo Kayes-Nzambi | D30: =IF(OR(COUNTRY_INFO!$U$9:$U$1000="T1 (PZQ+ALB/MBD)",COUNTRY_INFO!$V$9:$V$1000="T1 (PZQ+ALB/MBD)"), "T1 (PZQ+ALB/MBD)", " ") ->  | K30: 0 | O30: 0
A31: =IF(COUNTRY_INFO!A31=0," ",COUNTRY_INFO!A31) -> Congo | B31: =IF(COUNTRY_INFO!B31=0," ",COUNTRY_INFO!B31) -> Kouilou | C31: =IF(COUNTRY_INFO!C31=0," ",COUNTRY_INFO!C31) -> Mvouti-Kakamouéka | D31: =IF(OR(COUNTRY_INFO!$U$9:$U$1000="T1 (PZQ+ALB/MBD)",COUNTRY_INFO!$V$9:$V$1000="T1 (PZQ+ALB/MBD)"), "T1 (PZQ+ALB/MBD)", " ") ->  | K31: 0 | O31: 0
A32: =IF(COUNTRY_INFO!A32=0," ",COUNTRY_INFO!A32) -> Congo | B32: =IF(COUNTRY_INFO!B32=0," ",COUNTRY_INFO!B32) -> Lékoumou | C32: =IF(COUNTRY_INFO!C32=0," ",COUNTRY_INFO!C32) -> Sibiti | D32: =IF(OR(COUNTRY_INFO!$U$9:$U$1000="T1 (PZQ+ALB/MBD)",COUNTRY_INFO!$V$9:$V$1000="T1 (PZQ+ALB/MBD)"), "T1 (PZQ+ALB/MBD)", " ") ->  | K32: 0 | O32: 0
A33: =IF(COUNTRY_INFO!A33=0," ",COUNTRY_INFO!A33) -> Congo | B33: =IF(COUNTRY_INFO!B33=0," ",COUNTRY_INFO!B33) -> Lékoumou | C33: =IF(COUNTRY_INFO!C33=0," ",COUNTRY_INFO!C33) -> Zanaga | D33: =IF(OR(COUNTRY_INFO!$U$9:$U$1000="T1 (PZQ+ALB/MBD)",COUNTRY_INFO!$V$9:$V$1000="T1 (PZQ+ALB/MBD)"), "T1 (PZQ+ALB/MBD)", " ") ->  | K33: 0 | O33: 0
A34: =IF(COUNTRY_INFO!A34=0," ",COUNTRY_INFO!A34) -> Congo | B34: =IF(COUNTRY_INFO!B34=0," ",COUNTRY_INFO!B34) -> Likouala | C34: =IF(COUNTRY_INFO!C34=0," ",COUNTRY_INFO!C34) -> Bétou | D34: =IF(OR(COUNTRY_INFO!$U$9:$U$1000="T1 (PZQ+ALB/MBD)",COUNTRY_INFO!$V$9:$V$1000="T1 (PZQ+ALB/MBD)"), "T1 (PZQ+ALB/MBD)", " ") ->  | K34: 0 | O34: 0
A35: =IF(COUNTRY_INFO!A35=0," ",COUNTRY_INFO!A35) -> Congo | B35: =IF(COUNTRY_INFO!B35=0," ",COUNTRY_INFO!B35) -> Likouala | C35: =IF(COUNTRY_INFO!C35=0," ",COUNTRY_INFO!C35) -> Impfondo | D35: =IF(OR(COUNTRY_INFO!$U$9:$U$1000="T1 (PZQ+ALB/MBD)",COUNTRY_INFO!$V$9:$V$1000="T1 (PZQ+ALB/MBD)"), "T1 (PZQ+ALB/MBD)", " ") ->  | K35: 0 | O35: 0
A36: =IF(COUNTRY_INFO!A36=0," ",COUNTRY_INFO!A36) -> Congo | B36: =IF(COUNTRY_INFO!B36=0," ",COUNTRY_INFO!B36) -> Niari | C36: =IF(COUNTRY_INFO!C36=0," ",COUNTRY_INFO!C36) -> Dolisie | D36: =IF(OR(COUNTRY_INFO!$U$9:$U$1000="T1 (PZQ+ALB/MBD)",COUNTRY_INFO!$V$9:$V$1000="T1 (PZQ+ALB/MBD)"), "T1 (PZQ+ALB/MBD)", " ") ->  | K36: 0 | O36: 0
A37: =IF(COUNTRY_INFO!A37=0," ",COUNTRY_INFO!A37) -> Congo | B37: =IF(COUNTRY_INFO!B37=0," ",COUNTRY_INFO!B37) -> Niari | C37: =IF(COUNTRY_INFO!C37=0," ",COUNTRY_INFO!C37) -> Kibangou | D37: =IF(OR(COUNTRY_INFO!$U$9:$U$1000="T1 (PZQ+ALB/MBD)",COUNTRY_INFO!$V$9:$V$1000="T1 (PZQ+ALB/MBD)"), "T1 (PZQ+ALB/MBD)", " ") ->  | K37: 0 | O37: 0
A38: =IF(COUNTRY_INFO!A38=0," ",COUNTRY_INFO!A38) -> Congo | B38: =IF(COUNTRY_INFO!B38=0," ",COUNTRY_INFO!B38) -> Niari | C38: =IF(COUNTRY_INFO!C38=0," ",COUNTRY_INFO!C38) -> Kimongo-Londela Nkayes | D38: =IF(OR(COUNTRY_INFO!$U$9:$U$1000="T1 (PZQ+ALB/MBD)",COUNTRY_INFO!$V$9:$V$1000="T1 (PZQ+ALB/MBD)"), "T1 (PZQ+ALB/MBD)", " ") ->  | K38: 0 | O38: 0
A39: =IF(COUNTRY_INFO!A39=0," ",COUNTRY_INFO!A39) -> Congo | B39: =IF(COUNTRY_INFO!B39=0," ",COUNTRY_INFO!B39) -> Niari | C39: =IF(COUNTRY_INFO!C39=0," ",COUNTRY_INFO!C39) -> Mayoko | D39: =IF(OR(COUNTRY_INFO!$U$9:$U$1000="T1 (PZQ+ALB/MBD)",COUNTRY_INFO!$V$9:$V$1000="T1 (PZQ+ALB/MBD)"), "T1 (PZQ+ALB/MBD)", " ") ->  | K39: 0 | O39: 0
A40: =IF(COUNTRY_INFO!A40=0," ",COUNTRY_INFO!A40) -> Congo | B40: =IF(COUNTRY_INFO!B40=0," ",COUNTRY_INFO!B40) -> Niari | C40: =IF(COUNTRY_INFO!C40=0," ",COUNTRY_INFO!C40) -> Mossendjo | D40: =IF(OR(COUNTRY_INFO!$U$9:$U$1000="T1 (PZQ+ALB/MBD)",COUNTRY_INFO!$V$9:$V$1000="T1 (PZQ+ALB/MBD)"), "T1 (PZQ+ALB/MBD)", " ") ->  | K40: 0 | O40: 0
A41: =IF(COUNTRY_INFO!A41=0," ",COUNTRY_INFO!A41) -> Congo | B41: =IF(COUNTRY_INFO!B41=0," ",COUNTRY_INFO!B41) -> Plateaux | C41: =IF(COUNTRY_INFO!C41=0," ",COUNTRY_INFO!C41) -> Abala | D41: =IF(OR(COUNTRY_INFO!$U$9:$U$1000="T1 (PZQ+ALB/MBD)",COUNTRY_INFO!$V$9:$V$1000="T1 (PZQ+ALB/MBD)"), "T1 (PZQ+ALB/MBD)", " ") ->  | K41: =MAX(H41:I41)+G41+J41 -> 0 | O41: 0 | Q41: =IF(OR(I41<>0,H41<>0), IF(M41/MAX(H41,I41)*100=0, "-", M41/MAX(H41,I41)*100), " ") -> 
A42: =IF(COUNTRY_INFO!A42=0," ",COUNTRY_INFO!A42) -> Congo | B42: =IF(COUNTRY_INFO!B42=0," ",COUNTRY_INFO!B42) -> Plateaux | C42: =IF(COUNTRY_INFO!C42=0," ",COUNTRY_INFO!C42) -> Djambala-Lékana | D42: =IF(OR(COUNTRY_INFO!$U$9:$U$1000="T1 (PZQ+ALB/MBD)",COUNTRY_INFO!$V$9:$V$1000="T1 (PZQ+ALB/MBD)"), "T1 (PZQ+ALB/MBD)", " ") ->  | K42: 0 | O42: 0
A43: =IF(COUNTRY_INFO!A43=0," ",COUNTRY_INFO!A43) -> Congo | B43: =IF(COUNTRY_INFO!B43=0," ",COUNTRY_INFO!B43) -> Plateaux | C43: =IF(COUNTRY_INFO!C43=0," ",COUNTRY_INFO!C43) -> Gamboma | D43: =IF(OR(COUNTRY_INFO!$U$9:$U$1000="T1 (PZQ+ALB/MBD)",COUNTRY_INFO!$V$9:$V$1000="T1 (PZQ+ALB/MBD)"), "T1 (PZQ+ALB/MBD)", " ") ->  | K43: 0 | O43: 0
A44: =IF(COUNTRY_INFO!A44=0," ",COUNTRY_INFO!A44) -> Congo | B44: =IF(COUNTRY_INFO!B44=0," ",COUNTRY_INFO!B44) -> Plateaux | C44: =IF(COUNTRY_INFO!C44=0," ",COUNTRY_INFO!C44) -> Ngo Mpouya | D44: =IF(OR(COUNTRY_INFO!$U$9:$U$1000="T1 (PZQ+ALB/MBD)",COUNTRY_INFO!$V$9:$V$1000="T1 (PZQ+ALB/MBD)"), "T1 (PZQ+ALB/MBD)", " ") ->  | K44: 0 | O44: 0
A45: =IF(COUNTRY_INFO!A45=0," ",COUNTRY_INFO!A45) -> Congo | B45: =IF(COUNTRY_INFO!B45=0," ",COUNTRY_INFO!B45) -> Pointe-Noire | C45: =IF(COUNTRY_INFO!C45=0," ",COUNTRY_INFO!C45) -> Loandjili | D45: =IF(OR(COUNTRY_INFO!$U$9:$U$1000="T1 (PZQ+ALB/MBD)",COUNTRY_INFO!$V$9:$V$1000="T1 (PZQ+ALB/MBD)"), "T1 (PZQ+ALB/MBD)", " ") ->  | K45: 0 | O45: 0
A46: =IF(COUNTRY_INFO!A46=0," ",COUNTRY_INFO!A46) -> Congo | B46: =IF(COUNTRY_INFO!B46=0," ",COUNTRY_INFO!B46) -> Pointe-Noire | C46: =IF(COUNTRY_INFO!C46=0," ",COUNTRY_INFO!C46) -> Lumumba | D46: =IF(OR(COUNTRY_INFO!$U$9:$U$1000="T1 (PZQ+ALB/MBD)",COUNTRY_INFO!$V$9:$V$1000="T1 (PZQ+ALB/MBD)"), "T1 (PZQ+ALB/MBD)", " ") ->  | K46: 0 | O46: 0
A47: =IF(COUNTRY_INFO!A47=0," ",COUNTRY_INFO!A47) -> Congo | B47: =IF(COUNTRY_INFO!B47=0," ",COUNTRY_INFO!B47) -> Pointe-Noire | C47: =IF(COUNTRY_INFO!C47=0," ",COUNTRY_INFO!C47) -> Mongo-Poukou | D47: =IF(OR(COUNTRY_INFO!$U$9:$U$1000="T1 (PZQ+ALB/MBD)",COUNTRY_INFO!$V$9:$V$1000="T1 (PZQ+ALB/MBD)"), "T1 (PZQ+ALB/MBD)", " ") ->  | K47: 0 | O47: 0
A48: =IF(COUNTRY_INFO!A48=0," ",COUNTRY_INFO!A48) -> Congo | B48: =IF(COUNTRY_INFO!B48=0," ",COUNTRY_INFO!B48) -> Pointe-Noire | C48: =IF(COUNTRY_INFO!C48=0," ",COUNTRY_INFO!C48) -> Mvoumvou | D48: =IF(OR(COUNTRY_INFO!$U$9:$U$1000="T1 (PZQ+ALB/MBD)",COUNTRY_INFO!$V$9:$V$1000="T1 (PZQ+ALB/MBD)"), "T1 (PZQ+ALB/MBD)", " ") ->  | K48: 0 | O48: 0
A49: =IF(COUNTRY_INFO!A49=0," ",COUNTRY_INFO!A49) -> Congo | B49: =IF(COUNTRY_INFO!B49=0," ",COUNTRY_INFO!B49) -> Pointe-Noire | C49: =IF(COUNTRY_INFO!C49=0," ",COUNTRY_INFO!C49) -> Ngoyo | D49: =IF(OR(COUNTRY_INFO!$U$9:$U$1000="T1 (PZQ+ALB/MBD)",COUNTRY_INFO!$V$9:$V$1000="T1 (PZQ+ALB/MBD)"), "T1 (PZQ+ALB/MBD)", " ") ->  | K49: 0 | O49: 0
A50: =IF(COUNTRY_INFO!A50=0," ",COUNTRY_INFO!A50) -> Congo | B50: =IF(COUNTRY_INFO!B50=0," ",COUNTRY_INFO!B50) -> Pointe-Noire | C50: =IF(COUNTRY_INFO!C50=0," ",COUNTRY_INFO!C50) -> Tchiamba Nzassi | D50: =IF(OR(COUNTRY_INFO!$U$9:$U$1000="T1 (PZQ+ALB/MBD)",COUNTRY_INFO!$V$9:$V$1000="T1 (PZQ+ALB/MBD)"), "T1 (PZQ+ALB/MBD)", " ") ->  | K50: 0 | O50: 0
A51: =IF(COUNTRY_INFO!A51=0," ",COUNTRY_INFO!A51) -> Congo | B51: =IF(COUNTRY_INFO!B51=0," ",COUNTRY_INFO!B51) -> Pointe-Noire | C51: =IF(COUNTRY_INFO!C51=0," ",COUNTRY_INFO!C51) -> Tie-Tie | D51: =IF(OR(COUNTRY_INFO!$U$9:$U$1000="T1 (PZQ+ALB/MBD)",COUNTRY_INFO!$V$9:$V$1000="T1 (PZQ+ALB/MBD)"), "T1 (PZQ+ALB/MBD)", " ") ->  | K51: 0 | O51: 0
A52: =IF(COUNTRY_INFO!A52=0," ",COUNTRY_INFO!A52) -> Congo | B52: =IF(COUNTRY_INFO!B52=0," ",COUNTRY_INFO!B52) -> Pool | C52: =IF(COUNTRY_INFO!C52=0," ",COUNTRY_INFO!C52) -> Boko | D52: =IF(OR(COUNTRY_INFO!$U$9:$U$1000="T1 (PZQ+ALB/MBD)",COUNTRY_INFO!$V$9:$V$1000="T1 (PZQ+ALB/MBD)"), "T1 (PZQ+ALB/MBD)", " ") ->  | K52: 0 | O52: 0
A53: =IF(COUNTRY_INFO!A53=0," ",COUNTRY_INFO!A53) -> Congo | B53: =IF(COUNTRY_INFO!B53=0," ",COUNTRY_INFO!B53) -> Pool | C53: =IF(COUNTRY_INFO!C53=0," ",COUNTRY_INFO!C53) -> Goma tsétsé | D53: =IF(OR(COUNTRY_INFO!$U$9:$U$1000="T1 (PZQ+ALB/MBD)",COUNTRY_INFO!$V$9:$V$1000="T1 (PZQ+ALB/MBD)"), "T1 (PZQ+ALB/MBD)", " ") ->  | K53: 0 | O53: 0
A54: =IF(COUNTRY_INFO!A54=0," ",COUNTRY_INFO!A54) -> Congo | B54: =IF(COUNTRY_INFO!B54=0," ",COUNTRY_INFO!B54) -> Pool | C54: =IF(COUNTRY_INFO!C54=0," ",COUNTRY_INFO!C54) -> Ignié | D54: =IF(OR(COUNTRY_INFO!$U$9:$U$1000="T1 (PZQ+ALB/MBD)",COUNTRY_INFO!$V$9:$V$1000="T1 (PZQ+ALB/MBD)"), "T1 (PZQ+ALB/MBD)", " ") ->  | K54: 0 | O54: 0
A55: =IF(COUNTRY_INFO!A55=0," ",COUNTRY_INFO!A55) -> Congo | B55: =IF(COUNTRY_INFO!B55=0," ",COUNTRY_INFO!B55) -> Pool | C55: =IF(COUNTRY_INFO!C55=0," ",COUNTRY_INFO!C55) -> Kindamba | D55: =IF(OR(COUNTRY_INFO!$U$9:$U$1000="T1 (PZQ+ALB/MBD)",COUNTRY_INFO!$V$9:$V$1000="T1 (PZQ+ALB/MBD)"), "T1 (PZQ+ALB/MBD)", " ") ->  | K55: 0 | O55: 0
A56: =IF(COUNTRY_INFO!A56=0," ",COUNTRY_INFO!A56) -> Congo | B56: =IF(COUNTRY_INFO!B56=0," ",COUNTRY_INFO!B56) -> Pool | C56: =IF(COUNTRY_INFO!C56=0," ",COUNTRY_INFO!C56) -> Kinkala | D56: =IF(OR(COUNTRY_INFO!$U$9:$U$1000="T1 (PZQ+ALB/MBD)",COUNTRY_INFO!$V$9:$V$1000="T1 (PZQ+ALB/MBD)"), "T1 (PZQ+ALB/MBD)", " ") ->  | K56: 0 | O56: 0
A57: =IF(COUNTRY_INFO!A57=0," ",COUNTRY_INFO!A57) -> Congo | B57: =IF(COUNTRY_INFO!B57=0," ",COUNTRY_INFO!B57) -> Pool | C57: =IF(COUNTRY_INFO!C57=0," ",COUNTRY_INFO!C57) -> Kintélé | D57: =IF(OR(COUNTRY_INFO!$U$9:$U$1000="T1 (PZQ+ALB/MBD)",COUNTRY_INFO!$V$9:$V$1000="T1 (PZQ+ALB/MBD)"), "T1 (PZQ+ALB/MBD)", " ") ->  | K57: 0 | O57: 0
A58: =IF(COUNTRY_INFO!A58=0," ",COUNTRY_INFO!A58) -> Congo | B58: =IF(COUNTRY_INFO!B58=0," ",COUNTRY_INFO!B58) -> Pool | C58: =IF(COUNTRY_INFO!C58=0," ",COUNTRY_INFO!C58) -> Mindouli | D58: =IF(OR(COUNTRY_INFO!$U$9:$U$1000="T1 (PZQ+ALB/MBD)",COUNTRY_INFO!$V$9:$V$1000="T1 (PZQ+ALB/MBD)"), "T1 (PZQ+ALB/MBD)", " ") ->  | K58: 0 | O58: 0
A59: =IF(COUNTRY_INFO!A59=0," ",COUNTRY_INFO!A59) -> Congo | B59: =IF(COUNTRY_INFO!B59=0," ",COUNTRY_INFO!B59) -> Sangha | C59: =IF(COUNTRY_INFO!C59=0," ",COUNTRY_INFO!C59) -> Ouesso | D59: =IF(OR(COUNTRY_INFO!$U$9:$U$1000="T1 (PZQ+ALB/MBD)",COUNTRY_INFO!$V$9:$V$1000="T1 (PZQ+ALB/MBD)"), "T1 (PZQ+ALB/MBD)", " ") ->  | K59: 0 | O59: 0
A60: =IF(COUNTRY_INFO!A60=0," ",COUNTRY_INFO!A60) -> Congo | B60: =IF(COUNTRY_INFO!B60=0," ",COUNTRY_INFO!B60) -> Sangha | C60: =IF(COUNTRY_INFO!C60=0," ",COUNTRY_INFO!C60) -> Sembé-Souanké | D60: =IF(OR(COUNTRY_INFO!$U$9:$U$1000="T1 (PZQ+ALB/MBD)",COUNTRY_INFO!$V$9:$V$1000="T1 (PZQ+ALB/MBD)"), "T1 (PZQ+ALB/MBD)", " ") ->  | K60: 0 | O60: 0

Sheet T2
A1: T 2 - Praziquantel (PZQ)
A2: Structure administrative, population nécessitant une chimioprévention par groupe d'âge, population traitée par groupe d'âge et couverture
A4: TOTAL | F4: =SUM(F$9:F$1000) -> 0 | G4: 0 | H4: 0 | I4: 0 | J4: 0 | K4: 0 | L4: 0 | M4: 0 | N4: =IF(F4<>0, IF(J4/F4*100=0, "-", J4/F4*100), " ") ->  | O4: =IF(G4<>0, IF(K4/G4*100=0, "-", K4/G4*100), " ") ->  | P4: =IF(H4<>0, IF(L4/H4*100=0, "-", L4/H4*100), " ") ->  | Q4: =IF(I4<>0, IF(M4/I4*100=0, "-", M4/I4*100), " ") -> 
A6: Structure administrative du pays | D6: Mise en oeuvre de la CP | E6: Date | F6: Population ciblée pour T2 | J6: Population traitée | N6: Couverture du Programme (%)
A7: Pays | B7: Région/Département | C7: District | F7: EAPréS | G7: EAS | H7: Adultes | I7: Total | J7: EAPréS | K7: EAS | L7: Adultes | M7: Total | N7: EAPréS | O7: EAS | P7: Adultes | Q7: Total
A9: =IF(COUNTRY_INFO!A9=0," ",COUNTRY_INFO!A9) -> Congo | B9: =IF(COUNTRY_INFO!B9=0," ",COUNTRY_INFO!B9) -> Bouenza | C9: =IF(COUNTRY_INFO!C9=0," ",COUNTRY_INFO!C9) -> Loudima | D9: =IF(OR(COUNTRY_INFO!$U$9:$U$1000="T2 (PZQ)",COUNTRY_INFO!$V$9:$V$1000="T2 (PZQ)"), "T2 (PZQ)", " ") ->  | I9: =SUM(F9:H9) -> 0 | M9: =SUM(J9:L9) -> 0 | N9: =IF(F9<>0, IF(J9/F9*100=0, "-", J9/F9*100), " ") -> 
A10: =IF(COUNTRY_INFO!A10=0," ",COUNTRY_INFO!A10) -> Congo | B10: =IF(COUNTRY_INFO!B10=0," ",COUNTRY_INFO!B10) -> Bouenza | C10: =IF(COUNTRY_INFO!C10=0," ",COUNTRY_INFO!C10) -> Loutété | D10: =IF(OR(COUNTRY_INFO!$U$9:$U$1000="T2 (PZQ)",COUNTRY_INFO!$V$9:$V$1000="T2 (PZQ)"), "T2 (PZQ)", " ") ->  | I10: =SUM(F10:H10) -> 0 | M10: =SUM(J10:L10) -> 0 | N10: =IF(F10<>0, IF(J10/F10*100=0, "-", J10/F10*100), " ") ->  | O10: =IF(G10<>0, IF(K10/G10*100=0, "-", K10/G10*100), " ") ->  | P10: =IF(H10<>0, IF(L10/H10*100=0, "-", L10/H10*100), " ") ->  | Q10: =IF(I10<>0, IF(M10/I10*100=0, "-", M10/I10*100), " ") -> 
A11: =IF(COUNTRY_INFO!A11=0," ",COUNTRY_INFO!A11) -> Congo | B11: =IF(COUNTRY_INFO!B11=0," ",COUNTRY_INFO!B11) -> Bouenza | C11: =IF(COUNTRY_INFO!C11=0," ",COUNTRY_INFO!C11) -> Madingou | D11: =IF(OR(COUNTRY_INFO!$U$9:$U$1000="T2 (PZQ)",COUNTRY_INFO!$V$9:$V$1000="T2 (PZQ)"), "T2 (PZQ)", " ") ->  | I11: 0 | M11: 0
A12: =IF(COUNTRY_INFO!A12=0," ",COUNTRY_INFO!A12) -> Congo | B12: =IF(COUNTRY_INFO!B12=0," ",COUNTRY_INFO!B12) -> Bouenza | C12: =IF(COUNTRY_INFO!C12=0," ",COUNTRY_INFO!C12) -> Mouyondzi | D12: =IF(OR(COUNTRY_INFO!$U$9:$U$1000="T2 (PZQ)",COUNTRY_INFO!$V$9:$V$1000="T2 (PZQ)"), "T2 (PZQ)", " ") ->  | I12: 0 | M12: 0
A13: =IF(COUNTRY_INFO!A13=0," ",COUNTRY_INFO!A13) -> Congo | B13: =IF(COUNTRY_INFO!B13=0," ",COUNTRY_INFO!B13) -> Bouenza | C13: =IF(COUNTRY_INFO!C13=0," ",COUNTRY_INFO!C13) -> Nkayi | D13: =IF(OR(COUNTRY_INFO!$U$9:$U$1000="T2 (PZQ)",COUNTRY_INFO!$V$9:$V$1000="T2 (PZQ)"), "T2 (PZQ)", " ") ->  | I13: 0 | M13: 0
A14: =IF(COUNTRY_INFO!A14=0," ",COUNTRY_INFO!A14) -> Congo | B14: =IF(COUNTRY_INFO!B14=0," ",COUNTRY_INFO!B14) -> Brazzaville | C14: =IF(COUNTRY_INFO!C14=0," ",COUNTRY_INFO!C14) -> Bacongo | D14: =IF(OR(COUNTRY_INFO!$U$9:$U$1000="T2 (PZQ)",COUNTRY_INFO!$V$9:$V$1000="T2 (PZQ)"), "T2 (PZQ)", " ") ->  | I14: 0 | M14: 0
A15: =IF(COUNTRY_INFO!A15=0," ",COUNTRY_INFO!A15) -> Congo | B15: =IF(COUNTRY_INFO!B15=0," ",COUNTRY_INFO!B15) -> Brazzaville | C15: =IF(COUNTRY_INFO!C15=0," ",COUNTRY_INFO!C15) -> Djiri | D15: =IF(OR(COUNTRY_INFO!$U$9:$U$1000="T2 (PZQ)",COUNTRY_INFO!$V$9:$V$1000="T2 (PZQ)"), "T2 (PZQ)", " ") ->  | I15: 0 | M15: 0
A16: =IF(COUNTRY_INFO!A16=0," ",COUNTRY_INFO!A16) -> Congo | B16: =IF(COUNTRY_INFO!B16=0," ",COUNTRY_INFO!B16) -> Brazzaville | C16: =IF(COUNTRY_INFO!C16=0," ",COUNTRY_INFO!C16) -> Île Mbamou | D16: =IF(OR(COUNTRY_INFO!$U$9:$U$1000="T2 (PZQ)",COUNTRY_INFO!$V$9:$V$1000="T2 (PZQ)"), "T2 (PZQ)", " ") ->  | I16: 0 | M16: 0
A17: =IF(COUNTRY_INFO!A17=0," ",COUNTRY_INFO!A17) -> Congo | B17: =IF(COUNTRY_INFO!B17=0," ",COUNTRY_INFO!B17) -> Brazzaville | C17: =IF(COUNTRY_INFO!C17=0," ",COUNTRY_INFO!C17) -> Madibou | D17: =IF(OR(COUNTRY_INFO!$U$9:$U$1000="T2 (PZQ)",COUNTRY_INFO!$V$9:$V$1000="T2 (PZQ)"), "T2 (PZQ)", " ") ->  | I17: 0 | M17: 0
A18: =IF(COUNTRY_INFO!A18=0," ",COUNTRY_INFO!A18) -> Congo | B18: =IF(COUNTRY_INFO!B18=0," ",COUNTRY_INFO!B18) -> Brazzaville | C18: =IF(COUNTRY_INFO!C18=0," ",COUNTRY_INFO!C18) -> Makélékélé | D18: =IF(OR(COUNTRY_INFO!$U$9:$U$1000="T2 (PZQ)",COUNTRY_INFO!$V$9:$V$1000="T2 (PZQ)"), "T2 (PZQ)", " ") ->  | I18: 0 | M18: 0
A19: =IF(COUNTRY_INFO!A19=0," ",COUNTRY_INFO!A19) -> Congo | B19: =IF(COUNTRY_INFO!B19=0," ",COUNTRY_INFO!B19) -> Brazzaville | C19: =IF(COUNTRY_INFO!C19=0," ",COUNTRY_INFO!C19) -> Mfilou | D19: =IF(OR(COUNTRY_INFO!$U$9:$U$1000="T2 (PZQ)",COUNTRY_INFO!$V$9:$V$1000="T2 (PZQ)"), "T2 (PZQ)", " ") ->  | I19: 0 | M19: 0
A20: =IF(COUNTRY_INFO!A20=0," ",COUNTRY_INFO!A20) -> Congo | B20: =IF(COUNTRY_INFO!B20=0," ",COUNTRY_INFO!B20) -> Brazzaville | C20: =IF(COUNTRY_INFO!C20=0," ",COUNTRY_INFO!C20) -> Moungali | D20: =IF(OR(COUNTRY_INFO!$U$9:$U$1000="T2 (PZQ)",COUNTRY_INFO!$V$9:$V$1000="T2 (PZQ)"), "T2 (PZQ)", " ") ->  | I20: 0 | M20: 0
A21: =IF(COUNTRY_INFO!A21=0," ",COUNTRY_INFO!A21) -> Congo | B21: =IF(COUNTRY_INFO!B21=0," ",COUNTRY_INFO!B21) -> Brazzaville | C21: =IF(COUNTRY_INFO!C21=0," ",COUNTRY_INFO!C21) -> Ouenzé | D21: =IF(OR(COUNTRY_INFO!$U$9:$U$1000="T2 (PZQ)",COUNTRY_INFO!$V$9:$V$1000="T2 (PZQ)"), "T2 (PZQ)", " ") ->  | I21: 0 | M21: 0
A22: =IF(COUNTRY_INFO!A22=0," ",COUNTRY_INFO!A22) -> Congo | B22: =IF(COUNTRY_INFO!B22=0," ",COUNTRY_INFO!B22) -> Brazzaville | C22: =IF(COUNTRY_INFO!C22=0," ",COUNTRY_INFO!C22) -> Poto-Poto | D22: =IF(OR(COUNTRY_INFO!$U$9:$U$1000="T2 (PZQ)",COUNTRY_INFO!$V$9:$V$1000="T2 (PZQ)"), "T2 (PZQ)", " ") ->  | I22: 0 | M22: 0
A23: =IF(COUNTRY_INFO!A23=0," ",COUNTRY_INFO!A23) -> Congo | B23: =IF(COUNTRY_INFO!B23=0," ",COUNTRY_INFO!B23) -> Brazzaville | C23: =IF(COUNTRY_INFO!C23=0," ",COUNTRY_INFO!C23) -> Talangaî | D23: =IF(OR(COUNTRY_INFO!$U$9:$U$1000="T2 (PZQ)",COUNTRY_INFO!$V$9:$V$1000="T2 (PZQ)"), "T2 (PZQ)", " ") ->  | I23: 0 | M23: 0
A24: =IF(COUNTRY_INFO!A24=0," ",COUNTRY_INFO!A24) -> Congo | B24: =IF(COUNTRY_INFO!B24=0," ",COUNTRY_INFO!B24) -> Cuvette | C24: =IF(COUNTRY_INFO!C24=0," ",COUNTRY_INFO!C24) -> Mossaka | D24: =IF(OR(COUNTRY_INFO!$U$9:$U$1000="T2 (PZQ)",COUNTRY_INFO!$V$9:$V$1000="T2 (PZQ)"), "T2 (PZQ)", " ") ->  | I24: 0 | M24: 0
A25: =IF(COUNTRY_INFO!A25=0," ",COUNTRY_INFO!A25) -> Congo | B25: =IF(COUNTRY_INFO!B25=0," ",COUNTRY_INFO!B25) -> Cuvette | C25: =IF(COUNTRY_INFO!C25=0," ",COUNTRY_INFO!C25) -> Owando | D25: =IF(OR(COUNTRY_INFO!$U$9:$U$1000="T2 (PZQ)",COUNTRY_INFO!$V$9:$V$1000="T2 (PZQ)"), "T2 (PZQ)", " ") ->  | I25: 0 | M25: 0
A26: =IF(COUNTRY_INFO!A26=0," ",COUNTRY_INFO!A26) -> Congo | B26: =IF(COUNTRY_INFO!B26=0," ",COUNTRY_INFO!B26) -> Cuvette | C26: =IF(COUNTRY_INFO!C26=0," ",COUNTRY_INFO!C26) -> Oyo-Alima | D26: =IF(OR(COUNTRY_INFO!$U$9:$U$1000="T2 (PZQ)",COUNTRY_INFO!$V$9:$V$1000="T2 (PZQ)"), "T2 (PZQ)", " ") ->  | I26: 0 | M26: 0
A27: =IF(COUNTRY_INFO!A27=0," ",COUNTRY_INFO!A27) -> Congo | B27: =IF(COUNTRY_INFO!B27=0," ",COUNTRY_INFO!B27) -> Cuvette-Ouest | C27: =IF(COUNTRY_INFO!C27=0," ",COUNTRY_INFO!C27) -> Etoumbi | D27: =IF(OR(COUNTRY_INFO!$U$9:$U$1000="T2 (PZQ)",COUNTRY_INFO!$V$9:$V$1000="T2 (PZQ)"), "T2 (PZQ)", " ") ->  | I27: 0 | M27: 0
A28: =IF(COUNTRY_INFO!A28=0," ",COUNTRY_INFO!A28) -> Congo | B28: =IF(COUNTRY_INFO!B28=0," ",COUNTRY_INFO!B28) -> Cuvette-Ouest | C28: =IF(COUNTRY_INFO!C28=0," ",COUNTRY_INFO!C28) -> Ewo | D28: =IF(OR(COUNTRY_INFO!$U$9:$U$1000="T2 (PZQ)",COUNTRY_INFO!$V$9:$V$1000="T2 (PZQ)"), "T2 (PZQ)", " ") ->  | I28: 0 | M28: 0
A29: =IF(COUNTRY_INFO!A29=0," ",COUNTRY_INFO!A29) -> Congo | B29: =IF(COUNTRY_INFO!B29=0," ",COUNTRY_INFO!B29) -> Kouilou | C29: =IF(COUNTRY_INFO!C29=0," ",COUNTRY_INFO!C29) -> Hinda-Loango | D29: =IF(OR(COUNTRY_INFO!$U$9:$U$1000="T2 (PZQ)",COUNTRY_INFO!$V$9:$V$1000="T2 (PZQ)"), "T2 (PZQ)", " ") ->  | I29: 0 | M29: 0
A30: =IF(COUNTRY_INFO!A30=0," ",COUNTRY_INFO!A30) -> Congo | B30: =IF(COUNTRY_INFO!B30=0," ",COUNTRY_INFO!B30) -> Kouilou | C30: =IF(COUNTRY_INFO!C30=0," ",COUNTRY_INFO!C30) -> Madingo Kayes-Nzambi | D30: =IF(OR(COUNTRY_INFO!$U$9:$U$1000="T2 (PZQ)",COUNTRY_INFO!$V$9:$V$1000="T2 (PZQ)"), "T2 (PZQ)", " ") ->  | I30: 0 | M30: 0
A31: =IF(COUNTRY_INFO!A31=0," ",COUNTRY_INFO!A31) -> Congo | B31: =IF(COUNTRY_INFO!B31=0," ",COUNTRY_INFO!B31) -> Kouilou | C31: =IF(COUNTRY_INFO!C31=0," ",COUNTRY_INFO!C31) -> Mvouti-Kakamouéka | D31: =IF(OR(COUNTRY_INFO!$U$9:$U$1000="T2 (PZQ)",COUNTRY_INFO!$V$9:$V$1000="T2 (PZQ)"), "T2 (PZQ)", " ") ->  | I31: 0 | M31: 0
A32: =IF(COUNTRY_INFO!A32=0," ",COUNTRY_INFO!A32) -> Congo | B32: =IF(COUNTRY_INFO!B32=0," ",COUNTRY_INFO!B32) -> Lékoumou | C32: =IF(COUNTRY_INFO!C32=0," ",COUNTRY_INFO!C32) -> Sibiti | D32: =IF(OR(COUNTRY_INFO!$U$9:$U$1000="T2 (PZQ)",COUNTRY_INFO!$V$9:$V$1000="T2 (PZQ)"), "T2 (PZQ)", " ") ->  | I32: 0 | M32: 0
A33: =IF(COUNTRY_INFO!A33=0," ",COUNTRY_INFO!A33) -> Congo | B33: =IF(COUNTRY_INFO!B33=0," ",COUNTRY_INFO!B33) -> Lékoumou | C33: =IF(COUNTRY_INFO!C33=0," ",COUNTRY_INFO!C33) -> Zanaga | D33: =IF(OR(COUNTRY_INFO!$U$9:$U$1000="T2 (PZQ)",COUNTRY_INFO!$V$9:$V$1000="T2 (PZQ)"), "T2 (PZQ)", " ") ->  | I33: 0 | M33: 0
A34: =IF(COUNTRY_INFO!A34=0," ",COUNTRY_INFO!A34) -> Congo | B34: =IF(COUNTRY_INFO!B34=0," ",COUNTRY_INFO!B34) -> Likouala | C34: =IF(COUNTRY_INFO!C34=0," ",COUNTRY_INFO!C34) -> Bétou | D34: =IF(OR(COUNTRY_INFO!$U$9:$U$1000="T2 (PZQ)",COUNTRY_INFO!$V$9:$V$1000="T2 (PZQ)"), "T2 (PZQ)", " ") ->  | I34: 0 | M34: 0
A35: =IF(COUNTRY_INFO!A35=0," ",COUNTRY_INFO!A35) -> Congo | B35: =IF(COUNTRY_INFO!B35=0," ",COUNTRY_INFO!B35) -> Likouala | C35: =IF(COUNTRY_INFO!C35=0," ",COUNTRY_INFO!C35) -> Impfondo | D35: =IF(OR(COUNTRY_INFO!$U$9:$U$1000="T2 (PZQ)",COUNTRY_INFO!$V$9:$V$1000="T2 (PZQ)"), "T2 (PZQ)", " ") ->  | I35: 0 | M35: 0
A36: =IF(COUNTRY_INFO!A36=0," ",COUNTRY_INFO!A36) -> Congo | B36: =IF(COUNTRY_INFO!B36=0," ",COUNTRY_INFO!B36) -> Niari | C36: =IF(COUNTRY_INFO!C36=0," ",COUNTRY_INFO!C36) -> Dolisie | D36: =IF(OR(COUNTRY_INFO!$U$9:$U$1000="T2 (PZQ)",COUNTRY_INFO!$V$9:$V$1000="T2 (PZQ)"), "T2 (PZQ)", " ") ->  | I36: 0 | M36: 0
A37: =IF(COUNTRY_INFO!A37=0," ",COUNTRY_INFO!A37) -> Congo | B37: =IF(COUNTRY_INFO!B37=0," ",COUNTRY_INFO!B37) -> Niari | C37: =IF(COUNTRY_INFO!C37=0," ",COUNTRY_INFO!C37) -> Kibangou | D37: =IF(OR(COUNTRY_INFO!$U$9:$U$1000="T2 (PZQ)",COUNTRY_INFO!$V$9:$V$1000="T2 (PZQ)"), "T2 (PZQ)", " ") ->  | I37: 0 | M37: 0
A38: =IF(COUNTRY_INFO!A38=0," ",COUNTRY_INFO!A38) -> Congo | B38: =IF(COUNTRY_INFO!B38=0," ",COUNTRY_INFO!B38) -> Niari | C38: =IF(COUNTRY_INFO!C38=0," ",COUNTRY_INFO!C38) -> Kimongo-Londela Nkayes | D38: =IF(OR(COUNTRY_INFO!$U$9:$U$1000="T2 (PZQ)",COUNTRY_INFO!$V$9:$V$1000="T2 (PZQ)"), "T2 (PZQ)", " ") ->  | I38: 0 | M38: 0
A39: =IF(COUNTRY_INFO!A39=0," ",COUNTRY_INFO!A39) -> Congo | B39: =IF(COUNTRY_INFO!B39=0," ",COUNTRY_INFO!B39) -> Niari | C39: =IF(COUNTRY_INFO!C39=0," ",COUNTRY_INFO!C39) -> Mayoko | D39: =IF(OR(COUNTRY_INFO!$U$9:$U$1000="T2 (PZQ)",COUNTRY_INFO!$V$9:$V$1000="T2 (PZQ)"), "T2 (PZQ)", " ") ->  | I39: 0 | M39: 0
A40: =IF(COUNTRY_INFO!A40=0," ",COUNTRY_INFO!A40) -> Congo | B40: =IF(COUNTRY_INFO!B40=0," ",COUNTRY_INFO!B40) -> Niari | C40: =IF(COUNTRY_INFO!C40=0," ",COUNTRY_INFO!C40) -> Mossendjo | D40: =IF(OR(COUNTRY_INFO!$U$9:$U$1000="T2 (PZQ)",COUNTRY_INFO!$V$9:$V$1000="T2 (PZQ)"), "T2 (PZQ)", " ") ->  | I40: 0 | M40: 0
A41: =IF(COUNTRY_INFO!A41=0," ",COUNTRY_INFO!A41) -> Congo | B41: =IF(COUNTRY_INFO!B41=0," ",COUNTRY_INFO!B41) -> Plateaux | C41: =IF(COUNTRY_INFO!C41=0," ",COUNTRY_INFO!C41) -> Abala | D41: =IF(OR(COUNTRY_INFO!$U$9:$U$1000="T2 (PZQ)",COUNTRY_INFO!$V$9:$V$1000="T2 (PZQ)"), "T2 (PZQ)", " ") ->  | I41: 0 | M41: 0
A42: =IF(COUNTRY_INFO!A42=0," ",COUNTRY_INFO!A42) -> Congo | B42: =IF(COUNTRY_INFO!B42=0," ",COUNTRY_INFO!B42) -> Plateaux | C42: =IF(COUNTRY_INFO!C42=0," ",COUNTRY_INFO!C42) -> Djambala-Lékana | D42: =IF(OR(COUNTRY_INFO!$U$9:$U$1000="T2 (PZQ)",COUNTRY_INFO!$V$9:$V$1000="T2 (PZQ)"), "T2 (PZQ)", " ") ->  | I42: 0 | M42: 0
A43: =IF(COUNTRY_INFO!A43=0," ",COUNTRY_INFO!A43) -> Congo | B43: =IF(COUNTRY_INFO!B43=0," ",COUNTRY_INFO!B43) -> Plateaux | C43: =IF(COUNTRY_INFO!C43=0," ",COUNTRY_INFO!C43) -> Gamboma | D43: =IF(OR(COUNTRY_INFO!$U$9:$U$1000="T2 (PZQ)",COUNTRY_INFO!$V$9:$V$1000="T2 (PZQ)"), "T2 (PZQ)", " ") ->  | I43: 0 | M43: 0
A44: =IF(COUNTRY_INFO!A44=0," ",COUNTRY_INFO!A44) -> Congo | B44: =IF(COUNTRY_INFO!B44=0," ",COUNTRY_INFO!B44) -> Plateaux | C44: =IF(COUNTRY_INFO!C44=0," ",COUNTRY_INFO!C44) -> Ngo Mpouya | D44: =IF(OR(COUNTRY_INFO!$U$9:$U$1000="T2 (PZQ)",COUNTRY_INFO!$V$9:$V$1000="T2 (PZQ)"), "T2 (PZQ)", " ") ->  | I44: 0 | M44: 0
A45: =IF(COUNTRY_INFO!A45=0," ",COUNTRY_INFO!A45) -> Congo | B45: =IF(COUNTRY_INFO!B45=0," ",COUNTRY_INFO!B45) -> Pointe-Noire | C45: =IF(COUNTRY_INFO!C45=0," ",COUNTRY_INFO!C45) -> Loandjili | D45: =IF(OR(COUNTRY_INFO!$U$9:$U$1000="T2 (PZQ)",COUNTRY_INFO!$V$9:$V$1000="T2 (PZQ)"), "T2 (PZQ)", " ") ->  | I45: 0 | M45: 0
A46: =IF(COUNTRY_INFO!A46=0," ",COUNTRY_INFO!A46) -> Congo | B46: =IF(COUNTRY_INFO!B46=0," ",COUNTRY_INFO!B46) -> Pointe-Noire | C46: =IF(COUNTRY_INFO!C46=0," ",COUNTRY_INFO!C46) -> Lumumba | D46: =IF(OR(COUNTRY_INFO!$U$9:$U$1000="T2 (PZQ)",COUNTRY_INFO!$V$9:$V$1000="T2 (PZQ)"), "T2 (PZQ)", " ") ->  | I46: 0 | M46: 0
A47: =IF(COUNTRY_INFO!A47=0," ",COUNTRY_INFO!A47) -> Congo | B47: =IF(COUNTRY_INFO!B47=0," ",COUNTRY_INFO!B47) -> Pointe-Noire | C47: =IF(COUNTRY_INFO!C47=0," ",COUNTRY_INFO!C47) -> Mongo-Poukou | D47: =IF(OR(COUNTRY_INFO!$U$9:$U$1000="T2 (PZQ)",COUNTRY_INFO!$V$9:$V$1000="T2 (PZQ)"), "T2 (PZQ)", " ") ->  | I47: 0 | M47: 0
A48: =IF(COUNTRY_INFO!A48=0," ",COUNTRY_INFO!A48) -> Congo | B48: =IF(COUNTRY_INFO!B48=0," ",COUNTRY_INFO!B48) -> Pointe-Noire | C48: =IF(COUNTRY_INFO!C48=0," ",COUNTRY_INFO!C48) -> Mvoumvou | D48: =IF(OR(COUNTRY_INFO!$U$9:$U$1000="T2 (PZQ)",COUNTRY_INFO!$V$9:$V$1000="T2 (PZQ)"), "T2 (PZQ)", " ") ->  | I48: 0 | M48: 0
A49: =IF(COUNTRY_INFO!A49=0," ",COUNTRY_INFO!A49) -> Congo | B49: =IF(COUNTRY_INFO!B49=0," ",COUNTRY_INFO!B49) -> Pointe-Noire | C49: =IF(COUNTRY_INFO!C49=0," ",COUNTRY_INFO!C49) -> Ngoyo | D49: =IF(OR(COUNTRY_INFO!$U$9:$U$1000="T2 (PZQ)",COUNTRY_INFO!$V$9:$V$1000="T2 (PZQ)"), "T2 (PZQ)", " ") ->  | I49: 0 | M49: 0
A50: =IF(COUNTRY_INFO!A50=0," ",COUNTRY_INFO!A50) -> Congo | B50: =IF(COUNTRY_INFO!B50=0," ",COUNTRY_INFO!B50) -> Pointe-Noire | C50: =IF(COUNTRY_INFO!C50=0," ",COUNTRY_INFO!C50) -> Tchiamba Nzassi | D50: =IF(OR(COUNTRY_INFO!$U$9:$U$1000="T2 (PZQ)",COUNTRY_INFO!$V$9:$V$1000="T2 (PZQ)"), "T2 (PZQ)", " ") ->  | I50: 0 | M50: 0
A51: =IF(COUNTRY_INFO!A51=0," ",COUNTRY_INFO!A51) -> Congo | B51: =IF(COUNTRY_INFO!B51=0," ",COUNTRY_INFO!B51) -> Pointe-Noire | C51: =IF(COUNTRY_INFO!C51=0," ",COUNTRY_INFO!C51) -> Tie-Tie | D51: =IF(OR(COUNTRY_INFO!$U$9:$U$1000="T2 (PZQ)",COUNTRY_INFO!$V$9:$V$1000="T2 (PZQ)"), "T2 (PZQ)", " ") ->  | I51: 0 | M51: 0
A52: =IF(COUNTRY_INFO!A52=0," ",COUNTRY_INFO!A52) -> Congo | B52: =IF(COUNTRY_INFO!B52=0," ",COUNTRY_INFO!B52) -> Pool | C52: =IF(COUNTRY_INFO!C52=0," ",COUNTRY_INFO!C52) -> Boko | D52: =IF(OR(COUNTRY_INFO!$U$9:$U$1000="T2 (PZQ)",COUNTRY_INFO!$V$9:$V$1000="T2 (PZQ)"), "T2 (PZQ)", " ") ->  | I52: 0 | M52: 0
A53: =IF(COUNTRY_INFO!A53=0," ",COUNTRY_INFO!A53) -> Congo | B53: =IF(COUNTRY_INFO!B53=0," ",COUNTRY_INFO!B53) -> Pool | C53: =IF(COUNTRY_INFO!C53=0," ",COUNTRY_INFO!C53) -> Goma tsétsé | D53: =IF(OR(COUNTRY_INFO!$U$9:$U$1000="T2 (PZQ)",COUNTRY_INFO!$V$9:$V$1000="T2 (PZQ)"), "T2 (PZQ)", " ") ->  | I53: 0 | M53: 0
A54: =IF(COUNTRY_INFO!A54=0," ",COUNTRY_INFO!A54) -> Congo | B54: =IF(COUNTRY_INFO!B54=0," ",COUNTRY_INFO!B54) -> Pool | C54: =IF(COUNTRY_INFO!C54=0," ",COUNTRY_INFO!C54) -> Ignié | D54: =IF(OR(COUNTRY_INFO!$U$9:$U$1000="T2 (PZQ)",COUNTRY_INFO!$V$9:$V$1000="T2 (PZQ)"), "T2 (PZQ)", " ") ->  | I54: 0 | M54: 0
A55: =IF(COUNTRY_INFO!A55=0," ",COUNTRY_INFO!A55) -> Congo | B55: =IF(COUNTRY_INFO!B55=0," ",COUNTRY_INFO!B55) -> Pool | C55: =IF(COUNTRY_INFO!C55=0," ",COUNTRY_INFO!C55) -> Kindamba | D55: =IF(OR(COUNTRY_INFO!$U$9:$U$1000="T2 (PZQ)",COUNTRY_INFO!$V$9:$V$1000="T2 (PZQ)"), "T2 (PZQ)", " ") ->  | I55: 0 | M55: 0
A56: =IF(COUNTRY_INFO!A56=0," ",COUNTRY_INFO!A56) -> Congo | B56: =IF(COUNTRY_INFO!B56=0," ",COUNTRY_INFO!B56) -> Pool | C56: =IF(COUNTRY_INFO!C56=0," ",COUNTRY_INFO!C56) -> Kinkala | D56: =IF(OR(COUNTRY_INFO!$U$9:$U$1000="T2 (PZQ)",COUNTRY_INFO!$V$9:$V$1000="T2 (PZQ)"), "T2 (PZQ)", " ") ->  | I56: 0 | M56: 0
A57: =IF(COUNTRY_INFO!A57=0," ",COUNTRY_INFO!A57) -> Congo | B57: =IF(COUNTRY_INFO!B57=0," ",COUNTRY_INFO!B57) -> Pool | C57: =IF(COUNTRY_INFO!C57=0," ",COUNTRY_INFO!C57) -> Kintélé | D57: =IF(OR(COUNTRY_INFO!$U$9:$U$1000="T2 (PZQ)",COUNTRY_INFO!$V$9:$V$1000="T2 (PZQ)"), "T2 (PZQ)", " ") ->  | I57: 0 | M57: 0
A58: =IF(COUNTRY_INFO!A58=0," ",COUNTRY_INFO!A58) -> Congo | B58: =IF(COUNTRY_INFO!B58=0," ",COUNTRY_INFO!B58) -> Pool | C58: =IF(COUNTRY_INFO!C58=0," ",COUNTRY_INFO!C58) -> Mindouli | D58: =IF(OR(COUNTRY_INFO!$U$9:$U$1000="T2 (PZQ)",COUNTRY_INFO!$V$9:$V$1000="T2 (PZQ)"), "T2 (PZQ)", " ") ->  | I58: 0 | M58: 0
A59: =IF(COUNTRY_INFO!A59=0," ",COUNTRY_INFO!A59) -> Congo | B59: =IF(COUNTRY_INFO!B59=0," ",COUNTRY_INFO!B59) -> Sangha | C59: =IF(COUNTRY_INFO!C59=0," ",COUNTRY_INFO!C59) -> Ouesso | D59: =IF(OR(COUNTRY_INFO!$U$9:$U$1000="T2 (PZQ)",COUNTRY_INFO!$V$9:$V$1000="T2 (PZQ)"), "T2 (PZQ)", " ") ->  | I59: 0 | M59: 0
A60: =IF(COUNTRY_INFO!A60=0," ",COUNTRY_INFO!A60) -> Congo | B60: =IF(COUNTRY_INFO!B60=0," ",COUNTRY_INFO!B60) -> Sangha | C60: =IF(COUNTRY_INFO!C60=0," ",COUNTRY_INFO!C60) -> Sembé-Souanké | D60: =IF(OR(COUNTRY_INFO!$U$9:$U$1000="T2 (PZQ)",COUNTRY_INFO!$V$9:$V$1000="T2 (PZQ)"), "T2 (PZQ)", " ") ->  | I60: 0 | M60: 0

Sheet T3_R1
A1: T 3 - Albendazole (ALB) ou Mebendazole (MBD) - Tournée 1
A2: Structure administrative, population nécessitant une chimioprévention par groupe d'âge, population traitée par groupe d'âge et couverture
A4: TOTAL | G4: =SUM(G$9:G$1000) -> 0 | H4: 0 | I4: 0 | J4: 0 | K4: 0 | L4: 0 | M4: 0 | N4: 0 | O4: =IF(G4<>0, IF(K4/G4*100=0, "-", K4/G4*100), " ") ->  | P4: =IF(H4<>0, IF(L4/H4*100=0, "-", L4/H4*100), " ") ->  | Q4: =IF(I4<>0, IF(M4/I4*100=0, "-", M4/I4*100), " ") ->  | R4: =IF(J4<>0, IF(N4/J4*100=0, "-", N4/J4*100), " ") -> 
A6: Structure administrative du pays | D6: Mise en oeuvre de la CP | E6: Médica-ment | F6: Date | G6: Population ciblée pour T3 | K6: Population traitée | O6: Couverture du Programme (%)
A7: Pays | B7: Région/Département | C7: District | G7: EAPréS | H7: EAS | I7: Adultes | J7: Total | K7: EAPréS | L7: EAS | M7: Adultes | N7: Total | O7: EAPréS | P7: EAS | Q7: Adultes | R7: Total
A9: =IF(COUNTRY_INFO!A9=0," ",COUNTRY_INFO!A9) -> Congo | B9: =IF(COUNTRY_INFO!B9=0," ",COUNTRY_INFO!B9) -> Bouenza | C9: =IF(COUNTRY_INFO!C9=0," ",COUNTRY_INFO!C9) -> Loudima | D9: =IF(OR(COUNTRY_INFO!$U$9:$U$1000="T3 (ALB/MBD)",COUNTRY_INFO!$V$9:$V$1000="T3 (ALB/MBD)"), "T3 (ALB/MBD)", " ") ->  | J9: =SUM(G9:I9) -> 0 | N9: =SUM(K9:M9) -> 0 | O9: =IF(G9<>0, IF(K9/G9*100=0, "-", K9/G9*100), " ") -> 
A10: =IF(COUNTRY_INFO!A10=0," ",COUNTRY_INFO!A10) -> Congo | B10: =IF(COUNTRY_INFO!B10=0," ",COUNTRY_INFO!B10) -> Bouenza | C10: =IF(COUNTRY_INFO!C10=0," ",COUNTRY_INFO!C10) -> Loutété | D10: =IF(OR(COUNTRY_INFO!$U$9:$U$1000="T3 (ALB/MBD)",COUNTRY_INFO!$V$9:$V$1000="T3 (ALB/MBD)"), "T3 (ALB/MBD)", " ") ->  | J10: =SUM(G10:I10) -> 0 | N10: =SUM(K10:M10) -> 0 | O10: =IF(G10<>0, IF(K10/G10*100=0, "-", K10/G10*100), " ") ->  | P10: =IF(H10<>0, IF(L10/H10*100=0, "-", L10/H10*100), " ") ->  | Q10: =IF(I10<>0, IF(M10/I10*100=0, "-", M10/I10*100), " ") ->  | R10: =IF(J10<>0, IF(N10/J10*100=0, "-", N10/J10*100), " ") -> 
A11: =IF(COUNTRY_INFO!A11=0," ",COUNTRY_INFO!A11) -> Congo | B11: =IF(COUNTRY_INFO!B11=0," ",COUNTRY_INFO!B11) -> Bouenza | C11: =IF(COUNTRY_INFO!C11=0," ",COUNTRY_INFO!C11) -> Madingou | D11: =IF(OR(COUNTRY_INFO!$U$9:$U$1000="T3 (ALB/MBD)",COUNTRY_INFO!$V$9:$V$1000="T3 (ALB/MBD)"), "T3 (ALB/MBD)", " ") ->  | J11: 0 | N11: 0
A12: =IF(COUNTRY_INFO!A12=0," ",COUNTRY_INFO!A12) -> Congo | B12: =IF(COUNTRY_INFO!B12=0," ",COUNTRY_INFO!B12) -> Bouenza | C12: =IF(COUNTRY_INFO!C12=0," ",COUNTRY_INFO!C12) -> Mouyondzi | D12: =IF(OR(COUNTRY_INFO!$U$9:$U$1000="T3 (ALB/MBD)",COUNTRY_INFO!$V$9:$V$1000="T3 (ALB/MBD)"), "T3 (ALB/MBD)", " ") ->  | J12: 0 | N12: 0
A13: =IF(COUNTRY_INFO!A13=0," ",COUNTRY_INFO!A13) -> Congo | B13: =IF(COUNTRY_INFO!B13=0," ",COUNTRY_INFO!B13) -> Bouenza | C13: =IF(COUNTRY_INFO!C13=0," ",COUNTRY_INFO!C13) -> Nkayi | D13: =IF(OR(COUNTRY_INFO!$U$9:$U$1000="T3 (ALB/MBD)",COUNTRY_INFO!$V$9:$V$1000="T3 (ALB/MBD)"), "T3 (ALB/MBD)", " ") ->  | J13: 0 | N13: 0
A14: =IF(COUNTRY_INFO!A14=0," ",COUNTRY_INFO!A14) -> Congo | B14: =IF(COUNTRY_INFO!B14=0," ",COUNTRY_INFO!B14) -> Brazzaville | C14: =IF(COUNTRY_INFO!C14=0," ",COUNTRY_INFO!C14) -> Bacongo | D14: =IF(OR(COUNTRY_INFO!$U$9:$U$1000="T3 (ALB/MBD)",COUNTRY_INFO!$V$9:$V$1000="T3 (ALB/MBD)"), "T3 (ALB/MBD)", " ") ->  | J14: 0 | N14: 0
A15: =IF(COUNTRY_INFO!A15=0," ",COUNTRY_INFO!A15) -> Congo | B15: =IF(COUNTRY_INFO!B15=0," ",COUNTRY_INFO!B15) -> Brazzaville | C15: =IF(COUNTRY_INFO!C15=0," ",COUNTRY_INFO!C15) -> Djiri | D15: =IF(OR(COUNTRY_INFO!$U$9:$U$1000="T3 (ALB/MBD)",COUNTRY_INFO!$V$9:$V$1000="T3 (ALB/MBD)"), "T3 (ALB/MBD)", " ") ->  | J15: 0 | N15: 0
A16: =IF(COUNTRY_INFO!A16=0," ",COUNTRY_INFO!A16) -> Congo | B16: =IF(COUNTRY_INFO!B16=0," ",COUNTRY_INFO!B16) -> Brazzaville | C16: =IF(COUNTRY_INFO!C16=0," ",COUNTRY_INFO!C16) -> Île Mbamou | D16: =IF(OR(COUNTRY_INFO!$U$9:$U$1000="T3 (ALB/MBD)",COUNTRY_INFO!$V$9:$V$1000="T3 (ALB/MBD)"), "T3 (ALB/MBD)", " ") ->  | J16: 0 | N16: 0
A17: =IF(COUNTRY_INFO!A17=0," ",COUNTRY_INFO!A17) -> Congo | B17: =IF(COUNTRY_INFO!B17=0," ",COUNTRY_INFO!B17) -> Brazzaville | C17: =IF(COUNTRY_INFO!C17=0," ",COUNTRY_INFO!C17) -> Madibou | D17: =IF(OR(COUNTRY_INFO!$U$9:$U$1000="T3 (ALB/MBD)",COUNTRY_INFO!$V$9:$V$1000="T3 (ALB/MBD)"), "T3 (ALB/MBD)", " ") ->  | J17: 0 | N17: 0
A18: =IF(COUNTRY_INFO!A18=0," ",COUNTRY_INFO!A18) -> Congo | B18: =IF(COUNTRY_INFO!B18=0," ",COUNTRY_INFO!B18) -> Brazzaville | C18: =IF(COUNTRY_INFO!C18=0," ",COUNTRY_INFO!C18) -> Makélékélé | D18: =IF(OR(COUNTRY_INFO!$U$9:$U$1000="T3 (ALB/MBD)",COUNTRY_INFO!$V$9:$V$1000="T3 (ALB/MBD)"), "T3 (ALB/MBD)", " ") ->  | J18: 0 | N18: 0
A19: =IF(COUNTRY_INFO!A19=0," ",COUNTRY_INFO!A19) -> Congo | B19: =IF(COUNTRY_INFO!B19=0," ",COUNTRY_INFO!B19) -> Brazzaville | C19: =IF(COUNTRY_INFO!C19=0," ",COUNTRY_INFO!C19) -> Mfilou | D19: =IF(OR(COUNTRY_INFO!$U$9:$U$1000="T3 (ALB/MBD)",COUNTRY_INFO!$V$9:$V$1000="T3 (ALB/MBD)"), "T3 (ALB/MBD)", " ") ->  | J19: 0 | N19: 0
A20: =IF(COUNTRY_INFO!A20=0," ",COUNTRY_INFO!A20) -> Congo | B20: =IF(COUNTRY_INFO!B20=0," ",COUNTRY_INFO!B20) -> Brazzaville | C20: =IF(COUNTRY_INFO!C20=0," ",COUNTRY_INFO!C20) -> Moungali | D20: =IF(OR(COUNTRY_INFO!$U$9:$U$1000="T3 (ALB/MBD)",COUNTRY_INFO!$V$9:$V$1000="T3 (ALB/MBD)"), "T3 (ALB/MBD)", " ") ->  | J20: 0 | N20: 0
A21: =IF(COUNTRY_INFO!A21=0," ",COUNTRY_INFO!A21) -> Congo | B21: =IF(COUNTRY_INFO!B21=0," ",COUNTRY_INFO!B21) -> Brazzaville | C21: =IF(COUNTRY_INFO!C21=0," ",COUNTRY_INFO!C21) -> Ouenzé | D21: =IF(OR(COUNTRY_INFO!$U$9:$U$1000="T3 (ALB/MBD)",COUNTRY_INFO!$V$9:$V$1000="T3 (ALB/MBD)"), "T3 (ALB/MBD)", " ") ->  | J21: 0 | N21: 0
A22: =IF(COUNTRY_INFO!A22=0," ",COUNTRY_INFO!A22) -> Congo | B22: =IF(COUNTRY_INFO!B22=0," ",COUNTRY_INFO!B22) -> Brazzaville | C22: =IF(COUNTRY_INFO!C22=0," ",COUNTRY_INFO!C22) -> Poto-Poto | D22: =IF(OR(COUNTRY_INFO!$U$9:$U$1000="T3 (ALB/MBD)",COUNTRY_INFO!$V$9:$V$1000="T3 (ALB/MBD)"), "T3 (ALB/MBD)", " ") ->  | J22: 0 | N22: 0
A23: =IF(COUNTRY_INFO!A23=0," ",COUNTRY_INFO!A23) -> Congo | B23: =IF(COUNTRY_INFO!B23=0," ",COUNTRY_INFO!B23) -> Brazzaville | C23: =IF(COUNTRY_INFO!C23=0," ",COUNTRY_INFO!C23) -> Talangaî | D23: =IF(OR(COUNTRY_INFO!$U$9:$U$1000="T3 (ALB/MBD)",COUNTRY_INFO!$V$9:$V$1000="T3 (ALB/MBD)"), "T3 (ALB/MBD)", " ") ->  | J23: 0 | N23: 0
A24: =IF(COUNTRY_INFO!A24=0," ",COUNTRY_INFO!A24) -> Congo | B24: =IF(COUNTRY_INFO!B24=0," ",COUNTRY_INFO!B24) -> Cuvette | C24: =IF(COUNTRY_INFO!C24=0," ",COUNTRY_INFO!C24) -> Mossaka | D24: =IF(OR(COUNTRY_INFO!$U$9:$U$1000="T3 (ALB/MBD)",COUNTRY_INFO!$V$9:$V$1000="T3 (ALB/MBD)"), "T3 (ALB/MBD)", " ") ->  | J24: 0 | N24: 0
A25: =IF(COUNTRY_INFO!A25=0," ",COUNTRY_INFO!A25) -> Congo | B25: =IF(COUNTRY_INFO!B25=0," ",COUNTRY_INFO!B25) -> Cuvette | C25: =IF(COUNTRY_INFO!C25=0," ",COUNTRY_INFO!C25) -> Owando | D25: =IF(OR(COUNTRY_INFO!$U$9:$U$1000="T3 (ALB/MBD)",COUNTRY_INFO!$V$9:$V$1000="T3 (ALB/MBD)"), "T3 (ALB/MBD)", " ") ->  | J25: 0 | N25: 0
A26: =IF(COUNTRY_INFO!A26=0," ",COUNTRY_INFO!A26) -> Congo | B26: =IF(COUNTRY_INFO!B26=0," ",COUNTRY_INFO!B26) -> Cuvette | C26: =IF(COUNTRY_INFO!C26=0," ",COUNTRY_INFO!C26) -> Oyo-Alima | D26: =IF(OR(COUNTRY_INFO!$U$9:$U$1000="T3 (ALB/MBD)",COUNTRY_INFO!$V$9:$V$1000="T3 (ALB/MBD)"), "T3 (ALB/MBD)", " ") ->  | J26: 0 | N26: 0
A27: =IF(COUNTRY_INFO!A27=0," ",COUNTRY_INFO!A27) -> Congo | B27: =IF(COUNTRY_INFO!B27=0," ",COUNTRY_INFO!B27) -> Cuvette-Ouest | C27: =IF(COUNTRY_INFO!C27=0," ",COUNTRY_INFO!C27) -> Etoumbi | D27: =IF(OR(COUNTRY_INFO!$U$9:$U$1000="T3 (ALB/MBD)",COUNTRY_INFO!$V$9:$V$1000="T3 (ALB/MBD)"), "T3 (ALB/MBD)", " ") ->  | J27: 0 | N27: 0
A28: =IF(COUNTRY_INFO!A28=0," ",COUNTRY_INFO!A28) -> Congo | B28: =IF(COUNTRY_INFO!B28=0," ",COUNTRY_INFO!B28) -> Cuvette-Ouest | C28: =IF(COUNTRY_INFO!C28=0," ",COUNTRY_INFO!C28) -> Ewo | D28: =IF(OR(COUNTRY_INFO!$U$9:$U$1000="T3 (ALB/MBD)",COUNTRY_INFO!$V$9:$V$1000="T3 (ALB/MBD)"), "T3 (ALB/MBD)", " ") ->  | J28: 0 | N28: 0
A29: =IF(COUNTRY_INFO!A29=0," ",COUNTRY_INFO!A29) -> Congo | B29: =IF(COUNTRY_INFO!B29=0," ",COUNTRY_INFO!B29) -> Kouilou | C29: =IF(COUNTRY_INFO!C29=0," ",COUNTRY_INFO!C29) -> Hinda-Loango | D29: =IF(OR(COUNTRY_INFO!$U$9:$U$1000="T3 (ALB/MBD)",COUNTRY_INFO!$V$9:$V$1000="T3 (ALB/MBD)"), "T3 (ALB/MBD)", " ") ->  | J29: 0 | N29: 0
A30: =IF(COUNTRY_INFO!A30=0," ",COUNTRY_INFO!A30) -> Congo | B30: =IF(COUNTRY_INFO!B30=0," ",COUNTRY_INFO!B30) -> Kouilou | C30: =IF(COUNTRY_INFO!C30=0," ",COUNTRY_INFO!C30) -> Madingo Kayes-Nzambi | D30: =IF(OR(COUNTRY_INFO!$U$9:$U$1000="T3 (ALB/MBD)",COUNTRY_INFO!$V$9:$V$1000="T3 (ALB/MBD)"), "T3 (ALB/MBD)", " ") ->  | J30: 0 | N30: 0
A31: =IF(COUNTRY_INFO!A31=0," ",COUNTRY_INFO!A31) -> Congo | B31: =IF(COUNTRY_INFO!B31=0," ",COUNTRY_INFO!B31) -> Kouilou | C31: =IF(COUNTRY_INFO!C31=0," ",COUNTRY_INFO!C31) -> Mvouti-Kakamouéka | D31: =IF(OR(COUNTRY_INFO!$U$9:$U$1000="T3 (ALB/MBD)",COUNTRY_INFO!$V$9:$V$1000="T3 (ALB/MBD)"), "T3 (ALB/MBD)", " ") ->  | J31: 0 | N31: 0
A32: =IF(COUNTRY_INFO!A32=0," ",COUNTRY_INFO!A32) -> Congo | B32: =IF(COUNTRY_INFO!B32=0," ",COUNTRY_INFO!B32) -> Lékoumou | C32: =IF(COUNTRY_INFO!C32=0," ",COUNTRY_INFO!C32) -> Sibiti | D32: =IF(OR(COUNTRY_INFO!$U$9:$U$1000="T3 (ALB/MBD)",COUNTRY_INFO!$V$9:$V$1000="T3 (ALB/MBD)"), "T3 (ALB/MBD)", " ") ->  | J32: 0 | N32: 0
A33: =IF(COUNTRY_INFO!A33=0," ",COUNTRY_INFO!A33) -> Congo | B33: =IF(COUNTRY_INFO!B33=0," ",COUNTRY_INFO!B33) -> Lékoumou | C33: =IF(COUNTRY_INFO!C33=0," ",COUNTRY_INFO!C33) -> Zanaga | D33: =IF(OR(COUNTRY_INFO!$U$9:$U$1000="T3 (ALB/MBD)",COUNTRY_INFO!$V$9:$V$1000="T3 (ALB/MBD)"), "T3 (ALB/MBD)", " ") ->  | J33: 0 | N33: 0
A34: =IF(COUNTRY_INFO!A34=0," ",COUNTRY_INFO!A34) -> Congo | B34: =IF(COUNTRY_INFO!B34=0," ",COUNTRY_INFO!B34) -> Likouala | C34: =IF(COUNTRY_INFO!C34=0," ",COUNTRY_INFO!C34) -> Bétou | D34: =IF(OR(COUNTRY_INFO!$U$9:$U$1000="T3 (ALB/MBD)",COUNTRY_INFO!$V$9:$V$1000="T3 (ALB/MBD)"), "T3 (ALB/MBD)", " ") ->  | J34: 0 | N34: 0
A35: =IF(COUNTRY_INFO!A35=0," ",COUNTRY_INFO!A35) -> Congo | B35: =IF(COUNTRY_INFO!B35=0," ",COUNTRY_INFO!B35) -> Likouala | C35: =IF(COUNTRY_INFO!C35=0," ",COUNTRY_INFO!C35) -> Impfondo | D35: =IF(OR(COUNTRY_INFO!$U$9:$U$1000="T3 (ALB/MBD)",COUNTRY_INFO!$V$9:$V$1000="T3 (ALB/MBD)"), "T3 (ALB/MBD)", " ") ->  | J35: 0 | N35: 0
A36: =IF(COUNTRY_INFO!A36=0," ",COUNTRY_INFO!A36) -> Congo | B36: =IF(COUNTRY_INFO!B36=0," ",COUNTRY_INFO!B36) -> Niari | C36: =IF(COUNTRY_INFO!C36=0," ",COUNTRY_INFO!C36) -> Dolisie | D36: =IF(OR(COUNTRY_INFO!$U$9:$U$1000="T3 (ALB/MBD)",COUNTRY_INFO!$V$9:$V$1000="T3 (ALB/MBD)"), "T3 (ALB/MBD)", " ") ->  | J36: 0 | N36: 0
A37: =IF(COUNTRY_INFO!A37=0," ",COUNTRY_INFO!A37) -> Congo | B37: =IF(COUNTRY_INFO!B37=0," ",COUNTRY_INFO!B37) -> Niari | C37: =IF(COUNTRY_INFO!C37=0," ",COUNTRY_INFO!C37) -> Kibangou | D37: =IF(OR(COUNTRY_INFO!$U$9:$U$1000="T3 (ALB/MBD)",COUNTRY_INFO!$V$9:$V$1000="T3 (ALB/MBD)"), "T3 (ALB/MBD)", " ") ->  | J37: 0 | N37: 0
A38: =IF(COUNTRY_INFO!A38=0," ",COUNTRY_INFO!A38) -> Congo | B38: =IF(COUNTRY_INFO!B38=0," ",COUNTRY_INFO!B38) -> Niari | C38: =IF(COUNTRY_INFO!C38=0," ",COUNTRY_INFO!C38) -> Kimongo-Londela Nkayes | D38: =IF(OR(COUNTRY_INFO!$U$9:$U$1000="T3 (ALB/MBD)",COUNTRY_INFO!$V$9:$V$1000="T3 (ALB/MBD)"), "T3 (ALB/MBD)", " ") ->  | J38: 0 | N38: 0
A39: =IF(COUNTRY_INFO!A39=0," ",COUNTRY_INFO!A39) -> Congo | B39: =IF(COUNTRY_INFO!B39=0," ",COUNTRY_INFO!B39) -> Niari | C39: =IF(COUNTRY_INFO!C39=0," ",COUNTRY_INFO!C39) -> Mayoko | D39: =IF(OR(COUNTRY_INFO!$U$9:$U$1000="T3 (ALB/MBD)",COUNTRY_INFO!$V$9:$V$1000="T3 (ALB/MBD)"), "T3 (ALB/MBD)", " ") ->  | J39: 0 | N39: 0
A40: =IF(COUNTRY_INFO!A40=0," ",COUNTRY_INFO!A40) -> Congo | B40: =IF(COUNTRY_INFO!B40=0," ",COUNTRY_INFO!B40) -> Niari | C40: =IF(COUNTRY_INFO!C40=0," ",COUNTRY_INFO!C40) -> Mossendjo | D40: =IF(OR(COUNTRY_INFO!$U$9:$U$1000="T3 (ALB/MBD)",COUNTRY_INFO!$V$9:$V$1000="T3 (ALB/MBD)"), "T3 (ALB/MBD)", " ") ->  | J40: 0 | N40: 0
A41: =IF(COUNTRY_INFO!A41=0," ",COUNTRY_INFO!A41) -> Congo | B41: =IF(COUNTRY_INFO!B41=0," ",COUNTRY_INFO!B41) -> Plateaux | C41: =IF(COUNTRY_INFO!C41=0," ",COUNTRY_INFO!C41) -> Abala | D41: =IF(OR(COUNTRY_INFO!$U$9:$U$1000="T3 (ALB/MBD)",COUNTRY_INFO!$V$9:$V$1000="T3 (ALB/MBD)"), "T3 (ALB/MBD)", " ") ->  | J41: 0 | N41: 0
A42: =IF(COUNTRY_INFO!A42=0," ",COUNTRY_INFO!A42) -> Congo | B42: =IF(COUNTRY_INFO!B42=0," ",COUNTRY_INFO!B42) -> Plateaux | C42: =IF(COUNTRY_INFO!C42=0," ",COUNTRY_INFO!C42) -> Djambala-Lékana | D42: =IF(OR(COUNTRY_INFO!$U$9:$U$1000="T3 (ALB/MBD)",COUNTRY_INFO!$V$9:$V$1000="T3 (ALB/MBD)"), "T3 (ALB/MBD)", " ") ->  | J42: 0 | N42: 0
A43: =IF(COUNTRY_INFO!A43=0," ",COUNTRY_INFO!A43) -> Congo | B43: =IF(COUNTRY_INFO!B43=0," ",COUNTRY_INFO!B43) -> Plateaux | C43: =IF(COUNTRY_INFO!C43=0," ",COUNTRY_INFO!C43) -> Gamboma | D43: =IF(OR(COUNTRY_INFO!$U$9:$U$1000="T3 (ALB/MBD)",COUNTRY_INFO!$V$9:$V$1000="T3 (ALB/MBD)"), "T3 (ALB/MBD)", " ") ->  | J43: 0 | N43: 0
A44: =IF(COUNTRY_INFO!A44=0," ",COUNTRY_INFO!A44) -> Congo | B44: =IF(COUNTRY_INFO!B44=0," ",COUNTRY_INFO!B44) -> Plateaux | C44: =IF(COUNTRY_INFO!C44=0," ",COUNTRY_INFO!C44) -> Ngo Mpouya | D44: =IF(OR(COUNTRY_INFO!$U$9:$U$1000="T3 (ALB/MBD)",COUNTRY_INFO!$V$9:$V$1000="T3 (ALB/MBD)"), "T3 (ALB/MBD)", " ") ->  | J44: 0 | N44: 0
A45: =IF(COUNTRY_INFO!A45=0," ",COUNTRY_INFO!A45) -> Congo | B45: =IF(COUNTRY_INFO!B45=0," ",COUNTRY_INFO!B45) -> Pointe-Noire | C45: =IF(COUNTRY_INFO!C45=0," ",COUNTRY_INFO!C45) -> Loandjili | D45: =IF(OR(COUNTRY_INFO!$U$9:$U$1000="T3 (ALB/MBD)",COUNTRY_INFO!$V$9:$V$1000="T3 (ALB/MBD)"), "T3 (ALB/MBD)", " ") ->  | J45: 0 | N45: 0
A46: =IF(COUNTRY_INFO!A46=0," ",COUNTRY_INFO!A46) -> Congo | B46: =IF(COUNTRY_INFO!B46=0," ",COUNTRY_INFO!B46) -> Pointe-Noire | C46: =IF(COUNTRY_INFO!C46=0," ",COUNTRY_INFO!C46) -> Lumumba | D46: =IF(OR(COUNTRY_INFO!$U$9:$U$1000="T3 (ALB/MBD)",COUNTRY_INFO!$V$9:$V$1000="T3 (ALB/MBD)"), "T3 (ALB/MBD)", " ") ->  | J46: 0 | N46: 0
A47: =IF(COUNTRY_INFO!A47=0," ",COUNTRY_INFO!A47) -> Congo | B47: =IF(COUNTRY_INFO!B47=0," ",COUNTRY_INFO!B47) -> Pointe-Noire | C47: =IF(COUNTRY_INFO!C47=0," ",COUNTRY_INFO!C47) -> Mongo-Poukou | D47: =IF(OR(COUNTRY_INFO!$U$9:$U$1000="T3 (ALB/MBD)",COUNTRY_INFO!$V$9:$V$1000="T3 (ALB/MBD)"), "T3 (ALB/MBD)", " ") ->  | J47: 0 | N47: 0
A48: =IF(COUNTRY_INFO!A48=0," ",COUNTRY_INFO!A48) -> Congo | B48: =IF(COUNTRY_INFO!B48=0," ",COUNTRY_INFO!B48) -> Pointe-Noire | C48: =IF(COUNTRY_INFO!C48=0," ",COUNTRY_INFO!C48) -> Mvoumvou | D48: =IF(OR(COUNTRY_INFO!$U$9:$U$1000="T3 (ALB/MBD)",COUNTRY_INFO!$V$9:$V$1000="T3 (ALB/MBD)"), "T3 (ALB/MBD)", " ") ->  | J48: 0 | N48: 0
A49: =IF(COUNTRY_INFO!A49=0," ",COUNTRY_INFO!A49) -> Congo | B49: =IF(COUNTRY_INFO!B49=0," ",COUNTRY_INFO!B49) -> Pointe-Noire | C49: =IF(COUNTRY_INFO!C49=0," ",COUNTRY_INFO!C49) -> Ngoyo | D49: =IF(OR(COUNTRY_INFO!$U$9:$U$1000="T3 (ALB/MBD)",COUNTRY_INFO!$V$9:$V$1000="T3 (ALB/MBD)"), "T3 (ALB/MBD)", " ") ->  | J49: 0 | N49: 0
A50: =IF(COUNTRY_INFO!A50=0," ",COUNTRY_INFO!A50) -> Congo | B50: =IF(COUNTRY_INFO!B50=0," ",COUNTRY_INFO!B50) -> Pointe-Noire | C50: =IF(COUNTRY_INFO!C50=0," ",COUNTRY_INFO!C50) -> Tchiamba Nzassi | D50: =IF(OR(COUNTRY_INFO!$U$9:$U$1000="T3 (ALB/MBD)",COUNTRY_INFO!$V$9:$V$1000="T3 (ALB/MBD)"), "T3 (ALB/MBD)", " ") ->  | J50: 0 | N50: 0
A51: =IF(COUNTRY_INFO!A51=0," ",COUNTRY_INFO!A51) -> Congo | B51: =IF(COUNTRY_INFO!B51=0," ",COUNTRY_INFO!B51) -> Pointe-Noire | C51: =IF(COUNTRY_INFO!C51=0," ",COUNTRY_INFO!C51) -> Tie-Tie | D51: =IF(OR(COUNTRY_INFO!$U$9:$U$1000="T3 (ALB/MBD)",COUNTRY_INFO!$V$9:$V$1000="T3 (ALB/MBD)"), "T3 (ALB/MBD)", " ") ->  | J51: 0 | N51: 0
A52: =IF(COUNTRY_INFO!A52=0," ",COUNTRY_INFO!A52) -> Congo | B52: =IF(COUNTRY_INFO!B52=0," ",COUNTRY_INFO!B52) -> Pool | C52: =IF(COUNTRY_INFO!C52=0," ",COUNTRY_INFO!C52) -> Boko | D52: =IF(OR(COUNTRY_INFO!$U$9:$U$1000="T3 (ALB/MBD)",COUNTRY_INFO!$V$9:$V$1000="T3 (ALB/MBD)"), "T3 (ALB/MBD)", " ") ->  | J52: 0 | N52: 0
A53: =IF(COUNTRY_INFO!A53=0," ",COUNTRY_INFO!A53) -> Congo | B53: =IF(COUNTRY_INFO!B53=0," ",COUNTRY_INFO!B53) -> Pool | C53: =IF(COUNTRY_INFO!C53=0," ",COUNTRY_INFO!C53) -> Goma tsétsé | D53: =IF(OR(COUNTRY_INFO!$U$9:$U$1000="T3 (ALB/MBD)",COUNTRY_INFO!$V$9:$V$1000="T3 (ALB/MBD)"), "T3 (ALB/MBD)", " ") ->  | J53: 0 | N53: 0
A54: =IF(COUNTRY_INFO!A54=0," ",COUNTRY_INFO!A54) -> Congo | B54: =IF(COUNTRY_INFO!B54=0," ",COUNTRY_INFO!B54) -> Pool | C54: =IF(COUNTRY_INFO!C54=0," ",COUNTRY_INFO!C54) -> Ignié | D54: =IF(OR(COUNTRY_INFO!$U$9:$U$1000="T3 (ALB/MBD)",COUNTRY_INFO!$V$9:$V$1000="T3 (ALB/MBD)"), "T3 (ALB/MBD)", " ") ->  | J54: 0 | N54: 0
A55: =IF(COUNTRY_INFO!A55=0," ",COUNTRY_INFO!A55) -> Congo | B55: =IF(COUNTRY_INFO!B55=0," ",COUNTRY_INFO!B55) -> Pool | C55: =IF(COUNTRY_INFO!C55=0," ",COUNTRY_INFO!C55) -> Kindamba | D55: =IF(OR(COUNTRY_INFO!$U$9:$U$1000="T3 (ALB/MBD)",COUNTRY_INFO!$V$9:$V$1000="T3 (ALB/MBD)"), "T3 (ALB/MBD)", " ") ->  | J55: 0 | N55: 0
A56: =IF(COUNTRY_INFO!A56=0," ",COUNTRY_INFO!A56) -> Congo | B56: =IF(COUNTRY_INFO!B56=0," ",COUNTRY_INFO!B56) -> Pool | C56: =IF(COUNTRY_INFO!C56=0," ",COUNTRY_INFO!C56) -> Kinkala | D56: =IF(OR(COUNTRY_INFO!$U$9:$U$1000="T3 (ALB/MBD)",COUNTRY_INFO!$V$9:$V$1000="T3 (ALB/MBD)"), "T3 (ALB/MBD)", " ") ->  | J56: 0 | N56: 0
A57: =IF(COUNTRY_INFO!A57=0," ",COUNTRY_INFO!A57) -> Congo | B57: =IF(COUNTRY_INFO!B57=0," ",COUNTRY_INFO!B57) -> Pool | C57: =IF(COUNTRY_INFO!C57=0," ",COUNTRY_INFO!C57) -> Kintélé | D57: =IF(OR(COUNTRY_INFO!$U$9:$U$1000="T3 (ALB/MBD)",COUNTRY_INFO!$V$9:$V$1000="T3 (ALB/MBD)"), "T3 (ALB/MBD)", " ") ->  | J57: 0 | N57: 0
A58: =IF(COUNTRY_INFO!A58=0," ",COUNTRY_INFO!A58) -> Congo | B58: =IF(COUNTRY_INFO!B58=0," ",COUNTRY_INFO!B58) -> Pool | C58: =IF(COUNTRY_INFO!C58=0," ",COUNTRY_INFO!C58) -> Mindouli | D58: =IF(OR(COUNTRY_INFO!$U$9:$U$1000="T3 (ALB/MBD)",COUNTRY_INFO!$V$9:$V$1000="T3 (ALB/MBD)"), "T3 (ALB/MBD)", " ") ->  | J58: 0 | N58: 0
A59: =IF(COUNTRY_INFO!A59=0," ",COUNTRY_INFO!A59) -> Congo | B59: =IF(COUNTRY_INFO!B59=0," ",COUNTRY_INFO!B59) -> Sangha | C59: =IF(COUNTRY_INFO!C59=0," ",COUNTRY_INFO!C59) -> Ouesso | D59: =IF(OR(COUNTRY_INFO!$U$9:$U$1000="T3 (ALB/MBD)",COUNTRY_INFO!$V$9:$V$1000="T3 (ALB/MBD)"), "T3 (ALB/MBD)", " ") ->  | J59: 0 | N59: 0
A60: =IF(COUNTRY_INFO!A60=0," ",COUNTRY_INFO!A60) -> Congo | B60: =IF(COUNTRY_INFO!B60=0," ",COUNTRY_INFO!B60) -> Sangha | C60: =IF(COUNTRY_INFO!C60=0," ",COUNTRY_INFO!C60) -> Sembé-Souanké | D60: =IF(OR(COUNTRY_INFO!$U$9:$U$1000="T3 (ALB/MBD)",COUNTRY_INFO!$V$9:$V$1000="T3 (ALB/MBD)"), "T3 (ALB/MBD)", " ") ->  | J60: 0 | N60: 0

Sheet T3_R2
A1: T 3 - Albendazole (ALB) ou Mebendazole (MBD) - Tournée 2
A2: Structure administrative, population nécessitant une chimioprévention par groupe d'âge, population traitée par groupe d'âge et couverture
A4: TOTAL | G4: =SUM(G$9:G$1000) -> 0 | H4: 0 | I4: 0 | J4: 0 | K4: 0 | L4: 0 | M4: 0 | N4: 0 | O4: =IF(G4<>0, IF(K4/G4*100=0, "-", K4/G4*100), " ") ->  | P4: =IF(H4<>0, IF(L4/H4*100=0, "-", L4/H4*100), " ") ->  | Q4: =IF(I4<>0, IF(M4/I4*100=0, "-", M4/I4*100), " ") ->  | R4: =IF(J4<>0, IF(N4/J4*100=0, "-", N4/J4*100), " ") -> 
A6: Structure administrative du pays | D6: Mise en oeuvre de la CP | E6: Médica-ment | F6: Date | G6: Population ciblée pour T3 | K6: Population traitée | O6: Couverture du Programme (%)
A7: Pays | B7: Région/Département | C7: District | G7: EAPréS | H7: EAS | I7: Adultes | J7: Total | K7: EAPréS | L7: EAS | M7: Adultes | N7: Total | O7: EAPréS | P7: EAS | Q7: Adultes | R7: Total
A9: =IF(COUNTRY_INFO!A9=0," ",COUNTRY_INFO!A9) -> Congo | B9: =IF(COUNTRY_INFO!B9=0," ",COUNTRY_INFO!B9) -> Bouenza | C9: =IF(COUNTRY_INFO!C9=0," ",COUNTRY_INFO!C9) -> Loudima | D9: =IF(AND(COUNTRY_INFO!$U$9:$U$1000="T3 (ALB/MBD)",COUNTRY_INFO!$V$9:$V$1000="T3 (ALB/MBD)"), "T3 (ALB/MBD)", " ") ->  | J9: =SUM(G9:I9) -> 0 | N9: =SUM(K9:M9) -> 0 | O9: =IF(G9<>0, IF(K9/G9*100=0, "-", K9/G9*100), " ") -> 
A10: =IF(COUNTRY_INFO!A10=0," ",COUNTRY_INFO!A10) -> Congo | B10: =IF(COUNTRY_INFO!B10=0," ",COUNTRY_INFO!B10) -> Bouenza | C10: =IF(COUNTRY_INFO!C10=0," ",COUNTRY_INFO!C10) -> Loutété | D10: =IF(AND(COUNTRY_INFO!$U$9:$U$1000="T3 (ALB/MBD)",COUNTRY_INFO!$V$9:$V$1000="T3 (ALB/MBD)"), "T3 (ALB/MBD)", " ") ->  | J10: =SUM(G10:I10) -> 0 | N10: =SUM(K10:M10) -> 0 | O10: =IF(G10<>0, IF(K10/G10*100=0, "-", K10/G10*100), " ") ->  | P10: =IF(H10<>0, IF(L10/H10*100=0, "-", L10/H10*100), " ") ->  | Q10: =IF(I10<>0, IF(M10/I10*100=0, "-", M10/I10*100), " ") ->  | R10: =IF(J10<>0, IF(N10/J10*100=0, "-", N10/J10*100), " ") -> 
A11: =IF(COUNTRY_INFO!A11=0," ",COUNTRY_INFO!A11) -> Congo | B11: =IF(COUNTRY_INFO!B11=0," ",COUNTRY_INFO!B11) -> Bouenza | C11: =IF(COUNTRY_INFO!C11=0," ",COUNTRY_INFO!C11) -> Madingou | D11: =IF(AND(COUNTRY_INFO!$U$9:$U$1000="T3 (ALB/MBD)",COUNTRY_INFO!$V$9:$V$1000="T3 (ALB/MBD)"), "T3 (ALB/MBD)", " ") ->  | J11: 0 | N11: 0
A12: =IF(COUNTRY_INFO!A12=0," ",COUNTRY_INFO!A12) -> Congo | B12: =IF(COUNTRY_INFO!B12=0," ",COUNTRY_INFO!B12) -> Bouenza | C12: =IF(COUNTRY_INFO!C12=0," ",COUNTRY_INFO!C12) -> Mouyondzi | D12: =IF(AND(COUNTRY_INFO!$U$9:$U$1000="T3 (ALB/MBD)",COUNTRY_INFO!$V$9:$V$1000="T3 (ALB/MBD)"), "T3 (ALB/MBD)", " ") ->  | J12: 0 | N12: 0
A13: =IF(COUNTRY_INFO!A13=0," ",COUNTRY_INFO!A13) -> Congo | B13: =IF(COUNTRY_INFO!B13=0," ",COUNTRY_INFO!B13) -> Bouenza | C13: =IF(COUNTRY_INFO!C13=0," ",COUNTRY_INFO!C13) -> Nkayi | D13: =IF(AND(COUNTRY_INFO!$U$9:$U$1000="T3 (ALB/MBD)",COUNTRY_INFO!$V$9:$V$1000="T3 (ALB/MBD)"), "T3 (ALB/MBD)", " ") ->  | J13: 0 | N13: 0
A14: =IF(COUNTRY_INFO!A14=0," ",COUNTRY_INFO!A14) -> Congo | B14: =IF(COUNTRY_INFO!B14=0," ",COUNTRY_INFO!B14) -> Brazzaville | C14: =IF(COUNTRY_INFO!C14=0," ",COUNTRY_INFO!C14) -> Bacongo | D14: =IF(AND(COUNTRY_INFO!$U$9:$U$1000="T3 (ALB/MBD)",COUNTRY_INFO!$V$9:$V$1000="T3 (ALB/MBD)"), "T3 (ALB/MBD)", " ") ->  | J14: 0 | N14: 0
A15: =IF(COUNTRY_INFO!A15=0," ",COUNTRY_INFO!A15) -> Congo | B15: =IF(COUNTRY_INFO!B15=0," ",COUNTRY_INFO!B15) -> Brazzaville | C15: =IF(COUNTRY_INFO!C15=0," ",COUNTRY_INFO!C15) -> Djiri | D15: =IF(AND(COUNTRY_INFO!$U$9:$U$1000="T3 (ALB/MBD)",COUNTRY_INFO!$V$9:$V$1000="T3 (ALB/MBD)"), "T3 (ALB/MBD)", " ") ->  | J15: 0 | N15: 0
A16: =IF(COUNTRY_INFO!A16=0," ",COUNTRY_INFO!A16) -> Congo | B16: =IF(COUNTRY_INFO!B16=0," ",COUNTRY_INFO!B16) -> Brazzaville | C16: =IF(COUNTRY_INFO!C16=0," ",COUNTRY_INFO!C16) -> Île Mbamou | D16: =IF(AND(COUNTRY_INFO!$U$9:$U$1000="T3 (ALB/MBD)",COUNTRY_INFO!$V$9:$V$1000="T3 (ALB/MBD)"), "T3 (ALB/MBD)", " ") ->  | J16: 0 | N16: 0
A17: =IF(COUNTRY_INFO!A17=0," ",COUNTRY_INFO!A17) -> Congo | B17: =IF(COUNTRY_INFO!B17=0," ",COUNTRY_INFO!B17) -> Brazzaville | C17: =IF(COUNTRY_INFO!C17=0," ",COUNTRY_INFO!C17) -> Madibou | D17: =IF(AND(COUNTRY_INFO!$U$9:$U$1000="T3 (ALB/MBD)",COUNTRY_INFO!$V$9:$V$1000="T3 (ALB/MBD)"), "T3 (ALB/MBD)", " ") ->  | J17: 0 | N17: 0
A18: =IF(COUNTRY_INFO!A18=0," ",COUNTRY_INFO!A18) -> Congo | B18: =IF(COUNTRY_INFO!B18=0," ",COUNTRY_INFO!B18) -> Brazzaville | C18: =IF(COUNTRY_INFO!C18=0," ",COUNTRY_INFO!C18) -> Makélékélé | D18: =IF(AND(COUNTRY_INFO!$U$9:$U$1000="T3 (ALB/MBD)",COUNTRY_INFO!$V$9:$V$1000="T3 (ALB/MBD)"), "T3 (ALB/MBD)", " ") ->  | J18: 0 | N18: 0
A19: =IF(COUNTRY_INFO!A19=0," ",COUNTRY_INFO!A19) -> Congo | B19: =IF(COUNTRY_INFO!B19=0," ",COUNTRY_INFO!B19) -> Brazzaville | C19: =IF(COUNTRY_INFO!C19=0," ",COUNTRY_INFO!C19) -> Mfilou | D19: =IF(AND(COUNTRY_INFO!$U$9:$U$1000="T3 (ALB/MBD)",COUNTRY_INFO!$V$9:$V$1000="T3 (ALB/MBD)"), "T3 (ALB/MBD)", " ") ->  | J19: 0 | N19: 0
A20: =IF(COUNTRY_INFO!A20=0," ",COUNTRY_INFO!A20) -> Congo | B20: =IF(COUNTRY_INFO!B20=0," ",COUNTRY_INFO!B20) -> Brazzaville | C20: =IF(COUNTRY_INFO!C20=0," ",COUNTRY_INFO!C20) -> Moungali | D20: =IF(AND(COUNTRY_INFO!$U$9:$U$1000="T3 (ALB/MBD)",COUNTRY_INFO!$V$9:$V$1000="T3 (ALB/MBD)"), "T3 (ALB/MBD)", " ") ->  | J20: 0 | N20: 0
A21: =IF(COUNTRY_INFO!A21=0," ",COUNTRY_INFO!A21) -> Congo | B21: =IF(COUNTRY_INFO!B21=0," ",COUNTRY_INFO!B21) -> Brazzaville | C21: =IF(COUNTRY_INFO!C21=0," ",COUNTRY_INFO!C21) -> Ouenzé | D21: =IF(AND(COUNTRY_INFO!$U$9:$U$1000="T3 (ALB/MBD)",COUNTRY_INFO!$V$9:$V$1000="T3 (ALB/MBD)"), "T3 (ALB/MBD)", " ") ->  | J21: 0 | N21: 0
A22: =IF(COUNTRY_INFO!A22=0," ",COUNTRY_INFO!A22) -> Congo | B22: =IF(COUNTRY_INFO!B22=0," ",COUNTRY_INFO!B22) -> Brazzaville | C22: =IF(COUNTRY_INFO!C22=0," ",COUNTRY_INFO!C22) -> Poto-Poto | D22: =IF(AND(COUNTRY_INFO!$U$9:$U$1000="T3 (ALB/MBD)",COUNTRY_INFO!$V$9:$V$1000="T3 (ALB/MBD)"), "T3 (ALB/MBD)", " ") ->  | J22: 0 | N22: 0
A23: =IF(COUNTRY_INFO!A23=0," ",COUNTRY_INFO!A23) -> Congo | B23: =IF(COUNTRY_INFO!B23=0," ",COUNTRY_INFO!B23) -> Brazzaville | C23: =IF(COUNTRY_INFO!C23=0," ",COUNTRY_INFO!C23) -> Talangaî | D23: =IF(AND(COUNTRY_INFO!$U$9:$U$1000="T3 (ALB/MBD)",COUNTRY_INFO!$V$9:$V$1000="T3 (ALB/MBD)"), "T3 (ALB/MBD)", " ") ->  | J23: 0 | N23: 0
A24: =IF(COUNTRY_INFO!A24=0," ",COUNTRY_INFO!A24) -> Congo | B24: =IF(COUNTRY_INFO!B24=0," ",COUNTRY_INFO!B24) -> Cuvette | C24: =IF(COUNTRY_INFO!C24=0," ",COUNTRY_INFO!C24) -> Mossaka | D24: =IF(AND(COUNTRY_INFO!$U$9:$U$1000="T3 (ALB/MBD)",COUNTRY_INFO!$V$9:$V$1000="T3 (ALB/MBD)"), "T3 (ALB/MBD)", " ") ->  | J24: 0 | N24: 0
A25: =IF(COUNTRY_INFO!A25=0," ",COUNTRY_INFO!A25) -> Congo | B25: =IF(COUNTRY_INFO!B25=0," ",COUNTRY_INFO!B25) -> Cuvette | C25: =IF(COUNTRY_INFO!C25=0," ",COUNTRY_INFO!C25) -> Owando | D25: =IF(AND(COUNTRY_INFO!$U$9:$U$1000="T3 (ALB/MBD)",COUNTRY_INFO!$V$9:$V$1000="T3 (ALB/MBD)"), "T3 (ALB/MBD)", " ") ->  | J25: 0 | N25: 0
A26: =IF(COUNTRY_INFO!A26=0," ",COUNTRY_INFO!A26) -> Congo | B26: =IF(COUNTRY_INFO!B26=0," ",COUNTRY_INFO!B26) -> Cuvette | C26: =IF(COUNTRY_INFO!C26=0," ",COUNTRY_INFO!C26) -> Oyo-Alima | D26: =IF(AND(COUNTRY_INFO!$U$9:$U$1000="T3 (ALB/MBD)",COUNTRY_INFO!$V$9:$V$1000="T3 (ALB/MBD)"), "T3 (ALB/MBD)", " ") ->  | J26: 0 | N26: 0
A27: =IF(COUNTRY_INFO!A27=0," ",COUNTRY_INFO!A27) -> Congo | B27: =IF(COUNTRY_INFO!B27=0," ",COUNTRY_INFO!B27) -> Cuvette-Ouest | C27: =IF(COUNTRY_INFO!C27=0," ",COUNTRY_INFO!C27) -> Etoumbi | D27: =IF(AND(COUNTRY_INFO!$U$9:$U$1000="T3 (ALB/MBD)",COUNTRY_INFO!$V$9:$V$1000="T3 (ALB/MBD)"), "T3 (ALB/MBD)", " ") ->  | J27: 0 | N27: 0
A28: =IF(COUNTRY_INFO!A28=0," ",COUNTRY_INFO!A28) -> Congo | B28: =IF(COUNTRY_INFO!B28=0," ",COUNTRY_INFO!B28) -> Cuvette-Ouest | C28: =IF(COUNTRY_INFO!C28=0," ",COUNTRY_INFO!C28) -> Ewo | D28: =IF(AND(COUNTRY_INFO!$U$9:$U$1000="T3 (ALB/MBD)",COUNTRY_INFO!$V$9:$V$1000="T3 (ALB/MBD)"), "T3 (ALB/MBD)", " ") ->  | J28: 0 | N28: 0
A29: =IF(COUNTRY_INFO!A29=0," ",COUNTRY_INFO!A29) -> Congo | B29: =IF(COUNTRY_INFO!B29=0," ",COUNTRY_INFO!B29) -> Kouilou | C29: =IF(COUNTRY_INFO!C29=0," ",COUNTRY_INFO!C29) -> Hinda-Loango | D29: =IF(AND(COUNTRY_INFO!$U$9:$U$1000="T3 (ALB/MBD)",COUNTRY_INFO!$V$9:$V$1000="T3 (ALB/MBD)"), "T3 (ALB/MBD)", " ") ->  | J29: 0 | N29: 0
A30: =IF(COUNTRY_INFO!A30=0," ",COUNTRY_INFO!A30) -> Congo | B30: =IF(COUNTRY_INFO!B30=0," ",COUNTRY_INFO!B30) -> Kouilou | C30: =IF(COUNTRY_INFO!C30=0," ",COUNTRY_INFO!C30) -> Madingo Kayes-Nzambi | D30: =IF(AND(COUNTRY_INFO!$U$9:$U$1000="T3 (ALB/MBD)",COUNTRY_INFO!$V$9:$V$1000="T3 (ALB/MBD)"), "T3 (ALB/MBD)", " ") ->  | J30: 0 | N30: 0
A31: =IF(COUNTRY_INFO!A31=0," ",COUNTRY_INFO!A31) -> Congo | B31: =IF(COUNTRY_INFO!B31=0," ",COUNTRY_INFO!B31) -> Kouilou | C31: =IF(COUNTRY_INFO!C31=0," ",COUNTRY_INFO!C31) -> Mvouti-Kakamouéka | D31: =IF(AND(COUNTRY_INFO!$U$9:$U$1000="T3 (ALB/MBD)",COUNTRY_INFO!$V$9:$V$1000="T3 (ALB/MBD)"), "T3 (ALB/MBD)", " ") ->  | J31: 0 | N31: 0
A32: =IF(COUNTRY_INFO!A32=0," ",COUNTRY_INFO!A32) -> Congo | B32: =IF(COUNTRY_INFO!B32=0," ",COUNTRY_INFO!B32) -> Lékoumou | C32: =IF(COUNTRY_INFO!C32=0," ",COUNTRY_INFO!C32) -> Sibiti | D32: =IF(AND(COUNTRY_INFO!$U$9:$U$1000="T3 (ALB/MBD)",COUNTRY_INFO!$V$9:$V$1000="T3 (ALB/MBD)"), "T3 (ALB/MBD)", " ") ->  | J32: 0 | N32: 0
A33: =IF(COUNTRY_INFO!A33=0," ",COUNTRY_INFO!A33) -> Congo | B33: =IF(COUNTRY_INFO!B33=0," ",COUNTRY_INFO!B33) -> Lékoumou | C33: =IF(COUNTRY_INFO!C33=0," ",COUNTRY_INFO!C33) -> Zanaga | D33: =IF(AND(COUNTRY_INFO!$U$9:$U$1000="T3 (ALB/MBD)",COUNTRY_INFO!$V$9:$V$1000="T3 (ALB/MBD)"), "T3 (ALB/MBD)", " ") ->  | J33: 0 | N33: 0
A34: =IF(COUNTRY_INFO!A34=0," ",COUNTRY_INFO!A34) -> Congo | B34: =IF(COUNTRY_INFO!B34=0," ",COUNTRY_INFO!B34) -> Likouala | C34: =IF(COUNTRY_INFO!C34=0," ",COUNTRY_INFO!C34) -> Bétou | D34: =IF(AND(COUNTRY_INFO!$U$9:$U$1000="T3 (ALB/MBD)",COUNTRY_INFO!$V$9:$V$1000="T3 (ALB/MBD)"), "T3 (ALB/MBD)", " ") ->  | J34: 0 | N34: 0
A35: =IF(COUNTRY_INFO!A35=0," ",COUNTRY_INFO!A35) -> Congo | B35: =IF(COUNTRY_INFO!B35=0," ",COUNTRY_INFO!B35) -> Likouala | C35: =IF(COUNTRY_INFO!C35=0," ",COUNTRY_INFO!C35) -> Impfondo | D35: =IF(AND(COUNTRY_INFO!$U$9:$U$1000="T3 (ALB/MBD)",COUNTRY_INFO!$V$9:$V$1000="T3 (ALB/MBD)"), "T3 (ALB/MBD)", " ") ->  | J35: 0 | N35: 0
A36: =IF(COUNTRY_INFO!A36=0," ",COUNTRY_INFO!A36) -> Congo | B36: =IF(COUNTRY_INFO!B36=0," ",COUNTRY_INFO!B36) -> Niari | C36: =IF(COUNTRY_INFO!C36=0," ",COUNTRY_INFO!C36) -> Dolisie | D36: =IF(AND(COUNTRY_INFO!$U$9:$U$1000="T3 (ALB/MBD)",COUNTRY_INFO!$V$9:$V$1000="T3 (ALB/MBD)"), "T3 (ALB/MBD)", " ") ->  | J36: 0 | N36: 0
A37: =IF(COUNTRY_INFO!A37=0," ",COUNTRY_INFO!A37) -> Congo | B37: =IF(COUNTRY_INFO!B37=0," ",COUNTRY_INFO!B37) -> Niari | C37: =IF(COUNTRY_INFO!C37=0," ",COUNTRY_INFO!C37) -> Kibangou | D37: =IF(AND(COUNTRY_INFO!$U$9:$U$1000="T3 (ALB/MBD)",COUNTRY_INFO!$V$9:$V$1000="T3 (ALB/MBD)"), "T3 (ALB/MBD)", " ") ->  | J37: 0 | N37: 0
A38: =IF(COUNTRY_INFO!A38=0," ",COUNTRY_INFO!A38) -> Congo | B38: =IF(COUNTRY_INFO!B38=0," ",COUNTRY_INFO!B38) -> Niari | C38: =IF(COUNTRY_INFO!C38=0," ",COUNTRY_INFO!C38) -> Kimongo-Londela Nkayes | D38: =IF(AND(COUNTRY_INFO!$U$9:$U$1000="T3 (ALB/MBD)",COUNTRY_INFO!$V$9:$V$1000="T3 (ALB/MBD)"), "T3 (ALB/MBD)", " ") ->  | J38: 0 | N38: 0
A39: =IF(COUNTRY_INFO!A39=0," ",COUNTRY_INFO!A39) -> Congo | B39: =IF(COUNTRY_INFO!B39=0," ",COUNTRY_INFO!B39) -> Niari | C39: =IF(COUNTRY_INFO!C39=0," ",COUNTRY_INFO!C39) -> Mayoko | D39: =IF(AND(COUNTRY_INFO!$U$9:$U$1000="T3 (ALB/MBD)",COUNTRY_INFO!$V$9:$V$1000="T3 (ALB/MBD)"), "T3 (ALB/MBD)", " ") ->  | J39: 0 | N39: 0
A40: =IF(COUNTRY_INFO!A40=0," ",COUNTRY_INFO!A40) -> Congo | B40: =IF(COUNTRY_INFO!B40=0," ",COUNTRY_INFO!B40) -> Niari | C40: =IF(COUNTRY_INFO!C40=0," ",COUNTRY_INFO!C40) -> Mossendjo | D40: =IF(AND(COUNTRY_INFO!$U$9:$U$1000="T3 (ALB/MBD)",COUNTRY_INFO!$V$9:$V$1000="T3 (ALB/MBD)"), "T3 (ALB/MBD)", " ") ->  | J40: 0 | N40: 0
A41: =IF(COUNTRY_INFO!A41=0," ",COUNTRY_INFO!A41) -> Congo | B41: =IF(COUNTRY_INFO!B41=0," ",COUNTRY_INFO!B41) -> Plateaux | C41: =IF(COUNTRY_INFO!C41=0," ",COUNTRY_INFO!C41) -> Abala | D41: =IF(AND(COUNTRY_INFO!$U$9:$U$1000="T3 (ALB/MBD)",COUNTRY_INFO!$V$9:$V$1000="T3 (ALB/MBD)"), "T3 (ALB/MBD)", " ") ->  | J41: 0 | N41: 0
A42: =IF(COUNTRY_INFO!A42=0," ",COUNTRY_INFO!A42) -> Congo | B42: =IF(COUNTRY_INFO!B42=0," ",COUNTRY_INFO!B42) -> Plateaux | C42: =IF(COUNTRY_INFO!C42=0," ",COUNTRY_INFO!C42) -> Djambala-Lékana | D42: =IF(AND(COUNTRY_INFO!$U$9:$U$1000="T3 (ALB/MBD)",COUNTRY_INFO!$V$9:$V$1000="T3 (ALB/MBD)"), "T3 (ALB/MBD)", " ") ->  | J42: 0 | N42: 0
A43: =IF(COUNTRY_INFO!A43=0," ",COUNTRY_INFO!A43) -> Congo | B43: =IF(COUNTRY_INFO!B43=0," ",COUNTRY_INFO!B43) -> Plateaux | C43: =IF(COUNTRY_INFO!C43=0," ",COUNTRY_INFO!C43) -> Gamboma | D43: =IF(AND(COUNTRY_INFO!$U$9:$U$1000="T3 (ALB/MBD)",COUNTRY_INFO!$V$9:$V$1000="T3 (ALB/MBD)"), "T3 (ALB/MBD)", " ") ->  | J43: 0 | N43: 0
A44: =IF(COUNTRY_INFO!A44=0," ",COUNTRY_INFO!A44) -> Congo | B44: =IF(COUNTRY_INFO!B44=0," ",COUNTRY_INFO!B44) -> Plateaux | C44: =IF(COUNTRY_INFO!C44=0," ",COUNTRY_INFO!C44) -> Ngo Mpouya | D44: =IF(AND(COUNTRY_INFO!$U$9:$U$1000="T3 (ALB/MBD)",COUNTRY_INFO!$V$9:$V$1000="T3 (ALB/MBD)"), "T3 (ALB/MBD)", " ") ->  | J44: 0 | N44: 0
A45: =IF(COUNTRY_INFO!A45=0," ",COUNTRY_INFO!A45) -> Congo | B45: =IF(COUNTRY_INFO!B45=0," ",COUNTRY_INFO!B45) -> Pointe-Noire | C45: =IF(COUNTRY_INFO!C45=0," ",COUNTRY_INFO!C45) -> Loandjili | D45: =IF(AND(COUNTRY_INFO!$U$9:$U$1000="T3 (ALB/MBD)",COUNTRY_INFO!$V$9:$V$1000="T3 (ALB/MBD)"), "T3 (ALB/MBD)", " ") ->  | J45: 0 | N45: 0
A46: =IF(COUNTRY_INFO!A46=0," ",COUNTRY_INFO!A46) -> Congo | B46: =IF(COUNTRY_INFO!B46=0," ",COUNTRY_INFO!B46) -> Pointe-Noire | C46: =IF(COUNTRY_INFO!C46=0," ",COUNTRY_INFO!C46) -> Lumumba | D46: =IF(AND(COUNTRY_INFO!$U$9:$U$1000="T3 (ALB/MBD)",COUNTRY_INFO!$V$9:$V$1000="T3 (ALB/MBD)"), "T3 (ALB/MBD)", " ") ->  | J46: 0 | N46: 0
A47: =IF(COUNTRY_INFO!A47=0," ",COUNTRY_INFO!A47) -> Congo | B47: =IF(COUNTRY_INFO!B47=0," ",COUNTRY_INFO!B47) -> Pointe-Noire | C47: =IF(COUNTRY_INFO!C47=0," ",COUNTRY_INFO!C47) -> Mongo-Poukou | D47: =IF(AND(COUNTRY_INFO!$U$9:$U$1000="T3 (ALB/MBD)",COUNTRY_INFO!$V$9:$V$1000="T3 (ALB/MBD)"), "T3 (ALB/MBD)", " ") ->  | J47: 0 | N47: 0
A48: =IF(COUNTRY_INFO!A48=0," ",COUNTRY_INFO!A48) -> Congo | B48: =IF(COUNTRY_INFO!B48=0," ",COUNTRY_INFO!B48) -> Pointe-Noire | C48: =IF(COUNTRY_INFO!C48=0," ",COUNTRY_INFO!C48) -> Mvoumvou | D48: =IF(AND(COUNTRY_INFO!$U$9:$U$1000="T3 (ALB/MBD)",COUNTRY_INFO!$V$9:$V$1000="T3 (ALB/MBD)"), "T3 (ALB/MBD)", " ") ->  | J48: 0 | N48: 0
A49: =IF(COUNTRY_INFO!A49=0," ",COUNTRY_INFO!A49) -> Congo | B49: =IF(COUNTRY_INFO!B49=0," ",COUNTRY_INFO!B49) -> Pointe-Noire | C49: =IF(COUNTRY_INFO!C49=0," ",COUNTRY_INFO!C49) -> Ngoyo | D49: =IF(AND(COUNTRY_INFO!$U$9:$U$1000="T3 (ALB/MBD)",COUNTRY_INFO!$V$9:$V$1000="T3 (ALB/MBD)"), "T3 (ALB/MBD)", " ") ->  | J49: 0 | N49: 0
A50: =IF(COUNTRY_INFO!A50=0," ",COUNTRY_INFO!A50) -> Congo | B50: =IF(COUNTRY_INFO!B50=0," ",COUNTRY_INFO!B50) -> Pointe-Noire | C50: =IF(COUNTRY_INFO!C50=0," ",COUNTRY_INFO!C50) -> Tchiamba Nzassi | D50: =IF(AND(COUNTRY_INFO!$U$9:$U$1000="T3 (ALB/MBD)",COUNTRY_INFO!$V$9:$V$1000="T3 (ALB/MBD)"), "T3 (ALB/MBD)", " ") ->  | J50: 0 | N50: 0
A51: =IF(COUNTRY_INFO!A51=0," ",COUNTRY_INFO!A51) -> Congo | B51: =IF(COUNTRY_INFO!B51=0," ",COUNTRY_INFO!B51) -> Pointe-Noire | C51: =IF(COUNTRY_INFO!C51=0," ",COUNTRY_INFO!C51) -> Tie-Tie | D51: =IF(AND(COUNTRY_INFO!$U$9:$U$1000="T3 (ALB/MBD)",COUNTRY_INFO!$V$9:$V$1000="T3 (ALB/MBD)"), "T3 (ALB/MBD)", " ") ->  | J51: 0 | N51: 0
A52: =IF(COUNTRY_INFO!A52=0," ",COUNTRY_INFO!A52) -> Congo | B52: =IF(COUNTRY_INFO!B52=0," ",COUNTRY_INFO!B52) -> Pool | C52: =IF(COUNTRY_INFO!C52=0," ",COUNTRY_INFO!C52) -> Boko | D52: =IF(AND(COUNTRY_INFO!$U$9:$U$1000="T3 (ALB/MBD)",COUNTRY_INFO!$V$9:$V$1000="T3 (ALB/MBD)"), "T3 (ALB/MBD)", " ") ->  | J52: 0 | N52: 0
A53: =IF(COUNTRY_INFO!A53=0," ",COUNTRY_INFO!A53) -> Congo | B53: =IF(COUNTRY_INFO!B53=0," ",COUNTRY_INFO!B53) -> Pool | C53: =IF(COUNTRY_INFO!C53=0," ",COUNTRY_INFO!C53) -> Goma tsétsé | D53: =IF(AND(COUNTRY_INFO!$U$9:$U$1000="T3 (ALB/MBD)",COUNTRY_INFO!$V$9:$V$1000="T3 (ALB/MBD)"), "T3 (ALB/MBD)", " ") ->  | J53: 0 | N53: 0
A54: =IF(COUNTRY_INFO!A54=0," ",COUNTRY_INFO!A54) -> Congo | B54: =IF(COUNTRY_INFO!B54=0," ",COUNTRY_INFO!B54) -> Pool | C54: =IF(COUNTRY_INFO!C54=0," ",COUNTRY_INFO!C54) -> Ignié | D54: =IF(AND(COUNTRY_INFO!$U$9:$U$1000="T3 (ALB/MBD)",COUNTRY_INFO!$V$9:$V$1000="T3 (ALB/MBD)"), "T3 (ALB/MBD)", " ") ->  | J54: 0 | N54: 0
A55: =IF(COUNTRY_INFO!A55=0," ",COUNTRY_INFO!A55) -> Congo | B55: =IF(COUNTRY_INFO!B55=0," ",COUNTRY_INFO!B55) -> Pool | C55: =IF(COUNTRY_INFO!C55=0," ",COUNTRY_INFO!C55) -> Kindamba | D55: =IF(AND(COUNTRY_INFO!$U$9:$U$1000="T3 (ALB/MBD)",COUNTRY_INFO!$V$9:$V$1000="T3 (ALB/MBD)"), "T3 (ALB/MBD)", " ") ->  | J55: 0 | N55: 0
A56: =IF(COUNTRY_INFO!A56=0," ",COUNTRY_INFO!A56) -> Congo | B56: =IF(COUNTRY_INFO!B56=0," ",COUNTRY_INFO!B56) -> Pool | C56: =IF(COUNTRY_INFO!C56=0," ",COUNTRY_INFO!C56) -> Kinkala | D56: =IF(AND(COUNTRY_INFO!$U$9:$U$1000="T3 (ALB/MBD)",COUNTRY_INFO!$V$9:$V$1000="T3 (ALB/MBD)"), "T3 (ALB/MBD)", " ") ->  | J56: 0 | N56: 0
A57: =IF(COUNTRY_INFO!A57=0," ",COUNTRY_INFO!A57) -> Congo | B57: =IF(COUNTRY_INFO!B57=0," ",COUNTRY_INFO!B57) -> Pool | C57: =IF(COUNTRY_INFO!C57=0," ",COUNTRY_INFO!C57) -> Kintélé | D57: =IF(AND(COUNTRY_INFO!$U$9:$U$1000="T3 (ALB/MBD)",COUNTRY_INFO!$V$9:$V$1000="T3 (ALB/MBD)"), "T3 (ALB/MBD)", " ") ->  | J57: 0 | N57: 0
A58: =IF(COUNTRY_INFO!A58=0," ",COUNTRY_INFO!A58) -> Congo | B58: =IF(COUNTRY_INFO!B58=0," ",COUNTRY_INFO!B58) -> Pool | C58: =IF(COUNTRY_INFO!C58=0," ",COUNTRY_INFO!C58) -> Mindouli | D58: =IF(AND(COUNTRY_INFO!$U$9:$U$1000="T3 (ALB/MBD)",COUNTRY_INFO!$V$9:$V$1000="T3 (ALB/MBD)"), "T3 (ALB/MBD)", " ") ->  | J58: 0 | N58: 0
A59: =IF(COUNTRY_INFO!A59=0," ",COUNTRY_INFO!A59) -> Congo | B59: =IF(COUNTRY_INFO!B59=0," ",COUNTRY_INFO!B59) -> Sangha | C59: =IF(COUNTRY_INFO!C59=0," ",COUNTRY_INFO!C59) -> Ouesso | D59: =IF(AND(COUNTRY_INFO!$U$9:$U$1000="T3 (ALB/MBD)",COUNTRY_INFO!$V$9:$V$1000="T3 (ALB/MBD)"), "T3 (ALB/MBD)", " ") ->  | J59: 0 | N59: 0
A60: =IF(COUNTRY_INFO!A60=0," ",COUNTRY_INFO!A60) -> Congo | B60: =IF(COUNTRY_INFO!B60=0," ",COUNTRY_INFO!B60) -> Sangha | C60: =IF(COUNTRY_INFO!C60=0," ",COUNTRY_INFO!C60) -> Sembé-Souanké | D60: =IF(AND(COUNTRY_INFO!$U$9:$U$1000="T3 (ALB/MBD)",COUNTRY_INFO!$V$9:$V$1000="T3 (ALB/MBD)"), "T3 (ALB/MBD)", " ") ->  | J60: 0 | N60: 0

Sheet DISTRICT
A1: Nombre d'individus traités
A2: Structure administrative, population traitée par groupe d'âge et sexe
A4: TOTAL | D4: =SUM(D$9:D$1000) -> 1031260 | E4: =SUM(E$9:E$1000) -> 199072 | F4: =SUM(F$9:F$1000) -> 210522 | G4: =SUM(G$9:G$1000) -> 532181.92 | H4: =SUM(H$9:H$1000) -> 486735.92 | I4: =IF(D4>0, IF(H4/D4*100<>0, H4/D4*100, "-"),0) -> 47.19817699 | J4: =SUM(J$9:J$1000) -> 713514 | K4: =SUM(K$9:K$1000) -> 233802 | L4: =SUM(L$9:L$1000) -> 349655 | M4: =SUM(M$9:M$1000) -> 581904 | N4: =SUM(N$9:N$1000) -> 581904 | O4: =IF(J4>0, IF(N4/J4*100<>0, N4/J4*100, "-"),0) -> 81.55467167 | P4: =SUM(P$9:P$1000) -> 809022 | Q4: =SUM(Q$9:Q$1000) -> 0 | R4: =SUM(R$9:R$1000) -> 0 | S4: =SUM(S$9:S$1000) -> 266622 | T4: =SUM(T$9:T$1000) -> 0 | V4: 54283.92 | X4: =SUM(X$9:X$1000) -> 54283.92 | Y4: =IF(P4>0, IF(X4/P4*100<>0, X4/P4*100, "-"),0) -> 6.709820005 | Z4: =SUM(Z$9:Z$1000) -> 408975.29 | AA4: 0 | AB4: 0 | AC4: 0 | AD4: 0 | AF4: 0 | AH4: 0 | AI4: =IF(Z4>0, IF(AH4/Z4*100<>0, AH4/Z4*100, "-"),0) -> -
A6: Structure administrative du pays | D6: Population nécessitant la CP pour FL | E6: Population traitée pour la filariose lymphatique | J6: Population nécessitant la CP pour ONCHO | K6: Population traitée pour l'onchocercose | P6: Population nécessitant la CP pour STH | Q6: Population traitée pour les géohelminthiases | Z6: Population nécessitant la CP pour SCH | AA6: Population traitée pour la schistosomiase | AP6: =SUM(AP9:AP1000) -> 75200.57718 | AQ6: 426856.2799 | AR6: 702569.7012 | AS6: 990521.826 | AT6: =SUM(AT9:AT1000) -> 2195148.384 | AU6: =COUNTIF(AU9:AU1000,"Y") -> 5 | AV6: =SUM(AV9:AV1000) -> 0 | AW6: 228930.08 | AX6: 719271.84 | AY6: =SUM(AY9:AY1000) -> 948201.92 | AZ6: 0 | BA6: 228930.08 | BB6: 719271.84 | BC6: 948201.92 | BD6: =IF(AT6<>0,BC6/AT6,0) -> 0.431953451
A7: Pays | B7: Région/Département | C7: District | E7: Masculine | F7: Féminine | G7: Total traité | H7: Total traité ayant besoin de CP | I7: (%) | K7: Masculine | L7: Féminine | M7: Total traité | N7: Total traité ayant besoin de CP | O7: (%) | Q7: Masculine | R7: Féminine | S7: Total traité | T7: EAPréS traité ayant besoin de CP | U7: EAPréS (%) | V7: EAS traité ayant besoin de CP | W7: EAS (%) | X7: Total traité ayant besoin de CP | Y7: (%) | AA7: Masculine | AB7: Féminine | AC7: Total traité | AD7: EAS traité ayant besoin de CP | AE7: EAS (%) | AF7: Adultes traité ayant besoin de CP | AG7: Adultes (%) | AH7: Total traité ayant besoin de CP | AI7: (%) | AK7: LF | AL7: ONCHO | AM7: STH | AN7: SCH-SAC | AO7: SCH_Adults | AP7: <1 | AQ7: PreSAC | AR7: SAC | AS7: Adults | AT7: Total | AU7: Dis | AV7: PreSAC | AW7: SAC | AX7: Adults | AY7: Total | AZ7: PreSAC | BA7: SAC | BB7: Adults | BC7: Total | BD7: Coverage
A9: =IF(COUNTRY_INFO!A9=0," ",COUNTRY_INFO!A9) -> Congo | B9: =IF(COUNTRY_INFO!B9=0," ",COUNTRY_INFO!B9) -> Bouenza | C9: =IF(COUNTRY_INFO!C9=0," ",COUNTRY_INFO!C9) -> Loudima | D9: =COUNTRY_INFO!M9 -> 0 | G9: =SUM('MDA1'!M9,'MDA4'!U9) -> 0 | H9: =IF(AND(COUNTRY_INFO!H9>0,COUNTRY_INFO!H9<4),IF(D9>MAX('MDA1'!M9,'MDA4'!U9),MAX('MDA1'!M9,'MDA4'!U9),D9),0) -> 0 | I9: =IF(AND(COUNTRY_INFO!H9>0,COUNTRY_INFO!H9<4), IF(G9/D9*100<>0, IF(G9/D9*100>100,100,G9/D9*100), "-"),0) -> 0 | J9: =COUNTRY_INFO!N9 -> 16204 | K9: 6475 | L9: 6915 | M9: =MAX('MDA1'!M9,MAX('MDA3'!I9,'MDA3'!L9)+MAX('MDA3'!J9,'MDA3'!M9)) -> 13390 | N9: =IF(AND(COUNTRY_INFO!I9>0,COUNTRY_INFO!I9<4),IF(J9>MAX('MDA1'!M9,MAX('MDA3'!I9,'MDA3'!L9)+MAX('MDA3'!J9,'MDA3'!M9)),MAX('MDA1'!M9,MAX('MDA3'!I9,'MDA3'!L9)+MAX('MDA3'!J9,'MDA3'!M9)),J9),0) -> 13390 | O9: =IF(AND(COUNTRY_INFO!I9>0,COUNTRY_INFO!I9<4), IF(M9/J9*100<>0, IF(M9/J9*100>100,100,M9/J9*100), "-"),0) -> 82.63391755 | P9: =COUNTRY_INFO!O9 -> 0 | S9: =SUM(MAX('MDA4'!N9, 'T1'!L9, MAX(T3_R1!K9, T3_R2!K9)), MAX('MDA1'!K9, 'MDA4'!O9, 'T1'!M9, MAX(T3_R1!L9, T3_R2!L9)), MAX('MDA1'!L9, 'MDA4'!P9, 'T1'!N9, MAX(T3_R1!M9, T3_R2!M9))) -> 0 | T9: =IF(AND(COUNTRY_INFO!J9>1,COUNTRY_INFO!J9<4),IF(COUNTRY_INFO!E9>MAX('MDA4'!N9,'T1'!L9,MAX(T3_R1!K9,T3_R2!K9)),MAX('MDA4'!N9,'T1'!L9,MAX(T3_R1!K9,T3_R2!K9)),COUNTRY_INFO!E9),0) -> 0 | U9: =IF(AND(COUNTRY_INFO!J9>1,COUNTRY_INFO!J9<4), IF(T9/COUNTRY_INFO!E9*100<>0, IF(T9/COUNTRY_INFO!E9*100>100,100,T9/COUNTRY_INFO!E9*100), "-"),0) -> 0 | V9: =IF(AND(COUNTRY_INFO!J9>1,COUNTRY_INFO!J9<4),IF(COUNTRY_INFO!F9>MAX('MDA1'!K9,'MDA4'!O9,'T1'!M9,MAX(T3_R1!L9,T3_R2!L9)),MAX('MDA1'!K9,'MDA4'!O9,'T1'!M9,MAX(T3_R1!L9,T3_R2!L9)),COUNTRY_INFO!F9),0) -> 0 | W9: =IF(AND(COUNTRY_INFO!J9>1,COUNTRY_INFO!J9<4), IF(V9/COUNTRY_INFO!F9*100<>0, IF(V9/COUNTRY_INFO!F9*100>100,100,V9/COUNTRY_INFO!F9*100), "-"),0) -> 0 | X9: =SUM(T9,V9) -> 0 | Y9: =IF(AND(COUNTRY_INFO!J9>1,COUNTRY_INFO!J9<4), IF(S9/P9*100<>0, IF(X9/P9*100>100,100,X9/P9*100), "-"),0) -> 0 | Z9: =COUNTRY_INFO!P9 -> 39954 | AC9: =MAX('T1'!L9,'T2'!J9)+MAX('T1'!M9,'T2'!K9)+MAX('T1'!N9,'T2'!L9) -> 0 | AD9: =IF(COUNTRY_INFO!K9=1,IF(COUNTRY_INFO!F9*0.33>MAX('T1'!M9,'T2'!K9),MAX('T1'!M9,'T2'!K9),COUNTRY_INFO!F9*0.33),IF(COUNTRY_INFO!K9=2,IF(COUNTRY_INFO!F9*0.5>MAX('T1'!M9,'T2'!K9),MAX('T1'!M9,'T2'!K9),COUNTRY_INFO!F9*0.5),IF(COUNTRY_INFO!K9=3,IF(COUNTRY_INFO!F9>MAX('T1'!M9,'T2'!K9),MAX('T1'!M9,'T2'!K9),COUNTRY_INFO!F9),0))) -> 0 | AE9: =IF(AND(COUNTRY_INFO!K9>0,COUNTRY_INFO!K9<4),IF(Z9>0,IF(COUNTRY_INFO!K9=1, AD9/(COUNTRY_INFO!F9*0.33)*100, IF(COUNTRY_INFO!K9=2, AD9/(COUNTRY_INFO!F9*0.5)*100, IF(COUNTRY_INFO!K9=3, AD9/COUNTRY_INFO!F9*100))),"-"),0) -> 0 | AF9: =IF(COUNTRY_INFO!K9=2,IF(COUNTRY_INFO!G9*0.2>MAX('T1'!N9,'T2'!L9),MAX('T1'!N9,'T2'!L9),COUNTRY_INFO!G9*0.2),IF(COUNTRY_INFO!K9=3,IF(COUNTRY_INFO!G9>MAX('T1'!N9,'T2'!L9),MAX('T1'!N9,'T2'!L9),COUNTRY_INFO!G9),0)) -> 0 | AG9: =IF(AND(COUNTRY_INFO!K9>0,COUNTRY_INFO!K9<4),IF(Z9>0,IF(COUNTRY_INFO!K9=1, 0, IF(COUNTRY_INFO!K9=2, AF9/(COUNTRY_INFO!G9*0.2)*100, IF(COUNTRY_INFO!K9=3, AF9/COUNTRY_INFO!G9*100))),"-"),0) -> 0 | AH9: =SUM(AD9,AF9) -> 0 | AI9: =IF(AND(COUNTRY_INFO!K9>0,COUNTRY_INFO!K9<4), IF(AC9/Z9*100<>0, IF(AH9/Z9*100>100,100,AH9/Z9*100), "-"),0) -> - | AK9: =IF(AND(D9<>0, D9<>"Inconnu",D9<>"Interrompu",D9<>"Non requis"),D9/COUNTRY_INFO!D9, 0) -> 0 | AL9: =IF(AND(J9<>0,J9<>"Inconnu",J9<>"Interrompu",J9<>"Non requis"),J9/COUNTRY_INFO!D9, 0) -> 0.3216100349 | AM9: =IF(AND(P9<>0,P9<>"Inconnu",P9<>"Non requis"),P9/(COUNTRY_INFO!E9+COUNTRY_INFO!F9), 0) -> 0 | AN9: =IF(AND(Z9<>0,Z9<>"Inconnu",Z9<>"Non requis"),IF(COUNTRY_INFO!K9=1,1,IF(COUNTRY_INFO!K9=2,0.5*COUNTRY_INFO!F9/(0.5*COUNTRY_INFO!F9+0.2*COUNTRY_INFO!G9),IF(COUNTRY_INFO!K9=3,COUNTRY_INFO!F9/(COUNTRY_INFO!F9+COUNTRY_INFO!G9)))),0) -> 0.3026480453 | AO9: =IF(AND(Z9<>0,Z9<>"Inconnu",Z9<>"Non requis"),IF(COUNTRY_INFO!K9=1,0,IF(COUNTRY_INFO!K9=2,0.2*COUNTRY_INFO!G9/(0.5*COUNTRY_INFO!F9+0.2*COUNTRY_INFO!G9),IF(COUNTRY_INFO!K9=3,COUNTRY_INFO!G9/(COUNTRY_INFO!F9+COUNTRY_INFO!G9)))),0) -> 0.6973519547 | AP9: =MAX(COUNTRY_INFO!D9*AK9*PROFILE!$G$7,COUNTRY_INFO!D9*AL9*PROFILE!$G$7) -> 761.5971774 | AQ9: =MAX(COUNTRY_INFO!D9*AK9*PROFILE!$G$8,COUNTRY_INFO!D9*AL9*PROFILE!$G$8,COUNTRY_INFO!D9*AM9*PROFILE!$G$8) -> 2592.639756 | AR9: =MAX(COUNTRY_INFO!D9*AK9*PROFILE!$G$9,COUNTRY_INFO!D9*AL9*PROFILE!$G$9,COUNTRY_INFO!D9*AM9*PROFILE!$G$9,IF(AND(DISTRICT!Z9<>"Inconnu",Z9<>"Non requis"),COUNTRY_INFO!P9*DISTRICT!AN9,0)) -> 12092 | AS9: =MAX(COUNTRY_INFO!D9*AK9*PROFILE!$G$10,COUNTRY_INFO!D9*AL9*PROFILE!$G$10,IF(AND(DISTRICT!Z9<>"Inconnu",Z9<>"Non requis"),COUNTRY_INFO!P9*DISTRICT!AO9,0)) -> 27862 | AT9: =SUM(AP9:AS9) -> 43308.23693 | AU9: =IF(COUNTIFS(AK9:AN9,">0")=0,0, IF(COUNTIFS(AK9:AN9,">0")<=IF(AND(OR(D9>=0,D9="Non requis",D9="Inconnu",D9="Interrompu"),D9>0,H9>0),1,0)+IF(AND(OR(J9>=0,J9="Non requis",J9="Inconnu",J9="Interrompu"),J9>0,N9>0),1,0)+IF(AND(OR(P9>=0,P9="Non requis",P9="Inconnu"),P9>0,X9>0),1,0)+IF(AND(OR(Z9>=0,Z9="Non requis",Z9="Inconnu"),Z9>0,AH9>0),1,0),"Y",0)) -> 0 | AV9: =MAX('MDA4'!R9,'T1'!L9,'T2'!J9,T3_R1!K9,T3_R2!K9) -> 0 | AW9: =MAX('MDA1'!K9,'MDA4'!S9,'MDA3'!I9,'MDA3'!L9,'T1'!M9,'T2'!K9,T3_R1!L9,T3_R2!L9) -> 3213.6 | AX9: =MAX('MDA1'!L9,'MDA4'!T9,'MDA3'!J9,'MDA3'!M9,'T1'!N9,'T2'!L9,T3_R1!M9,T3_R2!M9) -> 10176.4 | AY9: =SUM(AV9:AX9) -> 13390 | AZ9: =MAX('MDA4'!R9,T9) -> 0 | BA9: =MAX('MDA1'!K9,'MDA4'!S9,'MDA3'!I9,'MDA3'!L9,V9,AD9) -> 3213.6 | BB9: =MAX('MDA1'!L9,'MDA4'!T9,'MDA3'!J9,'MDA3'!M9,AF9) -> 10176.4 | BC9: =IF(AT9<SUM(AZ9:BB9), AT9,SUM(AZ9:BB9)) -> 13390 | BD9: =IF(AT9<>0,BC9/AT9*100,0) -> 30.91790603
A10: =IF(COUNTRY_INFO!A10=0," ",COUNTRY_INFO!A10) -> Congo | B10: =IF(COUNTRY_INFO!B10=0," ",COUNTRY_INFO!B10) -> Bouenza | C10: =IF(COUNTRY_INFO!C10=0," ",COUNTRY_INFO!C10) -> Loutété | D10: =COUNTRY_INFO!M10 -> 55614 | E10: 1312 | F10: 1322 | G10: =SUM('MDA1'!M10,'MDA4'!U10) -> 28720 | H10: =IF(AND(COUNTRY_INFO!H10>0,COUNTRY_INFO!H10<4),IF(D10>MAX('MDA1'!M10,'MDA4'!U10),MAX('MDA1'!M10,'MDA4'!U10),D10),0) -> 25928 | I10: =IF(AND(COUNTRY_INFO!H10>0,COUNTRY_INFO!H10<4), IF(G10/D10*100<>0, IF(G10/D10*100>100,100,G10/D10*100), "-"),0) -> 51.64167296 | J10: =COUNTRY_INFO!N10 -> 31821 | K10: 6222.72 | L10: 19705.28 | M10: =MAX('MDA1'!M10,MAX('MDA3'!I10,'MDA3'!L10)+MAX('MDA3'!J10,'MDA3'!M10)) -> 25928 | N10: =IF(AND(COUNTRY_INFO!I10>0,COUNTRY_INFO!I10<4),IF(J10>MAX('MDA1'!M10,MAX('MDA3'!I10,'MDA3'!L10)+MAX('MDA3'!J10,'MDA3'!M10)),MAX('MDA1'!M10,MAX('MDA3'!I10,'MDA3'!L10)+MAX('MDA3'!J10,'MDA3'!M10)),J10),0) -> 25928 | O10: =IF(AND(COUNTRY_INFO!I10>0,COUNTRY_INFO!I10<4), IF(M10/J10*100<>0, IF(M10/J10*100>100,100,M10/J10*100), "-"),0) -> 81.48078313 | P10: =COUNTRY_INFO!O10 -> 22245 | S10: =SUM(MAX('MDA4'!N10, 'T1'!L10, MAX(T3_R1!K10, T3_R2!K10)), MAX('MDA1'!K10, 'MDA4'!O10, 'T1'!M10, MAX(T3_R1!L10, T3_R2!L10)), MAX('MDA1'!L10, 'MDA4'!P10, 'T1'!N10, MAX(T3_R1!M10, T3_R2!M10))) -> 25928 | T10: =IF(AND(COUNTRY_INFO!J10>1,COUNTRY_INFO!J10<4),IF(COUNTRY_INFO!E10>MAX('MDA4'!N10,'T1'!L10,MAX(T3_R1!K10,T3_R2!K10)),MAX('MDA4'!N10,'T1'!L10,MAX(T3_R1!K10,T3_R2!K10)),COUNTRY_INFO!E10),0) -> 0 | U10: =IF(AND(COUNTRY_INFO!J10>1,COUNTRY_INFO!J10<4), IF(T10/COUNTRY_INFO!E10*100<>0, IF(T10/COUNTRY_INFO!E10*100>100,100,T10/COUNTRY_INFO!E10*100), "-"),0) -> - | V10: =IF(AND(COUNTRY_INFO!J10>1,COUNTRY_INFO!J10<4),IF(COUNTRY_INFO!F10>MAX('MDA1'!K10,'MDA4'!O10,'T1'!M10,MAX(T3_R1!L10,T3_R2!L10)),MAX('MDA1'!K10,'MDA4'!O10,'T1'!M10,MAX(T3_R1!L10,T3_R2!L10)),COUNTRY_INFO!F10),0) -> 6222.72 | W10: =IF(AND(COUNTRY_INFO!J10>1,COUNTRY_INFO!J10<4), IF(V10/COUNTRY_INFO!F10*100<>0, IF(V10/COUNTRY_INFO!F10*100>100,100,V10/COUNTRY_INFO!F10*100), "-"),0) -> 46.62261182 | X10: =SUM(T10,V10) -> 6222.72 | Y10: =IF(AND(COUNTRY_INFO!J10>1,COUNTRY_INFO!J10<4), IF(S10/P10*100<>0, IF(X10/P10*100>100,100,X10/P10*100), "-"),0) -> 27.97356709 | Z10: =COUNTRY_INFO!P10 -> 12824.5 | AC10: =MAX('T1'!L10,'T2'!J10)+MAX('T1'!M10,'T2'!K10)+MAX('T1'!N10,'T2'!L10) -> 0 | AD10: =IF(COUNTRY_INFO!K10=1,IF(COUNTRY_INFO!F10*0.33>MAX('T1'!M10,'T2'!K10),MAX('T1'!M10,'T2'!K10),COUNTRY_INFO!F10*0.33),IF(COUNTRY_INFO!K10=2,IF(COUNTRY_INFO!F10*0.5>MAX('T1'!M10,'T2'!K10),MAX('T1'!M10,'T2'!K10),COUNTRY_INFO!F10*0.5),IF(COUNTRY_INFO!K10=3,IF(COUNTRY_INFO!F10>MAX('T1'!M10,'T2'!K10),MAX('T1'!M10,'T2'!K10),COUNTRY_INFO!F10),0))) -> 0 | AE10: =IF(AND(COUNTRY_INFO!K10>0,COUNTRY_INFO!K10<4),IF(Z10>0,IF(COUNTRY_INFO!K10=1, AD10/(COUNTRY_INFO!F10*0.33)*100, IF(COUNTRY_INFO!K10=2, AD10/(COUNTRY_INFO!F10*0.5)*100, IF(COUNTRY_INFO!K10=3, AD10/COUNTRY_INFO!F10*100))),"-"),0) -> 0 | AF10: =IF(COUNTRY_INFO!K10=2,IF(COUNTRY_INFO!G10*0.2>MAX('T1'!N10,'T2'!L10),MAX('T1'!N10,'T2'!L10),COUNTRY_INFO!G10*0.2),IF(COUNTRY_INFO!K10=3,IF(COUNTRY_INFO!G10>MAX('T1'!N10,'T2'!L10),MAX('T1'!N10,'T2'!L10),COUNTRY_INFO!G10),0)) -> 0 | AG10: =IF(AND(COUNTRY_INFO!K10>0,COUNTRY_INFO!K10<4),IF(Z10>0,IF(COUNTRY_INFO!K10=1, 0, IF(COUNTRY_INFO!K10=2, AF10/(COUNTRY_INFO!G10*0.2)*100, IF(COUNTRY_INFO!K10=3, AF10/COUNTRY_INFO!G10*100))),"-"),0) -> 0 | AH10: =SUM(AD10,AF10) -> 0 | AI10: =IF(AND(COUNTRY_INFO!K10>0,COUNTRY_INFO!K10<4), IF(AC10/Z10*100<>0, IF(AH10/Z10*100>100,100,AH10/Z10*100), "-"),0) -> - | AK10: =IF(AND(D10<>0, D10<>"Inconnu",D10<>"Interrompu",D10<>"Non requis"),D10/COUNTRY_INFO!D10, 0) -> 1 | AL10: =IF(AND(J10<>0,J10<>"Inconnu",J10<>"Interrompu",J10<>"Non requis"),J10/COUNTRY_INFO!D10, 0) -> 0.5721760708 | AM10: =IF(AND(P10<>0,P10<>"Inconnu",P10<>"Non requis"),P10/(COUNTRY_INFO!E10+COUNTRY_INFO!F10), 0) -> 1 | AN10: =IF(AND(Z10<>0,Z10<>"Inconnu",Z10<>"Non requis"),IF(COUNTRY_INFO!K10=1,1,IF(COUNTRY_INFO!K10=2,0.5*COUNTRY_INFO!F10/(0.5*COUNTRY_INFO!F10+0.2*COUNTRY_INFO!G10),IF(COUNTRY_INFO!K10=3,COUNTRY_INFO!F10/(COUNTRY_INFO!F10+COUNTRY_INFO!G10)))),0) -> 0.5203711646 | AO10: =IF(AND(Z10<>0,Z10<>"Inconnu",Z10<>"Non requis"),IF(COUNTRY_INFO!K10=1,0,IF(COUNTRY_INFO!K10=2,0.2*COUNTRY_INFO!G10/(0.5*COUNTRY_INFO!F10+0.2*COUNTRY_INFO!G10),IF(COUNTRY_INFO!K10=3,COUNTRY_INFO!G10/(COUNTRY_INFO!F10+COUNTRY_INFO!G10)))),0) -> 0.4796288354 | AP10: =MAX(COUNTRY_INFO!D10*AK10*PROFILE!$G$7,COUNTRY_INFO!D10*AL10*PROFILE!$G$7) -> 2613.889498 | AQ10: =MAX(COUNTRY_INFO!D10*AK10*PROFILE!$G$8,COUNTRY_INFO!D10*AL10*PROFILE!$G$8,COUNTRY_INFO!D10*AM10*PROFILE!$G$8) -> 8898.239164 | AR10: =MAX(COUNTRY_INFO!D10*AK10*PROFILE!$G$9,COUNTRY_INFO!D10*AL10*PROFILE!$G$9,COUNTRY_INFO!D10*AM10*PROFILE!$G$9,IF(AND(DISTRICT!Z10<>"Inconnu",Z10<>"Non requis"),COUNTRY_INFO!P10*DISTRICT!AN10,0)) -> 13347.33784 | AS10: =MAX(COUNTRY_INFO!D10*AK10*PROFILE!$G$10,COUNTRY_INFO!D10*AL10*PROFILE!$G$10,IF(AND(DISTRICT!Z10<>"Inconnu",Z10<>"Non requis"),COUNTRY_INFO!P10*DISTRICT!AO10,0)) -> 30754.53349 | AT10: =SUM(AP10:AS10) -> 55614 | AU10: =IF(COUNTIFS(AK10:AN10,">0")=0,0, IF(COUNTIFS(AK10:AN10,">0")<=IF(AND(OR(D10>=0,D10="Non requis",D10="Inconnu",D10="Interrompu"),D10>0,H10>0),1,0)+IF(AND(OR(J10>=0,J10="Non requis",J10="Inconnu",J10="Interrompu"),J10>0,N10>0),1,0)+IF(AND(OR(P10>=0,P10="Non requis",P10="Inconnu"),P10>0,X10>0),1,0)+IF(AND(OR(Z10>=0,Z10="Non requis",Z10="Inconnu"),Z10>0,AH10>0),1,0),"Y",0)) -> 0 | AV10: =MAX('MDA4'!R10,'T1'!L10,'T2'!J10,T3_R1!K10,T3_R2!K10) -> 0 | AW10: =MAX('MDA1'!K10,'MDA4'!S10,'MDA3'!I10,'MDA3'!L10,'T1'!M10,'T2'!K10,T3_R1!L10,T3_R2!L10) -> 6222.72 | AX10: =MAX('MDA1'!L10,'MDA4'!T10,'MDA3'!J10,'MDA3'!M10,'T1'!N10,'T2'!L10,T3_R1!M10,T3_R2!M10) -> 19705.28 | AY10: =SUM(AV10:AX10) -> 25928 | AZ10: =MAX('MDA4'!R10,T10) -> 0 | BA10: =MAX('MDA1'!K10,'MDA4'!S10,'MDA3'!I10,'MDA3'!L10,V10,AD10) -> 6222.72 | BB10: =MAX('MDA1'!L10,'MDA4'!T10,'MDA3'!J10,'MDA3'!M10,AF10) -> 19705.28 | BC10: =IF(AT10<SUM(AZ10:BB10), AT10,SUM(AZ10:BB10)) -> 25928 | BD10: =IF(AT10<>0,BC10/AT10*100,0) -> 46.62135434
A11: =IF(COUNTRY_INFO!A11=0," ",COUNTRY_INFO!A11) -> Congo | B11: =IF(COUNTRY_INFO!B11=0," ",COUNTRY_INFO!B11) -> Bouenza | C11: =IF(COUNTRY_INFO!C11=0," ",COUNTRY_INFO!C11) -> Madingou | D11: =COUNTRY_INFO!M11 -> 105844 | E11: 7760 | F11: 7861 | G11: =SUM('MDA1'!M11,'MDA4'!U11) -> 56060 | H11: =IF(AND(COUNTRY_INFO!H11>0,COUNTRY_INFO!H11<4),IF(D11>MAX('MDA1'!M11,'MDA4'!U11),MAX('MDA1'!M11,'MDA4'!U11),D11),0) -> 40439 | I11: =IF(AND(COUNTRY_INFO!H11>0,COUNTRY_INFO!H11<4), IF(G11/D11*100<>0, IF(G11/D11*100>100,100,G11/D11*100), "-"),0) -> 52.96474056 | J11: =COUNTRY_INFO!N11 -> 48422 | K11: 9705.36 | L11: 30733.64 | M11: =MAX('MDA1'!M11,MAX('MDA3'!I11,'MDA3'!L11)+MAX('MDA3'!J11,'MDA3'!M11)) -> 40439 | N11: =IF(AND(COUNTRY_INFO!I11>0,COUNTRY_INFO!I11<4),IF(J11>MAX('MDA1'!M11,MAX('MDA3'!I11,'MDA3'!L11)+MAX('MDA3'!J11,'MDA3'!M11)),MAX('MDA1'!M11,MAX('MDA3'!I11,'MDA3'!L11)+MAX('MDA3'!J11,'MDA3'!M11)),J11),0) -> 40439 | O11: =IF(AND(COUNTRY_INFO!I11>0,COUNTRY_INFO!I11<4), IF(M11/J11*100<>0, IF(M11/J11*100>100,100,M11/J11*100), "-"),0) -> 83.51369212 | P11: =COUNTRY_INFO!O11 -> 0 | S11: =SUM(MAX('MDA4'!N11, 'T1'!L11, MAX(T3_R1!K11, T3_R2!K11)), MAX('MDA1'!K11, 'MDA4'!O11, 'T1'!M11, MAX(T3_R1!L11, T3_R2!L11)), MAX('MDA1'!L11, 'MDA4'!P11, 'T1'!N11, MAX(T3_R1!M11, T3_R2!M11))) -> 40439 | T11: =IF(AND(COUNTRY_INFO!J11>1,COUNTRY_INFO!J11<4),IF(COUNTRY_INFO!E11>MAX('MDA4'!N11,'T1'!L11,MAX(T3_R1!K11,T3_R2!K11)),MAX('MDA4'!N11,'T1'!L11,MAX(T3_R1!K11,T3_R2!K11)),COUNTRY_INFO!E11),0) -> 0 | U11: =IF(AND(COUNTRY_INFO!J11>1,COUNTRY_INFO!J11<4), IF(T11/COUNTRY_INFO!E11*100<>0, IF(T11/COUNTRY_INFO!E11*100>100,100,T11/COUNTRY_INFO!E11*100), "-"),0) -> 0 | V11: =IF(AND(COUNTRY_INFO!J11>1,COUNTRY_INFO!J11<4),IF(COUNTRY_INFO!F11>MAX('MDA1'!K11,'MDA4'!O11,'T1'!M11,MAX(T3_R1!L11,T3_R2!L11)),MAX('MDA1'!K11,'MDA4'!O11,'T1'!M11,MAX(T3_R1!L11,T3_R2!L11)),COUNTRY_INFO!F11),0) -> 0 | W11: =IF(AND(COUNTRY_INFO!J11>1,COUNTRY_INFO!J11<4), IF(V11/COUNTRY_INFO!F11*100<>0, IF(V11/COUNTRY_INFO!F11*100>100,100,V11/COUNTRY_INFO!F11*100), "-"),0) -> 0 | X11: 0 | Y11: =IF(AND(COUNTRY_INFO!J11>1,COUNTRY_INFO!J11<4), IF(S11/P11*100<>0, IF(X11/P11*100>100,100,X11/P11*100), "-"),0) -> 0 | Z11: =COUNTRY_INFO!P11 -> 0 | AC11: =MAX('T1'!L11,'T2'!J11)+MAX('T1'!M11,'T2'!K11)+MAX('T1'!N11,'T2'!L11) -> 0 | AD11: =IF(COUNTRY_INFO!K11=1,IF(COUNTRY_INFO!F11*0.33>MAX('T1'!M11,'T2'!K11),MAX('T1'!M11,'T2'!K11),COUNTRY_INFO!F11*0.33),IF(COUNTRY_INFO!K11=2,IF(COUNTRY_INFO!F11*0.5>MAX('T1'!M11,'T2'!K11),MAX('T1'!M11,'T2'!K11),COUNTRY_INFO!F11*0.5),IF(COUNTRY_INFO!K11=3,IF(COUNTRY_INFO!F11>MAX('T1'!M11,'T2'!K11),MAX('T1'!M11,'T2'!K11),COUNTRY_INFO!F11),0))) -> 0 | AE11: =IF(AND(COUNTRY_INFO!K11>0,COUNTRY_INFO!K11<4),IF(Z11>0,IF(COUNTRY_INFO!K11=1, AD11/(COUNTRY_INFO!F11*0.33)*100, IF(COUNTRY_INFO!K11=2, AD11/(COUNTRY_INFO!F11*0.5)*100, IF(COUNTRY_INFO!K11=3, AD11/COUNTRY_INFO!F11*100))),"-"),0) -> 0 | AF11: =IF(COUNTRY_INFO!K11=2,IF(COUNTRY_INFO!G11*0.2>MAX('T1'!N11,'T2'!L11),MAX('T1'!N11,'T2'!L11),COUNTRY_INFO!G11*0.2),IF(COUNTRY_INFO!K11=3,IF(COUNTRY_INFO!G11>MAX('T1'!N11,'T2'!L11),MAX('T1'!N11,'T2'!L11),COUNTRY_INFO!G11),0)) -> 0 | AG11: =IF(AND(COUNTRY_INFO!K11>0,COUNTRY_INFO!K11<4),IF(Z11>0,IF(COUNTRY_INFO!K11=1, 0, IF(COUNTRY_INFO!K11=2, AF11/(COUNTRY_INFO!G11*0.2)*100, IF(COUNTRY_INFO!K11=3, AF11/COUNTRY_INFO!G11*100))),"-"),0) -> 0 | AH11: 0 | AI11: =IF(AND(COUNTRY_INFO!K11>0,COUNTRY_INFO!K11<4), IF(AC11/Z11*100<>0, IF(AH11/Z11*100>100,100,AH11/Z11*100), "-"),0) -> 0 | AK11: =IF(AND(D11<>0, D11<>"Inconnu",D11<>"Interrompu",D11<>"Non requis"),D11/COUNTRY_INFO!D11, 0) -> 1 | AL11: =IF(AND(J11<>0,J11<>"Inconnu",J11<>"Interrompu",J11<>"Non requis"),J11/COUNTRY_INFO!D11, 0) -> 0.4574846 | AM11: =IF(AND(P11<>0,P11<>"Inconnu",P11<>"Non requis"),P11/(COUNTRY_INFO!E11+COUNTRY_INFO!F11), 0) -> 0 | AN11: =IF(AND(Z11<>0,Z11<>"Inconnu",Z11<>"Non requis"),IF(COUNTRY_INFO!K11=1,1,IF(COUNTRY_INFO!K11=2,0.5*COUNTRY_INFO!F11/(0.5*COUNTRY_INFO!F11+0.2*COUNTRY_INFO!G11),IF(COUNTRY_INFO!K11=3,COUNTRY_INFO!F11/(COUNTRY_INFO!F11+COUNTRY_INFO!G11)))),0) -> 0 | AO11: =IF(AND(Z11<>0,Z11<>"Inconnu",Z11<>"Non requis"),IF(COUNTRY_INFO!K11=1,0,IF(COUNTRY_INFO!K11=2,0.2*COUNTRY_INFO!G11/(0.5*COUNTRY_INFO!F11+0.2*COUNTRY_INFO!G11),IF(COUNTRY_INFO!K11=3,COUNTRY_INFO!G11/(COUNTRY_INFO!F11+COUNTRY_INFO!G11)))),0) -> 0 | AP11: =MAX(COUNTRY_INFO!D11*AK11*PROFILE!$G$7,COUNTRY_INFO!D11*AL11*PROFILE!$G$7) -> 4974.727947 | AQ11: =MAX(COUNTRY_INFO!D11*AK11*PROFILE!$G$8,COUNTRY_INFO!D11*AL11*PROFILE!$G$8,COUNTRY_INFO!D11*AM11*PROFILE!$G$8) -> 16935.03841 | AR11: =MAX(COUNTRY_INFO!D11*AK11*PROFILE!$G$9,COUNTRY_INFO!D11*AL11*PROFILE!$G$9,COUNTRY_INFO!D11*AM11*PROFILE!$G$9,IF(AND(DISTRICT!Z11<>"Inconnu",Z11<>"Non requis"),COUNTRY_INFO!P11*DISTRICT!AN11,0)) -> 25402.51783 | AS11: =MAX(COUNTRY_INFO!D11*AK11*PROFILE!$G$10,COUNTRY_INFO!D11*AL11*PROFILE!$G$10,IF(AND(DISTRICT!Z11<>"Inconnu",Z11<>"Non requis"),COUNTRY_INFO!P11*DISTRICT!AO11,0)) -> 58531.71581 | AT11: 105844 | AU11: Y | AV11: =MAX('MDA4'!R11,'T1'!L11,'T2'!J11,T3_R1!K11,T3_R2!K11) -> 0 | AW11: =MAX('MDA1'!K11,'MDA4'!S11,'MDA3'!I11,'MDA3'!L11,'T1'!M11,'T2'!K11,T3_R1!L11,T3_R2!L11) -> 9705.36 | AX11: =MAX('MDA1'!L11,'MDA4'!T11,'MDA3'!J11,'MDA3'!M11,'T1'!N11,'T2'!L11,T3_R1!M11,T3_R2!M11) -> 30733.64 | AY11: 40439 | AZ11: =MAX('MDA4'!R11,T11) -> 0 | BA11: =MAX('MDA1'!K11,'MDA4'!S11,'MDA3'!I11,'MDA3'!L11,V11,AD11) -> 9705.36 | BB11: =MAX('MDA1'!L11,'MDA4'!T11,'MDA3'!J11,'MDA3'!M11,AF11) -> 30733.64 | BC11: 40439 | BD11: 38.20622803
A12: =IF(COUNTRY_INFO!A12=0," ",COUNTRY_INFO!A12) -> Congo | B12: =IF(COUNTRY_INFO!B12=0," ",COUNTRY_INFO!B12) -> Bouenza | C12: =IF(COUNTRY_INFO!C12=0," ",COUNTRY_INFO!C12) -> Mouyondzi | D12: =COUNTRY_INFO!M12 -> 84145 | E12: 3181 | F12: 3464 | G12: =SUM('MDA1'!M12,'MDA4'!U12) -> 40328 | H12: =IF(AND(COUNTRY_INFO!H12>0,COUNTRY_INFO!H12<4),IF(D12>MAX('MDA1'!M12,'MDA4'!U12),MAX('MDA1'!M12,'MDA4'!U12),D12),0) -> 33683 | I12: =IF(AND(COUNTRY_INFO!H12>0,COUNTRY_INFO!H12<4), IF(G12/D12*100<>0, IF(G12/D12*100>100,100,G12/D12*100), "-"),0) -> 47.92679304 | J12: =COUNTRY_INFO!N12 -> 40579 | K12: 8083.92 | L12: 25599.08 | M12: =MAX('MDA1'!M12,MAX('MDA3'!I12,'MDA3'!L12)+MAX('MDA3'!J12,'MDA3'!M12)) -> 33683 | N12: =IF(AND(COUNTRY_INFO!I12>0,COUNTRY_INFO!I12<4),IF(J12>MAX('MDA1'!M12,MAX('MDA3'!I12,'MDA3'!L12)+MAX('MDA3'!J12,'MDA3'!M12)),MAX('MDA1'!M12,MAX('MDA3'!I12,'MDA3'!L12)+MAX('MDA3'!J12,'MDA3'!M12)),J12),0) -> 33683 | O12: =IF(AND(COUNTRY_INFO!I12>0,COUNTRY_INFO!I12<4), IF(M12/J12*100<>0, IF(M12/J12*100>100,100,M12/J12*100), "-"),0) -> 83.00598832 | P12: =COUNTRY_INFO!O12 -> 33658 | S12: =SUM(MAX('MDA4'!N12, 'T1'!L12, MAX(T3_R1!K12, T3_R2!K12)), MAX('MDA1'!K12, 'MDA4'!O12, 'T1'!M12, MAX(T3_R1!L12, T3_R2!L12)), MAX('MDA1'!L12, 'MDA4'!P12, 'T1'!N12, MAX(T3_R1!M12, T3_R2!M12))) -> 33683 | T12: =IF(AND(COUNTRY_INFO!J12>1,COUNTRY_INFO!J12<4),IF(COUNTRY_INFO!E12>MAX('MDA4'!N12,'T1'!L12,MAX(T3_R1!K12,T3_R2!K12)),MAX('MDA4'!N12,'T1'!L12,MAX(T3_R1!K12,T3_R2!K12)),COUNTRY_INFO!E12),0) -> 0 | U12: =IF(AND(COUNTRY_INFO!J12>1,COUNTRY_INFO!J12<4), IF(T12/COUNTRY_INFO!E12*100<>0, IF(T12/COUNTRY_INFO!E12*100>100,100,T12/COUNTRY_INFO!E12*100), "-"),0) -> - | V12: =IF(AND(COUNTRY_INFO!J12>1,COUNTRY_INFO!J12<4),IF(COUNTRY_INFO!F12>MAX('MDA1'!K12,'MDA4'!O12,'T1'!M12,MAX(T3_R1!L12,T3_R2!L12)),MAX('MDA1'!K12,'MDA4'!O12,'T1'!M12,MAX(T3_R1!L12,T3_R2!L12)),COUNTRY_INFO!F12),0) -> 8083.92 | W12: =IF(AND(COUNTRY_INFO!J12>1,COUNTRY_INFO!J12<4), IF(V12/COUNTRY_INFO!F12*100<>0, IF(V12/COUNTRY_INFO!F12*100>100,100,V12/COUNTRY_INFO!F12*100), "-"),0) -> 40.02931419 | X12: 8083.92 | Y12: =IF(AND(COUNTRY_INFO!J12>1,COUNTRY_INFO!J12<4), IF(S12/P12*100<>0, IF(X12/P12*100>100,100,X12/P12*100), "-"),0) -> 24.01782637 | Z12: =COUNTRY_INFO!P12 -> 66727 | AC12: =MAX('T1'!L12,'T2'!J12)+MAX('T1'!M12,'T2'!K12)+MAX('T1'!N12,'T2'!L12) -> 0 | AD12: =IF(COUNTRY_INFO!K12=1,IF(COUNTRY_INFO!F12*0.33>MAX('T1'!M12,'T2'!K12),MAX('T1'!M12,'T2'!K12),COUNTRY_INFO!F12*0.33),IF(COUNTRY_INFO!K12=2,IF(COUNTRY_INFO!F12*0.5>MAX('T1'!M12,'T2'!K12),MAX('T1'!M12,'T2'!K12),COUNTRY_INFO!F12*0.5),IF(COUNTRY_INFO!K12=3,IF(COUNTRY_INFO!F12>MAX('T1'!M12,'T2'!K12),MAX('T1'!M12,'T2'!K12),COUNTRY_INFO!F12),0))) -> 0 | AE12: =IF(AND(COUNTRY_INFO!K12>0,COUNTRY_INFO!K12<4),IF(Z12>0,IF(COUNTRY_INFO!K12=1, AD12/(COUNTRY_INFO!F12*0.33)*100, IF(COUNTRY_INFO!K12=2, AD12/(COUNTRY_INFO!F12*0.5)*100, IF(COUNTRY_INFO!K12=3, AD12/COUNTRY_INFO!F12*100))),"-"),0) -> 0 | AF12: =IF(COUNTRY_INFO!K12=2,IF(COUNTRY_INFO!G12*0.2>MAX('T1'!N12,'T2'!L12),MAX('T1'!N12,'T2'!L12),COUNTRY_INFO!G12*0.2),IF(COUNTRY_INFO!K12=3,IF(COUNTRY_INFO!G12>MAX('T1'!N12,'T2'!L12),MAX('T1'!N12,'T2'!L12),COUNTRY_INFO!G12),0)) -> 0 | AG12: =IF(AND(COUNTRY_INFO!K12>0,COUNTRY_INFO!K12<4),IF(Z12>0,IF(COUNTRY_INFO!K12=1, 0, IF(COUNTRY_INFO!K12=2, AF12/(COUNTRY_INFO!G12*0.2)*100, IF(COUNTRY_INFO!K12=3, AF12/COUNTRY_INFO!G12*100))),"-"),0) -> 0 | AH12: 0 | AI12: =IF(AND(COUNTRY_INFO!K12>0,COUNTRY_INFO!K12<4), IF(AC12/Z12*100<>0, IF(AH12/Z12*100>100,100,AH12/Z12*100), "-"),0) -> - | AK12: =IF(AND(D12<>0, D12<>"Inconnu",D12<>"Interrompu",D12<>"Non requis"),D12/COUNTRY_INFO!D12, 0) -> 1 | AL12: =IF(AND(J12<>0,J12<>"Inconnu",J12<>"Interrompu",J12<>"Non requis"),J12/COUNTRY_INFO!D12, 0) -> 0.4822508765 | AM12: =IF(AND(P12<>0,P12<>"Inconnu",P12<>"Non requis"),P12/(COUNTRY_INFO!E12+COUNTRY_INFO!F12), 0) -> 1 | AN12: =IF(AND(Z12<>0,Z12<>"Inconnu",Z12<>"Non requis"),IF(COUNTRY_INFO!K12=1,1,IF(COUNTRY_INFO!K12=2,0.5*COUNTRY_INFO!F12/(0.5*COUNTRY_INFO!F12+0.2*COUNTRY_INFO!G12),IF(COUNTRY_INFO!K12=3,COUNTRY_INFO!F12/(COUNTRY_INFO!F12+COUNTRY_INFO!G12)))),0) -> 0.3026511008 | AO12: =IF(AND(Z12<>0,Z12<>"Inconnu",Z12<>"Non requis"),IF(COUNTRY_INFO!K12=1,0,IF(COUNTRY_INFO!K12=2,0.2*COUNTRY_INFO!G12/(0.5*COUNTRY_INFO!F12+0.2*COUNTRY_INFO!G12),IF(COUNTRY_INFO!K12=3,COUNTRY_INFO!G12/(COUNTRY_INFO!F12+COUNTRY_INFO!G12)))),0) -> 0.6973488992 | AP12: =MAX(COUNTRY_INFO!D12*AK12*PROFILE!$G$7,COUNTRY_INFO!D12*AL12*PROFILE!$G$7) -> 3954.862657 | AQ12: =MAX(COUNTRY_INFO!D12*AK12*PROFILE!$G$8,COUNTRY_INFO!D12*AL12*PROFILE!$G$8,COUNTRY_INFO!D12*AM12*PROFILE!$G$8) -> 13463.19874 | AR12: =MAX(COUNTRY_INFO!D12*AK12*PROFILE!$G$9,COUNTRY_INFO!D12*AL12*PROFILE!$G$9,COUNTRY_INFO!D12*AM12*PROFILE!$G$9,IF(AND(DISTRICT!Z12<>"Inconnu",Z12<>"Non requis"),COUNTRY_INFO!P12*DISTRICT!AN12,0)) -> 20195 | AS12: =MAX(COUNTRY_INFO!D12*AK12*PROFILE!$G$10,COUNTRY_INFO!D12*AL12*PROFILE!$G$10,IF(AND(DISTRICT!Z12<>"Inconnu",Z12<>"Non requis"),COUNTRY_INFO!P12*DISTRICT!AO12,0)) -> 46532.17213 | AT12: 84145.23352 | AU12: 0 | AV12: =MAX('MDA4'!R12,'T1'!L12,'T2'!J12,T3_R1!K12,T3_R2!K12) -> 0 | AW12: =MAX('MDA1'!K12,'MDA4'!S12,'MDA3'!I12,'MDA3'!L12,'T1'!M12,'T2'!K12,T3_R1!L12,T3_R2!L12) -> 8083.92 | AX12: =MAX('MDA1'!L12,'MDA4'!T12,'MDA3'!J12,'MDA3'!M12,'T1'!N12,'T2'!L12,T3_R1!M12,T3_R2!M12) -> 25599.08 | AY12: 33683 | AZ12: =MAX('MDA4'!R12,T12) -> 0 | BA12: =MAX('MDA1'!K12,'MDA4'!S12,'MDA3'!I12,'MDA3'!L12,V12,AD12) -> 8083.92 | BB12: =MAX('MDA1'!L12,'MDA4'!T12,'MDA3'!J12,'MDA3'!M12,AF12) -> 25599.08 | BC12: 33683 | BD12: 40.02959953
A13: =IF(COUNTRY_INFO!A13=0," ",COUNTRY_INFO!A13) -> Congo | B13: =IF(COUNTRY_INFO!B13=0," ",COUNTRY_INFO!B13) -> Bouenza | C13: =IF(COUNTRY_INFO!C13=0," ",COUNTRY_INFO!C13) -> Nkayi | D13: =COUNTRY_INFO!M13 -> 0 | G13: =SUM('MDA1'!M13,'MDA4'!U13) -> 0 | H13: =IF(AND(COUNTRY_INFO!H13>0,COUNTRY_INFO!H13<4),IF(D13>MAX('MDA1'!M13,'MDA4'!U13),MAX('MDA1'!M13,'MDA4'!U13),D13),0) -> 0 | I13: =IF(AND(COUNTRY_INFO!H13>0,COUNTRY_INFO!H13<4), IF(G13/D13*100<>0, IF(G13/D13*100>100,100,G13/D13*100), "-"),0) -> 0 | J13: =COUNTRY_INFO!N13 -> 38249 | K13: 14188 | L13: 16090 | M13: =MAX('MDA1'!M13,MAX('MDA3'!I13,'MDA3'!L13)+MAX('MDA3'!J13,'MDA3'!M13)) -> 30278 | N13: =IF(AND(COUNTRY_INFO!I13>0,COUNTRY_INFO!I13<4),IF(J13>MAX('MDA1'!M13,MAX('MDA3'!I13,'MDA3'!L13)+MAX('MDA3'!J13,'MDA3'!M13)),MAX('MDA1'!M13,MAX('MDA3'!I13,'MDA3'!L13)+MAX('MDA3'!J13,'MDA3'!M13)),J13),0) -> 30278 | O13: =IF(AND(COUNTRY_INFO!I13>0,COUNTRY_INFO!I13<4), IF(M13/J13*100<>0, IF(M13/J13*100>100,100,M13/J13*100), "-"),0) -> 79.16023948 | P13: =COUNTRY_INFO!O13 -> 50685 | S13: =SUM(MAX('MDA4'!N13, 'T1'!L13, MAX(T3_R1!K13, T3_R2!K13)), MAX('MDA1'!K13, 'MDA4'!O13, 'T1'!M13, MAX(T3_R1!L13, T3_R2!L13)), MAX('MDA1'!L13, 'MDA4'!P13, 'T1'!N13, MAX(T3_R1!M13, T3_R2!M13))) -> 0 | T13: =IF(AND(COUNTRY_INFO!J13>1,COUNTRY_INFO!J13<4),IF(COUNTRY_INFO!E13>MAX('MDA4'!N13,'T1'!L13,MAX(T3_R1!K13,T3_R2!K13)),MAX('MDA4'!N13,'T1'!L13,MAX(T3_R1!K13,T3_R2!K13)),COUNTRY_INFO!E13),0) -> 0 | U13: =IF(AND(COUNTRY_INFO!J13>1,COUNTRY_INFO!J13<4), IF(T13/COUNTRY_INFO!E13*100<>0, IF(T13/COUNTRY_INFO!E13*100>100,100,T13/COUNTRY_INFO!E13*100), "-"),0) -> - | V13: =IF(AND(COUNTRY_INFO!J13>1,COUNTRY_INFO!J13<4),IF(COUNTRY_INFO!F13>MAX('MDA1'!K13,'MDA4'!O13,'T1'!M13,MAX(T3_R1!L13,T3_R2!L13)),MAX('MDA1'!K13,'MDA4'!O13,'T1'!M13,MAX(T3_R1!L13,T3_R2!L13)),COUNTRY_INFO!F13),0) -> 0 | W13: =IF(AND(COUNTRY_INFO!J13>1,COUNTRY_INFO!J13<4), IF(V13/COUNTRY_INFO!F13*100<>0, IF(V13/COUNTRY_INFO!F13*100>100,100,V13/COUNTRY_INFO!F13*100), "-"),0) -> - | X13: 0 | Y13: =IF(AND(COUNTRY_INFO!J13>1,COUNTRY_INFO!J13<4), IF(S13/P13*100<>0, IF(X13/P13*100>100,100,X13/P13*100), "-"),0) -> - | Z13: =COUNTRY_INFO!P13 -> 0 | AC13: =MAX('T1'!L13,'T2'!J13)+MAX('T1'!M13,'T2'!K13)+MAX('T1'!N13,'T2'!L13) -> 0 | AD13: =IF(COUNTRY_INFO!K13=1,IF(COUNTRY_INFO!F13*0.33>MAX('T1'!M13,'T2'!K13),MAX('T1'!M13,'T2'!K13),COUNTRY_INFO!F13*0.33),IF(COUNTRY_INFO!K13=2,IF(COUNTRY_INFO!F13*0.5>MAX('T1'!M13,'T2'!K13),MAX('T1'!M13,'T2'!K13),COUNTRY_INFO!F13*0.5),IF(COUNTRY_INFO!K13=3,IF(COUNTRY_INFO!F13>MAX('T1'!M13,'T2'!K13),MAX('T1'!M13,'T2'!K13),COUNTRY_INFO!F13),0))) -> 0 | AE13: =IF(AND(COUNTRY_INFO!K13>0,COUNTRY_INFO!K13<4),IF(Z13>0,IF(COUNTRY_INFO!K13=1, AD13/(COUNTRY_INFO!F13*0.33)*100, IF(COUNTRY_INFO!K13=2, AD13/(COUNTRY_INFO!F13*0.5)*100, IF(COUNTRY_INFO!K13=3, AD13/COUNTRY_INFO!F13*100))),"-"),0) -> 0 | AF13: =IF(COUNTRY_INFO!K13=2,IF(COUNTRY_INFO!G13*0.2>MAX('T1'!N13,'T2'!L13),MAX('T1'!N13,'T2'!L13),COUNTRY_INFO!G13*0.2),IF(COUNTRY_INFO!K13=3,IF(COUNTRY_INFO!G13>MAX('T1'!N13,'T2'!L13),MAX('T1'!N13,'T2'!L13),COUNTRY_INFO!G13),0)) -> 0 | AG13: =IF(AND(COUNTRY_INFO!K13>0,COUNTRY_INFO!K13<4),IF(Z13>0,IF(COUNTRY_INFO!K13=1, 0, IF(COUNTRY_INFO!K13=2, AF13/(COUNTRY_INFO!G13*0.2)*100, IF(COUNTRY_INFO!K13=3, AF13/COUNTRY_INFO!G13*100))),"-"),0) -> 0 | AH13: 0 | AI13: =IF(AND(COUNTRY_INFO!K13>0,COUNTRY_INFO!K13<4), IF(AC13/Z13*100<>0, IF(AH13/Z13*100>100,100,AH13/Z13*100), "-"),0) -> 0 | AK13: =IF(AND(D13<>0, D13<>"Inconnu",D13<>"Interrompu",D13<>"Non requis"),D13/COUNTRY_INFO!D13, 0) -> 0 | AL13: =IF(AND(J13<>0,J13<>"Inconnu",J13<>"Interrompu",J13<>"Non requis"),J13/COUNTRY_INFO!D13, 0) -> 0.3018529918 | AM13: =IF(AND(P13<>0,P13<>"Inconnu",P13<>"Non requis"),P13/(COUNTRY_INFO!E13+COUNTRY_INFO!F13), 0) -> 1 | AN13: =IF(AND(Z13<>0,Z13<>"Inconnu",Z13<>"Non requis"),IF(COUNTRY_INFO!K13=1,1,IF(COUNTRY_INFO!K13=2,0.5*COUNTRY_INFO!F13/(0.5*COUNTRY_INFO!F13+0.2*COUNTRY_INFO!G13),IF(COUNTRY_INFO!K13=3,COUNTRY_INFO!F13/(COUNTRY_INFO!F13+COUNTRY_INFO!G13)))),0) -> 0 | AO13: =IF(AND(Z13<>0,Z13<>"Inconnu",Z13<>"Non requis"),IF(COUNTRY_INFO!K13=1,0,IF(COUNTRY_INFO!K13=2,0.2*COUNTRY_INFO!G13/(0.5*COUNTRY_INFO!F13+0.2*COUNTRY_INFO!G13),IF(COUNTRY_INFO!K13=3,COUNTRY_INFO!G13/(COUNTRY_INFO!F13+COUNTRY_INFO!G13)))),0) -> 0 | AP13: =MAX(COUNTRY_INFO!D13*AK13*PROFILE!$G$7,COUNTRY_INFO!D13*AL13*PROFILE!$G$7) -> 1797.724663 | AQ13: =MAX(COUNTRY_INFO!D13*AK13*PROFILE!$G$8,COUNTRY_INFO!D13*AL13*PROFILE!$G$8,COUNTRY_INFO!D13*AM13*PROFILE!$G$8) -> 20274.2381 | AR13: =MAX(COUNTRY_INFO!D13*AK13*PROFILE!$G$9,COUNTRY_INFO!D13*AL13*PROFILE!$G$9,COUNTRY_INFO!D13*AM13*PROFILE!$G$9,IF(AND(DISTRICT!Z13<>"Inconnu",Z13<>"Non requis"),COUNTRY_INFO!P13*DISTRICT!AN13,0)) -> 30411.30952 | AS13: =MAX(COUNTRY_INFO!D13*AK13*PROFILE!$G$10,COUNTRY_INFO!D13*AL13*PROFILE!$G$10,IF(AND(DISTRICT!Z13<>"Inconnu",Z13<>"Non requis"),COUNTRY_INFO!P13*DISTRICT!AO13,0)) -> 21151.69115 | AT13: 73634.96343 | AU13: 0 | AV13: =MAX('MDA4'!R13,'T1'!L13,'T2'!J13,T3_R1!K13,T3_R2!K13) -> 0 | AW13: =MAX('MDA1'!K13,'MDA4'!S13,'MDA3'!I13,'MDA3'!L13,'T1'!M13,'T2'!K13,T3_R1!L13,T3_R2!L13) -> 7266.72 | AX13: =MAX('MDA1'!L13,'MDA4'!T13,'MDA3'!J13,'MDA3'!M13,'T1'!N13,'T2'!L13,T3_R1!M13,T3_R2!M13) -> 23011.28 | AY13: 30278 | AZ13: =MAX('MDA4'!R13,T13) -> 0 | BA13: =MAX('MDA1'!K13,'MDA4'!S13,'MDA3'!I13,'MDA3'!L13,V13,AD13) -> 7266.72 | BB13: =MAX('MDA1'!L13,'MDA4'!T13,'MDA3'!J13,'MDA3'!M13,AF13) -> 23011.28 | BC13: 30278 | BD13: 41.11905349
A14: =IF(COUNTRY_INFO!A14=0," ",COUNTRY_INFO!A14) -> Congo | B14: =IF(COUNTRY_INFO!B14=0," ",COUNTRY_INFO!B14) -> Brazzaville | C14: =IF(COUNTRY_INFO!C14=0," ",COUNTRY_INFO!C14) -> Bacongo | D14: =COUNTRY_INFO!M14 -> 0 | G14: =SUM('MDA1'!M14,'MDA4'!U14) -> 0 | H14: =IF(AND(COUNTRY_INFO!H14>0,COUNTRY_INFO!H14<4),IF(D14>MAX('MDA1'!M14,'MDA4'!U14),MAX('MDA1'!M14,'MDA4'!U14),D14),0) -> 0 | I14: =IF(AND(COUNTRY_INFO!H14>0,COUNTRY_INFO!H14<4), IF(G14/D14*100<>0, IF(G14/D14*100>100,100,G14/D14*100), "-"),0) -> 0 | J14: =COUNTRY_INFO!N14 -> 122326 | K14: 31248 | L14: 68429 | M14: =MAX('MDA1'!M14,MAX('MDA3'!I14,'MDA3'!L14)+MAX('MDA3'!J14,'MDA3'!M14)) -> 99677 | N14: =IF(AND(COUNTRY_INFO!I14>0,COUNTRY_INFO!I14<4),IF(J14>MAX('MDA1'!M14,MAX('MDA3'!I14,'MDA3'!L14)+MAX('MDA3'!J14,'MDA3'!M14)),MAX('MDA1'!M14,MAX('MDA3'!I14,'MDA3'!L14)+MAX('MDA3'!J14,'MDA3'!M14)),J14),0) -> 99677 | O14: =IF(AND(COUNTRY_INFO!I14>0,COUNTRY_INFO!I14<4), IF(M14/J14*100<>0, IF(M14/J14*100>100,100,M14/J14*100), "-"),0) -> 81.48472115 | P14: =COUNTRY_INFO!O14 -> 0 | S14: =SUM(MAX('MDA4'!N14, 'T1'!L14, MAX(T3_R1!K14, T3_R2!K14)), MAX('MDA1'!K14, 'MDA4'!O14, 'T1'!M14, MAX(T3_R1!L14, T3_R2!L14)), MAX('MDA1'!L14, 'MDA4'!P14, 'T1'!N14, MAX(T3_R1!M14, T3_R2!M14))) -> 0 | T14: =IF(AND(COUNTRY_INFO!J14>1,COUNTRY_INFO!J14<4),IF(COUNTRY_INFO!E14>MAX('MDA4'!N14,'T1'!L14,MAX(T3_R1!K14,T3_R2!K14)),MAX('MDA4'!N14,'T1'!L14,MAX(T3_R1!K14,T3_R2!K14)),COUNTRY_INFO!E14),0) -> 0 | U14: =IF(AND(COUNTRY_INFO!J14>1,COUNTRY_INFO!J14<4), IF(T14/COUNTRY_INFO!E14*100<>0, IF(T14/COUNTRY_INFO!E14*100>100,100,T14/COUNTRY_INFO!E14*100), "-"),0) -> 0 | V14: =IF(AND(COUNTRY_INFO!J14>1,COUNTRY_INFO!J14<4),IF(COUNTRY_INFO!F14>MAX('MDA1'!K14,'MDA4'!O14,'T1'!M14,MAX(T3_R1!L14,T3_R2!L14)),MAX('MDA1'!K14,'MDA4'!O14,'T1'!M14,MAX(T3_R1!L14,T3_R2!L14)),COUNTRY_INFO!F14),0) -> 0 | W14: =IF(AND(COUNTRY_INFO!J14>1,COUNTRY_INFO!J14<4), IF(V14/COUNTRY_INFO!F14*100<>0, IF(V14/COUNTRY_INFO!F14*100>100,100,V14/COUNTRY_INFO!F14*100), "-"),0) -> 0 | X14: 0 | Y14: =IF(AND(COUNTRY_INFO!J14>1,COUNTRY_INFO!J14<4), IF(S14/P14*100<>0, IF(X14/P14*100>100,100,X14/P14*100), "-"),0) -> 0 | Z14: =COUNTRY_INFO!P14 -> Inconnu | AC14: =MAX('T1'!L14,'T2'!J14)+MAX('T1'!M14,'T2'!K14)+MAX('T1'!N14,'T2'!L14) -> 0 | AD14: =IF(COUNTRY_INFO!K14=1,IF(COUNTRY_INFO!F14*0.33>MAX('T1'!M14,'T2'!K14),MAX('T1'!M14,'T2'!K14),COUNTRY_INFO!F14*0.33),IF(COUNTRY_INFO!K14=2,IF(COUNTRY_INFO!F14*0.5>MAX('T1'!M14,'T2'!K14),MAX('T1'!M14,'T2'!K14),COUNTRY_INFO!F14*0.5),IF(COUNTRY_INFO!K14=3,IF(COUNTRY_INFO!F14>MAX('T1'!M14,'T2'!K14),MAX('T1'!M14,'T2'!K14),COUNTRY_INFO!F14),0))) -> 0 | AE14: =IF(AND(COUNTRY_INFO!K14>0,COUNTRY_INFO!K14<4),IF(Z14>0,IF(COUNTRY_INFO!K14=1, AD14/(COUNTRY_INFO!F14*0.33)*100, IF(COUNTRY_INFO!K14=2, AD14/(COUNTRY_INFO!F14*0.5)*100, IF(COUNTRY_INFO!K14=3, AD14/COUNTRY_INFO!F14*100))),"-"),0) -> 0 | AF14: =IF(COUNTRY_INFO!K14=2,IF(COUNTRY_INFO!G14*0.2>MAX('T1'!N14,'T2'!L14),MAX('T1'!N14,'T2'!L14),COUNTRY_INFO!G14*0.2),IF(COUNTRY_INFO!K14=3,IF(COUNTRY_INFO!G14>MAX('T1'!N14,'T2'!L14),MAX('T1'!N14,'T2'!L14),COUNTRY_INFO!G14),0)) -> 0 | AG14: =IF(AND(COUNTRY_INFO!K14>0,COUNTRY_INFO!K14<4),IF(Z14>0,IF(COUNTRY_INFO!K14=1, 0, IF(COUNTRY_INFO!K14=2, AF14/(COUNTRY_INFO!G14*0.2)*100, IF(COUNTRY_INFO!K14=3, AF14/COUNTRY_INFO!G14*100))),"-"),0) -> 0 | AH14: 0 | AI14: =IF(AND(COUNTRY_INFO!K14>0,COUNTRY_INFO!K14<4), IF(AC14/Z14*100<>0, IF(AH14/Z14*100>100,100,AH14/Z14*100), "-"),0) -> 0 | AK14: =IF(AND(D14<>0, D14<>"Inconnu",D14<>"Interrompu",D14<>"Non requis"),D14/COUNTRY_INFO!D14, 0) -> 0 | AL14: =IF(AND(J14<>0,J14<>"Inconnu",J14<>"Interrompu",J14<>"Non requis"),J14/COUNTRY_INFO!D14, 0) -> 0.7693410733 | AM14: =IF(AND(P14<>0,P14<>"Inconnu",P14<>"Non requis"),P14/(COUNTRY_INFO!E14+COUNTRY_INFO!F14), 0) -> 0 | AN14: =IF(AND(Z14<>0,Z14<>"Inconnu",Z14<>"Non requis"),IF(COUNTRY_INFO!K14=1,1,IF(COUNTRY_INFO!K14=2,0.5*COUNTRY_INFO!F14/(0.5*COUNTRY_INFO!F14+0.2*COUNTRY_INFO!G14),IF(COUNTRY_INFO!K14=3,COUNTRY_INFO!F14/(COUNTRY_INFO!F14+COUNTRY_INFO!G14)))),0) -> 0 | AO14: =IF(AND(Z14<>0,Z14<>"Inconnu",Z14<>"Non requis"),IF(COUNTRY_INFO!K14=1,0,IF(COUNTRY_INFO!K14=2,0.2*COUNTRY_INFO!G14/(0.5*COUNTRY_INFO!F14+0.2*COUNTRY_INFO!G14),IF(COUNTRY_INFO!K14=3,COUNTRY_INFO!G14/(COUNTRY_INFO!F14+COUNTRY_INFO!G14)))),0) -> 0 | AP14: =MAX(COUNTRY_INFO!D14*AK14*PROFILE!$G$7,COUNTRY_INFO!D14*AL14*PROFILE!$G$7) -> 5749.391281 | AQ14: =MAX(COUNTRY_INFO!D14*AK14*PROFILE!$G$8,COUNTRY_INFO!D14*AL14*PROFILE!$G$8,COUNTRY_INFO!D14*AM14*PROFILE!$G$8) -> 19572.15816 | AR14: =MAX(COUNTRY_INFO!D14*AK14*PROFILE!$G$9,COUNTRY_INFO!D14*AL14*PROFILE!$G$9,COUNTRY_INFO!D14*AM14*PROFILE!$G$9,IF(AND(DISTRICT!Z14<>"Inconnu",Z14<>"Non requis"),COUNTRY_INFO!P14*DISTRICT!AN14,0)) -> 29358.19127 | AS14: =MAX(COUNTRY_INFO!D14*AK14*PROFILE!$G$10,COUNTRY_INFO!D14*AL14*PROFILE!$G$10,IF(AND(DISTRICT!Z14<>"Inconnu",Z14<>"Non requis"),COUNTRY_INFO!P14*DISTRICT!AO14,0)) -> 67646.25929 | AT14: 122326 | AU14: Y | AV14: =MAX('MDA4'!R14,'T1'!L14,'T2'!J14,T3_R1!K14,T3_R2!K14) -> 0 | AW14: =MAX('MDA1'!K14,'MDA4'!S14,'MDA3'!I14,'MDA3'!L14,'T1'!M14,'T2'!K14,T3_R1!L14,T3_R2!L14) -> 23922.48 | AX14: =MAX('MDA1'!L14,'MDA4'!T14,'MDA3'!J14,'MDA3'!M14,'T1'!N14,'T2'!L14,T3_R1!M14,T3_R2!M14) -> 75754.52 | AY14: 99677 | AZ14: =MAX('MDA4'!R14,T14) -> 0 | BA14: =MAX('MDA1'!K14,'MDA4'!S14,'MDA3'!I14,'MDA3'!L14,V14,AD14) -> 23922.48 | BB14: =MAX('MDA1'!L14,'MDA4'!T14,'MDA3'!J14,'MDA3'!M14,AF14) -> 75754.52 | BC14: 99677 | BD14: 81.48472115
A15: =IF(COUNTRY_INFO!A15=0," ",COUNTRY_INFO!A15) -> Congo | B15: =IF(COUNTRY_INFO!B15=0," ",COUNTRY_INFO!B15) -> Brazzaville | C15: =IF(COUNTRY_INFO!C15=0," ",COUNTRY_INFO!C15) -> Djiri | D15: =COUNTRY_INFO!M15 -> 0 | G15: =SUM('MDA1'!M15,'MDA4'!U15) -> 0 | H15: =IF(AND(COUNTRY_INFO!H15>0,COUNTRY_INFO!H15<4),IF(D15>MAX('MDA1'!M15,'MDA4'!U15),MAX('MDA1'!M15,'MDA4'!U15),D15),0) -> 0 | I15: =IF(AND(COUNTRY_INFO!H15>0,COUNTRY_INFO!H15<4), IF(G15/D15*100<>0, IF(G15/D15*100>100,100,G15/D15*100), "-"),0) -> 0 | J15: =COUNTRY_INFO!N15 -> 0 | M15: =MAX('MDA1'!M15,MAX('MDA3'!I15,'MDA3'!L15)+MAX('MDA3'!J15,'MDA3'!M15)) -> 0 | N15: =IF(AND(COUNTRY_INFO!I15>0,COUNTRY_INFO!I15<4),IF(J15>MAX('MDA1'!M15,MAX('MDA3'!I15,'MDA3'!L15)+MAX('MDA3'!J15,'MDA3'!M15)),MAX('MDA1'!M15,MAX('MDA3'!I15,'MDA3'!L15)+MAX('MDA3'!J15,'MDA3'!M15)),J15),0) -> 0 | O15: =IF(AND(COUNTRY_INFO!I15>0,COUNTRY_INFO!I15<4), IF(M15/J15*100<>0, IF(M15/J15*100>100,100,M15/J15*100), "-"),0) -> 0 | P15: =COUNTRY_INFO!O15 -> 0 | S15: =SUM(MAX('MDA4'!N15, 'T1'!L15, MAX(T3_R1!K15, T3_R2!K15)), MAX('MDA1'!K15, 'MDA4'!O15, 'T1'!M15, MAX(T3_R1!L15, T3_R2!L15)), MAX('MDA1'!L15, 'MDA4'!P15, 'T1'!N15, MAX(T3_R1!M15, T3_R2!M15))) -> 0 | T15: =IF(AND(COUNTRY_INFO!J15>1,COUNTRY_INFO!J15<4),IF(COUNTRY_INFO!E15>MAX('MDA4'!N15,'T1'!L15,MAX(T3_R1!K15,T3_R2!K15)),MAX('MDA4'!N15,'T1'!L15,MAX(T3_R1!K15,T3_R2!K15)),COUNTRY_INFO!E15),0) -> 0 | U15: =IF(AND(COUNTRY_INFO!J15>1,COUNTRY_INFO!J15<4), IF(T15/COUNTRY_INFO!E15*100<>0, IF(T15/COUNTRY_INFO!E15*100>100,100,T15/COUNTRY_INFO!E15*100), "-"),0) -> 0 | V15: =IF(AND(COUNTRY_INFO!J15>1,COUNTRY_INFO!J15<4),IF(COUNTRY_INFO!F15>MAX('MDA1'!K15,'MDA4'!O15,'T1'!M15,MAX(T3_R1!L15,T3_R2!L15)),MAX('MDA1'!K15,'MDA4'!O15,'T1'!M15,MAX(T3_R1!L15,T3_R2!L15)),COUNTRY_INFO!F15),0) -> 0 | W15: =IF(AND(COUNTRY_INFO!J15>1,COUNTRY_INFO!J15<4), IF(V15/COUNTRY_INFO!F15*100<>0, IF(V15/COUNTRY_INFO!F15*100>100,100,V15/COUNTRY_INFO!F15*100), "-"),0) -> 0 | X15: 0 | Y15: =IF(AND(COUNTRY_INFO!J15>1,COUNTRY_INFO!J15<4), IF(S15/P15*100<>0, IF(X15/P15*100>100,100,X15/P15*100), "-"),0) -> 0 | Z15: =COUNTRY_INFO!P15 -> 0 | AC15: =MAX('T1'!L15,'T2'!J15)+MAX('T1'!M15,'T2'!K15)+MAX('T1'!N15,'T2'!L15) -> 0 | AD15: =IF(COUNTRY_INFO!K15=1,IF(COUNTRY_INFO!F15*0.33>MAX('T1'!M15,'T2'!K15),MAX('T1'!M15,'T2'!K15),COUNTRY_INFO!F15*0.33),IF(COUNTRY_INFO!K15=2,IF(COUNTRY_INFO!F15*0.5>MAX('T1'!M15,'T2'!K15),MAX('T1'!M15,'T2'!K15),COUNTRY_INFO!F15*0.5),IF(COUNTRY_INFO!K15=3,IF(COUNTRY_INFO!F15>MAX('T1'!M15,'T2'!K15),MAX('T1'!M15,'T2'!K15),COUNTRY_INFO!F15),0))) -> 0 | AE15: =IF(AND(COUNTRY_INFO!K15>0,COUNTRY_INFO!K15<4),IF(Z15>0,IF(COUNTRY_INFO!K15=1, AD15/(COUNTRY_INFO!F15*0.33)*100, IF(COUNTRY_INFO!K15=2, AD15/(COUNTRY_INFO!F15*0.5)*100, IF(COUNTRY_INFO!K15=3, AD15/COUNTRY_INFO!F15*100))),"-"),0) -> 0 | AF15: =IF(COUNTRY_INFO!K15=2,IF(COUNTRY_INFO!G15*0.2>MAX('T1'!N15,'T2'!L15),MAX('T1'!N15,'T2'!L15),COUNTRY_INFO!G15*0.2),IF(COUNTRY_INFO!K15=3,IF(COUNTRY_INFO!G15>MAX('T1'!N15,'T2'!L15),MAX('T1'!N15,'T2'!L15),COUNTRY_INFO!G15),0)) -> 0 | AG15: =IF(AND(COUNTRY_INFO!K15>0,COUNTRY_INFO!K15<4),IF(Z15>0,IF(COUNTRY_INFO!K15=1, 0, IF(COUNTRY_INFO!K15=2, AF15/(COUNTRY_INFO!G15*0.2)*100, IF(COUNTRY_INFO!K15=3, AF15/COUNTRY_INFO!G15*100))),"-"),0) -> 0 | AH15: 0 | AI15: =IF(AND(COUNTRY_INFO!K15>0,COUNTRY_INFO!K15<4), IF(AC15/Z15*100<>0, IF(AH15/Z15*100>100,100,AH15/Z15*100), "-"),0) -> 0 | AK15: =IF(AND(D15<>0, D15<>"Inconnu",D15<>"Interrompu",D15<>"Non requis"),D15/COUNTRY_INFO!D15, 0) -> 0 | AL15: =IF(AND(J15<>0,J15<>"Inconnu",J15<>"Interrompu",J15<>"Non requis"),J15/COUNTRY_INFO!D15, 0) -> 0 | AM15: =IF(AND(P15<>0,P15<>"Inconnu",P15<>"Non requis"),P15/(COUNTRY_INFO!E15+COUNTRY_INFO!F15), 0) -> 0 | AN15: =IF(AND(Z15<>0,Z15<>"Inconnu",Z15<>"Non requis"),IF(COUNTRY_INFO!K15=1,1,IF(COUNTRY_INFO!K15=2,0.5*COUNTRY_INFO!F15/(0.5*COUNTRY_INFO!F15+0.2*COUNTRY_INFO!G15),IF(COUNTRY_INFO!K15=3,COUNTRY_INFO!F15/(COUNTRY_INFO!F15+COUNTRY_INFO!G15)))),0) -> 0 | AO15: =IF(AND(Z15<>0,Z15<>"Inconnu",Z15<>"Non requis"),IF(COUNTRY_INFO!K15=1,0,IF(COUNTRY_INFO!K15=2,0.2*COUNTRY_INFO!G15/(0.5*COUNTRY_INFO!F15+0.2*COUNTRY_INFO!G15),IF(COUNTRY_INFO!K15=3,COUNTRY_INFO!G15/(COUNTRY_INFO!F15+COUNTRY_INFO!G15)))),0) -> 0 | AP15: =MAX(COUNTRY_INFO!D15*AK15*PROFILE!$G$7,COUNTRY_INFO!D15*AL15*PROFILE!$G$7) -> 0 | AQ15: =MAX(COUNTRY_INFO!D15*AK15*PROFILE!$G$8,COUNTRY_INFO!D15*AL15*PROFILE!$G$8,COUNTRY_INFO!D15*AM15*PROFILE!$G$8) -> 0 | AR15: =MAX(COUNTRY_INFO!D15*AK15*PROFILE!$G$9,COUNTRY_INFO!D15*AL15*PROFILE!$G$9,COUNTRY_INFO!D15*AM15*PROFILE!$G$9,IF(AND(DISTRICT!Z15<>"Inconnu",Z15<>"Non requis"),COUNTRY_INFO!P15*DISTRICT!AN15,0)) -> 0 | AS15: =MAX(COUNTRY_INFO!D15*AK15*PROFILE!$G$10,COUNTRY_INFO!D15*AL15*PROFILE!$G$10,IF(AND(DISTRICT!Z15<>"Inconnu",Z15<>"Non requis"),COUNTRY_INFO!P15*DISTRICT!AO15,0)) -> 0 | AT15: 0 | AU15: 0 | AV15: =MAX('MDA4'!R15,'T1'!L15,'T2'!J15,T3_R1!K15,T3_R2!K15) -> 0 | AW15: =MAX('MDA1'!K15,'MDA4'!S15,'MDA3'!I15,'MDA3'!L15,'T1'!M15,'T2'!K15,T3_R1!L15,T3_R2!L15) -> 0 | AX15: =MAX('MDA1'!L15,'MDA4'!T15,'MDA3'!J15,'MDA3'!M15,'T1'!N15,'T2'!L15,T3_R1!M15,T3_R2!M15) -> 0 | AY15: 0 | AZ15: =MAX('MDA4'!R15,T15) -> 0 | BA15: =MAX('MDA1'!K15,'MDA4'!S15,'MDA3'!I15,'MDA3'!L15,V15,AD15) -> 0 | BB15: =MAX('MDA1'!L15,'MDA4'!T15,'MDA3'!J15,'MDA3'!M15,AF15) -> 0 | BC15: 0 | BD15: 0
A16: =IF(COUNTRY_INFO!A16=0," ",COUNTRY_INFO!A16) -> Congo | B16: =IF(COUNTRY_INFO!B16=0," ",COUNTRY_INFO!B16) -> Brazzaville | C16: =IF(COUNTRY_INFO!C16=0," ",COUNTRY_INFO!C16) -> Île Mbamou | D16: =COUNTRY_INFO!M16 -> 0 | G16: =SUM('MDA1'!M16,'MDA4'!U16) -> 0 | H16: =IF(AND(COUNTRY_INFO!H16>0,COUNTRY_INFO!H16<4),IF(D16>MAX('MDA1'!M16,'MDA4'!U16),MAX('MDA1'!M16,'MDA4'!U16),D16),0) -> 0 | I16: =IF(AND(COUNTRY_INFO!H16>0,COUNTRY_INFO!H16<4), IF(G16/D16*100<>0, IF(G16/D16*100>100,100,G16/D16*100), "-"),0) -> 0 | J16: =COUNTRY_INFO!N16 -> 0 | M16: =MAX('MDA1'!M16,MAX('MDA3'!I16,'MDA3'!L16)+MAX('MDA3'!J16,'MDA3'!M16)) -> 0 | N16: =IF(AND(COUNTRY_INFO!I16>0,COUNTRY_INFO!I16<4),IF(J16>MAX('MDA1'!M16,MAX('MDA3'!I16,'MDA3'!L16)+MAX('MDA3'!J16,'MDA3'!M16)),MAX('MDA1'!M16,MAX('MDA3'!I16,'MDA3'!L16)+MAX('MDA3'!J16,'MDA3'!M16)),J16),0) -> 0 | O16: =IF(AND(COUNTRY_INFO!I16>0,COUNTRY_INFO!I16<4), IF(M16/J16*100<>0, IF(M16/J16*100>100,100,M16/J16*100), "-"),0) -> 0 | P16: =COUNTRY_INFO!O16 -> 0 | S16: =SUM(MAX('MDA4'!N16, 'T1'!L16, MAX(T3_R1!K16, T3_R2!K16)), MAX('MDA1'!K16, 'MDA4'!O16, 'T1'!M16, MAX(T3_R1!L16, T3_R2!L16)), MAX('MDA1'!L16, 'MDA4'!P16, 'T1'!N16, MAX(T3_R1!M16, T3_R2!M16))) -> 0 | T16: =IF(AND(COUNTRY_INFO!J16>1,COUNTRY_INFO!J16<4),IF(COUNTRY_INFO!E16>MAX('MDA4'!N16,'T1'!L16,MAX(T3_R1!K16,T3_R2!K16)),MAX('MDA4'!N16,'T1'!L16,MAX(T3_R1!K16,T3_R2!K16)),COUNTRY_INFO!E16),0) -> 0 | U16: =IF(AND(COUNTRY_INFO!J16>1,COUNTRY_INFO!J16<4), IF(T16/COUNTRY_INFO!E16*100<>0, IF(T16/COUNTRY_INFO!E16*100>100,100,T16/COUNTRY_INFO!E16*100), "-"),0) -> 0 | V16: =IF(AND(COUNTRY_INFO!J16>1,COUNTRY_INFO!J16<4),IF(COUNTRY_INFO!F16>MAX('MDA1'!K16,'MDA4'!O16,'T1'!M16,MAX(T3_R1!L16,T3_R2!L16)),MAX('MDA1'!K16,'MDA4'!O16,'T1'!M16,MAX(T3_R1!L16,T3_R2!L16)),COUNTRY_INFO!F16),0) -> 0 | W16: =IF(AND(COUNTRY_INFO!J16>1,COUNTRY_INFO!J16<4), IF(V16/COUNTRY_INFO!F16*100<>0, IF(V16/COUNTRY_INFO!F16*100>100,100,V16/COUNTRY_INFO!F16*100), "-"),0) -> 0 | X16: 0 | Y16: =IF(AND(COUNTRY_INFO!J16>1,COUNTRY_INFO!J16<4), IF(S16/P16*100<>0, IF(X16/P16*100>100,100,X16/P16*100), "-"),0) -> 0 | Z16: =COUNTRY_INFO!P16 -> Inconnu | AC16: =MAX('T1'!L16,'T2'!J16)+MAX('T1'!M16,'T2'!K16)+MAX('T1'!N16,'T2'!L16) -> 0 | AD16: =IF(COUNTRY_INFO!K16=1,IF(COUNTRY_INFO!F16*0.33>MAX('T1'!M16,'T2'!K16),MAX('T1'!M16,'T2'!K16),COUNTRY_INFO!F16*0.33),IF(COUNTRY_INFO!K16=2,IF(COUNTRY_INFO!F16*0.5>MAX('T1'!M16,'T2'!K16),MAX('T1'!M16,'T2'!K16),COUNTRY_INFO!F16*0.5),IF(COUNTRY_INFO!K16=3,IF(COUNTRY_INFO!F16>MAX('T1'!M16,'T2'!K16),MAX('T1'!M16,'T2'!K16),COUNTRY_INFO!F16),0))) -> 0 | AE16: =IF(AND(COUNTRY_INFO!K16>0,COUNTRY_INFO!K16<4),IF(Z16>0,IF(COUNTRY_INFO!K16=1, AD16/(COUNTRY_INFO!F16*0.33)*100, IF(COUNTRY_INFO!K16=2, AD16/(COUNTRY_INFO!F16*0.5)*100, IF(COUNTRY_INFO!K16=3, AD16/COUNTRY_INFO!F16*100))),"-"),0) -> 0 | AF16: =IF(COUNTRY_INFO!K16=2,IF(COUNTRY_INFO!G16*0.2>MAX('T1'!N16,'T2'!L16),MAX('T1'!N16,'T2'!L16),COUNTRY_INFO!G16*0.2),IF(COUNTRY_INFO!K16=3,IF(COUNTRY_INFO!G16>MAX('T1'!N16,'T2'!L16),MAX('T1'!N16,'T2'!L16),COUNTRY_INFO!G16),0)) -> 0 | AG16: =IF(AND(COUNTRY_INFO!K16>0,COUNTRY_INFO!K16<4),IF(Z16>0,IF(COUNTRY_INFO!K16=1, 0, IF(COUNTRY_INFO!K16=2, AF16/(COUNTRY_INFO!G16*0.2)*100, IF(COUNTRY_INFO!K16=3, AF16/COUNTRY_INFO!G16*100))),"-"),0) -> 0 | AH16: 0 | AI16: =IF(AND(COUNTRY_INFO!K16>0,COUNTRY_INFO!K16<4), IF(AC16/Z16*100<>0, IF(AH16/Z16*100>100,100,AH16/Z16*100), "-"),0) -> 0 | AK16: =IF(AND(D16<>0, D16<>"Inconnu",D16<>"Interrompu",D16<>"Non requis"),D16/COUNTRY_INFO!D16, 0) -> 0 | AL16: =IF(AND(J16<>0,J16<>"Inconnu",J16<>"Interrompu",J16<>"Non requis"),J16/COUNTRY_INFO!D16, 0) -> 0 | AM16: =IF(AND(P16<>0,P16<>"Inconnu",P16<>"Non requis"),P16/(COUNTRY_INFO!E16+COUNTRY_INFO!F16), 0) -> 0 | AN16: =IF(AND(Z16<>0,Z16<>"Inconnu",Z16<>"Non requis"),IF(COUNTRY_INFO!K16=1,1,IF(COUNTRY_INFO!K16=2,0.5*COUNTRY_INFO!F16/(0.5*COUNTRY_INFO!F16+0.2*COUNTRY_INFO!G16),IF(COUNTRY_INFO!K16=3,COUNTRY_INFO!F16/(COUNTRY_INFO!F16+COUNTRY_INFO!G16)))),0) -> 0 | AO16: =IF(AND(Z16<>0,Z16<>"Inconnu",Z16<>"Non requis"),IF(COUNTRY_INFO!K16=1,0,IF(COUNTRY_INFO!K16=2,0.2*COUNTRY_INFO!G16/(0.5*COUNTRY_INFO!F16+0.2*COUNTRY_INFO!G16),IF(COUNTRY_INFO!K16=3,COUNTRY_INFO!G16/(COUNTRY_INFO!F16+COUNTRY_INFO!G16)))),0) -> 0 | AP16: =MAX(COUNTRY_INFO!D16*AK16*PROFILE!$G$7,COUNTRY_INFO!D16*AL16*PROFILE!$G$7) -> 0 | AQ16: =MAX(COUNTRY_INFO!D16*AK16*PROFILE!$G$8,COUNTRY_INFO!D16*AL16*PROFILE!$G$8,COUNTRY_INFO!D16*AM16*PROFILE!$G$8) -> 0 | AR16: =MAX(COUNTRY_INFO!D16*AK16*PROFILE!$G$9,COUNTRY_INFO!D16*AL16*PROFILE!$G$9,COUNTRY_INFO!D16*AM16*PROFILE!$G$9,IF(AND(DISTRICT!Z16<>"Inconnu",Z16<>"Non requis"),COUNTRY_INFO!P16*DISTRICT!AN16,0)) -> 0 | AS16: =MAX(COUNTRY_INFO!D16*AK16*PROFILE!$G$10,COUNTRY_INFO!D16*AL16*PROFILE!$G$10,IF(AND(DISTRICT!Z16<>"Inconnu",Z16<>"Non requis"),COUNTRY_INFO!P16*DISTRICT!AO16,0)) -> 0 | AT16: 0 | AU16: 0 | AV16: =MAX('MDA4'!R16,'T1'!L16,'T2'!J16,T3_R1!K16,T3_R2!K16) -> 0 | AW16: =MAX('MDA1'!K16,'MDA4'!S16,'MDA3'!I16,'MDA3'!L16,'T1'!M16,'T2'!K16,T3_R1!L16,T3_R2!L16) -> 0 | AX16: =MAX('MDA1'!L16,'MDA4'!T16,'MDA3'!J16,'MDA3'!M16,'T1'!N16,'T2'!L16,T3_R1!M16,T3_R2!M16) -> 0 | AY16: 0 | AZ16: =MAX('MDA4'!R16,T16) -> 0 | BA16: =MAX('MDA1'!K16,'MDA4'!S16,'MDA3'!I16,'MDA3'!L16,V16,AD16) -> 0 | BB16: =MAX('MDA1'!L16,'MDA4'!T16,'MDA3'!J16,'MDA3'!M16,AF16) -> 0 | BC16: 0 | BD16: 0
A17: =IF(COUNTRY_INFO!A17=0," ",COUNTRY_INFO!A17) -> Congo | B17: =IF(COUNTRY_INFO!B17=0," ",COUNTRY_INFO!B17) -> Brazzaville | C17: =IF(COUNTRY_INFO!C17=0," ",COUNTRY_INFO!C17) -> Madibou | D17: =COUNTRY_INFO!M17 -> 0 | G17: =SUM('MDA1'!M17,'MDA4'!U17) -> 0 | H17: =IF(AND(COUNTRY_INFO!H17>0,COUNTRY_INFO!H17<4),IF(D17>MAX('MDA1'!M17,'MDA4'!U17),MAX('MDA1'!M17,'MDA4'!U17),D17),0) -> 0 | I17: =IF(AND(COUNTRY_INFO!H17>0,COUNTRY_INFO!H17<4), IF(G17/D17*100<>0, IF(G17/D17*100>100,100,G17/D17*100), "-"),0) -> 0 | J17: =COUNTRY_INFO!N17 -> 96961 | K17: 34028 | L17: 43286 | M17: =MAX('MDA1'!M17,MAX('MDA3'!I17,'MDA3'!L17)+MAX('MDA3'!J17,'MDA3'!M17)) -> 77314 | N17: =IF(AND(COUNTRY_INFO!I17>0,COUNTRY_INFO!I17<4),IF(J17>MAX('MDA1'!M17,MAX('MDA3'!I17,'MDA3'!L17)+MAX('MDA3'!J17,'MDA3'!M17)),MAX('MDA1'!M17,MAX('MDA3'!I17,'MDA3'!L17)+MAX('MDA3'!J17,'MDA3'!M17)),J17),0) -> 77314 | O17: =IF(AND(COUNTRY_INFO!I17>0,COUNTRY_INFO!I17<4), IF(M17/J17*100<>0, IF(M17/J17*100>100,100,M17/J17*100), "-"),0) -> 79.73721393 | P17: =COUNTRY_INFO!O17 -> 0 | S17: =SUM(MAX('MDA4'!N17, 'T1'!L17, MAX(T3_R1!K17, T3_R2!K17)), MAX('MDA1'!K17, 'MDA4'!O17, 'T1'!M17, MAX(T3_R1!L17, T3_R2!L17)), MAX('MDA1'!L17, 'MDA4'!P17, 'T1'!N17, MAX(T3_R1!M17, T3_R2!M17))) -> 0 | T17: =IF(AND(COUNTRY_INFO!J17>1,COUNTRY_INFO!J17<4),IF(COUNTRY_INFO!E17>MAX('MDA4'!N17,'T1'!L17,MAX(T3_R1!K17,T3_R2!K17)),MAX('MDA4'!N17,'T1'!L17,MAX(T3_R1!K17,T3_R2!K17)),COUNTRY_INFO!E17),0) -> 0 | U17: =IF(AND(COUNTRY_INFO!J17>1,COUNTRY_INFO!J17<4), IF(T17/COUNTRY_INFO!E17*100<>0, IF(T17/COUNTRY_INFO!E17*100>100,100,T17/COUNTRY_INFO!E17*100), "-"),0) -> 0 | V17: =IF(AND(COUNTRY_INFO!J17>1,COUNTRY_INFO!J17<4),IF(COUNTRY_INFO!F17>MAX('MDA1'!K17,'MDA4'!O17,'T1'!M17,MAX(T3_R1!L17,T3_R2!L17)),MAX('MDA1'!K17,'MDA4'!O17,'T1'!M17,MAX(T3_R1!L17,T3_R2!L17)),COUNTRY_INFO!F17),0) -> 0 | W17: =IF(AND(COUNTRY_INFO!J17>1,COUNTRY_INFO!J17<4), IF(V17/COUNTRY_INFO!F17*100<>0, IF(V17/COUNTRY_INFO!F17*100>100,100,V17/COUNTRY_INFO!F17*100), "-"),0) -> 0 | X17: 0 | Y17: =IF(AND(COUNTRY_INFO!J17>1,COUNTRY_INFO!J17<4), IF(S17/P17*100<>0, IF(X17/P17*100>100,100,X17/P17*100), "-"),0) -> 0 | Z17: =COUNTRY_INFO!P17 -> 0 | AC17: =MAX('T1'!L17,'T2'!J17)+MAX('T1'!M17,'T2'!K17)+MAX('T1'!N17,'T2'!L17) -> 0 | AD17: =IF(COUNTRY_INFO!K17=1,IF(COUNTRY_INFO!F17*0.33>MAX('T1'!M17,'T2'!K17),MAX('T1'!M17,'T2'!K17),COUNTRY_INFO!F17*0.33),IF(COUNTRY_INFO!K17=2,IF(COUNTRY_INFO!F17*0.5>MAX('T1'!M17,'T2'!K17),MAX('T1'!M17,'T2'!K17),COUNTRY_INFO!F17*0.5),IF(COUNTRY_INFO!K17=3,IF(COUNTRY_INFO!F17>MAX('T1'!M17,'T2'!K17),MAX('T1'!M17,'T2'!K17),COUNTRY_INFO!F17),0))) -> 0 | AE17: =IF(AND(COUNTRY_INFO!K17>0,COUNTRY_INFO!K17<4),IF(Z17>0,IF(COUNTRY_INFO!K17=1, AD17/(COUNTRY_INFO!F17*0.33)*100, IF(COUNTRY_INFO!K17=2, AD17/(COUNTRY_INFO!F17*0.5)*100, IF(COUNTRY_INFO!K17=3, AD17/COUNTRY_INFO!F17*100))),"-"),0) -> 0 | AF17: =IF(COUNTRY_INFO!K17=2,IF(COUNTRY_INFO!G17*0.2>MAX('T1'!N17,'T2'!L17),MAX('T1'!N17,'T2'!L17),COUNTRY_INFO!G17*0.2),IF(COUNTRY_INFO!K17=3,IF(COUNTRY_INFO!G17>MAX('T1'!N17,'T2'!L17),MAX('T1'!N17,'T2'!L17),COUNTRY_INFO!G17),0)) -> 0 | AG17: =IF(AND(COUNTRY_INFO!K17>0,COUNTRY_INFO!K17<4),IF(Z17>0,IF(COUNTRY_INFO!K17=1, 0, IF(COUNTRY_INFO!K17=2, AF17/(COUNTRY_INFO!G17*0.2)*100, IF(COUNTRY_INFO!K17=3, AF17/COUNTRY_INFO!G17*100))),"-"),0) -> 0 | AH17: 0 | AI17: =IF(AND(COUNTRY_INFO!K17>0,COUNTRY_INFO!K17<4), IF(AC17/Z17*100<>0, IF(AH17/Z17*100>100,100,AH17/Z17*100), "-"),0) -> 0 | AK17: =IF(AND(D17<>0, D17<>"Inconnu",D17<>"Interrompu",D17<>"Non requis"),D17/COUNTRY_INFO!D17, 0) -> 0 | AL17: =IF(AND(J17<>0,J17<>"Inconnu",J17<>"Interrompu",J17<>"Non requis"),J17/COUNTRY_INFO!D17, 0) -> 0.5421025265 | AM17: =IF(AND(P17<>0,P17<>"Inconnu",P17<>"Non requis"),P17/(COUNTRY_INFO!E17+COUNTRY_INFO!F17), 0) -> 0 | AN17: =IF(AND(Z17<>0,Z17<>"Inconnu",Z17<>"Non requis"),IF(COUNTRY_INFO!K17=1,1,IF(COUNTRY_INFO!K17=2,0.5*COUNTRY_INFO!F17/(0.5*COUNTRY_INFO!F17+0.2*COUNTRY_INFO!G17),IF(COUNTRY_INFO!K17=3,COUNTRY_INFO!F17/(COUNTRY_INFO!F17+COUNTRY_INFO!G17)))),0) -> 0 | AO17: =IF(AND(Z17<>0,Z17<>"Inconnu",Z17<>"Non requis"),IF(COUNTRY_INFO!K17=1,0,IF(COUNTRY_INFO!K17=2,0.2*COUNTRY_INFO!G17/(0.5*COUNTRY_INFO!F17+0.2*COUNTRY_INFO!G17),IF(COUNTRY_INFO!K17=3,COUNTRY_INFO!G17/(COUNTRY_INFO!F17+COUNTRY_INFO!G17)))),0) -> 0 | AP17: =MAX(COUNTRY_INFO!D17*AK17*PROFILE!$G$7,COUNTRY_INFO!D17*AL17*PROFILE!$G$7) -> 4557.221916 | AQ17: =MAX(COUNTRY_INFO!D17*AK17*PROFILE!$G$8,COUNTRY_INFO!D17*AL17*PROFILE!$G$8,COUNTRY_INFO!D17*AM17*PROFILE!$G$8) -> 15513.75854 | AR17: =MAX(COUNTRY_INFO!D17*AK17*PROFILE!$G$9,COUNTRY_INFO!D17*AL17*PROFILE!$G$9,COUNTRY_INFO!D17*AM17*PROFILE!$G$9,IF(AND(DISTRICT!Z17<>"Inconnu",Z17<>"Non requis"),COUNTRY_INFO!P17*DISTRICT!AN17,0)) -> 23270.60137 | AS17: =MAX(COUNTRY_INFO!D17*AK17*PROFILE!$G$10,COUNTRY_INFO!D17*AL17*PROFILE!$G$10,IF(AND(DISTRICT!Z17<>"Inconnu",Z17<>"Non requis"),COUNTRY_INFO!P17*DISTRICT!AO17,0)) -> 53619.41817 | AT17: 96961 | AU17: Y | AV17: =MAX('MDA4'!R17,'T1'!L17,'T2'!J17,T3_R1!K17,T3_R2!K17) -> 0 | AW17: =MAX('MDA1'!K17,'MDA4'!S17,'MDA3'!I17,'MDA3'!L17,'T1'!M17,'T2'!K17,T3_R1!L17,T3_R2!L17) -> 18555.36 | AX17: =MAX('MDA1'!L17,'MDA4'!T17,'MDA3'!J17,'MDA3'!M17,'T1'!N17,'T2'!L17,T3_R1!M17,T3_R2!M17) -> 58758.64 | AY17: 77314 | AZ17: =MAX('MDA4'!R17,T17) -> 0 | BA17: =MAX('MDA1'!K17,'MDA4'!S17,'MDA3'!I17,'MDA3'!L17,V17,AD17) -> 18555.36 | BB17: =MAX('MDA1'!L17,'MDA4'!T17,'MDA3'!J17,'MDA3'!M17,AF17) -> 58758.64 | BC17: 77314 | BD17: 79.73721393
A18: =IF(COUNTRY_INFO!A18=0," ",COUNTRY_INFO!A18) -> Congo | B18: =IF(COUNTRY_INFO!B18=0," ",COUNTRY_INFO!B18) -> Brazzaville | C18: =IF(COUNTRY_INFO!C18=0," ",COUNTRY_INFO!C18) -> Makélékélé | D18: =COUNTRY_INFO!M18 -> 0 | G18: =SUM('MDA1'!M18,'MDA4'!U18) -> 0 | H18: =IF(AND(COUNTRY_INFO!H18>0,COUNTRY_INFO!H18<4),IF(D18>MAX('MDA1'!M18,'MDA4'!U18),MAX('MDA1'!M18,'MDA4'!U18),D18),0) -> 0 | I18: =IF(AND(COUNTRY_INFO!H18>0,COUNTRY_INFO!H18<4), IF(G18/D18*100<>0, IF(G18/D18*100>100,100,G18/D18*100), "-"),0) -> 0 | J18: =COUNTRY_INFO!N18 -> 94128 | K18: 35848 | L18: 42580 | M18: =MAX('MDA1'!M18,MAX('MDA3'!I18,'MDA3'!L18)+MAX('MDA3'!J18,'MDA3'!M18)) -> 78428 | N18: =IF(AND(COUNTRY_INFO!I18>0,COUNTRY_INFO!I18<4),IF(J18>MAX('MDA1'!M18,MAX('MDA3'!I18,'MDA3'!L18)+MAX('MDA3'!J18,'MDA3'!M18)),MAX('MDA1'!M18,MAX('MDA3'!I18,'MDA3'!L18)+MAX('MDA3'!J18,'MDA3'!M18)),J18),0) -> 78428 | O18: =IF(AND(COUNTRY_INFO!I18>0,COUNTRY_INFO!I18<4), IF(M18/J18*100<>0, IF(M18/J18*100>100,100,M18/J18*100), "-"),0) -> 83.32058474 | P18: =COUNTRY_INFO!O18 -> 0 | S18: =SUM(MAX('MDA4'!N18, 'T1'!L18, MAX(T3_R1!K18, T3_R2!K18)), MAX('MDA1'!K18, 'MDA4'!O18, 'T1'!M18, MAX(T3_R1!L18, T3_R2!L18)), MAX('MDA1'!L18, 'MDA4'!P18, 'T1'!N18, MAX(T3_R1!M18, T3_R2!M18))) -> 0 | T18: =IF(AND(COUNTRY_INFO!J18>1,COUNTRY_INFO!J18<4),IF(COUNTRY_INFO!E18>MAX('MDA4'!N18,'T1'!L18,MAX(T3_R1!K18,T3_R2!K18)),MAX('MDA4'!N18,'T1'!L18,MAX(T3_R1!K18,T3_R2!K18)),COUNTRY_INFO!E18),0) -> 0 | U18: =IF(AND(COUNTRY_INFO!J18>1,COUNTRY_INFO!J18<4), IF(T18/COUNTRY_INFO!E18*100<>0, IF(T18/COUNTRY_INFO!E18*100>100,100,T18/COUNTRY_INFO!E18*100), "-"),0) -> 0 | V18: =IF(AND(COUNTRY_INFO!J18>1,COUNTRY_INFO!J18<4),IF(COUNTRY_INFO!F18>MAX('MDA1'!K18,'MDA4'!O18,'T1'!M18,MAX(T3_R1!L18,T3_R2!L18)),MAX('MDA1'!K18,'MDA4'!O18,'T1'!M18,MAX(T3_R1!L18,T3_R2!L18)),COUNTRY_INFO!F18),0) -> 0 | W18: =IF(AND(COUNTRY_INFO!J18>1,COUNTRY_INFO!J18<4), IF(V18/COUNTRY_INFO!F18*100<>0, IF(V18/COUNTRY_INFO!F18*100>100,100,V18/COUNTRY_INFO!F18*100), "-"),0) -> 0 | X18: 0 | Y18: =IF(AND(COUNTRY_INFO!J18>1,COUNTRY_INFO!J18<4), IF(S18/P18*100<>0, IF(X18/P18*100>100,100,X18/P18*100), "-"),0) -> 0 | Z18: =COUNTRY_INFO!P18 -> 18391.56 | AC18: =MAX('T1'!L18,'T2'!J18)+MAX('T1'!M18,'T2'!K18)+MAX('T1'!N18,'T2'!L18) -> 0 | AD18: =IF(COUNTRY_INFO!K18=1,IF(COUNTRY_INFO!F18*0.33>MAX('T1'!M18,'T2'!K18),MAX('T1'!M18,'T2'!K18),COUNTRY_INFO!F18*0.33),IF(COUNTRY_INFO!K18=2,IF(COUNTRY_INFO!F18*0.5>MAX('T1'!M18,'T2'!K18),MAX('T1'!M18,'T2'!K18),COUNTRY_INFO!F18*0.5),IF(COUNTRY_INFO!K18=3,IF(COUNTRY_INFO!F18>MAX('T1'!M18,'T2'!K18),MAX('T1'!M18,'T2'!K18),COUNTRY_INFO!F18),0))) -> 0 | AE18: =IF(AND(COUNTRY_INFO!K18>0,COUNTRY_INFO!K18<4),IF(Z18>0,IF(COUNTRY_INFO!K18=1, AD18/(COUNTRY_INFO!F18*0.33)*100, IF(COUNTRY_INFO!K18=2, AD18/(COUNTRY_INFO!F18*0.5)*100, IF(COUNTRY_INFO!K18=3, AD18/COUNTRY_INFO!F18*100))),"-"),0) -> 0 | AF18: =IF(COUNTRY_INFO!K18=2,IF(COUNTRY_INFO!G18*0.2>MAX('T1'!N18,'T2'!L18),MAX('T1'!N18,'T2'!L18),COUNTRY_INFO!G18*0.2),IF(COUNTRY_INFO!K18=3,IF(COUNTRY_INFO!G18>MAX('T1'!N18,'T2'!L18),MAX('T1'!N18,'T2'!L18),COUNTRY_INFO!G18),0)) -> 0 | AG18: =IF(AND(COUNTRY_INFO!K18>0,COUNTRY_INFO!K18<4),IF(Z18>0,IF(COUNTRY_INFO!K18=1, 0, IF(COUNTRY_INFO!K18=2, AF18/(COUNTRY_INFO!G18*0.2)*100, IF(COUNTRY_INFO!K18=3, AF18/COUNTRY_INFO!G18*100))),"-"),0) -> 0 | AH18: 0 | AI18: =IF(AND(COUNTRY_INFO!K18>0,COUNTRY_INFO!K18<4), IF(AC18/Z18*100<>0, IF(AH18/Z18*100>100,100,AH18/Z18*100), "-"),0) -> - | AK18: =IF(AND(D18<>0, D18<>"Inconnu",D18<>"Interrompu",D18<>"Non requis"),D18/COUNTRY_INFO!D18, 0) -> 0 | AL18: =IF(AND(J18<>0,J18<>"Inconnu",J18<>"Interrompu",J18<>"Non requis"),J18/COUNTRY_INFO!D18, 0) -> 0.405343255 | AM18: =IF(AND(P18<>0,P18<>"Inconnu",P18<>"Non requis"),P18/(COUNTRY_INFO!E18+COUNTRY_INFO!F18), 0) -> 0 | AN18: =IF(AND(Z18<>0,Z18<>"Inconnu",Z18<>"Non requis"),IF(COUNTRY_INFO!K18=1,1,IF(COUNTRY_INFO!K18=2,0.5*COUNTRY_INFO!F18/(0.5*COUNTRY_INFO!F18+0.2*COUNTRY_INFO!G18),IF(COUNTRY_INFO!K18=3,COUNTRY_INFO!F18/(COUNTRY_INFO!F18+COUNTRY_INFO!G18)))),0) -> 1 | AO18: =IF(AND(Z18<>0,Z18<>"Inconnu",Z18<>"Non requis"),IF(COUNTRY_INFO!K18=1,0,IF(COUNTRY_INFO!K18=2,0.2*COUNTRY_INFO!G18/(0.5*COUNTRY_INFO!F18+0.2*COUNTRY_INFO!G18),IF(COUNTRY_INFO!K18=3,COUNTRY_INFO!G18/(COUNTRY_INFO!F18+COUNTRY_INFO!G18)))),0) -> 0 | AP18: =MAX(COUNTRY_INFO!D18*AK18*PROFILE!$G$7,COUNTRY_INFO!D18*AL18*PROFILE!$G$7) -> 4424.069311 | AQ18: =MAX(COUNTRY_INFO!D18*AK18*PROFILE!$G$8,COUNTRY_INFO!D18*AL18*PROFILE!$G$8,COUNTRY_INFO!D18*AM18*PROFILE!$G$8) -> 15060.47858 | AR18: =MAX(COUNTRY_INFO!D18*AK18*PROFILE!$G$9,COUNTRY_INFO!D18*AL18*PROFILE!$G$9,COUNTRY_INFO!D18*AM18*PROFILE!$G$9,IF(AND(DISTRICT!Z18<>"Inconnu",Z18<>"Non requis"),COUNTRY_INFO!P18*DISTRICT!AN18,0)) -> 22590.6825 | AS18: =MAX(COUNTRY_INFO!D18*AK18*PROFILE!$G$10,COUNTRY_INFO!D18*AL18*PROFILE!$G$10,IF(AND(DISTRICT!Z18<>"Inconnu",Z18<>"Non requis"),COUNTRY_INFO!P18*DISTRICT!AO18,0)) -> 52052.7696 | AT18: 94128 | AU18: 0 | AV18: =MAX('MDA4'!R18,'T1'!L18,'T2'!J18,T3_R1!K18,T3_R2!K18) -> 0 | AW18: =MAX('MDA1'!K18,'MDA4'!S18,'MDA3'!I18,'MDA3'!L18,'T1'!M18,'T2'!K18,T3_R1!L18,T3_R2!L18) -> 18822.72 | AX18: =MAX('MDA1'!L18,'MDA4'!T18,'MDA3'!J18,'MDA3'!M18,'T1'!N18,'T2'!L18,T3_R1!M18,T3_R2!M18) -> 59605.28 | AY18: 78428 | AZ18: =MAX('MDA4'!R18,T18) -> 0 | BA18: =MAX('MDA1'!K18,'MDA4'!S18,'MDA3'!I18,'MDA3'!L18,V18,AD18) -> 18822.72 | BB18: =MAX('MDA1'!L18,'MDA4'!T18,'MDA3'!J18,'MDA3'!M18,AF18) -> 59605.28 | BC18: 78428 | BD18: 83.32058474
A19: =IF(COUNTRY_INFO!A19=0," ",COUNTRY_INFO!A19) -> Congo | B19: =IF(COUNTRY_INFO!B19=0," ",COUNTRY_INFO!B19) -> Brazzaville | C19: =IF(COUNTRY_INFO!C19=0," ",COUNTRY_INFO!C19) -> Mfilou | D19: =COUNTRY_INFO!M19 -> 0 | G19: =SUM('MDA1'!M19,'MDA4'!U19) -> 0 | H19: =IF(AND(COUNTRY_INFO!H19>0,COUNTRY_INFO!H19<4),IF(D19>MAX('MDA1'!M19,'MDA4'!U19),MAX('MDA1'!M19,'MDA4'!U19),D19),0) -> 0 | I19: =IF(AND(COUNTRY_INFO!H19>0,COUNTRY_INFO!H19<4), IF(G19/D19*100<>0, IF(G19/D19*100>100,100,G19/D19*100), "-"),0) -> 0 | J19: =COUNTRY_INFO!N19 -> 87100 | K19: 33640 | L19: 36081 | M19: =MAX('MDA1'!M19,MAX('MDA3'!I19,'MDA3'!L19)+MAX('MDA3'!J19,'MDA3'!M19)) -> 71739 | N19: =IF(AND(COUNTRY_INFO!I19>0,COUNTRY_INFO!I19<4),IF(J19>MAX('MDA1'!M19,MAX('MDA3'!I19,'MDA3'!L19)+MAX('MDA3'!J19,'MDA3'!M19)),MAX('MDA1'!M19,MAX('MDA3'!I19,'MDA3'!L19)+MAX('MDA3'!J19,'MDA3'!M19)),J19),0) -> 71739 | O19: =IF(AND(COUNTRY_INFO!I19>0,COUNTRY_INFO!I19<4), IF(M19/J19*100<>0, IF(M19/J19*100>100,100,M19/J19*100), "-"),0) -> 82.36394948 | P19: =COUNTRY_INFO!O19 -> 0 | S19: =SUM(MAX('MDA4'!N19, 'T1'!L19, MAX(T3_R1!K19, T3_R2!K19)), MAX('MDA1'!K19, 'MDA4'!O19, 'T1'!M19, MAX(T3_R1!L19, T3_R2!L19)), MAX('MDA1'!L19, 'MDA4'!P19, 'T1'!N19, MAX(T3_R1!M19, T3_R2!M19))) -> 0 | T19: =IF(AND(COUNTRY_INFO!J19>1,COUNTRY_INFO!J19<4),IF(COUNTRY_INFO!E19>MAX('MDA4'!N19,'T1'!L19,MAX(T3_R1!K19,T3_R2!K19)),MAX('MDA4'!N19,'T1'!L19,MAX(T3_R1!K19,T3_R2!K19)),COUNTRY_INFO!E19),0) -> 0 | U19: =IF(AND(COUNTRY_INFO!J19>1,COUNTRY_INFO!J19<4), IF(T19/COUNTRY_INFO!E19*100<>0, IF(T19/COUNTRY_INFO!E19*100>100,100,T19/COUNTRY_INFO!E19*100), "-"),0) -> 0 | V19: =IF(AND(COUNTRY_INFO!J19>1,COUNTRY_INFO!J19<4),IF(COUNTRY_INFO!F19>MAX('MDA1'!K19,'MDA4'!O19,'T1'!M19,MAX(T3_R1!L19,T3_R2!L19)),MAX('MDA1'!K19,'MDA4'!O19,'T1'!M19,MAX(T3_R1!L19,T3_R2!L19)),COUNTRY_INFO!F19),0) -> 0 | W19: =IF(AND(COUNTRY_INFO!J19>1,COUNTRY_INFO!J19<4), IF(V19/COUNTRY_INFO!F19*100<>0, IF(V19/COUNTRY_INFO!F19*100>100,100,V19/COUNTRY_INFO!F19*100), "-"),0) -> 0 | X19: 0 | Y19: =IF(AND(COUNTRY_INFO!J19>1,COUNTRY_INFO!J19<4), IF(S19/P19*100<>0, IF(X19/P19*100>100,100,X19/P19*100), "-"),0) -> 0 | Z19: =COUNTRY_INFO!P19 -> 0 | AC19: =MAX('T1'!L19,'T2'!J19)+MAX('T1'!M19,'T2'!K19)+MAX('T1'!N19,'T2'!L19) -> 0 | AD19: =IF(COUNTRY_INFO!K19=1,IF(COUNTRY_INFO!F19*0.33>MAX('T1'!M19,'T2'!K19),MAX('T1'!M19,'T2'!K19),COUNTRY_INFO!F19*0.33),IF(COUNTRY_INFO!K19=2,IF(COUNTRY_INFO!F19*0.5>MAX('T1'!M19,'T2'!K19),MAX('T1'!M19,'T2'!K19),COUNTRY_INFO!F19*0.5),IF(COUNTRY_INFO!K19=3,IF(COUNTRY_INFO!F19>MAX('T1'!M19,'T2'!K19),MAX('T1'!M19,'T2'!K19),COUNTRY_INFO!F19),0))) -> 0 | AE19: =IF(AND(COUNTRY_INFO!K19>0,COUNTRY_INFO!K19<4),IF(Z19>0,IF(COUNTRY_INFO!K19=1, AD19/(COUNTRY_INFO!F19*0.33)*100, IF(COUNTRY_INFO!K19=2, AD19/(COUNTRY_INFO!F19*0.5)*100, IF(COUNTRY_INFO!K19=3, AD19/COUNTRY_INFO!F19*100))),"-"),0) -> 0 | AF19: =IF(COUNTRY_INFO!K19=2,IF(COUNTRY_INFO!G19*0.2>MAX('T1'!N19,'T2'!L19),MAX('T1'!N19,'T2'!L19),COUNTRY_INFO!G19*0.2),IF(COUNTRY_INFO!K19=3,IF(COUNTRY_INFO!G19>MAX('T1'!N19,'T2'!L19),MAX('T1'!N19,'T2'!L19),COUNTRY_INFO!G19),0)) -> 0 | AG19: =IF(AND(COUNTRY_INFO!K19>0,COUNTRY_INFO!K19<4),IF(Z19>0,IF(COUNTRY_INFO!K19=1, 0, IF(COUNTRY_INFO!K19=2, AF19/(COUNTRY_INFO!G19*0.2)*100, IF(COUNTRY_INFO!K19=3, AF19/COUNTRY_INFO!G19*100))),"-"),0) -> 0 | AH19: 0 | AI19: =IF(AND(COUNTRY_INFO!K19>0,COUNTRY_INFO!K19<4), IF(AC19/Z19*100<>0, IF(AH19/Z19*100>100,100,AH19/Z19*100), "-"),0) -> 0 | AK19: =IF(AND(D19<>0, D19<>"Inconnu",D19<>"Interrompu",D19<>"Non requis"),D19/COUNTRY_INFO!D19, 0) -> 0 | AL19: =IF(AND(J19<>0,J19<>"Inconnu",J19<>"Interrompu",J19<>"Non requis"),J19/COUNTRY_INFO!D19, 0) -> 0.398175069 | AM19: =IF(AND(P19<>0,P19<>"Inconnu",P19<>"Non requis"),P19/(COUNTRY_INFO!E19+COUNTRY_INFO!F19), 0) -> 0 | AN19: =IF(AND(Z19<>0,Z19<>"Inconnu",Z19<>"Non requis"),IF(COUNTRY_INFO!K19=1,1,IF(COUNTRY_INFO!K19=2,0.5*COUNTRY_INFO!F19/(0.5*COUNTRY_INFO!F19+0.2*COUNTRY_INFO!G19),IF(COUNTRY_INFO!K19=3,COUNTRY_INFO!F19/(COUNTRY_INFO!F19+COUNTRY_INFO!G19)))),0) -> 0 | AO19: =IF(AND(Z19<>0,Z19<>"Inconnu",Z19<>"Non requis"),IF(COUNTRY_INFO!K19=1,0,IF(COUNTRY_INFO!K19=2,0.2*COUNTRY_INFO!G19/(0.5*COUNTRY_INFO!F19+0.2*COUNTRY_INFO!G19),IF(COUNTRY_INFO!K19=3,COUNTRY_INFO!G19/(COUNTRY_INFO!F19+COUNTRY_INFO!G19)))),0) -> 0 | AP19: =MAX(COUNTRY_INFO!D19*AK19*PROFILE!$G$7,COUNTRY_INFO!D19*AL19*PROFILE!$G$7) -> 4093.749331 | AQ19: =MAX(COUNTRY_INFO!D19*AK19*PROFILE!$G$8,COUNTRY_INFO!D19*AL19*PROFILE!$G$8,COUNTRY_INFO!D19*AM19*PROFILE!$G$8) -> 13935.99869 | AR19: =MAX(COUNTRY_INFO!D19*AK19*PROFILE!$G$9,COUNTRY_INFO!D19*AL19*PROFILE!$G$9,COUNTRY_INFO!D19*AM19*PROFILE!$G$9,IF(AND(DISTRICT!Z19<>"Inconnu",Z19<>"Non requis"),COUNTRY_INFO!P19*DISTRICT!AN19,0)) -> 20903.9653 | AS19: =MAX(COUNTRY_INFO!D19*AK19*PROFILE!$G$10,COUNTRY_INFO!D19*AL19*PROFILE!$G$10,IF(AND(DISTRICT!Z19<>"Inconnu",Z19<>"Non requis"),COUNTRY_INFO!P19*DISTRICT!AO19,0)) -> 48166.28668 | AT19: 87100 | AU19: Y | AV19: =MAX('MDA4'!R19,'T1'!L19,'T2'!J19,T3_R1!K19,T3_R2!K19) -> 0 | AW19: =MAX('MDA1'!K19,'MDA4'!S19,'MDA3'!I19,'MDA3'!L19,'T1'!M19,'T2'!K19,T3_R1!L19,T3_R2!L19) -> 17217.36 | AX19: =MAX('MDA1'!L19,'MDA4'!T19,'MDA3'!J19,'MDA3'!M19,'T1'!N19,'T2'!L19,T3_R1!M19,T3_R2!M19) -> 54521.64 | AY19: 71739 | AZ19: =MAX('MDA4'!R19,T19) -> 0 | BA19: =MAX('MDA1'!K19,'MDA4'!S19,'MDA3'!I19,'MDA3'!L19,V19,AD19) -> 17217.36 | BB19: =MAX('MDA1'!L19,'MDA4'!T19,'MDA3'!J19,'MDA3'!M19,AF19) -> 54521.64 | BC19: 71739 | BD19: 82.36394948
A20: =IF(COUNTRY_INFO!A20=0," ",COUNTRY_INFO!A20) -> Congo | B20: =IF(COUNTRY_INFO!B20=0," ",COUNTRY_INFO!B20) -> Brazzaville | C20: =IF(COUNTRY_INFO!C20=0," ",COUNTRY_INFO!C20) -> Moungali | D20: =COUNTRY_INFO!M20 -> 0 | G20: =SUM('MDA1'!M20,'MDA4'!U20) -> 0 | H20: =IF(AND(COUNTRY_INFO!H20>0,COUNTRY_INFO!H20<4),IF(D20>MAX('MDA1'!M20,'MDA4'!U20),MAX('MDA1'!M20,'MDA4'!U20),D20),0) -> 0 | I20: =IF(AND(COUNTRY_INFO!H20>0,COUNTRY_INFO!H20<4), IF(G20/D20*100<>0, IF(G20/D20*100>100,100,G20/D20*100), "-"),0) -> 0 | J20: =COUNTRY_INFO!N20 -> 0 | M20: =MAX('MDA1'!M20,MAX('MDA3'!I20,'MDA3'!L20)+MAX('MDA3'!J20,'MDA3'!M20)) -> 0 | N20: =IF(AND(COUNTRY_INFO!I20>0,COUNTRY_INFO!I20<4),IF(J20>MAX('MDA1'!M20,MAX('MDA3'!I20,'MDA3'!L20)+MAX('MDA3'!J20,'MDA3'!M20)),MAX('MDA1'!M20,MAX('MDA3'!I20,'MDA3'!L20)+MAX('MDA3'!J20,'MDA3'!M20)),J20),0) -> 0 | O20: =IF(AND(COUNTRY_INFO!I20>0,COUNTRY_INFO!I20<4), IF(M20/J20*100<>0, IF(M20/J20*100>100,100,M20/J20*100), "-"),0) -> 0 | P20: =COUNTRY_INFO!O20 -> 0 | S20: =SUM(MAX('MDA4'!N20, 'T1'!L20, MAX(T3_R1!K20, T3_R2!K20)), MAX('MDA1'!K20, 'MDA4'!O20, 'T1'!M20, MAX(T3_R1!L20, T3_R2!L20)), MAX('MDA1'!L20, 'MDA4'!P20, 'T1'!N20, MAX(T3_R1!M20, T3_R2!M20))) -> 0 | T20: =IF(AND(COUNTRY_INFO!J20>1,COUNTRY_INFO!J20<4),IF(COUNTRY_INFO!E20>MAX('MDA4'!N20,'T1'!L20,MAX(T3_R1!K20,T3_R2!K20)),MAX('MDA4'!N20,'T1'!L20,MAX(T3_R1!K20,T3_R2!K20)),COUNTRY_INFO!E20),0) -> 0 | U20: =IF(AND(COUNTRY_INFO!J20>1,COUNTRY_INFO!J20<4), IF(T20/COUNTRY_INFO!E20*100<>0, IF(T20/COUNTRY_INFO!E20*100>100,100,T20/COUNTRY_INFO!E20*100), "-"),0) -> 0 | V20: =IF(AND(COUNTRY_INFO!J20>1,COUNTRY_INFO!J20<4),IF(COUNTRY_INFO!F20>MAX('MDA1'!K20,'MDA4'!O20,'T1'!M20,MAX(T3_R1!L20,T3_R2!L20)),MAX('MDA1'!K20,'MDA4'!O20,'T1'!M20,MAX(T3_R1!L20,T3_R2!L20)),COUNTRY_INFO!F20),0) -> 0 | W20: =IF(AND(COUNTRY_INFO!J20>1,COUNTRY_INFO!J20<4), IF(V20/COUNTRY_INFO!F20*100<>0, IF(V20/COUNTRY_INFO!F20*100>100,100,V20/COUNTRY_INFO!F20*100), "-"),0) -> 0 | X20: 0 | Y20: =IF(AND(COUNTRY_INFO!J20>1,COUNTRY_INFO!J20<4), IF(S20/P20*100<>0, IF(X20/P20*100>100,100,X20/P20*100), "-"),0) -> 0 | Z20: =COUNTRY_INFO!P20 -> 18310.05 | AC20: =MAX('T1'!L20,'T2'!J20)+MAX('T1'!M20,'T2'!K20)+MAX('T1'!N20,'T2'!L20) -> 0 | AD20: =IF(COUNTRY_INFO!K20=1,IF(COUNTRY_INFO!F20*0.33>MAX('T1'!M20,'T2'!K20),MAX('T1'!M20,'T2'!K20),COUNTRY_INFO!F20*0.33),IF(COUNTRY_INFO!K20=2,IF(COUNTRY_INFO!F20*0.5>MAX('T1'!M20,'T2'!K20),MAX('T1'!M20,'T2'!K20),COUNTRY_INFO!F20*0.5),IF(COUNTRY_INFO!K20=3,IF(COUNTRY_INFO!F20>MAX('T1'!M20,'T2'!K20),MAX('T1'!M20,'T2'!K20),COUNTRY_INFO!F20),0))) -> 0 | AE20: =IF(AND(COUNTRY_INFO!K20>0,COUNTRY_INFO!K20<4),IF(Z20>0,IF(COUNTRY_INFO!K20=1, AD20/(COUNTRY_INFO!F20*0.33)*100, IF(COUNTRY_INFO!K20=2, AD20/(COUNTRY_INFO!F20*0.5)*100, IF(COUNTRY_INFO!K20=3, AD20/COUNTRY_INFO!F20*100))),"-"),0) -> 0 | AF20: =IF(COUNTRY_INFO!K20=2,IF(COUNTRY_INFO!G20*0.2>MAX('T1'!N20,'T2'!L20),MAX('T1'!N20,'T2'!L20),COUNTRY_INFO!G20*0.2),IF(COUNTRY_INFO!K20=3,IF(COUNTRY_INFO!G20>MAX('T1'!N20,'T2'!L20),MAX('T1'!N20,'T2'!L20),COUNTRY_INFO!G20),0)) -> 0 | AG20: =IF(AND(COUNTRY_INFO!K20>0,COUNTRY_INFO!K20<4),IF(Z20>0,IF(COUNTRY_INFO!K20=1, 0, IF(COUNTRY_INFO!K20=2, AF20/(COUNTRY_INFO!G20*0.2)*100, IF(COUNTRY_INFO!K20=3, AF20/COUNTRY_INFO!G20*100))),"-"),0) -> 0 | AH20: 0 | AI20: =IF(AND(COUNTRY_INFO!K20>0,COUNTRY_INFO!K20<4), IF(AC20/Z20*100<>0, IF(AH20/Z20*100>100,100,AH20/Z20*100), "-"),0) -> - | AK20: =IF(AND(D20<>0, D20<>"Inconnu",D20<>"Interrompu",D20<>"Non requis"),D20/COUNTRY_INFO!D20, 0) -> 0 | AL20: =IF(AND(J20<>0,J20<>"Inconnu",J20<>"Interrompu",J20<>"Non requis"),J20/COUNTRY_INFO!D20, 0) -> 0 | AM20: =IF(AND(P20<>0,P20<>"Inconnu",P20<>"Non requis"),P20/(COUNTRY_INFO!E20+COUNTRY_INFO!F20), 0) -> 0 | AN20: =IF(AND(Z20<>0,Z20<>"Inconnu",Z20<>"Non requis"),IF(COUNTRY_INFO!K20=1,1,IF(COUNTRY_INFO!K20=2,0.5*COUNTRY_INFO!F20/(0.5*COUNTRY_INFO!F20+0.2*COUNTRY_INFO!G20),IF(COUNTRY_INFO!K20=3,COUNTRY_INFO!F20/(COUNTRY_INFO!F20+COUNTRY_INFO!G20)))),0) -> 1 | AO20: =IF(AND(Z20<>0,Z20<>"Inconnu",Z20<>"Non requis"),IF(COUNTRY_INFO!K20=1,0,IF(COUNTRY_INFO!K20=2,0.2*COUNTRY_INFO!G20/(0.5*COUNTRY_INFO!F20+0.2*COUNTRY_INFO!G20),IF(COUNTRY_INFO!K20=3,COUNTRY_INFO!G20/(COUNTRY_INFO!F20+COUNTRY_INFO!G20)))),0) -> 0 | AP20: =MAX(COUNTRY_INFO!D20*AK20*PROFILE!$G$7,COUNTRY_INFO!D20*AL20*PROFILE!$G$7) -> 0 | AQ20: =MAX(COUNTRY_INFO!D20*AK20*PROFILE!$G$8,COUNTRY_INFO!D20*AL20*PROFILE!$G$8,COUNTRY_INFO!D20*AM20*PROFILE!$G$8) -> 0 | AR20: =MAX(COUNTRY_INFO!D20*AK20*PROFILE!$G$9,COUNTRY_INFO!D20*AL20*PROFILE!$G$9,COUNTRY_INFO!D20*AM20*PROFILE!$G$9,IF(AND(DISTRICT!Z20<>"Inconnu",Z20<>"Non requis"),COUNTRY_INFO!P20*DISTRICT!AN20,0)) -> 18310.05 | AS20: =MAX(COUNTRY_INFO!D20*AK20*PROFILE!$G$10,COUNTRY_INFO!D20*AL20*PROFILE!$G$10,IF(AND(DISTRICT!Z20<>"Inconnu",Z20<>"Non requis"),COUNTRY_INFO!P20*DISTRICT!AO20,0)) -> 0 | AT20: 18310.05 | AU20: 0 | AV20: =MAX('MDA4'!R20,'T1'!L20,'T2'!J20,T3_R1!K20,T3_R2!K20) -> 0 | AW20: =MAX('MDA1'!K20,'MDA4'!S20,'MDA3'!I20,'MDA3'!L20,'T1'!M20,'T2'!K20,T3_R1!L20,T3_R2!L20) -> 0 | AX20: =MAX('MDA1'!L20,'MDA4'!T20,'MDA3'!J20,'MDA3'!M20,'T1'!N20,'T2'!L20,T3_R1!M20,T3_R2!M20) -> 0 | AY20: 0 | AZ20: =MAX('MDA4'!R20,T20) -> 0 | BA20: =MAX('MDA1'!K20,'MDA4'!S20,'MDA3'!I20,'MDA3'!L20,V20,AD20) -> 0 | BB20: =MAX('MDA1'!L20,'MDA4'!T20,'MDA3'!J20,'MDA3'!M20,AF20) -> 0 | BC20: 0 | BD20: 0
A21: =IF(COUNTRY_INFO!A21=0," ",COUNTRY_INFO!A21) -> Congo | B21: =IF(COUNTRY_INFO!B21=0," ",COUNTRY_INFO!B21) -> Brazzaville | C21: =IF(COUNTRY_INFO!C21=0," ",COUNTRY_INFO!C21) -> Ouenzé | D21: =COUNTRY_INFO!M21 -> 0 | G21: =SUM('MDA1'!M21,'MDA4'!U21) -> 0 | H21: =IF(AND(COUNTRY_INFO!H21>0,COUNTRY_INFO!H21<4),IF(D21>MAX('MDA1'!M21,'MDA4'!U21),MAX('MDA1'!M21,'MDA4'!U21),D21),0) -> 0 | I21: =IF(AND(COUNTRY_INFO!H21>0,COUNTRY_INFO!H21<4), IF(G21/D21*100<>0, IF(G21/D21*100>100,100,G21/D21*100), "-"),0) -> 0 | J21: =COUNTRY_INFO!N21 -> 0 | M21: =MAX('MDA1'!M21,MAX('MDA3'!I21,'MDA3'!L21)+MAX('MDA3'!J21,'MDA3'!M21)) -> 0 | N21: =IF(AND(COUNTRY_INFO!I21>0,COUNTRY_INFO!I21<4),IF(J21>MAX('MDA1'!M21,MAX('MDA3'!I21,'MDA3'!L21)+MAX('MDA3'!J21,'MDA3'!M21)),MAX('MDA1'!M21,MAX('MDA3'!I21,'MDA3'!L21)+MAX('MDA3'!J21,'MDA3'!M21)),J21),0) -> 0 | O21: =IF(AND(COUNTRY_INFO!I21>0,COUNTRY_INFO!I21<4), IF(M21/J21*100<>0, IF(M21/J21*100>100,100,M21/J21*100), "-"),0) -> 0 | P21: =COUNTRY_INFO!O21 -> 0 | S21: =SUM(MAX('MDA4'!N21, 'T1'!L21, MAX(T3_R1!K21, T3_R2!K21)), MAX('MDA1'!K21, 'MDA4'!O21, 'T1'!M21, MAX(T3_R1!L21, T3_R2!L21)), MAX('MDA1'!L21, 'MDA4'!P21, 'T1'!N21, MAX(T3_R1!M21, T3_R2!M21))) -> 0 | T21: =IF(AND(COUNTRY_INFO!J21>1,COUNTRY_INFO!J21<4),IF(COUNTRY_INFO!E21>MAX('MDA4'!N21,'T1'!L21,MAX(T3_R1!K21,T3_R2!K21)),MAX('MDA4'!N21,'T1'!L21,MAX(T3_R1!K21,T3_R2!K21)),COUNTRY_INFO!E21),0) -> 0 | U21: =IF(AND(COUNTRY_INFO!J21>1,COUNTRY_INFO!J21<4), IF(T21/COUNTRY_INFO!E21*100<>0, IF(T21/COUNTRY_INFO!E21*100>100,100,T21/COUNTRY_INFO!E21*100), "-"),0) -> 0 | V21: =IF(AND(COUNTRY_INFO!J21>1,COUNTRY_INFO!J21<4),IF(COUNTRY_INFO!F21>MAX('MDA1'!K21,'MDA4'!O21,'T1'!M21,MAX(T3_R1!L21,T3_R2!L21)),MAX('MDA1'!K21,'MDA4'!O21,'T1'!M21,MAX(T3_R1!L21,T3_R2!L21)),COUNTRY_INFO!F21),0) -> 0 | W21: =IF(AND(COUNTRY_INFO!J21>1,COUNTRY_INFO!J21<4), IF(V21/COUNTRY_INFO!F21*100<>0, IF(V21/COUNTRY_INFO!F21*100>100,100,V21/COUNTRY_INFO!F21*100), "-"),0) -> 0 | X21: 0 | Y21: =IF(AND(COUNTRY_INFO!J21>1,COUNTRY_INFO!J21<4), IF(S21/P21*100<>0, IF(X21/P21*100>100,100,X21/P21*100), "-"),0) -> 0 | Z21: =COUNTRY_INFO!P21 -> 0 | AC21: =MAX('T1'!L21,'T2'!J21)+MAX('T1'!M21,'T2'!K21)+MAX('T1'!N21,'T2'!L21) -> 0 | AD21: =IF(COUNTRY_INFO!K21=1,IF(COUNTRY_INFO!F21*0.33>MAX('T1'!M21,'T2'!K21),MAX('T1'!M21,'T2'!K21),COUNTRY_INFO!F21*0.33),IF(COUNTRY_INFO!K21=2,IF(COUNTRY_INFO!F21*0.5>MAX('T1'!M21,'T2'!K21),MAX('T1'!M21,'T2'!K21),COUNTRY_INFO!F21*0.5),IF(COUNTRY_INFO!K21=3,IF(COUNTRY_INFO!F21>MAX('T1'!M21,'T2'!K21),MAX('T1'!M21,'T2'!K21),COUNTRY_INFO!F21),0))) -> 0 | AE21: =IF(AND(COUNTRY_INFO!K21>0,COUNTRY_INFO!K21<4),IF(Z21>0,IF(COUNTRY_INFO!K21=1, AD21/(COUNTRY_INFO!F21*0.33)*100, IF(COUNTRY_INFO!K21=2, AD21/(COUNTRY_INFO!F21*0.5)*100, IF(COUNTRY_INFO!K21=3, AD21/COUNTRY_INFO!F21*100))),"-"),0) -> 0 | AF21: =IF(COUNTRY_INFO!K21=2,IF(COUNTRY_INFO!G21*0.2>MAX('T1'!N21,'T2'!L21),MAX('T1'!N21,'T2'!L21),COUNTRY_INFO!G21*0.2),IF(COUNTRY_INFO!K21=3,IF(COUNTRY_INFO!G21>MAX('T1'!N21,'T2'!L21),MAX('T1'!N21,'T2'!L21),COUNTRY_INFO!G21),0)) -> 0 | AG21: =IF(AND(COUNTRY_INFO!K21>0,COUNTRY_INFO!K21<4),IF(Z21>0,IF(COUNTRY_INFO!K21=1, 0, IF(COUNTRY_INFO!K21=2, AF21/(COUNTRY_INFO!G21*0.2)*100, IF(COUNTRY_INFO!K21=3, AF21/COUNTRY_INFO!G21*100))),"-"),0) -> 0 | AH21: 0 | AI21: =IF(AND(COUNTRY_INFO!K21>0,COUNTRY_INFO!K21<4), IF(AC21/Z21*100<>0, IF(AH21/Z21*100>100,100,AH21/Z21*100), "-"),0) -> 0 | AK21: =IF(AND(D21<>0, D21<>"Inconnu",D21<>"Interrompu",D21<>"Non requis"),D21/COUNTRY_INFO!D21, 0) -> 0 | AL21: =IF(AND(J21<>0,J21<>"Inconnu",J21<>"Interrompu",J21<>"Non requis"),J21/COUNTRY_INFO!D21, 0) -> 0 | AM21: =IF(AND(P21<>0,P21<>"Inconnu",P21<>"Non requis"),P21/(COUNTRY_INFO!E21+COUNTRY_INFO!F21), 0) -> 0 | AN21: =IF(AND(Z21<>0,Z21<>"Inconnu",Z21<>"Non requis"),IF(COUNTRY_INFO!K21=1,1,IF(COUNTRY_INFO!K21=2,0.5*COUNTRY_INFO!F21/(0.5*COUNTRY_INFO!F21+0.2*COUNTRY_INFO!G21),IF(COUNTRY_INFO!K21=3,COUNTRY_INFO!F21/(COUNTRY_INFO!F21+COUNTRY_INFO!G21)))),0) -> 0 | AO21: =IF(AND(Z21<>0,Z21<>"Inconnu",Z21<>"Non requis"),IF(COUNTRY_INFO!K21=1,0,IF(COUNTRY_INFO!K21=2,0.2*COUNTRY_INFO!G21/(0.5*COUNTRY_INFO!F21+0.2*COUNTRY_INFO!G21),IF(COUNTRY_INFO!K21=3,COUNTRY_INFO!G21/(COUNTRY_INFO!F21+COUNTRY_INFO!G21)))),0) -> 0 | AP21: =MAX(COUNTRY_INFO!D21*AK21*PROFILE!$G$7,COUNTRY_INFO!D21*AL21*PROFILE!$G$7) -> 0 | AQ21: =MAX(COUNTRY_INFO!D21*AK21*PROFILE!$G$8,COUNTRY_INFO!D21*AL21*PROFILE!$G$8,COUNTRY_INFO!D21*AM21*PROFILE!$G$8) -> 0 | AR21: =MAX(COUNTRY_INFO!D21*AK21*PROFILE!$G$9,COUNTRY_INFO!D21*AL21*PROFILE!$G$9,COUNTRY_INFO!D21*AM21*PROFILE!$G$9,IF(AND(DISTRICT!Z21<>"Inconnu",Z21<>"Non requis"),COUNTRY_INFO!P21*DISTRICT!AN21,0)) -> 0 | AS21: =MAX(COUNTRY_INFO!D21*AK21*PROFILE!$G$10,COUNTRY_INFO!D21*AL21*PROFILE!$G$10,IF(AND(DISTRICT!Z21<>"Inconnu",Z21<>"Non requis"),COUNTRY_INFO!P21*DISTRICT!AO21,0)) -> 0 | AT21: 0 | AU21: 0 | AV21: =MAX('MDA4'!R21,'T1'!L21,'T2'!J21,T3_R1!K21,T3_R2!K21) -> 0 | AW21: =MAX('MDA1'!K21,'MDA4'!S21,'MDA3'!I21,'MDA3'!L21,'T1'!M21,'T2'!K21,T3_R1!L21,T3_R2!L21) -> 0 | AX21: =MAX('MDA1'!L21,'MDA4'!T21,'MDA3'!J21,'MDA3'!M21,'T1'!N21,'T2'!L21,T3_R1!M21,T3_R2!M21) -> 0 | AY21: 0 | AZ21: =MAX('MDA4'!R21,T21) -> 0 | BA21: =MAX('MDA1'!K21,'MDA4'!S21,'MDA3'!I21,'MDA3'!L21,V21,AD21) -> 0 | BB21: =MAX('MDA1'!L21,'MDA4'!T21,'MDA3'!J21,'MDA3'!M21,AF21) -> 0 | BC21: 0 | BD21: 0
A22: =IF(COUNTRY_INFO!A22=0," ",COUNTRY_INFO!A22) -> Congo | B22: =IF(COUNTRY_INFO!B22=0," ",COUNTRY_INFO!B22) -> Brazzaville | C22: =IF(COUNTRY_INFO!C22=0," ",COUNTRY_INFO!C22) -> Poto-Poto | D22: =COUNTRY_INFO!M22 -> 0 | G22: =SUM('MDA1'!M22,'MDA4'!U22) -> 0 | H22: =IF(AND(COUNTRY_INFO!H22>0,COUNTRY_INFO!H22<4),IF(D22>MAX('MDA1'!M22,'MDA4'!U22),MAX('MDA1'!M22,'MDA4'!U22),D22),0) -> 0 | I22: =IF(AND(COUNTRY_INFO!H22>0,COUNTRY_INFO!H22<4), IF(G22/D22*100<>0, IF(G22/D22*100>100,100,G22/D22*100), "-"),0) -> 0 | J22: =COUNTRY_INFO!N22 -> 0 | M22: =MAX('MDA1'!M22,MAX('MDA3'!I22,'MDA3'!L22)+MAX('MDA3'!J22,'MDA3'!M22)) -> 0 | N22: =IF(AND(COUNTRY_INFO!I22>0,COUNTRY_INFO!I22<4),IF(J22>MAX('MDA1'!M22,MAX('MDA3'!I22,'MDA3'!L22)+MAX('MDA3'!J22,'MDA3'!M22)),MAX('MDA1'!M22,MAX('MDA3'!I22,'MDA3'!L22)+MAX('MDA3'!J22,'MDA3'!M22)),J22),0) -> 0 | O22: =IF(AND(COUNTRY_INFO!I22>0,COUNTRY_INFO!I22<4), IF(M22/J22*100<>0, IF(M22/J22*100>100,100,M22/J22*100), "-"),0) -> 0 | P22: =COUNTRY_INFO!O22 -> 0 | S22: =SUM(MAX('MDA4'!N22, 'T1'!L22, MAX(T3_R1!K22, T3_R2!K22)), MAX('MDA1'!K22, 'MDA4'!O22, 'T1'!M22, MAX(T3_R1!L22, T3_R2!L22)), MAX('MDA1'!L22, 'MDA4'!P22, 'T1'!N22, MAX(T3_R1!M22, T3_R2!M22))) -> 0 | T22: =IF(AND(COUNTRY_INFO!J22>1,COUNTRY_INFO!J22<4),IF(COUNTRY_INFO!E22>MAX('MDA4'!N22,'T1'!L22,MAX(T3_R1!K22,T3_R2!K22)),MAX('MDA4'!N22,'T1'!L22,MAX(T3_R1!K22,T3_R2!K22)),COUNTRY_INFO!E22),0) -> 0 | U22: =IF(AND(COUNTRY_INFO!J22>1,COUNTRY_INFO!J22<4), IF(T22/COUNTRY_INFO!E22*100<>0, IF(T22/COUNTRY_INFO!E22*100>100,100,T22/COUNTRY_INFO!E22*100), "-"),0) -> 0 | V22: =IF(AND(COUNTRY_INFO!J22>1,COUNTRY_INFO!J22<4),IF(COUNTRY_INFO!F22>MAX('MDA1'!K22,'MDA4'!O22,'T1'!M22,MAX(T3_R1!L22,T3_R2!L22)),MAX('MDA1'!K22,'MDA4'!O22,'T1'!M22,MAX(T3_R1!L22,T3_R2!L22)),COUNTRY_INFO!F22),0) -> 0 | W22: =IF(AND(COUNTRY_INFO!J22>1,COUNTRY_INFO!J22<4), IF(V22/COUNTRY_INFO!F22*100<>0, IF(V22/COUNTRY_INFO!F22*100>100,100,V22/COUNTRY_INFO!F22*100), "-"),0) -> 0 | X22: 0 | Y22: =IF(AND(COUNTRY_INFO!J22>1,COUNTRY_INFO!J22<4), IF(S22/P22*100<>0, IF(X22/P22*100>100,100,X22/P22*100), "-"),0) -> 0 | Z22: =COUNTRY_INFO!P22 -> 0 | AC22: =MAX('T1'!L22,'T2'!J22)+MAX('T1'!M22,'T2'!K22)+MAX('T1'!N22,'T2'!L22) -> 0 | AD22: =IF(COUNTRY_INFO!K22=1,IF(COUNTRY_INFO!F22*0.33>MAX('T1'!M22,'T2'!K22),MAX('T1'!M22,'T2'!K22),COUNTRY_INFO!F22*0.33),IF(COUNTRY_INFO!K22=2,IF(COUNTRY_INFO!F22*0.5>MAX('T1'!M22,'T2'!K22),MAX('T1'!M22,'T2'!K22),COUNTRY_INFO!F22*0.5),IF(COUNTRY_INFO!K22=3,IF(COUNTRY_INFO!F22>MAX('T1'!M22,'T2'!K22),MAX('T1'!M22,'T2'!K22),COUNTRY_INFO!F22),0))) -> 0 | AE22: =IF(AND(COUNTRY_INFO!K22>0,COUNTRY_INFO!K22<4),IF(Z22>0,IF(COUNTRY_INFO!K22=1, AD22/(COUNTRY_INFO!F22*0.33)*100, IF(COUNTRY_INFO!K22=2, AD22/(COUNTRY_INFO!F22*0.5)*100, IF(COUNTRY_INFO!K22=3, AD22/COUNTRY_INFO!F22*100))),"-"),0) -> 0 | AF22: =IF(COUNTRY_INFO!K22=2,IF(COUNTRY_INFO!G22*0.2>MAX('T1'!N22,'T2'!L22),MAX('T1'!N22,'T2'!L22),COUNTRY_INFO!G22*0.2),IF(COUNTRY_INFO!K22=3,IF(COUNTRY_INFO!G22>MAX('T1'!N22,'T2'!L22),MAX('T1'!N22,'T2'!L22),COUNTRY_INFO!G22),0)) -> 0 | AG22: =IF(AND(COUNTRY_INFO!K22>0,COUNTRY_INFO!K22<4),IF(Z22>0,IF(COUNTRY_INFO!K22=1, 0, IF(COUNTRY_INFO!K22=2, AF22/(COUNTRY_INFO!G22*0.2)*100, IF(COUNTRY_INFO!K22=3, AF22/COUNTRY_INFO!G22*100))),"-"),0) -> 0 | AH22: 0 | AI22: =IF(AND(COUNTRY_INFO!K22>0,COUNTRY_INFO!K22<4), IF(AC22/Z22*100<>0, IF(AH22/Z22*100>100,100,AH22/Z22*100), "-"),0) -> 0 | AK22: =IF(AND(D22<>0, D22<>"Inconnu",D22<>"Interrompu",D22<>"Non requis"),D22/COUNTRY_INFO!D22, 0) -> 0 | AL22: =IF(AND(J22<>0,J22<>"Inconnu",J22<>"Interrompu",J22<>"Non requis"),J22/COUNTRY_INFO!D22, 0) -> 0 | AM22: =IF(AND(P22<>0,P22<>"Inconnu",P22<>"Non requis"),P22/(COUNTRY_INFO!E22+COUNTRY_INFO!F22), 0) -> 0 | AN22: =IF(AND(Z22<>0,Z22<>"Inconnu",Z22<>"Non requis"),IF(COUNTRY_INFO!K22=1,1,IF(COUNTRY_INFO!K22=2,0.5*COUNTRY_INFO!F22/(0.5*COUNTRY_INFO!F22+0.2*COUNTRY_INFO!G22),IF(COUNTRY_INFO!K22=3,COUNTRY_INFO!F22/(COUNTRY_INFO!F22+COUNTRY_INFO!G22)))),0) -> 0 | AO22: =IF(AND(Z22<>0,Z22<>"Inconnu",Z22<>"Non requis"),IF(COUNTRY_INFO!K22=1,0,IF(COUNTRY_INFO!K22=2,0.2*COUNTRY_INFO!G22/(0.5*COUNTRY_INFO!F22+0.2*COUNTRY_INFO!G22),IF(COUNTRY_INFO!K22=3,COUNTRY_INFO!G22/(COUNTRY_INFO!F22+COUNTRY_INFO!G22)))),0) -> 0 | AP22: =MAX(COUNTRY_INFO!D22*AK22*PROFILE!$G$7,COUNTRY_INFO!D22*AL22*PROFILE!$G$7) -> 0 | AQ22: =MAX(COUNTRY_INFO!D22*AK22*PROFILE!$G$8,COUNTRY_INFO!D22*AL22*PROFILE!$G$8,COUNTRY_INFO!D22*AM22*PROFILE!$G$8) -> 0 | AR22: =MAX(COUNTRY_INFO!D22*AK22*PROFILE!$G$9,COUNTRY_INFO!D22*AL22*PROFILE!$G$9,COUNTRY_INFO!D22*AM22*PROFILE!$G$9,IF(AND(DISTRICT!Z22<>"Inconnu",Z22<>"Non requis"),COUNTRY_INFO!P22*DISTRICT!AN22,0)) -> 0 | AS22: =MAX(COUNTRY_INFO!D22*AK22*PROFILE!$G$10,COUNTRY_INFO!D22*AL22*PROFILE!$G$10,IF(AND(DISTRICT!Z22<>"Inconnu",Z22<>"Non requis"),COUNTRY_INFO!P22*DISTRICT!AO22,0)) -> 0 | AT22: 0 | AU22: 0 | AV22: =MAX('MDA4'!R22,'T1'!L22,'T2'!J22,T3_R1!K22,T3_R2!K22) -> 0 | AW22: =MAX('MDA1'!K22,'MDA4'!S22,'MDA3'!I22,'MDA3'!L22,'T1'!M22,'T2'!K22,T3_R1!L22,T3_R2!L22) -> 0 | AX22: =MAX('MDA1'!L22,'MDA4'!T22,'MDA3'!J22,'MDA3'!M22,'T1'!N22,'T2'!L22,T3_R1!M22,T3_R2!M22) -> 0 | AY22: 0 | AZ22: =MAX('MDA4'!R22,T22) -> 0 | BA22: =MAX('MDA1'!K22,'MDA4'!S22,'MDA3'!I22,'MDA3'!L22,V22,AD22) -> 0 | BB22: =MAX('MDA1'!L22,'MDA4'!T22,'MDA3'!J22,'MDA3'!M22,AF22) -> 0 | BC22: 0 | BD22: 0
A23: =IF(COUNTRY_INFO!A23=0," ",COUNTRY_INFO!A23) -> Congo | B23: =IF(COUNTRY_INFO!B23=0," ",COUNTRY_INFO!B23) -> Brazzaville | C23: =IF(COUNTRY_INFO!C23=0," ",COUNTRY_INFO!C23) -> Talangaî | D23: =COUNTRY_INFO!M23 -> 0 | G23: =SUM('MDA1'!M23,'MDA4'!U23) -> 0 | H23: =IF(AND(COUNTRY_INFO!H23>0,COUNTRY_INFO!H23<4),IF(D23>MAX('MDA1'!M23,'MDA4'!U23),MAX('MDA1'!M23,'MDA4'!U23),D23),0) -> 0 | I23: =IF(AND(COUNTRY_INFO!H23>0,COUNTRY_INFO!H23<4), IF(G23/D23*100<>0, IF(G23/D23*100>100,100,G23/D23*100), "-"),0) -> 0 | J23: =COUNTRY_INFO!N23 -> 0 | M23: =MAX('MDA1'!M23,MAX('MDA3'!I23,'MDA3'!L23)+MAX('MDA3'!J23,'MDA3'!M23)) -> 0 | N23: =IF(AND(COUNTRY_INFO!I23>0,COUNTRY_INFO!I23<4),IF(J23>MAX('MDA1'!M23,MAX('MDA3'!I23,'MDA3'!L23)+MAX('MDA3'!J23,'MDA3'!M23)),MAX('MDA1'!M23,MAX('MDA3'!I23,'MDA3'!L23)+MAX('MDA3'!J23,'MDA3'!M23)),J23),0) -> 0 | O23: =IF(AND(COUNTRY_INFO!I23>0,COUNTRY_INFO!I23<4), IF(M23/J23*100<>0, IF(M23/J23*100>100,100,M23/J23*100), "-"),0) -> 0 | P23: =COUNTRY_INFO!O23 -> 0 | S23: =SUM(MAX('MDA4'!N23, 'T1'!L23, MAX(T3_R1!K23, T3_R2!K23)), MAX('MDA1'!K23, 'MDA4'!O23, 'T1'!M23, MAX(T3_R1!L23, T3_R2!L23)), MAX('MDA1'!L23, 'MDA4'!P23, 'T1'!N23, MAX(T3_R1!M23, T3_R2!M23))) -> 0 | T23: =IF(AND(COUNTRY_INFO!J23>1,COUNTRY_INFO!J23<4),IF(COUNTRY_INFO!E23>MAX('MDA4'!N23,'T1'!L23,MAX(T3_R1!K23,T3_R2!K23)),MAX('MDA4'!N23,'T1'!L23,MAX(T3_R1!K23,T3_R2!K23)),COUNTRY_INFO!E23),0) -> 0 | U23: =IF(AND(COUNTRY_INFO!J23>1,COUNTRY_INFO!J23<4), IF(T23/COUNTRY_INFO!E23*100<>0, IF(T23/COUNTRY_INFO!E23*100>100,100,T23/COUNTRY_INFO!E23*100), "-"),0) -> 0 | V23: =IF(AND(COUNTRY_INFO!J23>1,COUNTRY_INFO!J23<4),IF(COUNTRY_INFO!F23>MAX('MDA1'!K23,'MDA4'!O23,'T1'!M23,MAX(T3_R1!L23,T3_R2!L23)),MAX('MDA1'!K23,'MDA4'!O23,'T1'!M23,MAX(T3_R1!L23,T3_R2!L23)),COUNTRY_INFO!F23),0) -> 0 | W23: =IF(AND(COUNTRY_INFO!J23>1,COUNTRY_INFO!J23<4), IF(V23/COUNTRY_INFO!F23*100<>0, IF(V23/COUNTRY_INFO!F23*100>100,100,V23/COUNTRY_INFO!F23*100), "-"),0) -> 0 | X23: 0 | Y23: =IF(AND(COUNTRY_INFO!J23>1,COUNTRY_INFO!J23<4), IF(S23/P23*100<>0, IF(X23/P23*100>100,100,X23/P23*100), "-"),0) -> 0 | Z23: =COUNTRY_INFO!P23 -> 0 | AC23: =MAX('T1'!L23,'T2'!J23)+MAX('T1'!M23,'T2'!K23)+MAX('T1'!N23,'T2'!L23) -> 0 | AD23: =IF(COUNTRY_INFO!K23=1,IF(COUNTRY_INFO!F23*0.33>MAX('T1'!M23,'T2'!K23),MAX('T1'!M23,'T2'!K23),COUNTRY_INFO!F23*0.33),IF(COUNTRY_INFO!K23=2,IF(COUNTRY_INFO!F23*0.5>MAX('T1'!M23,'T2'!K23),MAX('T1'!M23,'T2'!K23),COUNTRY_INFO!F23*0.5),IF(COUNTRY_INFO!K23=3,IF(COUNTRY_INFO!F23>MAX('T1'!M23,'T2'!K23),MAX('T1'!M23,'T2'!K23),COUNTRY_INFO!F23),0))) -> 0 | AE23: =IF(AND(COUNTRY_INFO!K23>0,COUNTRY_INFO!K23<4),IF(Z23>0,IF(COUNTRY_INFO!K23=1, AD23/(COUNTRY_INFO!F23*0.33)*100, IF(COUNTRY_INFO!K23=2, AD23/(COUNTRY_INFO!F23*0.5)*100, IF(COUNTRY_INFO!K23=3, AD23/COUNTRY_INFO!F23*100))),"-"),0) -> 0 | AF23: =IF(COUNTRY_INFO!K23=2,IF(COUNTRY_INFO!G23*0.2>MAX('T1'!N23,'T2'!L23),MAX('T1'!N23,'T2'!L23),COUNTRY_INFO!G23*0.2),IF(COUNTRY_INFO!K23=3,IF(COUNTRY_INFO!G23>MAX('T1'!N23,'T2'!L23),MAX('T1'!N23,'T2'!L23),COUNTRY_INFO!G23),0)) -> 0 | AG23: =IF(AND(COUNTRY_INFO!K23>0,COUNTRY_INFO!K23<4),IF(Z23>0,IF(COUNTRY_INFO!K23=1, 0, IF(COUNTRY_INFO!K23=2, AF23/(COUNTRY_INFO!G23*0.2)*100, IF(COUNTRY_INFO!K23=3, AF23/COUNTRY_INFO!G23*100))),"-"),0) -> 0 | AH23: 0 | AI23: =IF(AND(COUNTRY_INFO!K23>0,COUNTRY_INFO!K23<4), IF(AC23/Z23*100<>0, IF(AH23/Z23*100>100,100,AH23/Z23*100), "-"),0) -> 0 | AK23: =IF(AND(D23<>0, D23<>"Inconnu",D23<>"Interrompu",D23<>"Non requis"),D23/COUNTRY_INFO!D23, 0) -> 0 | AL23: =IF(AND(J23<>0,J23<>"Inconnu",J23<>"Interrompu",J23<>"Non requis"),J23/COUNTRY_INFO!D23, 0) -> 0 | AM23: =IF(AND(P23<>0,P23<>"Inconnu",P23<>"Non requis"),P23/(COUNTRY_INFO!E23+COUNTRY_INFO!F23), 0) -> 0 | AN23: =IF(AND(Z23<>0,Z23<>"Inconnu",Z23<>"Non requis"),IF(COUNTRY_INFO!K23=1,1,IF(COUNTRY_INFO!K23=2,0.5*COUNTRY_INFO!F23/(0.5*COUNTRY_INFO!F23+0.2*COUNTRY_INFO!G23),IF(COUNTRY_INFO!K23=3,COUNTRY_INFO!F23/(COUNTRY_INFO!F23+COUNTRY_INFO!G23)))),0) -> 0 | AO23: =IF(AND(Z23<>0,Z23<>"Inconnu",Z23<>"Non requis"),IF(COUNTRY_INFO!K23=1,0,IF(COUNTRY_INFO!K23=2,0.2*COUNTRY_INFO!G23/(0.5*COUNTRY_INFO!F23+0.2*COUNTRY_INFO!G23),IF(COUNTRY_INFO!K23=3,COUNTRY_INFO!G23/(COUNTRY_INFO!F23+COUNTRY_INFO!G23)))),0) -> 0 | AP23: =MAX(COUNTRY_INFO!D23*AK23*PROFILE!$G$7,COUNTRY_INFO!D23*AL23*PROFILE!$G$7) -> 0 | AQ23: =MAX(COUNTRY_INFO!D23*AK23*PROFILE!$G$8,COUNTRY_INFO!D23*AL23*PROFILE!$G$8,COUNTRY_INFO!D23*AM23*PROFILE!$G$8) -> 0 | AR23: =MAX(COUNTRY_INFO!D23*AK23*PROFILE!$G$9,COUNTRY_INFO!D23*AL23*PROFILE!$G$9,COUNTRY_INFO!D23*AM23*PROFILE!$G$9,IF(AND(DISTRICT!Z23<>"Inconnu",Z23<>"Non requis"),COUNTRY_INFO!P23*DISTRICT!AN23,0)) -> 0 | AS23: =MAX(COUNTRY_INFO!D23*AK23*PROFILE!$G$10,COUNTRY_INFO!D23*AL23*PROFILE!$G$10,IF(AND(DISTRICT!Z23<>"Inconnu",Z23<>"Non requis"),COUNTRY_INFO!P23*DISTRICT!AO23,0)) -> 0 | AT23: 0 | AU23: 0 | AV23: =MAX('MDA4'!R23,'T1'!L23,'T2'!J23,T3_R1!K23,T3_R2!K23) -> 0 | AW23: =MAX('MDA1'!K23,'MDA4'!S23,'MDA3'!I23,'MDA3'!L23,'T1'!M23,'T2'!K23,T3_R1!L23,T3_R2!L23) -> 0 | AX23: =MAX('MDA1'!L23,'MDA4'!T23,'MDA3'!J23,'MDA3'!M23,'T1'!N23,'T2'!L23,T3_R1!M23,T3_R2!M23) -> 0 | AY23: 0 | AZ23: =MAX('MDA4'!R23,T23) -> 0 | BA23: =MAX('MDA1'!K23,'MDA4'!S23,'MDA3'!I23,'MDA3'!L23,V23,AD23) -> 0 | BB23: =MAX('MDA1'!L23,'MDA4'!T23,'MDA3'!J23,'MDA3'!M23,AF23) -> 0 | BC23: 0 | BD23: 0
A24: =IF(COUNTRY_INFO!A24=0," ",COUNTRY_INFO!A24) -> Congo | B24: =IF(COUNTRY_INFO!B24=0," ",COUNTRY_INFO!B24) -> Cuvette | C24: =IF(COUNTRY_INFO!C24=0," ",COUNTRY_INFO!C24) -> Mossaka | D24: =COUNTRY_INFO!M24 -> 0 | G24: =SUM('MDA1'!M24,'MDA4'!U24) -> 0 | H24: =IF(AND(COUNTRY_INFO!H24>0,COUNTRY_INFO!H24<4),IF(D24>MAX('MDA1'!M24,'MDA4'!U24),MAX('MDA1'!M24,'MDA4'!U24),D24),0) -> 0 | I24: =IF(AND(COUNTRY_INFO!H24>0,COUNTRY_INFO!H24<4), IF(G24/D24*100<>0, IF(G24/D24*100>100,100,G24/D24*100), "-"),0) -> 0 | J24: =COUNTRY_INFO!N24 -> 0 | M24: =MAX('MDA1'!M24,MAX('MDA3'!I24,'MDA3'!L24)+MAX('MDA3'!J24,'MDA3'!M24)) -> 0 | N24: =IF(AND(COUNTRY_INFO!I24>0,COUNTRY_INFO!I24<4),IF(J24>MAX('MDA1'!M24,MAX('MDA3'!I24,'MDA3'!L24)+MAX('MDA3'!J24,'MDA3'!M24)),MAX('MDA1'!M24,MAX('MDA3'!I24,'MDA3'!L24)+MAX('MDA3'!J24,'MDA3'!M24)),J24),0) -> 0 | O24: =IF(AND(COUNTRY_INFO!I24>0,COUNTRY_INFO!I24<4), IF(M24/J24*100<>0, IF(M24/J24*100>100,100,M24/J24*100), "-"),0) -> 0 | P24: =COUNTRY_INFO!O24 -> 25932 | S24: =SUM(MAX('MDA4'!N24, 'T1'!L24, MAX(T3_R1!K24, T3_R2!K24)), MAX('MDA1'!K24, 'MDA4'!O24, 'T1'!M24, MAX(T3_R1!L24, T3_R2!L24)), MAX('MDA1'!L24, 'MDA4'!P24, 'T1'!N24, MAX(T3_R1!M24, T3_R2!M24))) -> 0 | T24: =IF(AND(COUNTRY_INFO!J24>1,COUNTRY_INFO!J24<4),IF(COUNTRY_INFO!E24>MAX('MDA4'!N24,'T1'!L24,MAX(T3_R1!K24,T3_R2!K24)),MAX('MDA4'!N24,'T1'!L24,MAX(T3_R1!K24,T3_R2!K24)),COUNTRY_INFO!E24),0) -> 0 | U24: =IF(AND(COUNTRY_INFO!J24>1,COUNTRY_INFO!J24<4), IF(T24/COUNTRY_INFO!E24*100<>0, IF(T24/COUNTRY_INFO!E24*100>100,100,T24/COUNTRY_INFO!E24*100), "-"),0) -> - | V24: =IF(AND(COUNTRY_INFO!J24>1,COUNTRY_INFO!J24<4),IF(COUNTRY_INFO!F24>MAX('MDA1'!K24,'MDA4'!O24,'T1'!M24,MAX(T3_R1!L24,T3_R2!L24)),MAX('MDA1'!K24,'MDA4'!O24,'T1'!M24,MAX(T3_R1!L24,T3_R2!L24)),COUNTRY_INFO!F24),0) -> 0 | W24: =IF(AND(COUNTRY_INFO!J24>1,COUNTRY_INFO!J24<4), IF(V24/COUNTRY_INFO!F24*100<>0, IF(V24/COUNTRY_INFO!F24*100>100,100,V24/COUNTRY_INFO!F24*100), "-"),0) -> - | X24: 0 | Y24: =IF(AND(COUNTRY_INFO!J24>1,COUNTRY_INFO!J24<4), IF(S24/P24*100<>0, IF(X24/P24*100>100,100,X24/P24*100), "-"),0) -> - | Z24: =COUNTRY_INFO!P24 -> 5134.47 | AC24: =MAX('T1'!L24,'T2'!J24)+MAX('T1'!M24,'T2'!K24)+MAX('T1'!N24,'T2'!L24) -> 0 | AD24: =IF(COUNTRY_INFO!K24=1,IF(COUNTRY_INFO!F24*0.33>MAX('T1'!M24,'T2'!K24),MAX('T1'!M24,'T2'!K24),COUNTRY_INFO!F24*0.33),IF(COUNTRY_INFO!K24=2,IF(COUNTRY_INFO!F24*0.5>MAX('T1'!M24,'T2'!K24),MAX('T1'!M24,'T2'!K24),COUNTRY_INFO!F24*0.5),IF(COUNTRY_INFO!K24=3,IF(COUNTRY_INFO!F24>MAX('T1'!M24,'T2'!K24),MAX('T1'!M24,'T2'!K24),COUNTRY_INFO!F24),0))) -> 0 | AE24: =IF(AND(COUNTRY_INFO!K24>0,COUNTRY_INFO!K24<4),IF(Z24>0,IF(COUNTRY_INFO!K24=1, AD24/(COUNTRY_INFO!F24*0.33)*100, IF(COUNTRY_INFO!K24=2, AD24/(COUNTRY_INFO!F24*0.5)*100, IF(COUNTRY_INFO!K24=3, AD24/COUNTRY_INFO!F24*100))),"-"),0) -> 0 | AF24: =IF(COUNTRY_INFO!K24=2,IF(COUNTRY_INFO!G24*0.2>MAX('T1'!N24,'T2'!L24),MAX('T1'!N24,'T2'!L24),COUNTRY_INFO!G24*0.2),IF(COUNTRY_INFO!K24=3,IF(COUNTRY_INFO!G24>MAX('T1'!N24,'T2'!L24),MAX('T1'!N24,'T2'!L24),COUNTRY_INFO!G24),0)) -> 0 | AG24: =IF(AND(COUNTRY_INFO!K24>0,COUNTRY_INFO!K24<4),IF(Z24>0,IF(COUNTRY_INFO!K24=1, 0, IF(COUNTRY_INFO!K24=2, AF24/(COUNTRY_INFO!G24*0.2)*100, IF(COUNTRY_INFO!K24=3, AF24/COUNTRY_INFO!G24*100))),"-"),0) -> 0 | AH24: 0 | AI24: =IF(AND(COUNTRY_INFO!K24>0,COUNTRY_INFO!K24<4), IF(AC24/Z24*100<>0, IF(AH24/Z24*100>100,100,AH24/Z24*100), "-"),0) -> - | AK24: =IF(AND(D24<>0, D24<>"Inconnu",D24<>"Interrompu",D24<>"Non requis"),D24/COUNTRY_INFO!D24, 0) -> 0 | AL24: =IF(AND(J24<>0,J24<>"Inconnu",J24<>"Interrompu",J24<>"Non requis"),J24/COUNTRY_INFO!D24, 0) -> 0 | AM24: =IF(AND(P24<>0,P24<>"Inconnu",P24<>"Non requis"),P24/(COUNTRY_INFO!E24+COUNTRY_INFO!F24), 0) -> 1 | AN24: =IF(AND(Z24<>0,Z24<>"Inconnu",Z24<>"Non requis"),IF(COUNTRY_INFO!K24=1,1,IF(COUNTRY_INFO!K24=2,0.5*COUNTRY_INFO!F24/(0.5*COUNTRY_INFO!F24+0.2*COUNTRY_INFO!G24),IF(COUNTRY_INFO!K24=3,COUNTRY_INFO!F24/(COUNTRY_INFO!F24+COUNTRY_INFO!G24)))),0) -> 1 | AO24: =IF(AND(Z24<>0,Z24<>"Inconnu",Z24<>"Non requis"),IF(COUNTRY_INFO!K24=1,0,IF(COUNTRY_INFO!K24=2,0.2*COUNTRY_INFO!G24/(0.5*COUNTRY_INFO!F24+0.2*COUNTRY_INFO!G24),IF(COUNTRY_INFO!K24=3,COUNTRY_INFO!G24/(COUNTRY_INFO!F24+COUNTRY_INFO!G24)))),0) -> 0 | AP24: =MAX(COUNTRY_INFO!D24*AK24*PROFILE!$G$7,COUNTRY_INFO!D24*AL24*PROFILE!$G$7) -> 0 | AQ24: =MAX(COUNTRY_INFO!D24*AK24*PROFILE!$G$8,COUNTRY_INFO!D24*AL24*PROFILE!$G$8,COUNTRY_INFO!D24*AM24*PROFILE!$G$8) -> 10372.63903 | AR24: =MAX(COUNTRY_INFO!D24*AK24*PROFILE!$G$9,COUNTRY_INFO!D24*AL24*PROFILE!$G$9,COUNTRY_INFO!D24*AM24*PROFILE!$G$9,IF(AND(DISTRICT!Z24<>"Inconnu",Z24<>"Non requis"),COUNTRY_INFO!P24*DISTRICT!AN24,0)) -> 15558.93417 | AS24: =MAX(COUNTRY_INFO!D24*AK24*PROFILE!$G$10,COUNTRY_INFO!D24*AL24*PROFILE!$G$10,IF(AND(DISTRICT!Z24<>"Inconnu",Z24<>"Non requis"),COUNTRY_INFO!P24*DISTRICT!AO24,0)) -> 0 | AT24: 25931.5732 | AU24: 0 | AV24: =MAX('MDA4'!R24,'T1'!L24,'T2'!J24,T3_R1!K24,T3_R2!K24) -> 0 | AW24: =MAX('MDA1'!K24,'MDA4'!S24,'MDA3'!I24,'MDA3'!L24,'T1'!M24,'T2'!K24,T3_R1!L24,T3_R2!L24) -> 0 | AX24: =MAX('MDA1'!L24,'MDA4'!T24,'MDA3'!J24,'MDA3'!M24,'T1'!N24,'T2'!L24,T3_R1!M24,T3_R2!M24) -> 0 | AY24: 0 | AZ24: =MAX('MDA4'!R24,T24) -> 0 | BA24: =MAX('MDA1'!K24,'MDA4'!S24,'MDA3'!I24,'MDA3'!L24,V24,AD24) -> 0 | BB24: =MAX('MDA1'!L24,'MDA4'!T24,'MDA3'!J24,'MDA3'!M24,AF24) -> 0 | BC24: 0 | BD24: 0
A25: =IF(COUNTRY_INFO!A25=0," ",COUNTRY_INFO!A25) -> Congo | B25: =IF(COUNTRY_INFO!B25=0," ",COUNTRY_INFO!B25) -> Cuvette | C25: =IF(COUNTRY_INFO!C25=0," ",COUNTRY_INFO!C25) -> Owando | D25: =COUNTRY_INFO!M25 -> 94456 | E25: 21088 | F25: 21432 | G25: =SUM('MDA1'!M25,'MDA4'!U25) -> 42520 | H25: =IF(AND(COUNTRY_INFO!H25>0,COUNTRY_INFO!H25<4),IF(D25>MAX('MDA1'!M25,'MDA4'!U25),MAX('MDA1'!M25,'MDA4'!U25),D25),0) -> 42520 | I25: =IF(AND(COUNTRY_INFO!H25>0,COUNTRY_INFO!H25<4), IF(G25/D25*100<>0, IF(G25/D25*100>100,100,G25/D25*100), "-"),0) -> 45.01566867 | J25: =COUNTRY_INFO!N25 -> 0 | M25: =MAX('MDA1'!M25,MAX('MDA3'!I25,'MDA3'!L25)+MAX('MDA3'!J25,'MDA3'!M25)) -> 0 | N25: =IF(AND(COUNTRY_INFO!I25>0,COUNTRY_INFO!I25<4),IF(J25>MAX('MDA1'!M25,MAX('MDA3'!I25,'MDA3'!L25)+MAX('MDA3'!J25,'MDA3'!M25)),MAX('MDA1'!M25,MAX('MDA3'!I25,'MDA3'!L25)+MAX('MDA3'!J25,'MDA3'!M25)),J25),0) -> 0 | O25: =IF(AND(COUNTRY_INFO!I25>0,COUNTRY_INFO!I25<4), IF(M25/J25*100<>0, IF(M25/J25*100>100,100,M25/J25*100), "-"),0) -> 0 | P25: =COUNTRY_INFO!O25 -> 0 | S25: =SUM(MAX('MDA4'!N25, 'T1'!L25, MAX(T3_R1!K25, T3_R2!K25)), MAX('MDA1'!K25, 'MDA4'!O25, 'T1'!M25, MAX(T3_R1!L25, T3_R2!L25)), MAX('MDA1'!L25, 'MDA4'!P25, 'T1'!N25, MAX(T3_R1!M25, T3_R2!M25))) -> 0 | T25: =IF(AND(COUNTRY_INFO!J25>1,COUNTRY_INFO!J25<4),IF(COUNTRY_INFO!E25>MAX('MDA4'!N25,'T1'!L25,MAX(T3_R1!K25,T3_R2!K25)),MAX('MDA4'!N25,'T1'!L25,MAX(T3_R1!K25,T3_R2!K25)),COUNTRY_INFO!E25),0) -> 0 | U25: =IF(AND(COUNTRY_INFO!J25>1,COUNTRY_INFO!J25<4), IF(T25/COUNTRY_INFO!E25*100<>0, IF(T25/COUNTRY_INFO!E25*100>100,100,T25/COUNTRY_INFO!E25*100), "-"),0) -> 0 | V25: =IF(AND(COUNTRY_INFO!J25>1,COUNTRY_INFO!J25<4),IF(COUNTRY_INFO!F25>MAX('MDA1'!K25,'MDA4'!O25,'T1'!M25,MAX(T3_R1!L25,T3_R2!L25)),MAX('MDA1'!K25,'MDA4'!O25,'T1'!M25,MAX(T3_R1!L25,T3_R2!L25)),COUNTRY_INFO!F25),0) -> 0 | W25: =IF(AND(COUNTRY_INFO!J25>1,COUNTRY_INFO!J25<4), IF(V25/COUNTRY_INFO!F25*100<>0, IF(V25/COUNTRY_INFO!F25*100>100,100,V25/COUNTRY_INFO!F25*100), "-"),0) -> 0 | X25: 0 | Y25: =IF(AND(COUNTRY_INFO!J25>1,COUNTRY_INFO!J25<4), IF(S25/P25*100<>0, IF(X25/P25*100>100,100,X25/P25*100), "-"),0) -> 0 | Z25: =COUNTRY_INFO!P25 -> 7480.77 | AC25: =MAX('T1'!L25,'T2'!J25)+MAX('T1'!M25,'T2'!K25)+MAX('T1'!N25,'T2'!L25) -> 0 | AD25: =IF(COUNTRY_INFO!K25=1,IF(COUNTRY_INFO!F25*0.33>MAX('T1'!M25,'T2'!K25),MAX('T1'!M25,'T2'!K25),COUNTRY_INFO!F25*0.33),IF(COUNTRY_INFO!K25=2,IF(COUNTRY_INFO!F25*0.5>MAX('T1'!M25,'T2'!K25),MAX('T1'!M25,'T2'!K25),COUNTRY_INFO!F25*0.5),IF(COUNTRY_INFO!K25=3,IF(COUNTRY_INFO!F25>MAX('T1'!M25,'T2'!K25),MAX('T1'!M25,'T2'!K25),COUNTRY_INFO!F25),0))) -> 0 | AE25: =IF(AND(COUNTRY_INFO!K25>0,COUNTRY_INFO!K25<4),IF(Z25>0,IF(COUNTRY_INFO!K25=1, AD25/(COUNTRY_INFO!F25*0.33)*100, IF(COUNTRY_INFO!K25=2, AD25/(COUNTRY_INFO!F25*0.5)*100, IF(COUNTRY_INFO!K25=3, AD25/COUNTRY_INFO!F25*100))),"-"),0) -> 0 | AF25: =IF(COUNTRY_INFO!K25=2,IF(COUNTRY_INFO!G25*0.2>MAX('T1'!N25,'T2'!L25),MAX('T1'!N25,'T2'!L25),COUNTRY_INFO!G25*0.2),IF(COUNTRY_INFO!K25=3,IF(COUNTRY_INFO!G25>MAX('T1'!N25,'T2'!L25),MAX('T1'!N25,'T2'!L25),COUNTRY_INFO!G25),0)) -> 0 | AG25: =IF(AND(COUNTRY_INFO!K25>0,COUNTRY_INFO!K25<4),IF(Z25>0,IF(COUNTRY_INFO!K25=1, 0, IF(COUNTRY_INFO!K25=2, AF25/(COUNTRY_INFO!G25*0.2)*100, IF(COUNTRY_INFO!K25=3, AF25/COUNTRY_INFO!G25*100))),"-"),0) -> 0 | AH25: 0 | AI25: =IF(AND(COUNTRY_INFO!K25>0,COUNTRY_INFO!K25<4), IF(AC25/Z25*100<>0, IF(AH25/Z25*100>100,100,AH25/Z25*100), "-"),0) -> - | AK25: =IF(AND(D25<>0, D25<>"Inconnu",D25<>"Interrompu",D25<>"Non requis"),D25/COUNTRY_INFO!D25, 0) -> 1 | AL25: =IF(AND(J25<>0,J25<>"Inconnu",J25<>"Interrompu",J25<>"Non requis"),J25/COUNTRY_INFO!D25, 0) -> 0 | AM25: =IF(AND(P25<>0,P25<>"Inconnu",P25<>"Non requis"),P25/(COUNTRY_INFO!E25+COUNTRY_INFO!F25), 0) -> 0 | AN25: =IF(AND(Z25<>0,Z25<>"Inconnu",Z25<>"Non requis"),IF(COUNTRY_INFO!K25=1,1,IF(COUNTRY_INFO!K25=2,0.5*COUNTRY_INFO!F25/(0.5*COUNTRY_INFO!F25+0.2*COUNTRY_INFO!G25),IF(COUNTRY_INFO!K25=3,COUNTRY_INFO!F25/(COUNTRY_INFO!F25+COUNTRY_INFO!G25)))),0) -> 1 | AO25: =IF(AND(Z25<>0,Z25<>"Inconnu",Z25<>"Non requis"),IF(COUNTRY_INFO!K25=1,0,IF(COUNTRY_INFO!K25=2,0.2*COUNTRY_INFO!G25/(0.5*COUNTRY_INFO!F25+0.2*COUNTRY_INFO!G25),IF(COUNTRY_INFO!K25=3,COUNTRY_INFO!G25/(COUNTRY_INFO!F25+COUNTRY_INFO!G25)))),0) -> 0 | AP25: =MAX(COUNTRY_INFO!D25*AK25*PROFILE!$G$7,COUNTRY_INFO!D25*AL25*PROFILE!$G$7) -> 4439.485497 | AQ25: =MAX(COUNTRY_INFO!D25*AK25*PROFILE!$G$8,COUNTRY_INFO!D25*AL25*PROFILE!$G$8,COUNTRY_INFO!D25*AM25*PROFILE!$G$8) -> 15112.95858 | AR25: =MAX(COUNTRY_INFO!D25*AK25*PROFILE!$G$9,COUNTRY_INFO!D25*AL25*PROFILE!$G$9,COUNTRY_INFO!D25*AM25*PROFILE!$G$9,IF(AND(DISTRICT!Z25<>"Inconnu",Z25<>"Non requis"),COUNTRY_INFO!P25*DISTRICT!AN25,0)) -> 22669.40237 | AS25: =MAX(COUNTRY_INFO!D25*AK25*PROFILE!$G$10,COUNTRY_INFO!D25*AL25*PROFILE!$G$10,IF(AND(DISTRICT!Z25<>"Inconnu",Z25<>"Non requis"),COUNTRY_INFO!P25*DISTRICT!AO25,0)) -> 52234.15355 | AT25: 94456 | AU25: 0 | AV25: =MAX('MDA4'!R25,'T1'!L25,'T2'!J25,T3_R1!K25,T3_R2!K25) -> 0 | AW25: =MAX('MDA1'!K25,'MDA4'!S25,'MDA3'!I25,'MDA3'!L25,'T1'!M25,'T2'!K25,T3_R1!L25,T3_R2!L25) -> 10204.8 | AX25: =MAX('MDA1'!L25,'MDA4'!T25,'MDA3'!J25,'MDA3'!M25,'T1'!N25,'T2'!L25,T3_R1!M25,T3_R2!M25) -> 32315.2 | AY25: 42520 | AZ25: =MAX('MDA4'!R25,T25) -> 0 | BA25: =MAX('MDA1'!K25,'MDA4'!S25,'MDA3'!I25,'MDA3'!L25,V25,AD25) -> 10204.8 | BB25: =MAX('MDA1'!L25,'MDA4'!T25,'MDA3'!J25,'MDA3'!M25,AF25) -> 32315.2 | BC25: 42520 | BD25: 45.01566867
A26: =IF(COUNTRY_INFO!A26=0," ",COUNTRY_INFO!A26) -> Congo | B26: =IF(COUNTRY_INFO!B26=0," ",COUNTRY_INFO!B26) -> Cuvette | C26: =IF(COUNTRY_INFO!C26=0," ",COUNTRY_INFO!C26) -> Oyo-Alima | D26: =COUNTRY_INFO!M26 -> 0 | G26: =SUM('MDA1'!M26,'MDA4'!U26) -> 0 | H26: =IF(AND(COUNTRY_INFO!H26>0,COUNTRY_INFO!H26<4),IF(D26>MAX('MDA1'!M26,'MDA4'!U26),MAX('MDA1'!M26,'MDA4'!U26),D26),0) -> 0 | I26: =IF(AND(COUNTRY_INFO!H26>0,COUNTRY_INFO!H26<4), IF(G26/D26*100<>0, IF(G26/D26*100>100,100,G26/D26*100), "-"),0) -> 0 | J26: =COUNTRY_INFO!N26 -> 0 | M26: =MAX('MDA1'!M26,MAX('MDA3'!I26,'MDA3'!L26)+MAX('MDA3'!J26,'MDA3'!M26)) -> 0 | N26: =IF(AND(COUNTRY_INFO!I26>0,COUNTRY_INFO!I26<4),IF(J26>MAX('MDA1'!M26,MAX('MDA3'!I26,'MDA3'!L26)+MAX('MDA3'!J26,'MDA3'!M26)),MAX('MDA1'!M26,MAX('MDA3'!I26,'MDA3'!L26)+MAX('MDA3'!J26,'MDA3'!M26)),J26),0) -> 0 | O26: =IF(AND(COUNTRY_INFO!I26>0,COUNTRY_INFO!I26<4), IF(M26/J26*100<>0, IF(M26/J26*100>100,100,M26/J26*100), "-"),0) -> 0 | P26: =COUNTRY_INFO!O26 -> 0 | S26: =SUM(MAX('MDA4'!N26, 'T1'!L26, MAX(T3_R1!K26, T3_R2!K26)), MAX('MDA1'!K26, 'MDA4'!O26, 'T1'!M26, MAX(T3_R1!L26, T3_R2!L26)), MAX('MDA1'!L26, 'MDA4'!P26, 'T1'!N26, MAX(T3_R1!M26, T3_R2!M26))) -> 0 | T26: =IF(AND(COUNTRY_INFO!J26>1,COUNTRY_INFO!J26<4),IF(COUNTRY_INFO!E26>MAX('MDA4'!N26,'T1'!L26,MAX(T3_R1!K26,T3_R2!K26)),MAX('MDA4'!N26,'T1'!L26,MAX(T3_R1!K26,T3_R2!K26)),COUNTRY_INFO!E26),0) -> 0 | U26: =IF(AND(COUNTRY_INFO!J26>1,COUNTRY_INFO!J26<4), IF(T26/COUNTRY_INFO!E26*100<>0, IF(T26/COUNTRY_INFO!E26*100>100,100,T26/COUNTRY_INFO!E26*100), "-"),0) -> 0 | V26: =IF(AND(COUNTRY_INFO!J26>1,COUNTRY_INFO!J26<4),IF(COUNTRY_INFO!F26>MAX('MDA1'!K26,'MDA4'!O26,'T1'!M26,MAX(T3_R1!L26,T3_R2!L26)),MAX('MDA1'!K26,'MDA4'!O26,'T1'!M26,MAX(T3_R1!L26,T3_R2!L26)),COUNTRY_INFO!F26),0) -> 0 | W26: =IF(AND(COUNTRY_INFO!J26>1,COUNTRY_INFO!J26<4), IF(V26/COUNTRY_INFO!F26*100<>0, IF(V26/COUNTRY_INFO!F26*100>100,100,V26/COUNTRY_INFO!F26*100), "-"),0) -> 0 | X26: 0 | Y26: =IF(AND(COUNTRY_INFO!J26>1,COUNTRY_INFO!J26<4), IF(S26/P26*100<>0, IF(X26/P26*100>100,100,X26/P26*100), "-"),0) -> 0 | Z26: =COUNTRY_INFO!P26 -> 0 | AC26: =MAX('T1'!L26,'T2'!J26)+MAX('T1'!M26,'T2'!K26)+MAX('T1'!N26,'T2'!L26) -> 0 | AD26: =IF(COUNTRY_INFO!K26=1,IF(COUNTRY_INFO!F26*0.33>MAX('T1'!M26,'T2'!K26),MAX('T1'!M26,'T2'!K26),COUNTRY_INFO!F26*0.33),IF(COUNTRY_INFO!K26=2,IF(COUNTRY_INFO!F26*0.5>MAX('T1'!M26,'T2'!K26),MAX('T1'!M26,'T2'!K26),COUNTRY_INFO!F26*0.5),IF(COUNTRY_INFO!K26=3,IF(COUNTRY_INFO!F26>MAX('T1'!M26,'T2'!K26),MAX('T1'!M26,'T2'!K26),COUNTRY_INFO!F26),0))) -> 0 | AE26: =IF(AND(COUNTRY_INFO!K26>0,COUNTRY_INFO!K26<4),IF(Z26>0,IF(COUNTRY_INFO!K26=1, AD26/(COUNTRY_INFO!F26*0.33)*100, IF(COUNTRY_INFO!K26=2, AD26/(COUNTRY_INFO!F26*0.5)*100, IF(COUNTRY_INFO!K26=3, AD26/COUNTRY_INFO!F26*100))),"-"),0) -> 0 | AF26: =IF(COUNTRY_INFO!K26=2,IF(COUNTRY_INFO!G26*0.2>MAX('T1'!N26,'T2'!L26),MAX('T1'!N26,'T2'!L26),COUNTRY_INFO!G26*0.2),IF(COUNTRY_INFO!K26=3,IF(COUNTRY_INFO!G26>MAX('T1'!N26,'T2'!L26),MAX('T1'!N26,'T2'!L26),COUNTRY_INFO!G26),0)) -> 0 | AG26: =IF(AND(COUNTRY_INFO!K26>0,COUNTRY_INFO!K26<4),IF(Z26>0,IF(COUNTRY_INFO!K26=1, 0, IF(COUNTRY_INFO!K26=2, AF26/(COUNTRY_INFO!G26*0.2)*100, IF(COUNTRY_INFO!K26=3, AF26/COUNTRY_INFO!G26*100))),"-"),0) -> 0 | AH26: 0 | AI26: =IF(AND(COUNTRY_INFO!K26>0,COUNTRY_INFO!K26<4), IF(AC26/Z26*100<>0, IF(AH26/Z26*100>100,100,AH26/Z26*100), "-"),0) -> 0 | AK26: =IF(AND(D26<>0, D26<>"Inconnu",D26<>"Interrompu",D26<>"Non requis"),D26/COUNTRY_INFO!D26, 0) -> 0 | AL26: =IF(AND(J26<>0,J26<>"Inconnu",J26<>"Interrompu",J26<>"Non requis"),J26/COUNTRY_INFO!D26, 0) -> 0 | AM26: =IF(AND(P26<>0,P26<>"Inconnu",P26<>"Non requis"),P26/(COUNTRY_INFO!E26+COUNTRY_INFO!F26), 0) -> 0 | AN26: =IF(AND(Z26<>0,Z26<>"Inconnu",Z26<>"Non requis"),IF(COUNTRY_INFO!K26=1,1,IF(COUNTRY_INFO!K26=2,0.5*COUNTRY_INFO!F26/(0.5*COUNTRY_INFO!F26+0.2*COUNTRY_INFO!G26),IF(COUNTRY_INFO!K26=3,COUNTRY_INFO!F26/(COUNTRY_INFO!F26+COUNTRY_INFO!G26)))),0) -> 0 | AO26: =IF(AND(Z26<>0,Z26<>"Inconnu",Z26<>"Non requis"),IF(COUNTRY_INFO!K26=1,0,IF(COUNTRY_INFO!K26=2,0.2*COUNTRY_INFO!G26/(0.5*COUNTRY_INFO!F26+0.2*COUNTRY_INFO!G26),IF(COUNTRY_INFO!K26=3,COUNTRY_INFO!G26/(COUNTRY_INFO!F26+COUNTRY_INFO!G26)))),0) -> 0 | AP26: =MAX(COUNTRY_INFO!D26*AK26*PROFILE!$G$7,COUNTRY_INFO!D26*AL26*PROFILE!$G$7) -> 0 | AQ26: =MAX(COUNTRY_INFO!D26*AK26*PROFILE!$G$8,COUNTRY_INFO!D26*AL26*PROFILE!$G$8,COUNTRY_INFO!D26*AM26*PROFILE!$G$8) -> 0 | AR26: =MAX(COUNTRY_INFO!D26*AK26*PROFILE!$G$9,COUNTRY_INFO!D26*AL26*PROFILE!$G$9,COUNTRY_INFO!D26*AM26*PROFILE!$G$9,IF(AND(DISTRICT!Z26<>"Inconnu",Z26<>"Non requis"),COUNTRY_INFO!P26*DISTRICT!AN26,0)) -> 0 | AS26: =MAX(COUNTRY_INFO!D26*AK26*PROFILE!$G$10,COUNTRY_INFO!D26*AL26*PROFILE!$G$10,IF(AND(DISTRICT!Z26<>"Inconnu",Z26<>"Non requis"),COUNTRY_INFO!P26*DISTRICT!AO26,0)) -> 0 | AT26: 0 | AU26: 0 | AV26: =MAX('MDA4'!R26,'T1'!L26,'T2'!J26,T3_R1!K26,T3_R2!K26) -> 0 | AW26: =MAX('MDA1'!K26,'MDA4'!S26,'MDA3'!I26,'MDA3'!L26,'T1'!M26,'T2'!K26,T3_R1!L26,T3_R2!L26) -> 0 | AX26: =MAX('MDA1'!L26,'MDA4'!T26,'MDA3'!J26,'MDA3'!M26,'T1'!N26,'T2'!L26,T3_R1!M26,T3_R2!M26) -> 0 | AY26: 0 | AZ26: =MAX('MDA4'!R26,T26) -> 0 | BA26: =MAX('MDA1'!K26,'MDA4'!S26,'MDA3'!I26,'MDA3'!L26,V26,AD26) -> 0 | BB26: =MAX('MDA1'!L26,'MDA4'!T26,'MDA3'!J26,'MDA3'!M26,AF26) -> 0 | BC26: 0 | BD26: 0
